Workbook

Sheet MAIN MENU
I2: Energy Efficiency Indicators Template
I4: country name
B9: COUNTRY DATA SECTION (to be reviewed and updated)
C10: MACRO ECONOMIC DATA | F10: Macro economic and activity data
C11: COMMODITIES | F11: Production outputs from selected energy-consuming industries
C12: INDUSTRY | F12: Energy consumption by ISIC categories
C13: SERVICES | F13: Energy consumption by end-uses in the services sector
C14: RESIDENTIAL | F14: Household energy consumption by end-uses and selected appliances data
C15: TRANSPORT | F15: Energy and activity data for passenger and freight transport
B17: IEA DATA and AGGREGATE INDICATORS
C18: ELECTRICITY GENERATION | F18: Electricity generation from combustible fuels and efficiencies
C19: BASIC INDICATORS | F19: Predetermined set of aggregate energy and activity indicators
B21: SUPPORT TOOLS
C22: USER REMARKS | F22: To incorporate comments associated to the data from the individual sheets
C23: DATA COVERAGE | F23: Generates a graphical summary of data coverage (completed vs. expected)
C24: SINGLE INDICATOR GRAPHS | F24: To generate a graph for one energy indicator
C25: MULTIPLE INDICATORS GRAPHS | F25: To generate a graph comparing trends from multiple indicators
C26: CONSISTENCY CHECKS | F26: To run the integrated consistency checks
C31: If you have any questions or need assistance with this questionnaire,
C32: write to energyindicators@iea.org
C38: Click on the START button to begin working
B45: ©IEA

Sheet MACRO ECONOMIC DATA
B1: MACRO ECONOMIC DATA | C1: SHORTNAME | D1: units | E1: 1990 | F1: 1991 | G1: 1992 | H1: 1993 | I1: 1994 | J1: 1995 | K1: 1996 | L1: 1997 | M1: 1998 | N1: 1999 | O1: 2000 | P1: =O1+1 -> 2001 | Q1: =P1+1 -> 2002 | R1: =Q1+1 -> 2003 | S1: =R1+1 -> 2004 | T1: =S1+1 -> 2005 | U1: =T1+1 -> 2006 | V1: =U1+1 -> 2007 | W1: =V1+1 -> 2008 | X1: =W1+1 -> 2009 | Y1: =X1+1 -> 2010 | Z1: =Y1+1 -> 2011 | AA1: =Z1+1 -> 2012 | AB1: =AA1+1 -> 2013 | AC1: =AB1+1 -> 2014 | AD1: =AC1+1 -> 2015 | AE1: =AD1+1 -> 2016 | AF1: =AE1+1 -> 2017 | AG1: =AF1+1 -> 2018 | AH1: =AG1+1 -> 2019 | AI1: 2020 | AK1: sources | AL1: comments and methodology | CG1: MACRO ECONOMIC DATA | CH1: SHORTNAME | CI1: units | CJ1: 1990 | CK1: =CJ1+1 -> 1991 | CL1: =CK1+1 -> 1992 | CM1: 1993 | CN1: 1994 | CO1: 1995 | CP1: 1996 | CQ1: 1997 | CR1: 1998 | CS1: 1999 | CT1: 2000 | CU1: 2001 | CV1: 2002 | CW1: 2003 | CX1: 2004 | CY1: 2005 | CZ1: 2006 | DA1: 2007 | DB1: 2008 | DC1: 2009 | DD1: 2010 | DE1: 2011 | DF1: 2012 | DG1: 2013 | DH1: 2014 | DI1: 2015 | DJ1: 2016 | DK1: 2017 | DL1: 2018 | DM1: 2019 | DN1: 2020
A3: I. | B3: Activity & Structure Indicators | CF3: I. | CG3: Activity & Structure Indicators
A4: TRUE | B4: Total Population | C4: POP.DATA | D4: 106 pers | E4: 0 | F4: 0 | G4: 0 | H4: 0 | I4: 0 | J4: 0 | K4: 0 | L4: 0 | M4: 0 | N4: 0 | O4: 0 | P4: 0 | Q4: 0 | R4: 0 | S4: 0 | T4: 0 | U4: 0 | V4: 0 | W4: 0 | X4: 0 | Y4: 0 | Z4: 0 | AA4: 0 | AB4: 0 | AC4: 0 | AD4: 0 | AE4: 0 | AF4: 0 | AG4: 0 | AH4: 0 | AI4: 0 | CF4: TRUE | CG4: Total Population | CH4: POP.DATA | CI4: 106 pers | CJ4: 0 | CK4: 0 | CL4: 0 | CM4: 0 | CN4: 0 | CO4: 0 | CP4: 0 | CQ4: 0 | CR4: 0 | CS4: 0 | CT4: 0 | CU4: 0 | CV4: 0 | CW4: 0 | CX4: 0 | CY4: 0 | CZ4: 0 | DA4: 0 | DB4: 0 | DC4: 0 | DD4: 0 | DE4: 0 | DF4: 0 | DG4: 0 | DH4: 0 | DI4: 0 | DJ4: 0 | DK4: 0 | DL4: 0 | DM4: 0 | DN4: 0
B5: Share of population living in urban area | C5: POP_URBAN.DATA | D5: % | E5: 0 | F5: 0 | G5: 0 | H5: 0 | I5: 0 | J5: 0 | K5: 0 | L5: 0 | M5: 0 | N5: 0 | O5: 0 | P5: 0 | Q5: 0 | R5: 0 | S5: 0 | T5: 0 | U5: 0 | V5: 0 | W5: 0 | X5: 0 | Y5: 0 | Z5: 0 | AA5: 0 | AB5: 0 | AC5: 0 | AD5: 0 | AE5: 0 | AF5: 0 | AG5: 0 | AH5: 0 | AI5: 0 | CG5: Share of population living in urban area | CH5: POP_URBAN.DATA | CI5: % | CJ5: 0 | CK5: 0 | CL5: 0 | CM5: 0 | CN5: 0 | CO5: 0 | CP5: 0 | CQ5: 0 | CR5: 0 | CS5: 0 | CT5: 0 | CU5: 0 | CV5: 0 | CW5: 0 | CX5: 0 | CY5: 0 | CZ5: 0 | DA5: 0 | DB5: 0 | DC5: 0 | DD5: 0 | DE5: 0 | DF5: 0 | DG5: 0 | DH5: 0 | DI5: 0 | DJ5: 0 | DK5: 0 | DL5: 0 | DM5: 0 | DN5: 0
B6: Share of population living in rural area | C6: POP_RURAL.DATA | D6: % | E6: 0 | F6: 0 | G6: 0 | H6: 0 | I6: 0 | J6: 0 | K6: 0 | L6: 0 | M6: 0 | N6: 0 | O6: 0 | P6: 0 | Q6: 0 | R6: 0 | S6: 0 | T6: 0 | U6: 0 | V6: 0 | W6: 0 | X6: 0 | Y6: 0 | Z6: 0 | AA6: 0 | AB6: 0 | AC6: 0 | AD6: 0 | AE6: 0 | AF6: 0 | AG6: 0 | AH6: 0 | AI6: 0 | CG6: Share of population living in rural area | CH6: POP_RURAL.DATA | CI6: % | CJ6: 0 | CK6: 0 | CL6: 0 | CM6: 0 | CN6: 0 | CO6: 0 | CP6: 0 | CQ6: 0 | CR6: 0 | CS6: 0 | CT6: 0 | CU6: 0 | CV6: 0 | CW6: 0 | CX6: 0 | CY6: 0 | CZ6: 0 | DA6: 0 | DB6: 0 | DC6: 0 | DD6: 0 | DE6: 0 | DF6: 0 | DG6: 0 | DH6: 0 | DI6: 0 | DJ6: 0 | DK6: 0 | DL6: 0 | DM6: 0 | DN6: 0
A8: TRUE | B8: Total Dwellings | C8: DWEL_TOT.DATA | D8: 106 dw | E8: 0 | F8: 0 | G8: 0 | H8: 0 | I8: 0 | J8: 0 | K8: 0 | L8: 0 | M8: 0 | N8: 0 | O8: 0 | P8: 0 | Q8: 0 | R8: 0 | S8: 0 | T8: 0 | U8: 0 | V8: 0 | W8: 0 | X8: 0 | Y8: 0 | Z8: 0 | AA8: 0 | AB8: 0 | AC8: 0 | AD8: 0 | AE8: 0 | AF8: 0 | AG8: 0 | AH8: 0 | AI8: 0 | CF8: TRUE | CG8: Total Dwellings | CH8: DWEL_TOT.DATA | CI8: 106 dw | CJ8: 0 | CK8: 0 | CL8: 0 | CM8: 0 | CN8: 0 | CO8: 0 | CP8: 0 | CQ8: 0 | CR8: 0 | CS8: 0 | CT8: 0 | CU8: 0 | CV8: 0 | CW8: 0 | CX8: 0 | CY8: 0 | CZ8: 0 | DA8: 0 | DB8: 0 | DC8: 0 | DD8: 0 | DE8: 0 | DF8: 0 | DG8: 0 | DH8: 0 | DI8: 0 | DJ8: 0 | DK8: 0 | DL8: 0 | DM8: 0 | DN8: 0
A9: TRUE | B9: Occupied Dwellings | C9: DWEL_OCC.DATA | D9: 106 dw | E9: 0 | F9: 0 | G9: 0 | H9: 0 | I9: 0 | J9: 0 | K9: 0 | L9: 0 | M9: 0 | N9: 0 | O9: 0 | P9: 0 | Q9: 0 | R9: 0 | S9: 0 | T9: 0 | U9: 0 | V9: 0 | W9: 0 | X9: 0 | Y9: 0 | Z9: 0 | AA9: 0 | AB9: 0 | AC9: 0 | AD9: 0 | AE9: 0 | AF9: 0 | AG9: 0 | AH9: 0 | AI9: 0 | CF9: TRUE | CG9: Occupied Dwellings | CH9: DWEL_OCC.DATA | CI9: 106 dw | CJ9: 0 | CK9: 0 | CL9: 0 | CM9: 0 | CN9: 0 | CO9: 0 | CP9: 0 | CQ9: 0 | CR9: 0 | CS9: 0 | CT9: 0 | CU9: 0 | CV9: 0 | CW9: 0 | CX9: 0 | CY9: 0 | CZ9: 0 | DA9: 0 | DB9: 0 | DC9: 0 | DD9: 0 | DE9: 0 | DF9: 0 | DG9: 0 | DH9: 0 | DI9: 0 | DJ9: 0 | DK9: 0 | DL9: 0 | DM9: 0 | DN9: 0
B10: New Dwellings | C10: DWEL_NEW.DATA | D10: 106 dw | E10: 0 | F10: 0 | G10: 0 | H10: 0 | I10: 0 | J10: 0 | K10: 0 | L10: 0 | M10: 0 | N10: 0 | O10: 0 | P10: 0 | Q10: 0 | R10: 0 | S10: 0 | T10: 0 | U10: 0 | V10: 0 | W10: 0 | X10: 0 | Y10: 0 | Z10: 0 | AA10: 0 | AB10: 0 | AC10: 0 | AD10: 0 | AE10: 0 | AF10: 0 | AG10: 0 | AH10: 0 | AI10: 0 | CG10: New Dwellings | CH10: DWEL_NEW.DATA | CI10: 106 dw | CJ10: 0 | CK10: 0 | CL10: 0 | CM10: 0 | CN10: 0 | CO10: 0 | CP10: 0 | CQ10: 0 | CR10: 0 | CS10: 0 | CT10: 0 | CU10: 0 | CV10: 0 | CW10: 0 | CX10: 0 | CY10: 0 | CZ10: 0 | DA10: 0 | DB10: 0 | DC10: 0 | DD10: 0 | DE10: 0 | DF10: 0 | DG10: 0 | DH10: 0 | DI10: 0 | DJ10: 0 | DK10: 0 | DL10: 0 | DM10: 0 | DN10: 0
B11: Refurbished Dwellings (with insulation) - VOLUNTARY | C11: DWEL_RE.DATA | D11: 103 dw | E11: 0 | F11: 0 | G11: 0 | H11: 0 | I11: 0 | J11: 0 | K11: 0 | L11: 0 | M11: 0 | N11: 0 | O11: 0 | P11: 0 | Q11: 0 | R11: 0 | S11: 0 | T11: 0 | U11: 0 | V11: 0 | W11: 0 | X11: 0 | Y11: 0 | Z11: 0 | AA11: 0 | AB11: 0 | AC11: 0 | AD11: 0 | AE11: 0 | AF11: 0 | AG11: 0 | AH11: 0 | AI11: 0 | CG11: Refurbished Dwellings (with insulation) | CH11: DWEL_RE.DATA | CI11: 103 dw | CJ11: 0 | CK11: 0 | CL11: 0 | CM11: 0 | CN11: 0 | CO11: 0 | CP11: 0 | CQ11: 0 | CR11: 0 | CS11: 0 | CT11: 0 | CU11: 0 | CV11: 0 | CW11: 0 | CX11: 0 | CY11: 0 | CZ11: 0 | DA11: 0 | DB11: 0 | DC11: 0 | DD11: 0 | DE11: 0 | DF11: 0 | DG11: 0 | DH11: 0 | DI11: 0 | DJ11: 0 | DK11: 0 | DL11: 0 | DM11: 0 | DN11: 0
A12: CLOSE | B12: Share of refurbished dwellings with insulated window/wall | C12: DWEL_RE_WD.DATA | D12: % | E12: 0 | F12: 0 | G12: 0 | H12: 0 | I12: 0 | J12: 0 | K12: 0 | L12: 0 | M12: 0 | N12: 0 | O12: 0 | P12: 0 | Q12: 0 | R12: 0 | S12: 0 | T12: 0 | U12: 0 | V12: 0 | W12: 0 | X12: 0 | Y12: 0 | Z12: 0 | AA12: 0 | AB12: 0 | AC12: 0 | AD12: 0 | AE12: 0 | AF12: 0 | AG12: 0 | AH12: 0 | AI12: 0 | CF12: OPEN | CG12: Share of refurbished dwellings with insulated window/wall | CH12: DWEL_RE_WD.DATA | CI12: % | CJ12: 0 | CK12: 0 | CL12: 0 | CM12: 0 | CN12: 0 | CO12: 0 | CP12: 0 | CQ12: 0 | CR12: 0 | CS12: 0 | CT12: 0 | CU12: 0 | CV12: 0 | CW12: 0 | CX12: 0 | CY12: 0 | CZ12: 0 | DA12: 0 | DB12: 0 | DC12: 0 | DD12: 0 | DE12: 0 | DF12: 0 | DG12: 0 | DH12: 0 | DI12: 0 | DJ12: 0 | DK12: 0 | DL12: 0 | DM12: 0 | DN12: 0
B13: Share of refurbished dwellings with insulated roof | C13: DWEL_RE_RF.DATA | D13: % | E13: 0 | F13: 0 | G13: 0 | H13: 0 | I13: 0 | J13: 0 | K13: 0 | L13: 0 | M13: 0 | N13: 0 | O13: 0 | P13: 0 | Q13: 0 | R13: 0 | S13: 0 | T13: 0 | U13: 0 | V13: 0 | W13: 0 | X13: 0 | Y13: 0 | Z13: 0 | AA13: 0 | AB13: 0 | AC13: 0 | AD13: 0 | AE13: 0 | AF13: 0 | AG13: 0 | AH13: 0 | AI13: 0 | CG13: Share of refurbished dwellings with insulated roof | CH13: DWEL_RE_WA.DATA | CI13: % | CJ13: 0 | CK13: 0 | CL13: 0 | CM13: 0 | CN13: 0 | CO13: 0 | CP13: 0 | CQ13: 0 | CR13: 0 | CS13: 0 | CT13: 0 | CU13: 0 | CV13: 0 | CW13: 0 | CX13: 0 | CY13: 0 | CZ13: 0 | DA13: 0 | DB13: 0 | DC13: 0 | DD13: 0 | DE13: 0 | DF13: 0 | DG13: 0 | DH13: 0 | DI13: 0 | DJ13: 0 | DK13: 0 | DL13: 0 | DM13: 0 | DN13: 0
B14: Share of occupied dwellings by primary heating system - VOLUNTARY | D14: % | CG14: Share of occupied dwellings by heating system | CI14: %
A15: CLOSE | B15: Share of occupied dwellings heated by oil products | C15: DWEL_OIL.DATA | D15: % | E15: 0 | F15: 0 | G15: 0 | H15: 0 | I15: 0 | J15: 0 | K15: 0 | L15: 0 | M15: 0 | N15: 0 | O15: 0 | P15: 0 | Q15: 0 | R15: 0 | S15: 0 | T15: 0 | U15: 0 | V15: 0 | W15: 0 | X15: 0 | Y15: 0 | Z15: 0 | AA15: 0 | AB15: 0 | AC15: 0 | AD15: 0 | AE15: 0 | AF15: 0 | AG15: 0 | AH15: 0 | AI15: 0 | CF15: OPEN | CG15: Share of occupied dwellings heated by oil products | CH15: DWEL_OIL.DATA | CI15: % | CJ15: 0 | CK15: 0 | CL15: 0 | CM15: 0 | CN15: 0 | CO15: 0 | CP15: 0 | CQ15: 0 | CR15: 0 | CS15: 0 | CT15: 0 | CU15: 0 | CV15: 0 | CW15: 0 | CX15: 0 | CY15: 0 | CZ15: 0 | DA15: 0 | DB15: 0 | DC15: 0 | DD15: 0 | DE15: 0 | DF15: 0 | DG15: 0 | DH15: 0 | DI15: 0 | DJ15: 0 | DK15: 0 | DL15: 0 | DM15: 0 | DN15: 0
B16: Share of occupied dwellings heated by gas | C16: DWEL_GAS.DATA | D16: % | E16: 0 | F16: 0 | G16: 0 | H16: 0 | I16: 0 | J16: 0 | K16: 0 | L16: 0 | M16: 0 | N16: 0 | O16: 0 | P16: 0 | Q16: 0 | R16: 0 | S16: 0 | T16: 0 | U16: 0 | V16: 0 | W16: 0 | X16: 0 | Y16: 0 | Z16: 0 | AA16: 0 | AB16: 0 | AC16: 0 | AD16: 0 | AE16: 0 | AF16: 0 | AG16: 0 | AH16: 0 | AI16: 0 | CG16: Share of occupied dwellings heated by gas | CH16: DWEL_GAS.DATA | CI16: % | CJ16: 0 | CK16: 0 | CL16: 0 | CM16: 0 | CN16: 0 | CO16: 0 | CP16: 0 | CQ16: 0 | CR16: 0 | CS16: 0 | CT16: 0 | CU16: 0 | CV16: 0 | CW16: 0 | CX16: 0 | CY16: 0 | CZ16: 0 | DA16: 0 | DB16: 0 | DC16: 0 | DD16: 0 | DE16: 0 | DF16: 0 | DG16: 0 | DH16: 0 | DI16: 0 | DJ16: 0 | DK16: 0 | DL16: 0 | DM16: 0 | DN16: 0
B17: Share of occupied dwellings heated by biofuels | C17: DWEL_REN.DATA | D17: % | E17: 0 | F17: 0 | G17: 0 | H17: 0 | I17: 0 | J17: 0 | K17: 0 | L17: 0 | M17: 0 | N17: 0 | O17: 0 | P17: 0 | Q17: 0 | R17: 0 | S17: 0 | T17: 0 | U17: 0 | V17: 0 | W17: 0 | X17: 0 | Y17: 0 | Z17: 0 | AA17: 0 | AB17: 0 | AC17: 0 | AD17: 0 | AE17: 0 | AF17: 0 | AG17: 0 | AH17: 0 | AI17: 0 | CG17: Share of occupied dwellings heated by biofuels | CH17: DWEL_REN.DATA | CI17: % | CJ17: 0 | CK17: 0 | CL17: 0 | CM17: 0 | CN17: 0 | CO17: 0 | CP17: 0 | CQ17: 0 | CR17: 0 | CS17: 0 | CT17: 0 | CU17: 0 | CV17: 0 | CW17: 0 | CX17: 0 | CY17: 0 | CZ17: 0 | DA17: 0 | DB17: 0 | DC17: 0 | DD17: 0 | DE17: 0 | DF17: 0 | DG17: 0 | DH17: 0 | DI17: 0 | DJ17: 0 | DK17: 0 | DL17: 0 | DM17: 0 | DN17: 0
B18: Share of occupied dwellings heated by district heating | C18: DWEL_HEAT.DATA | D18: % | E18: 0 | F18: 0 | G18: 0 | H18: 0 | I18: 0 | J18: 0 | K18: 0 | L18: 0 | M18: 0 | N18: 0 | O18: 0 | P18: 0 | Q18: 0 | R18: 0 | S18: 0 | T18: 0 | U18: 0 | V18: 0 | W18: 0 | X18: 0 | Y18: 0 | Z18: 0 | AA18: 0 | AB18: 0 | AC18: 0 | AD18: 0 | AE18: 0 | AF18: 0 | AG18: 0 | AH18: 0 | AI18: 0 | CG18: Share of occupied dwellings heated by district heating | CH18: DWEL_HEAT.DATA | CI18: % | CJ18: 0 | CK18: 0 | CL18: 0 | CM18: 0 | CN18: 0 | CO18: 0 | CP18: 0 | CQ18: 0 | CR18: 0 | CS18: 0 | CT18: 0 | CU18: 0 | CV18: 0 | CW18: 0 | CX18: 0 | CY18: 0 | CZ18: 0 | DA18: 0 | DB18: 0 | DC18: 0 | DD18: 0 | DE18: 0 | DF18: 0 | DG18: 0 | DH18: 0 | DI18: 0 | DJ18: 0 | DK18: 0 | DL18: 0 | DM18: 0 | DN18: 0
B19: Share of occupied dwellings heated by electricity | C19: DWEL_ELE.DATA | D19: % | E19: 0 | F19: 0 | G19: 0 | H19: 0 | I19: 0 | J19: 0 | K19: 0 | L19: 0 | M19: 0 | N19: 0 | O19: 0 | P19: 0 | Q19: 0 | R19: 0 | S19: 0 | T19: 0 | U19: 0 | V19: 0 | W19: 0 | X19: 0 | Y19: 0 | Z19: 0 | AA19: 0 | AB19: 0 | AC19: 0 | AD19: 0 | AE19: 0 | AF19: 0 | AG19: 0 | AH19: 0 | AI19: 0 | CG19: Share of occupied dwellings heated by electricity | CH19: DWEL_ELE.DATA | CI19: % | CJ19: 0 | CK19: 0 | CL19: 0 | CM19: 0 | CN19: 0 | CO19: 0 | CP19: 0 | CQ19: 0 | CR19: 0 | CS19: 0 | CT19: 0 | CU19: 0 | CV19: 0 | CW19: 0 | CX19: 0 | CY19: 0 | CZ19: 0 | DA19: 0 | DB19: 0 | DC19: 0 | DD19: 0 | DE19: 0 | DF19: 0 | DG19: 0 | DH19: 0 | DI19: 0 | DJ19: 0 | DK19: 0 | DL19: 0 | DM19: 0 | DN19: 0
B20: Share of occupied dwellings with cooling system - VOLUNTARY | C20: DWEL_COOL.DATA | D20: % | E20: 0 | F20: 0 | G20: 0 | H20: 0 | I20: 0 | J20: 0 | K20: 0 | L20: 0 | M20: 0 | N20: 0 | O20: 0 | P20: 0 | Q20: 0 | R20: 0 | S20: 0 | T20: 0 | U20: 0 | V20: 0 | W20: 0 | X20: 0 | Y20: 0 | Z20: 0 | AA20: 0 | AB20: 0 | AC20: 0 | AD20: 0 | AE20: 0 | AF20: 0 | AG20: 0 | AH20: 0 | AI20: 0 | CG20: Share of occupied dwellings with cooling system | CH20: DWEL_COOL.DATA | CI20: % | CJ20: 0 | CK20: 0 | CL20: 0 | CM20: 0 | CN20: 0 | CO20: 0 | CP20: 0 | CQ20: 0 | CR20: 0 | CS20: 0 | CT20: 0 | CU20: 0 | CV20: 0 | CW20: 0 | CX20: 0 | CY20: 0 | CZ20: 0 | DA20: 0 | DB20: 0 | DC20: 0 | DD20: 0 | DE20: 0 | DF20: 0 | DG20: 0 | DH20: 0 | DI20: 0 | DJ20: 0 | DK20: 0 | DL20: 0 | DM20: 0 | DN20: 0
B21: Household Occupancy | C21: HOUSE_OCC.DATA | D21: pers/dw | E21: 0 | F21: 0 | G21: 0 | H21: 0 | I21: 0 | J21: 0 | K21: 0 | L21: 0 | M21: 0 | N21: 0 | O21: 0 | P21: 0 | Q21: 0 | R21: 0 | S21: 0 | T21: 0 | U21: 0 | V21: 0 | W21: 0 | X21: 0 | Y21: 0 | Z21: 0 | AA21: 0 | AB21: 0 | AC21: 0 | AD21: 0 | AE21: 0 | AF21: 0 | AG21: 0 | AH21: 0 | AI21: 0 | CG21: Household Occupancy | CH21: HOUSE_OCC.DATA | CI21: pers/dw | CJ21: 0 | CK21: 0 | CL21: 0 | CM21: 0 | CN21: 0 | CO21: 0 | CP21: 0 | CQ21: 0 | CR21: 0 | CS21: 0 | CT21: 0 | CU21: 0 | CV21: 0 | CW21: 0 | CX21: 0 | CY21: 0 | CZ21: 0 | DA21: 0 | DB21: 0 | DC21: 0 | DD21: 0 | DE21: 0 | DF21: 0 | DG21: 0 | DH21: 0 | DI21: 0 | DJ21: 0 | DK21: 0 | DL21: 0 | DM21: 0 | DN21: 0
B22: Share of urban households without electricity | C22: urban_dwellings.no_elec | D22: % | E22: 0 | F22: 0 | G22: 0 | H22: 0 | I22: 0 | J22: 0 | K22: 0 | L22: 0 | M22: 0 | N22: 0 | O22: 0 | P22: 0 | Q22: 0 | R22: 0 | S22: 0 | T22: 0 | U22: 0 | V22: 0 | W22: 0 | X22: 0 | Y22: 0 | Z22: 0 | AA22: 0 | AB22: 0 | AC22: 0 | AD22: 0 | AE22: 0 | AF22: 0 | AG22: 0 | AH22: 0 | AI22: 0 | CG22: Share of urban households without electricity | CH22: urban_dwellings.no_elec | CI22: % | CJ22: 0 | CK22: 0 | CL22: 0 | CM22: 0 | CN22: 0 | CO22: 0 | CP22: 0 | CQ22: 0 | CR22: 0 | CS22: 0 | CT22: 0 | CU22: 0 | CV22: 0 | CW22: 0 | CX22: 0 | CY22: 0 | CZ22: 0 | DA22: 0 | DB22: 0 | DC22: 0 | DD22: 0 | DE22: 0 | DF22: 0 | DG22: 0 | DH22: 0 | DI22: 0 | DJ22: 0 | DK22: 0 | DL22: 0 | DM22: 0 | DN22: 0
B23: Share of rural households without electricity | C23: rural_dwellings.no_elec | D23: % | E23: 0 | F23: 0 | G23: 0 | H23: 0 | I23: 0 | J23: 0 | K23: 0 | L23: 0 | M23: 0 | N23: 0 | O23: 0 | P23: 0 | Q23: 0 | R23: 0 | S23: 0 | T23: 0 | U23: 0 | V23: 0 | W23: 0 | X23: 0 | Y23: 0 | Z23: 0 | AA23: 0 | AB23: 0 | AC23: 0 | AD23: 0 | AE23: 0 | AF23: 0 | AG23: 0 | AH23: 0 | AI23: 0 | CG23: Share of rural households without electricity | CH23: rural_dwellings.no_elec | CI23: % | CJ23: 0 | CK23: 0 | CL23: 0 | CM23: 0 | CN23: 0 | CO23: 0 | CP23: 0 | CQ23: 0 | CR23: 0 | CS23: 0 | CT23: 0 | CU23: 0 | CV23: 0 | CW23: 0 | CX23: 0 | CY23: 0 | CZ23: 0 | DA23: 0 | DB23: 0 | DC23: 0 | DD23: 0 | DE23: 0 | DF23: 0 | DG23: 0 | DH23: 0 | DI23: 0 | DJ23: 0 | DK23: 0 | DL23: 0 | DM23: 0 | DN23: 0
B24: Share of urban households heavily dependent on non-commercial energy | C24: urban_dwellings.non-commercial_energy | D24: % | E24: 0 | F24: 0 | G24: 0 | H24: 0 | I24: 0 | J24: 0 | K24: 0 | L24: 0 | M24: 0 | N24: 0 | O24: 0 | P24: 0 | Q24: 0 | R24: 0 | S24: 0 | T24: 0 | U24: 0 | V24: 0 | W24: 0 | X24: 0 | Y24: 0 | Z24: 0 | AA24: 0 | AB24: 0 | AC24: 0 | AD24: 0 | AE24: 0 | AF24: 0 | AG24: 0 | AH24: 0 | AI24: 0 | CG24: Share of urban households heavily dependent on non-commercial energy | CH24: urban_dwellings.non-commercial_energy | CI24: % | CJ24: 0 | CK24: 0 | CL24: 0 | CM24: 0 | CN24: 0 | CO24: 0 | CP24: 0 | CQ24: 0 | CR24: 0 | CS24: 0 | CT24: 0 | CU24: 0 | CV24: 0 | CW24: 0 | CX24: 0 | CY24: 0 | CZ24: 0 | DA24: 0 | DB24: 0 | DC24: 0 | DD24: 0 | DE24: 0 | DF24: 0 | DG24: 0 | DH24: 0 | DI24: 0 | DJ24: 0 | DK24: 0 | DL24: 0 | DM24: 0 | DN24: 0
B25: Share of rural households heavily dependent on non-commercial energy | C25: rural_dwellings.non-commercial_energy | D25: % | E25: 0 | F25: 0 | G25: 0 | H25: 0 | I25: 0 | J25: 0 | K25: 0 | L25: 0 | M25: 0 | N25: 0 | O25: 0 | P25: 0 | Q25: 0 | R25: 0 | S25: 0 | T25: 0 | U25: 0 | V25: 0 | W25: 0 | X25: 0 | Y25: 0 | Z25: 0 | AA25: 0 | AB25: 0 | AC25: 0 | AD25: 0 | AE25: 0 | AF25: 0 | AG25: 0 | AH25: 0 | AI25: 0 | CG25: Share of rural households heavily dependent on non-commercial energy | CH25: rural_dwellings.non-commercial_energy | CI25: % | CJ25: 0 | CK25: 0 | CL25: 0 | CM25: 0 | CN25: 0 | CO25: 0 | CP25: 0 | CQ25: 0 | CR25: 0 | CS25: 0 | CT25: 0 | CU25: 0 | CV25: 0 | CW25: 0 | CX25: 0 | CY25: 0 | CZ25: 0 | DA25: 0 | DB25: 0 | DC25: 0 | DD25: 0 | DE25: 0 | DF25: 0 | DG25: 0 | DH25: 0 | DI25: 0 | DJ25: 0 | DK25: 0 | DL25: 0 | DM25: 0 | DN25: 0
B26: Share of household income spent on electricity and fuel | C26: dwellings_income_on_electricity | D26: % | E26: 0 | F26: 0 | G26: 0 | H26: 0 | I26: 0 | J26: 0 | K26: 0 | L26: 0 | M26: 0 | N26: 0 | O26: 0 | P26: 0 | Q26: 0 | R26: 0 | S26: 0 | T26: 0 | U26: 0 | V26: 0 | W26: 0 | X26: 0 | Y26: 0 | Z26: 0 | AA26: 0 | AB26: 0 | AC26: 0 | AD26: 0 | AE26: 0 | AF26: 0 | AG26: 0 | AH26: 0 | AI26: 0 | CG26: Share of household income spent on electricity and fuel | CH26: dwellings_income_on_electricity | CI26: % | CJ26: 0 | CK26: 0 | CL26: 0 | CM26: 0 | CN26: 0 | CO26: 0 | CP26: 0 | CQ26: 0 | CR26: 0 | CS26: 0 | CT26: 0 | CU26: 0 | CV26: 0 | CW26: 0 | CX26: 0 | CY26: 0 | CZ26: 0 | DA26: 0 | DB26: 0 | DC26: 0 | DD26: 0 | DE26: 0 | DF26: 0 | DG26: 0 | DH26: 0 | DI26: 0 | DJ26: 0 | DK26: 0 | DL26: 0 | DM26: 0 | DN26: 0
A27: TRUE | B27: Total Dwelling Area (Residential Floor Area) | C27: R_AREA.DATA | D27: 106 m2 | E27: 0 | F27: 0 | G27: 0 | H27: 0 | I27: 0 | J27: 0 | K27: 0 | L27: 0 | M27: 0 | N27: 0 | O27: 0 | P27: 0 | Q27: 0 | R27: 0 | S27: 0 | T27: 0 | U27: 0 | V27: 0 | W27: 0 | X27: 0 | Y27: 0 | Z27: 0 | AA27: 0 | AB27: 0 | AC27: 0 | AD27: 0 | AE27: 0 | AF27: 0 | AG27: 0 | AH27: 0 | AI27: 0 | CF27: TRUE | CG27: Total Dwelling Area (Residential Floor Area) | CH27: R_AREA.DATA | CI27: 106 m2 | CJ27: 0 | CK27: 0 | CL27: 0 | CM27: 0 | CN27: 0 | CO27: 0 | CP27: 0 | CQ27: 0 | CR27: 0 | CS27: 0 | CT27: 0 | CU27: 0 | CV27: 0 | CW27: 0 | CX27: 0 | CY27: 0 | CZ27: 0 | DA27: 0 | DB27: 0 | DC27: 0 | DD27: 0 | DE27: 0 | DF27: 0 | DG27: 0 | DH27: 0 | DI27: 0 | DJ27: 0 | DK27: 0 | DL27: 0 | DM27: 0 | DN27: 0
B28: New Dwelling Area (Residential Floor Area) - VOLUNTARY | C28: R_AREA_NEW.DATA | D28: 103 m2 | E28: 0 | F28: 0 | G28: 0 | H28: 0 | I28: 0 | J28: 0 | K28: 0 | L28: 0 | M28: 0 | N28: 0 | O28: 0 | P28: 0 | Q28: 0 | R28: 0 | S28: 0 | T28: 0 | U28: 0 | V28: 0 | W28: 0 | X28: 0 | Y28: 0 | Z28: 0 | AA28: 0 | AB28: 0 | AC28: 0 | AD28: 0 | AE28: 0 | AF28: 0 | AG28: 0 | AH28: 0 | AI28: 0 | CG28: New Dwelling Area (Residential Floor Area) | CH28: R_AREA_NEW.DATA | CI28: 103 m2 | CJ28: 0 | CK28: 0 | CL28: 0 | CM28: 0 | CN28: 0 | CO28: 0 | CP28: 0 | CQ28: 0 | CR28: 0 | CS28: 0 | CT28: 0 | CU28: 0 | CV28: 0 | CW28: 0 | CX28: 0 | CY28: 0 | CZ28: 0 | DA28: 0 | DB28: 0 | DC28: 0 | DD28: 0 | DE28: 0 | DF28: 0 | DG28: 0 | DH28: 0 | DI28: 0 | DJ28: 0 | DK28: 0 | DL28: 0 | DM28: 0 | DN28: 0
A29: TRUE | B29: Annual Heating Degree-Days | C29: H_DDAYS.DATA | D29: dd°C | E29: 0 | F29: 0 | G29: 0 | H29: 0 | I29: 0 | J29: 0 | K29: 0 | L29: 0 | M29: 0 | N29: 0 | O29: 0 | P29: 0 | Q29: 0 | R29: 0 | S29: 0 | T29: 0 | U29: 0 | V29: 0 | W29: 0 | X29: 0 | Y29: 0 | Z29: 0 | AA29: 0 | AB29: 0 | AC29: 0 | AD29: 0 | AE29: 0 | AF29: 0 | AG29: 0 | AH29: 0 | AI29: 0 | CF29: TRUE | CG29: Annual Heating Degree-Days | CH29: H_DDAYS.DATA | CI29: dd°C | CJ29: 0 | CK29: 0 | CL29: 0 | CM29: 0 | CN29: 0 | CO29: 0 | CP29: 0 | CQ29: 0 | CR29: 0 | CS29: 0 | CT29: 0 | CU29: 0 | CV29: 0 | CW29: 0 | CX29: 0 | CY29: 0 | CZ29: 0 | DA29: 0 | DB29: 0 | DC29: 0 | DD29: 0 | DE29: 0 | DF29: 0 | DG29: 0 | DH29: 0 | DI29: 0 | DJ29: 0 | DK29: 0 | DL29: 0 | DM29: 0 | DN29: 0
A30: TRUE | B30: Annual Cooling Degree-Days | C30: C_DDAYS.DATA | D30: dd°C | E30: 0 | F30: 0 | G30: 0 | H30: 0 | I30: 0 | J30: 0 | K30: 0 | L30: 0 | M30: 0 | N30: 0 | O30: 0 | P30: 0 | Q30: 0 | R30: 0 | S30: 0 | T30: 0 | U30: 0 | V30: 0 | W30: 0 | X30: 0 | Y30: 0 | Z30: 0 | AA30: 0 | AB30: 0 | AC30: 0 | AD30: 0 | AE30: 0 | AF30: 0 | AG30: 0 | AH30: 0 | AI30: 0 | CF30: TRUE | CG30: Annual Cooling Degree-Days | CH30: C_DDAYS.DATA | CI30: dd°C | CJ30: 0 | CK30: 0 | CL30: 0 | CM30: 0 | CN30: 0 | CO30: 0 | CP30: 0 | CQ30: 0 | CR30: 0 | CS30: 0 | CT30: 0 | CU30: 0 | CV30: 0 | CW30: 0 | CX30: 0 | CY30: 0 | CZ30: 0 | DA30: 0 | DB30: 0 | DC30: 0 | DD30: 0 | DE30: 0 | DF30: 0 | DG30: 0 | DH30: 0 | DI30: 0 | DJ30: 0 | DK30: 0 | DL30: 0 | DM30: 0 | DN30: 0
B32: U.S. Dollar Exchange Rate (national currency per USD) | C32: EXC.DATA | D32: 1 USD = | E32: 0 | F32: 0 | G32: 0 | H32: 0 | I32: 0 | J32: 0 | K32: 0 | L32: 0 | M32: 0 | N32: 0 | O32: 0 | P32: 0 | Q32: 0 | R32: 0 | S32: 0 | T32: 0 | U32: 0 | V32: 0 | W32: 0 | X32: 0 | Y32: 0 | Z32: 0 | AA32: 0 | AB32: 0 | AC32: 0 | AD32: 0 | AE32: 0 | AF32: 0 | AG32: 0 | AH32: 0 | AI32: 0 | CG32: U.S. Dollar Exchange Rate (national currency per USD) | CH32: EXC.DATA | CI32: 1 USD = | CJ32: 0 | CK32: 0 | CL32: 0 | CM32: 0 | CN32: 0 | CO32: 0 | CP32: 0 | CQ32: 0 | CR32: 0 | CS32: 0 | CT32: 0 | CU32: 0 | CV32: 0 | CW32: 0 | CX32: 0 | CY32: 0 | CZ32: 0 | DA32: 0 | DB32: 0 | DC32: 0 | DD32: 0 | DE32: 0 | DF32: 0 | DG32: 0 | DH32: 0 | DI32: 0 | DJ32: 0 | DK32: 0 | DL32: 0 | DM32: 0 | DN32: 0
B33: Purchasing Power Parity | C33: PPP.DATA | D33: N.C./USD | E33: 0 | F33: 0 | G33: 0 | H33: 0 | I33: 0 | J33: 0 | K33: 0 | L33: 0 | M33: 0 | N33: 0 | O33: 0 | P33: 0 | Q33: 0 | R33: 0 | S33: 0 | T33: 0 | U33: 0 | V33: 0 | W33: 0 | X33: 0 | Y33: 0 | Z33: 0 | AA33: 0 | AB33: 0 | AC33: 0 | AD33: 0 | AE33: 0 | AF33: 0 | AG33: 0 | AH33: 0 | AI33: 0 | CG33: Purchasing Power Parity | CH33: PPP.DATA | CI33: N.C./USD | CJ33: 0 | CK33: 0 | CL33: 0 | CM33: 0 | CN33: 0 | CO33: 0 | CP33: 0 | CQ33: 0 | CR33: 0 | CS33: 0 | CT33: 0 | CU33: 0 | CV33: 0 | CW33: 0 | CX33: 0 | CY33: 0 | CZ33: 0 | DA33: 0 | DB33: 0 | DC33: 0 | DD33: 0 | DE33: 0 | DF33: 0 | DG33: 0 | DH33: 0 | DI33: 0 | DJ33: 0 | DK33: 0 | DL33: 0 | DM33: 0 | DN33: 0
B34: Consumer Prices Index (2015=100) | C34: CPI.DATA | D34: index | E34: 0 | F34: 0 | G34: 0 | H34: 0 | I34: 0 | J34: 0 | K34: 0 | L34: 0 | M34: 0 | N34: 0 | O34: 0 | P34: 0 | Q34: 0 | R34: 0 | S34: 0 | T34: 0 | U34: 0 | V34: 0 | W34: 0 | X34: 0 | Y34: 0 | Z34: 0 | AA34: 0 | AB34: 0 | AC34: 0 | AD34: 0 | AE34: 0 | AF34: 0 | AG34: 0 | AH34: 0 | AI34: 0 | CG34: Consumer Prices Index (2010=100) | CH34: CPI.DATA | CI34: index | CJ34: 0 | CK34: 0 | CL34: 0 | CM34: 0 | CN34: 0 | CO34: 0 | CP34: 0 | CQ34: 0 | CR34: 0 | CS34: 0 | CT34: 0 | CU34: 0 | CV34: 0 | CW34: 0 | CX34: 0 | CY34: 0 | CZ34: 0 | DA34: 0 | DB34: 0 | DC34: 0 | DD34: 0 | DE34: 0 | DF34: 0 | DG34: 0 | DH34: 0 | DI34: 0 | DJ34: 0 | DK34: 0 | DL34: 0 | DM34: 0 | DN34: 0
B35: Private Final Consumption Expenditure (2010 $ PPP) | C35: R_PCE_P.DATA | D35: $ PPP | E35: 0 | F35: 0 | G35: 0 | H35: 0 | I35: 0 | J35: 0 | K35: 0 | L35: 0 | M35: 0 | N35: 0 | O35: 0 | P35: 0 | Q35: 0 | R35: 0 | S35: 0 | T35: 0 | U35: 0 | V35: 0 | W35: 0 | X35: 0 | Y35: 0 | Z35: 0 | AA35: 0 | AB35: 0 | AC35: 0 | AD35: 0 | AE35: 0 | AF35: 0 | AG35: 0 | AH35: 0 | AI35: 0 | CG35: Private Final Consumption Expenditure (2010 $ PPP) | CH35: R_PCE_P.DATA | CI35: $ PPP | CJ35: 0 | CK35: 0 | CL35: 0 | CM35: 0 | CN35: 0 | CO35: 0 | CP35: 0 | CQ35: 0 | CR35: 0 | CS35: 0 | CT35: 0 | CU35: 0 | CV35: 0 | CW35: 0 | CX35: 0 | CY35: 0 | CZ35: 0 | DA35: 0 | DB35: 0 | DC35: 0 | DD35: 0 | DE35: 0 | DF35: 0 | DG35: 0 | DH35: 0 | DI35: 0 | DJ35: 0 | DK35: 0 | DL35: 0 | DM35: 0 | DN35: 0
A37: TRUE | B37: Total Employment | C37: TOT_EMPLOY.DATA | D37: 106 pers | E37: 0 | F37: 0 | G37: 0 | H37: 0 | I37: 0 | J37: 0 | K37: 0 | L37: 0 | M37: 0 | N37: 0 | O37: 0 | P37: 0 | Q37: 0 | R37: 0 | S37: 0 | T37: 0 | U37: 0 | V37: 0 | W37: 0 | X37: 0 | Y37: 0 | Z37: 0 | AA37: 0 | AB37: 0 | AC37: 0 | AD37: 0 | AE37: 0 | AF37: 0 | AG37: 0 | AH37: 0 | AI37: 0 | CF37: TRUE | CG37: Total Employment | CH37: TOT_EMPLOY.DATA | CI37: 106 pers | CJ37: 0 | CK37: 0 | CL37: 0 | CM37: 0 | CN37: 0 | CO37: 0 | CP37: 0 | CQ37: 0 | CR37: 0 | CS37: 0 | CT37: 0 | CU37: 0 | CV37: 0 | CW37: 0 | CX37: 0 | CY37: 0 | CZ37: 0 | DA37: 0 | DB37: 0 | DC37: 0 | DD37: 0 | DE37: 0 | DF37: 0 | DG37: 0 | DH37: 0 | DI37: 0 | DJ37: 0 | DK37: 0 | DL37: 0 | DM37: 0 | DN37: 0
A38: TRUE | B38: Services Employment | C38: S_EMPLOY.DATA | D38: 106 pers | E38: 0 | F38: 0 | G38: 0 | H38: 0 | I38: 0 | J38: 0 | K38: 0 | L38: 0 | M38: 0 | N38: 0 | O38: 0 | P38: 0 | Q38: 0 | R38: 0 | S38: 0 | T38: 0 | U38: 0 | V38: 0 | W38: 0 | X38: 0 | Y38: 0 | Z38: 0 | AA38: 0 | AB38: 0 | AC38: 0 | AD38: 0 | AE38: 0 | AF38: 0 | AG38: 0 | AH38: 0 | AI38: 0 | CF38: TRUE | CG38: Services Employment | CH38: S_EMPLOY.DATA | CI38: 106 pers | CJ38: 0 | CK38: 0 | CL38: 0 | CM38: 0 | CN38: 0 | CO38: 0 | CP38: 0 | CQ38: 0 | CR38: 0 | CS38: 0 | CT38: 0 | CU38: 0 | CV38: 0 | CW38: 0 | CX38: 0 | CY38: 0 | CZ38: 0 | DA38: 0 | DB38: 0 | DC38: 0 | DD38: 0 | DE38: 0 | DF38: 0 | DG38: 0 | DH38: 0 | DI38: 0 | DJ38: 0 | DK38: 0 | DL38: 0 | DM38: 0 | DN38: 0
A39: TRUE | B39: Total Services Floor Area | C39: S_AREA.DATA | D39: 106 m2 | E39: 0 | F39: 0 | G39: 0 | H39: 0 | I39: 0 | J39: 0 | K39: 0 | L39: 0 | M39: 0 | N39: 0 | O39: 0 | P39: 0 | Q39: 0 | R39: 0 | S39: 0 | T39: 0 | U39: 0 | V39: 0 | W39: 0 | X39: 0 | Y39: 0 | Z39: 0 | AA39: 0 | AB39: 0 | AC39: 0 | AD39: 0 | AE39: 0 | AF39: 0 | AG39: 0 | AH39: 0 | AI39: 0 | CF39: TRUE | CG39: Total Services Floor Area | CH39: S_AREA.DATA | CI39: 106 m2 | CJ39: 0 | CK39: 0 | CL39: 0 | CM39: 0 | CN39: 0 | CO39: 0 | CP39: 0 | CQ39: 0 | CR39: 0 | CS39: 0 | CT39: 0 | CU39: 0 | CV39: 0 | CW39: 0 | CX39: 0 | CY39: 0 | CZ39: 0 | DA39: 0 | DB39: 0 | DC39: 0 | DD39: 0 | DE39: 0 | DF39: 0 | DG39: 0 | DH39: 0 | DI39: 0 | DJ39: 0 | DK39: 0 | DL39: 0 | DM39: 0 | DN39: 0
B40: New Services Floor Area | C40: S_AREA_NEW.DATA | D40: 106 m2 | E40: 0 | F40: 0 | G40: 0 | H40: 0 | I40: 0 | J40: 0 | K40: 0 | L40: 0 | M40: 0 | N40: 0 | O40: 0 | P40: 0 | Q40: 0 | R40: 0 | S40: 0 | T40: 0 | U40: 0 | V40: 0 | W40: 0 | X40: 0 | Y40: 0 | Z40: 0 | AA40: 0 | AB40: 0 | AC40: 0 | AD40: 0 | AE40: 0 | AF40: 0 | AG40: 0 | AH40: 0 | AI40: 0 | CG40: New Services Floor Area | CH40: S_AREA_NEW.DATA | CI40: 106 m2 | CJ40: 0 | CK40: 0 | CL40: 0 | CM40: 0 | CN40: 0 | CO40: 0 | CP40: 0 | CQ40: 0 | CR40: 0 | CS40: 0 | CT40: 0 | CU40: 0 | CV40: 0 | CW40: 0 | CX40: 0 | CY40: 0 | CZ40: 0 | DA40: 0 | DB40: 0 | DC40: 0 | DD40: 0 | DE40: 0 | DF40: 0 | DG40: 0 | DH40: 0 | DI40: 0 | DJ40: 0 | DK40: 0 | DL40: 0 | DM40: 0 | DN40: 0
A42: II. | B42: Gross Domestic Product (from OECD Annual National Accounts - Comparative tables based on exchange rates and PPPs) | CF42: II. | CG42: Gross Domestic Product (from OECD Annual National Accounts - Comparative tables based on exchange rates and PPPs)
B43: at current prices and current exchange rates | C43: gdp.1 | D43: billions of US dollars | E43: 0 | F43: 0 | G43: 0 | H43: 0 | I43: 0 | J43: 0 | K43: 0 | L43: 0 | M43: 0 | N43: 0 | O43: 0 | P43: 0 | Q43: 0 | R43: 0 | S43: 0 | T43: 0 | U43: 0 | V43: 0 | W43: 0 | X43: 0 | Y43: 0 | Z43: 0 | AA43: 0 | AB43: 0 | AC43: 0 | AD43: 0 | AE43: 0 | AF43: 0 | AG43: 0 | AH43: 0 | AI43: 0 | CG43: at current prices and current exchange rates | CH43: gdp.1 | CI43: billions of US dollars | CJ43: 0 | CK43: 0 | CL43: 0 | CM43: 0 | CN43: 0 | CO43: 0 | CP43: 0 | CQ43: 0 | CR43: 0 | CS43: 0 | CT43: 0 | CU43: 0 | CV43: 0 | CW43: 0 | CX43: 0 | CY43: 0 | CZ43: 0 | DA43: 0 | DB43: 0 | DC43: 0 | DD43: 0 | DE43: 0 | DF43: 0 | DG43: 0 | DH43: 0 | DI43: 0 | DJ43: 0 | DK43: 0 | DL43: 0 | DM43: 0 | DN43: 0
B44: at the price levels and exchange rates of 2015 | C44: GDP.DATA | E44: 0 | F44: 0 | G44: 0 | H44: 0 | I44: 0 | J44: 0 | K44: 0 | L44: 0 | M44: 0 | N44: 0 | O44: 0 | P44: 0 | Q44: 0 | R44: 0 | S44: 0 | T44: 0 | U44: 0 | V44: 0 | W44: 0 | X44: 0 | Y44: 0 | Z44: 0 | AA44: 0 | AB44: 0 | AC44: 0 | AD44: 0 | AE44: 0 | AF44: 0 | AG44: 0 | AH44: 0 | AI44: 0 | CG44: at the price levels and exchange rates of 2010 | CH44: GDP.DATA | CJ44: 0 | CK44: 0 | CL44: 0 | CM44: 0 | CN44: 0 | CO44: 0 | CP44: 0 | CQ44: 0 | CR44: 0 | CS44: 0 | CT44: 0 | CU44: 0 | CV44: 0 | CW44: 0 | CX44: 0 | CY44: 0 | CZ44: 0 | DA44: 0 | DB44: 0 | DC44: 0 | DD44: 0 | DE44: 0 | DF44: 0 | DG44: 0 | DH44: 0 | DI44: 0 | DJ44: 0 | DK44: 0 | DL44: 0 | DM44: 0 | DN44: 0
B45: at current prices and 2015 exchange rates | C45: gdp.2 | E45: 0 | F45: 0 | G45: 0 | H45: 0 | I45: 0 | J45: 0 | K45: 0 | L45: 0 | M45: 0 | N45: 0 | O45: 0 | P45: 0 | Q45: 0 | R45: 0 | S45: 0 | T45: 0 | U45: 0 | V45: 0 | W45: 0 | X45: 0 | Y45: 0 | Z45: 0 | AA45: 0 | AB45: 0 | AC45: 0 | AD45: 0 | AE45: 0 | AF45: 0 | AG45: 0 | AH45: 0 | AI45: 0 | CG45: at current prices and 2010 exchange rates | CH45: gdp.2 | CJ45: 0 | CK45: 0 | CL45: 0 | CM45: 0 | CN45: 0 | CO45: 0 | CP45: 0 | CQ45: 0 | CR45: 0 | CS45: 0 | CT45: 0 | CU45: 0 | CV45: 0 | CW45: 0 | CX45: 0 | CY45: 0 | CZ45: 0 | DA45: 0 | DB45: 0 | DC45: 0 | DD45: 0 | DE45: 0 | DF45: 0 | DG45: 0 | DH45: 0 | DI45: 0 | DJ45: 0 | DK45: 0 | DL45: 0 | DM45: 0 | DN45: 0
B46: at current prices and current PPPs | C46: gdp.3 | E46: 0 | F46: 0 | G46: 0 | H46: 0 | I46: 0 | J46: 0 | K46: 0 | L46: 0 | M46: 0 | N46: 0 | O46: 0 | P46: 0 | Q46: 0 | R46: 0 | S46: 0 | T46: 0 | U46: 0 | V46: 0 | W46: 0 | X46: 0 | Y46: 0 | Z46: 0 | AA46: 0 | AB46: 0 | AC46: 0 | AD46: 0 | AE46: 0 | AF46: 0 | AG46: 0 | AH46: 0 | AI46: 0 | CG46: at current prices and current PPPs | CH46: gdp.3 | CJ46: 0 | CK46: 0 | CL46: 0 | CM46: 0 | CN46: 0 | CO46: 0 | CP46: 0 | CQ46: 0 | CR46: 0 | CS46: 0 | CT46: 0 | CU46: 0 | CV46: 0 | CW46: 0 | CX46: 0 | CY46: 0 | CZ46: 0 | DA46: 0 | DB46: 0 | DC46: 0 | DD46: 0 | DE46: 0 | DF46: 0 | DG46: 0 | DH46: 0 | DI46: 0 | DJ46: 0 | DK46: 0 | DL46: 0 | DM46: 0 | DN46: 0
B47: at the price levels and PPPs of 2015 | C47: GDP_P.DATA | E47: 0 | F47: 0 | G47: 0 | H47: 0 | I47: 0 | J47: 0 | K47: 0 | L47: 0 | M47: 0 | N47: 0 | O47: 0 | P47: 0 | Q47: 0 | R47: 0 | S47: 0 | T47: 0 | U47: 0 | V47: 0 | W47: 0 | X47: 0 | Y47: 0 | Z47: 0 | AA47: 0 | AB47: 0 | AC47: 0 | AD47: 0 | AE47: 0 | AF47: 0 | AG47: 0 | AH47: 0 | AI47: 0 | CG47: at the price levels and PPPs of 2010 | CH47: GDP_P.DATA | CJ47: 0 | CK47: 0 | CL47: 0 | CM47: 0 | CN47: 0 | CO47: 0 | CP47: 0 | CQ47: 0 | CR47: 0 | CS47: 0 | CT47: 0 | CU47: 0 | CV47: 0 | CW47: 0 | CX47: 0 | CY47: 0 | CZ47: 0 | DA47: 0 | DB47: 0 | DC47: 0 | DD47: 0 | DE47: 0 | DF47: 0 | DG47: 0 | DH47: 0 | DI47: 0 | DJ47: 0 | DK47: 0 | DL47: 0 | DM47: 0 | DN47: 0
A49: III. | B49: GDP deflator 2015=100 | CF49: III. | CG49: GDP deflator 2010=100
B50: Deflator for GDP at market prices | C50: GDP_D.DATA | E50: 0 | F50: 0 | G50: 0 | H50: 0 | I50: 0 | J50: 0 | K50: 0 | L50: 0 | M50: 0 | N50: 0 | O50: 0 | P50: 0 | Q50: 0 | R50: 0 | S50: 0 | T50: 0 | U50: 0 | V50: 0 | W50: 0 | X50: 0 | Y50: 0 | Z50: 0 | AA50: 0 | AB50: 0 | AC50: 0 | AD50: 0 | AE50: 0 | AF50: 0 | AG50: 0 | AH50: 0 | AI50: 0 | CG50: Deflator for GDP at market prices | CH50: GDP_D.DATA | CJ50: 0 | CK50: 0 | CL50: 0 | CM50: 0 | CN50: 0 | CO50: 0 | CP50: 0 | CQ50: 0 | CR50: 0 | CS50: 0 | CT50: 0 | CU50: 0 | CV50: 0 | CW50: 0 | CX50: 0 | CY50: 0 | CZ50: 0 | DA50: 0 | DB50: 0 | DC50: 0 | DD50: 0 | DE50: 0 | DF50: 0 | DG50: 0 | DH50: 0 | DI50: 0 | DJ50: 0 | DK50: 0 | DL50: 0 | DM50: 0 | DN50: 0
A52: IV. | B52: Value-added in USD PPP 2015 $ (at the price levels and PPPs of 2015) | CF52: IV. | CG52: Value-added in USD PPP 2010 $ (at the price levels and PPPs of 2010)
A53: ISIC Rev.4 Division | CF53: ISIC Rev.4 Division
A54: TRUE | B54: 01 - 03: Agriculture, forestry and fishing | C54: GDP_P.O_AGROFISH | D54: billions of 2015$ PPP | E54: 0 | F54: 0 | G54: 0 | H54: 0 | I54: 0 | J54: 0 | K54: 0 | L54: 0 | M54: 0 | N54: 0 | O54: 0 | P54: 0 | Q54: 0 | R54: 0 | S54: 0 | T54: 0 | U54: 0 | V54: 0 | W54: 0 | X54: 0 | Y54: 0 | Z54: 0 | AA54: 0 | AB54: 0 | AC54: 0 | AD54: 0 | AE54: 0 | AF54: 0 | AG54: 0 | AH54: 0 | AI54: 0 | CF54: TRUE | CG54: 01 - 03: Agriculture, forestry and fishing | CH54: GDP_P.O_AGROFISH | CI54: billions of 2010$ PPP | CJ54: 0 | CK54: 0 | CL54: 0 | CM54: 0 | CN54: 0 | CO54: 0 | CP54: 0 | CQ54: 0 | CR54: 0 | CS54: 0 | CT54: 0 | CU54: 0 | CV54: 0 | CW54: 0 | CX54: 0 | CY54: 0 | CZ54: 0 | DA54: 0 | DB54: 0 | DC54: 0 | DD54: 0 | DE54: 0 | DF54: 0 | DG54: 0 | DH54: 0 | DI54: 0 | DJ54: 0 | DK54: 0 | DL54: 0 | DM54: 0 | DN54: 0
A55: TRUE | B55: 05 - 09: Mining and quarrying | C55: GDP_P.O_MINING | E55: 0 | F55: 0 | G55: 0 | H55: 0 | I55: 0 | J55: 0 | K55: 0 | L55: 0 | M55: 0 | N55: 0 | O55: 0 | P55: 0 | Q55: 0 | R55: 0 | S55: 0 | T55: 0 | U55: 0 | V55: 0 | W55: 0 | X55: 0 | Y55: 0 | Z55: 0 | AA55: 0 | AB55: 0 | AC55: 0 | AD55: 0 | AE55: 0 | AF55: 0 | AG55: 0 | AH55: 0 | AI55: 0 | CF55: TRUE | CG55: 05 - 09: Mining and quarrying | CH55: GDP_P.O_MINING | CJ55: 0 | CK55: 0 | CL55: 0 | CM55: 0 | CN55: 0 | CO55: 0 | CP55: 0 | CQ55: 0 | CR55: 0 | CS55: 0 | CT55: 0 | CU55: 0 | CV55: 0 | CW55: 0 | CX55: 0 | CY55: 0 | CZ55: 0 | DA55: 0 | DB55: 0 | DC55: 0 | DD55: 0 | DE55: 0 | DF55: 0 | DG55: 0 | DH55: 0 | DI55: 0 | DJ55: 0 | DK55: 0 | DL55: 0 | DM55: 0 | DN55: 0
A56: TRUE | B56: 10 - 32: Manufacturing | C56: GDP_P.M_ALL | E56: 0 | F56: 0 | G56: 0 | H56: 0 | I56: 0 | J56: 0 | K56: 0 | L56: 0 | M56: 0 | N56: 0 | O56: 0 | P56: 0 | Q56: 0 | R56: 0 | S56: 0 | T56: 0 | U56: 0 | V56: 0 | W56: 0 | X56: 0 | Y56: 0 | Z56: 0 | AA56: 0 | AB56: 0 | AC56: 0 | AD56: 0 | AE56: 0 | AF56: 0 | AG56: 0 | AH56: 0 | AI56: 0 | CF56: TRUE | CG56: 10 - 32: Manufacturing | CH56: GDP_P.M_ALL | CJ56: 0 | CK56: 0 | CL56: 0 | CM56: 0 | CN56: 0 | CO56: 0 | CP56: 0 | CQ56: 0 | CR56: 0 | CS56: 0 | CT56: 0 | CU56: 0 | CV56: 0 | CW56: 0 | CX56: 0 | CY56: 0 | CZ56: 0 | DA56: 0 | DB56: 0 | DC56: 0 | DD56: 0 | DE56: 0 | DF56: 0 | DG56: 0 | DH56: 0 | DI56: 0 | DJ56: 0 | DK56: 0 | DL56: 0 | DM56: 0 | DN56: 0
A57: TRUE | B57: 10 - 12: Manufacture of food products, beverages, tobacco products | C57: GDP_P.M_FOOD | E57: 0 | F57: 0 | G57: 0 | H57: 0 | I57: 0 | J57: 0 | K57: 0 | L57: 0 | M57: 0 | N57: 0 | O57: 0 | P57: 0 | Q57: 0 | R57: 0 | S57: 0 | T57: 0 | U57: 0 | V57: 0 | W57: 0 | X57: 0 | Y57: 0 | Z57: 0 | AA57: 0 | AB57: 0 | AC57: 0 | AD57: 0 | AE57: 0 | AF57: 0 | AG57: 0 | AH57: 0 | AI57: 0 | CF57: TRUE | CG57: 10 - 12: Manufacture of food products, beverages, tobacco products | CH57: GDP_P.M_FOOD | CJ57: 0 | CK57: 0 | CL57: 0 | CM57: 0 | CN57: 0 | CO57: 0 | CP57: 0 | CQ57: 0 | CR57: 0 | CS57: 0 | CT57: 0 | CU57: 0 | CV57: 0 | CW57: 0 | CX57: 0 | CY57: 0 | CZ57: 0 | DA57: 0 | DB57: 0 | DC57: 0 | DD57: 0 | DE57: 0 | DF57: 0 | DG57: 0 | DH57: 0 | DI57: 0 | DJ57: 0 | DK57: 0 | DL57: 0 | DM57: 0 | DN57: 0
A58: TRUE | B58: 13 - 15: Manufacture of textiles, wearing apparel, leather and related products | C58: GDP_P.M_TEXTILE | E58: 0 | F58: 0 | G58: 0 | H58: 0 | I58: 0 | J58: 0 | K58: 0 | L58: 0 | M58: 0 | N58: 0 | O58: 0 | P58: 0 | Q58: 0 | R58: 0 | S58: 0 | T58: 0 | U58: 0 | V58: 0 | W58: 0 | X58: 0 | Y58: 0 | Z58: 0 | AA58: 0 | AB58: 0 | AC58: 0 | AD58: 0 | AE58: 0 | AF58: 0 | AG58: 0 | AH58: 0 | AI58: 0 | CF58: TRUE | CG58: 13 - 15: Manufacture of textiles, wearing apparel, leather and related products | CH58: GDP_P.M_TEXTILE | CJ58: 0 | CK58: 0 | CL58: 0 | CM58: 0 | CN58: 0 | CO58: 0 | CP58: 0 | CQ58: 0 | CR58: 0 | CS58: 0 | CT58: 0 | CU58: 0 | CV58: 0 | CW58: 0 | CX58: 0 | CY58: 0 | CZ58: 0 | DA58: 0 | DB58: 0 | DC58: 0 | DD58: 0 | DE58: 0 | DF58: 0 | DG58: 0 | DH58: 0 | DI58: 0 | DJ58: 0 | DK58: 0 | DL58: 0 | DM58: 0 | DN58: 0
A59: TRUE | B59: 16: Manufacture of wood and of products of wood and cork, except furniture; manufacture of articles of straw and plaiting materials | C59: GDP_P.M_WOOD | E59: 0 | F59: 0 | G59: 0 | H59: 0 | I59: 0 | J59: 0 | K59: 0 | L59: 0 | M59: 0 | N59: 0 | O59: 0 | P59: 0 | Q59: 0 | R59: 0 | S59: 0 | T59: 0 | U59: 0 | V59: 0 | W59: 0 | X59: 0 | Y59: 0 | Z59: 0 | AA59: 0 | AB59: 0 | AC59: 0 | AD59: 0 | AE59: 0 | AF59: 0 | AG59: 0 | AH59: 0 | AI59: 0 | CF59: TRUE | CG59: 16: Manufacture of wood and of products of wood and cork, except furniture; manufacture of articles of straw and plaiting materials | CH59: GDP_P.M_WOOD | CJ59: 0 | CK59: 0 | CL59: 0 | CM59: 0 | CN59: 0 | CO59: 0 | CP59: 0 | CQ59: 0 | CR59: 0 | CS59: 0 | CT59: 0 | CU59: 0 | CV59: 0 | CW59: 0 | CX59: 0 | CY59: 0 | CZ59: 0 | DA59: 0 | DB59: 0 | DC59: 0 | DD59: 0 | DE59: 0 | DF59: 0 | DG59: 0 | DH59: 0 | DI59: 0 | DJ59: 0 | DK59: 0 | DL59: 0 | DM59: 0 | DN59: 0
A60: TRUE | B60: 17: Manufacture of paper and paper products | C60: GDP_P.M_PAPPULP | E60: 0 | F60: 0 | G60: 0 | H60: 0 | I60: 0 | J60: 0 | K60: 0 | L60: 0 | M60: 0 | N60: 0 | O60: 0 | P60: 0 | Q60: 0 | R60: 0 | S60: 0 | T60: 0 | U60: 0 | V60: 0 | W60: 0 | X60: 0 | Y60: 0 | Z60: 0 | AA60: 0 | AB60: 0 | AC60: 0 | AD60: 0 | AE60: 0 | AF60: 0 | AG60: 0 | AH60: 0 | AI60: 0 | CF60: TRUE | CG60: 17: Manufacture of paper and paper products | CH60: GDP_P.M_PAPPULP | CJ60: 0 | CK60: 0 | CL60: 0 | CM60: 0 | CN60: 0 | CO60: 0 | CP60: 0 | CQ60: 0 | CR60: 0 | CS60: 0 | CT60: 0 | CU60: 0 | CV60: 0 | CW60: 0 | CX60: 0 | CY60: 0 | CZ60: 0 | DA60: 0 | DB60: 0 | DC60: 0 | DD60: 0 | DE60: 0 | DF60: 0 | DG60: 0 | DH60: 0 | DI60: 0 | DJ60: 0 | DK60: 0 | DL60: 0 | DM60: 0 | DN60: 0
A61: TRUE | B61: 18: Printing and reproduction of recorded media | C61: GDP_P.M_PRINT | E61: 0 | F61: 0 | G61: 0 | H61: 0 | I61: 0 | J61: 0 | K61: 0 | L61: 0 | M61: 0 | N61: 0 | O61: 0 | P61: 0 | Q61: 0 | R61: 0 | S61: 0 | T61: 0 | U61: 0 | V61: 0 | W61: 0 | X61: 0 | Y61: 0 | Z61: 0 | AA61: 0 | AB61: 0 | AC61: 0 | AD61: 0 | AE61: 0 | AF61: 0 | AG61: 0 | AH61: 0 | AI61: 0 | CF61: TRUE | CG61: 18: Printing and reproduction of recorded media | CH61: GDP_P.M_PRINT | CJ61: 0 | CK61: 0 | CL61: 0 | CM61: 0 | CN61: 0 | CO61: 0 | CP61: 0 | CQ61: 0 | CR61: 0 | CS61: 0 | CT61: 0 | CU61: 0 | CV61: 0 | CW61: 0 | CX61: 0 | CY61: 0 | CZ61: 0 | DA61: 0 | DB61: 0 | DC61: 0 | DD61: 0 | DE61: 0 | DF61: 0 | DG61: 0 | DH61: 0 | DI61: 0 | DJ61: 0 | DK61: 0 | DL61: 0 | DM61: 0 | DN61: 0
A62: TRUE | B62: 17 - 18: Paper & Printing | C62: GDP_P.M_PAPPRINT | E62: 0 | F62: 0 | G62: 0 | H62: 0 | I62: 0 | J62: 0 | K62: 0 | L62: 0 | M62: 0 | N62: 0 | O62: 0 | P62: 0 | Q62: 0 | R62: 0 | S62: 0 | T62: 0 | U62: 0 | V62: 0 | W62: 0 | X62: 0 | Y62: 0 | Z62: 0 | AA62: 0 | AB62: 0 | AC62: 0 | AD62: 0 | AE62: 0 | AF62: 0 | AG62: 0 | AH62: 0 | AI62: 0 | CF62: TRUE | CG62: 17 - 18: Paper & Printing | CH62: GDP_P.M_PAPPRINT | CJ62: 0 | CK62: 0 | CL62: 0 | CM62: 0 | CN62: 0 | CO62: 0 | CP62: 0 | CQ62: 0 | CR62: 0 | CS62: 0 | CT62: 0 | CU62: 0 | CV62: 0 | CW62: 0 | CX62: 0 | CY62: 0 | CZ62: 0 | DA62: 0 | DB62: 0 | DC62: 0 | DD62: 0 | DE62: 0 | DF62: 0 | DG62: 0 | DH62: 0 | DI62: 0 | DJ62: 0 | DK62: 0 | DL62: 0 | DM62: 0 | DN62: 0
A63: TRUE | B63: 19: Manufacture of coke and refined petroleum products | C63: GDP_P.M_REFINING | E63: 0 | F63: 0 | G63: 0 | H63: 0 | I63: 0 | J63: 0 | K63: 0 | L63: 0 | M63: 0 | N63: 0 | O63: 0 | P63: 0 | Q63: 0 | R63: 0 | S63: 0 | T63: 0 | U63: 0 | V63: 0 | W63: 0 | X63: 0 | Y63: 0 | Z63: 0 | AA63: 0 | AB63: 0 | AC63: 0 | AD63: 0 | AE63: 0 | AF63: 0 | AG63: 0 | AH63: 0 | AI63: 0 | CF63: TRUE | CG63: 19: Manufacture of coke and refined petroleum products | CH63: GDP_P.M_REFINING | CJ63: 0 | CK63: 0 | CL63: 0 | CM63: 0 | CN63: 0 | CO63: 0 | CP63: 0 | CQ63: 0 | CR63: 0 | CS63: 0 | CT63: 0 | CU63: 0 | CV63: 0 | CW63: 0 | CX63: 0 | CY63: 0 | CZ63: 0 | DA63: 0 | DB63: 0 | DC63: 0 | DD63: 0 | DE63: 0 | DF63: 0 | DG63: 0 | DH63: 0 | DI63: 0 | DJ63: 0 | DK63: 0 | DL63: 0 | DM63: 0 | DN63: 0
A64: TRUE | B64: 20 - 21: Manufacture of chemicals and chemical products & basic pharmaceutical products and pharmaceutical preparations | C64: GDP_P.M_INDCHEMS | E64: 0 | F64: 0 | G64: 0 | H64: 0 | I64: 0 | J64: 0 | K64: 0 | L64: 0 | M64: 0 | N64: 0 | O64: 0 | P64: 0 | Q64: 0 | R64: 0 | S64: 0 | T64: 0 | U64: 0 | V64: 0 | W64: 0 | X64: 0 | Y64: 0 | Z64: 0 | AA64: 0 | AB64: 0 | AC64: 0 | AD64: 0 | AE64: 0 | AF64: 0 | AG64: 0 | AH64: 0 | AI64: 0 | CF64: TRUE | CG64: 20 - 21: Manufacture of chemicals and chemical products & basic pharmaceutical products and pharmaceutical preparations | CH64: GDP_P.M_INDCHEMS | CJ64: 0 | CK64: 0 | CL64: 0 | CM64: 0 | CN64: 0 | CO64: 0 | CP64: 0 | CQ64: 0 | CR64: 0 | CS64: 0 | CT64: 0 | CU64: 0 | CV64: 0 | CW64: 0 | CX64: 0 | CY64: 0 | CZ64: 0 | DA64: 0 | DB64: 0 | DC64: 0 | DD64: 0 | DE64: 0 | DF64: 0 | DG64: 0 | DH64: 0 | DI64: 0 | DJ64: 0 | DK64: 0 | DL64: 0 | DM64: 0 | DN64: 0
A65: TRUE | B65: 22: Manufacture of rubber and plastics products | C65: GDP_P.M_RUBPLAST | E65: 0 | F65: 0 | G65: 0 | H65: 0 | I65: 0 | J65: 0 | K65: 0 | L65: 0 | M65: 0 | N65: 0 | O65: 0 | P65: 0 | Q65: 0 | R65: 0 | S65: 0 | T65: 0 | U65: 0 | V65: 0 | W65: 0 | X65: 0 | Y65: 0 | Z65: 0 | AA65: 0 | AB65: 0 | AC65: 0 | AD65: 0 | AE65: 0 | AF65: 0 | AG65: 0 | AH65: 0 | AI65: 0 | CF65: TRUE | CG65: 22: Manufacture of rubber and plastics products | CH65: GDP_P.M_RUBPLAST | CJ65: 0 | CK65: 0 | CL65: 0 | CM65: 0 | CN65: 0 | CO65: 0 | CP65: 0 | CQ65: 0 | CR65: 0 | CS65: 0 | CT65: 0 | CU65: 0 | CV65: 0 | CW65: 0 | CX65: 0 | CY65: 0 | CZ65: 0 | DA65: 0 | DB65: 0 | DC65: 0 | DD65: 0 | DE65: 0 | DF65: 0 | DG65: 0 | DH65: 0 | DI65: 0 | DJ65: 0 | DK65: 0 | DL65: 0 | DM65: 0 | DN65: 0
A66: TRUE | B66: 23: Manufacture of other non-metallic mineral products | C66: GDP_P.M_NONMETAL | E66: 0 | F66: 0 | G66: 0 | H66: 0 | I66: 0 | J66: 0 | K66: 0 | L66: 0 | M66: 0 | N66: 0 | O66: 0 | P66: 0 | Q66: 0 | R66: 0 | S66: 0 | T66: 0 | U66: 0 | V66: 0 | W66: 0 | X66: 0 | Y66: 0 | Z66: 0 | AA66: 0 | AB66: 0 | AC66: 0 | AD66: 0 | AE66: 0 | AF66: 0 | AG66: 0 | AH66: 0 | AI66: 0 | CF66: TRUE | CG66: 23: Manufacture of other non-metallic mineral products | CH66: GDP_P.M_NONMETAL | CJ66: 0 | CK66: 0 | CL66: 0 | CM66: 0 | CN66: 0 | CO66: 0 | CP66: 0 | CQ66: 0 | CR66: 0 | CS66: 0 | CT66: 0 | CU66: 0 | CV66: 0 | CW66: 0 | CX66: 0 | CY66: 0 | CZ66: 0 | DA66: 0 | DB66: 0 | DC66: 0 | DD66: 0 | DE66: 0 | DF66: 0 | DG66: 0 | DH66: 0 | DI66: 0 | DJ66: 0 | DK66: 0 | DL66: 0 | DM66: 0 | DN66: 0
A67: TRUE | B67: 24: Manufacture of basic metals | C67: GDP_P.M_METALS | E67: 0 | F67: 0 | G67: 0 | H67: 0 | I67: 0 | J67: 0 | K67: 0 | L67: 0 | M67: 0 | N67: 0 | O67: 0 | P67: 0 | Q67: 0 | R67: 0 | S67: 0 | T67: 0 | U67: 0 | V67: 0 | W67: 0 | X67: 0 | Y67: 0 | Z67: 0 | AA67: 0 | AB67: 0 | AC67: 0 | AD67: 0 | AE67: 0 | AF67: 0 | AG67: 0 | AH67: 0 | AI67: 0 | CF67: TRUE | CG67: 24: Manufacture of basic metals | CH67: GDP_P.M_METALS | CJ67: 0 | CK67: 0 | CL67: 0 | CM67: 0 | CN67: 0 | CO67: 0 | CP67: 0 | CQ67: 0 | CR67: 0 | CS67: 0 | CT67: 0 | CU67: 0 | CV67: 0 | CW67: 0 | CX67: 0 | CY67: 0 | CZ67: 0 | DA67: 0 | DB67: 0 | DC67: 0 | DD67: 0 | DE67: 0 | DF67: 0 | DG67: 0 | DH67: 0 | DI67: 0 | DJ67: 0 | DK67: 0 | DL67: 0 | DM67: 0 | DN67: 0
A68: TRUE | B68: Class 2410+2431: Manufacture + Casting of iron and steel | C68: GDP_P.M_FERROUS | E68: 0 | F68: 0 | G68: 0 | H68: 0 | I68: 0 | J68: 0 | K68: 0 | L68: 0 | M68: 0 | N68: 0 | O68: 0 | P68: 0 | Q68: 0 | R68: 0 | S68: 0 | T68: 0 | U68: 0 | V68: 0 | W68: 0 | X68: 0 | Y68: 0 | Z68: 0 | AA68: 0 | AB68: 0 | AC68: 0 | AD68: 0 | AE68: 0 | AF68: 0 | AG68: 0 | AH68: 0 | AI68: 0 | CF68: TRUE | CG68: Class 2410+2431: Manufacture + Casting of iron and steel | CH68: GDP_P.M_FERROUS | CJ68: 0 | CK68: 0 | CL68: 0 | CM68: 0 | CN68: 0 | CO68: 0 | CP68: 0 | CQ68: 0 | CR68: 0 | CS68: 0 | CT68: 0 | CU68: 0 | CV68: 0 | CW68: 0 | CX68: 0 | CY68: 0 | CZ68: 0 | DA68: 0 | DB68: 0 | DC68: 0 | DD68: 0 | DE68: 0 | DF68: 0 | DG68: 0 | DH68: 0 | DI68: 0 | DJ68: 0 | DK68: 0 | DL68: 0 | DM68: 0 | DN68: 0
A69: TRUE | B69: Class 2420+2432: Manufacture + Casting of precious and non-ferrous metals | C69: GDP_P.M_NONFERRO | E69: 0 | F69: 0 | G69: 0 | H69: 0 | I69: 0 | J69: 0 | K69: 0 | L69: 0 | M69: 0 | N69: 0 | O69: 0 | P69: 0 | Q69: 0 | R69: 0 | S69: 0 | T69: 0 | U69: 0 | V69: 0 | W69: 0 | X69: 0 | Y69: 0 | Z69: 0 | AA69: 0 | AB69: 0 | AC69: 0 | AD69: 0 | AE69: 0 | AF69: 0 | AG69: 0 | AH69: 0 | AI69: 0 | CF69: TRUE | CG69: Class 2420+2432: Manufacture + Casting of precious and non-ferrous metals | CH69: GDP_P.M_NONFERRO | CJ69: 0 | CK69: 0 | CL69: 0 | CM69: 0 | CN69: 0 | CO69: 0 | CP69: 0 | CQ69: 0 | CR69: 0 | CS69: 0 | CT69: 0 | CU69: 0 | CV69: 0 | CW69: 0 | CX69: 0 | CY69: 0 | CZ69: 0 | DA69: 0 | DB69: 0 | DC69: 0 | DD69: 0 | DE69: 0 | DF69: 0 | DG69: 0 | DH69: 0 | DI69: 0 | DJ69: 0 | DK69: 0 | DL69: 0 | DM69: 0 | DN69: 0
A70: TRUE | B70: 25 - 28: Manufacture of fabricated metal products, machinery and equipment | C70: GDP_P.M_MACHINE | E70: 0 | F70: 0 | G70: 0 | H70: 0 | I70: 0 | J70: 0 | K70: 0 | L70: 0 | M70: 0 | N70: 0 | O70: 0 | P70: 0 | Q70: 0 | R70: 0 | S70: 0 | T70: 0 | U70: 0 | V70: 0 | W70: 0 | X70: 0 | Y70: 0 | Z70: 0 | AA70: 0 | AB70: 0 | AC70: 0 | AD70: 0 | AE70: 0 | AF70: 0 | AG70: 0 | AH70: 0 | AI70: 0 | CF70: TRUE | CG70: 25 - 28: Manufacture of fabricated metal products, machinery and equipment | CH70: GDP_P.M_MACHINE | CJ70: 0 | CK70: 0 | CL70: 0 | CM70: 0 | CN70: 0 | CO70: 0 | CP70: 0 | CQ70: 0 | CR70: 0 | CS70: 0 | CT70: 0 | CU70: 0 | CV70: 0 | CW70: 0 | CX70: 0 | CY70: 0 | CZ70: 0 | DA70: 0 | DB70: 0 | DC70: 0 | DD70: 0 | DE70: 0 | DF70: 0 | DG70: 0 | DH70: 0 | DI70: 0 | DJ70: 0 | DK70: 0 | DL70: 0 | DM70: 0 | DN70: 0
A71: TRUE | B71: 29 - 30: Manufacture of motor vehicles, trailers, other transport equipment | C71: GDP_P.M_CARS | E71: 0 | F71: 0 | G71: 0 | H71: 0 | I71: 0 | J71: 0 | K71: 0 | L71: 0 | M71: 0 | N71: 0 | O71: 0 | P71: 0 | Q71: 0 | R71: 0 | S71: 0 | T71: 0 | U71: 0 | V71: 0 | W71: 0 | X71: 0 | Y71: 0 | Z71: 0 | AA71: 0 | AB71: 0 | AC71: 0 | AD71: 0 | AE71: 0 | AF71: 0 | AG71: 0 | AH71: 0 | AI71: 0 | CF71: TRUE | CG71: 29 - 30: Manufacture of motor vehicles, trailers, other transport equipment | CH71: GDP_P.M_CARS | CJ71: 0 | CK71: 0 | CL71: 0 | CM71: 0 | CN71: 0 | CO71: 0 | CP71: 0 | CQ71: 0 | CR71: 0 | CS71: 0 | CT71: 0 | CU71: 0 | CV71: 0 | CW71: 0 | CX71: 0 | CY71: 0 | CZ71: 0 | DA71: 0 | DB71: 0 | DC71: 0 | DD71: 0 | DE71: 0 | DF71: 0 | DG71: 0 | DH71: 0 | DI71: 0 | DJ71: 0 | DK71: 0 | DL71: 0 | DM71: 0 | DN71: 0
A72: TRUE | B72: 31 - 32: Manufacture of furniture & Other manufacturing | C72: GDP_P.M_OTHERS | E72: 0 | F72: 0 | G72: 0 | H72: 0 | I72: 0 | J72: 0 | K72: 0 | L72: 0 | M72: 0 | N72: 0 | O72: 0 | P72: 0 | Q72: 0 | R72: 0 | S72: 0 | T72: 0 | U72: 0 | V72: 0 | W72: 0 | X72: 0 | Y72: 0 | Z72: 0 | AA72: 0 | AB72: 0 | AC72: 0 | AD72: 0 | AE72: 0 | AF72: 0 | AG72: 0 | AH72: 0 | AI72: 0 | CF72: TRUE | CG72: 31 - 32: Manufacture of furniture & Other manufacturing | CH72: GDP_P.M_OTHERS | CJ72: 0 | CK72: 0 | CL72: 0 | CM72: 0 | CN72: 0 | CO72: 0 | CP72: 0 | CQ72: 0 | CR72: 0 | CS72: 0 | CT72: 0 | CU72: 0 | CV72: 0 | CW72: 0 | CX72: 0 | CY72: 0 | CZ72: 0 | DA72: 0 | DB72: 0 | DC72: 0 | DD72: 0 | DE72: 0 | DF72: 0 | DG72: 0 | DH72: 0 | DI72: 0 | DJ72: 0 | DK72: 0 | DL72: 0 | DM72: 0 | DN72: 0
A73: TRUE | B73: 35 -36: Electricity, gas, steam, air conditioning, and water supply | C73: GDP_P.O_DISTR | E73: 0 | F73: 0 | G73: 0 | H73: 0 | I73: 0 | J73: 0 | K73: 0 | L73: 0 | M73: 0 | N73: 0 | O73: 0 | P73: 0 | Q73: 0 | R73: 0 | S73: 0 | T73: 0 | U73: 0 | V73: 0 | W73: 0 | X73: 0 | Y73: 0 | Z73: 0 | AA73: 0 | AB73: 0 | AC73: 0 | AD73: 0 | AE73: 0 | AF73: 0 | AG73: 0 | AH73: 0 | AI73: 0 | CF73: TRUE | CG73: 35 -36: Electricity, gas, steam, air conditioning, and water supply | CH73: GDP_P.O_DISTR | CJ73: 0 | CK73: 0 | CL73: 0 | CM73: 0 | CN73: 0 | CO73: 0 | CP73: 0 | CQ73: 0 | CR73: 0 | CS73: 0 | CT73: 0 | CU73: 0 | CV73: 0 | CW73: 0 | CX73: 0 | CY73: 0 | CZ73: 0 | DA73: 0 | DB73: 0 | DC73: 0 | DD73: 0 | DE73: 0 | DF73: 0 | DG73: 0 | DH73: 0 | DI73: 0 | DJ73: 0 | DK73: 0 | DL73: 0 | DM73: 0 | DN73: 0
A74: TRUE | B74: 41 - 43: Construction | C74: GDP_P.O_CONSTR | E74: 0 | F74: 0 | G74: 0 | H74: 0 | I74: 0 | J74: 0 | K74: 0 | L74: 0 | M74: 0 | N74: 0 | O74: 0 | P74: 0 | Q74: 0 | R74: 0 | S74: 0 | T74: 0 | U74: 0 | V74: 0 | W74: 0 | X74: 0 | Y74: 0 | Z74: 0 | AA74: 0 | AB74: 0 | AC74: 0 | AD74: 0 | AE74: 0 | AF74: 0 | AG74: 0 | AH74: 0 | AI74: 0 | CF74: TRUE | CG74: 41 - 43: Construction | CH74: GDP_P.O_CONSTR | CJ74: 0 | CK74: 0 | CL74: 0 | CM74: 0 | CN74: 0 | CO74: 0 | CP74: 0 | CQ74: 0 | CR74: 0 | CS74: 0 | CT74: 0 | CU74: 0 | CV74: 0 | CW74: 0 | CX74: 0 | CY74: 0 | CZ74: 0 | DA74: 0 | DB74: 0 | DC74: 0 | DD74: 0 | DE74: 0 | DF74: 0 | DG74: 0 | DH74: 0 | DI74: 0 | DJ74: 0 | DK74: 0 | DL74: 0 | DM74: 0 | DN74: 0
A75: TRUE | B75: 33 - 99: Services | C75: GDP_P.S_TOTAL | E75: 0 | F75: 0 | G75: 0 | H75: 0 | I75: 0 | J75: 0 | K75: 0 | L75: 0 | M75: 0 | N75: 0 | O75: 0 | P75: 0 | Q75: 0 | R75: 0 | S75: 0 | T75: 0 | U75: 0 | V75: 0 | W75: 0 | X75: 0 | Y75: 0 | Z75: 0 | AA75: 0 | AB75: 0 | AC75: 0 | AD75: 0 | AE75: 0 | AF75: 0 | AG75: 0 | AH75: 0 | AI75: 0 | CF75: TRUE | CG75: 33 - 99: Services | CH75: GDP_P.S_TOTAL | CJ75: 0 | CK75: 0 | CL75: 0 | CM75: 0 | CN75: 0 | CO75: 0 | CP75: 0 | CQ75: 0 | CR75: 0 | CS75: 0 | CT75: 0 | CU75: 0 | CV75: 0 | CW75: 0 | CX75: 0 | CY75: 0 | CZ75: 0 | DA75: 0 | DB75: 0 | DC75: 0 | DD75: 0 | DE75: 0 | DF75: 0 | DG75: 0 | DH75: 0 | DI75: 0 | DJ75: 0 | DK75: 0 | DL75: 0 | DM75: 0 | DN75: 0
A76: TRUE | B76: Total gross value added at basic prices | C76: GDP_P.TOTAL | E76: 0 | F76: 0 | G76: 0 | H76: 0 | I76: 0 | J76: 0 | K76: 0 | L76: 0 | M76: 0 | N76: 0 | O76: 0 | P76: 0 | Q76: 0 | R76: 0 | S76: 0 | T76: 0 | U76: 0 | V76: 0 | W76: 0 | X76: 0 | Y76: 0 | Z76: 0 | AA76: 0 | AB76: 0 | AC76: 0 | AD76: 0 | AE76: 0 | AF76: 0 | AG76: 0 | AH76: 0 | AI76: 0 | CF76: TRUE | CG76: Total gross value added at basic prices | CH76: GDP_P.TOTAL | CJ76: 0 | CK76: 0 | CL76: 0 | CM76: 0 | CN76: 0 | CO76: 0 | CP76: 0 | CQ76: 0 | CR76: 0 | CS76: 0 | CT76: 0 | CU76: 0 | CV76: 0 | CW76: 0 | CX76: 0 | CY76: 0 | CZ76: 0 | DA76: 0 | DB76: 0 | DC76: 0 | DD76: 0 | DE76: 0 | DF76: 0 | DG76: 0 | DH76: 0 | DI76: 0 | DJ76: 0 | DK76: 0 | DL76: 0 | DM76: 0 | DN76: 0
B77: EEI statistical discrepancy | E77: =E78-E76 -> 0 | F77: 0 | G77: 0 | H77: 0 | I77: 0 | J77: 0 | K77: 0 | L77: 0 | M77: 0 | N77: 0 | O77: 0 | P77: 0 | Q77: 0 | R77: 0 | S77: 0 | T77: 0 | U77: 0 | V77: =V78-V76 -> 0 | W77: 0 | X77: 0 | Y77: 0 | Z77: 0 | AA77: 0 | AB77: =AB78-AB76 -> 0 | AC77: 0 | AD77: 0 | AE77: 0 | AF77: 0 | AG77: 0 | AH77: =AH78-AH76 -> 0 | AI77: 0 | CG77: EEI statistical discrepancy | CJ77: 0 | CK77: 0 | CL77: 0 | CM77: 0 | CN77: 0 | CO77: 0 | CP77: 0 | CQ77: 0 | CR77: 0 | CS77: 0 | CT77: 0 | CU77: 0 | CV77: 0 | CW77: 0 | CX77: 0 | CY77: 0 | CZ77: 0 | DA77: 0 | DB77: 0 | DC77: 0 | DD77: 0 | DE77: 0 | DF77: 0 | DG77: 0 | DH77: 0 | DI77: 0 | DJ77: 0 | DK77: 0 | DL77: 0 | DM77: 0 | DN77: 0
B78: GDP USD PPP 2015 $ (at the price levels and PPPs of 2015) | E78: =E47 -> 0 | F78: 0 | G78: 0 | H78: 0 | I78: 0 | J78: 0 | K78: 0 | L78: 0 | M78: 0 | N78: 0 | O78: 0 | P78: 0 | Q78: 0 | R78: 0 | S78: 0 | T78: 0 | U78: 0 | V78: 0 | W78: =W47 -> 0 | X78: 0 | Y78: 0 | Z78: 0 | AA78: 0 | AB78: 0 | AC78: =AC47 -> 0 | AD78: 0 | AE78: 0 | AF78: 0 | AG78: 0 | AH78: 0 | AI78: =AI47 -> 0 | CG78: GDP PPP 2010 | CJ78: 0 | CK78: 0 | CL78: 0 | CM78: 0 | CN78: 0 | CO78: 0 | CP78: 0 | CQ78: 0 | CR78: 0 | CS78: 0 | CT78: 0 | CU78: 0 | CV78: 0 | CW78: 0 | CX78: 0 | CY78: 0 | CZ78: 0 | DA78: 0 | DB78: 0 | DC78: 0 | DD78: 0 | DE78: 0 | DF78: 0 | DG78: 0 | DH78: 0 | DI78: 0 | DJ78: 0 | DK78: 0 | DL78: 0 | DM78: 0 | DN78: 0
A80: V. | B80: ="Value Added ("&$D$143&")" -> Value Added (NC) | CF80: V. | CG80: Value Added (NC)
A81: ISIC Rev.4 Division | CF81: ISIC Rev.4 Division
B82: 01 - 03: Agriculture, forestry and fishing | D82: ="billions of "&$D$143&" (base year 2015)" -> billions of NC (base year 2015) | E82: =E54*$AD$33 -> 0 | F82: 0 | G82: 0 | H82: 0 | I82: 0 | J82: 0 | K82: 0 | L82: 0 | M82: 0 | N82: 0 | O82: 0 | P82: 0 | Q82: 0 | R82: 0 | S82: 0 | T82: 0 | U82: 0 | V82: 0 | W82: 0 | X82: 0 | Y82: 0 | Z82: 0 | AA82: 0 | AB82: 0 | AC82: 0 | AD82: 0 | AE82: 0 | AF82: 0 | AG82: =AG54*$AD$33 -> 0 | AH82: =AH54*$AD$33 -> 0 | AI82: =AI54*$AD$33 -> 0 | CG82: 01 - 03: Agriculture, forestry and fishing | CI82: billions of NC (base year 2010) | CJ82: 0 | CK82: 0 | CL82: 0 | CM82: 0 | CN82: 0 | CO82: 0 | CP82: 0 | CQ82: 0 | CR82: 0 | CS82: 0 | CT82: 0 | CU82: 0 | CV82: 0 | CW82: 0 | CX82: 0 | CY82: 0 | CZ82: 0 | DA82: 0 | DB82: 0 | DC82: 0 | DD82: 0 | DE82: 0 | DF82: 0 | DG82: 0 | DH82: 0 | DI82: 0 | DJ82: 0 | DK82: 0 | DL82: 0 | DM82: 0 | DN82: 0
B83: 05 - 09: Mining and quarrying | E83: =E55*$AD$33 -> 0 | F83: 0 | G83: 0 | H83: 0 | I83: 0 | J83: 0 | K83: 0 | L83: 0 | M83: 0 | N83: 0 | O83: 0 | P83: 0 | Q83: 0 | R83: 0 | S83: 0 | T83: 0 | U83: 0 | V83: 0 | W83: 0 | X83: 0 | Y83: 0 | Z83: 0 | AA83: 0 | AB83: 0 | AC83: 0 | AD83: 0 | AE83: 0 | AF83: 0 | AG83: 0 | AH83: =AH55*$AD$33 -> 0 | AI83: 0 | CG83: 05 - 09: Mining and quarrying | CJ83: 0 | CK83: 0 | CL83: 0 | CM83: 0 | CN83: 0 | CO83: 0 | CP83: 0 | CQ83: 0 | CR83: 0 | CS83: 0 | CT83: 0 | CU83: 0 | CV83: 0 | CW83: 0 | CX83: 0 | CY83: 0 | CZ83: 0 | DA83: 0 | DB83: 0 | DC83: 0 | DD83: 0 | DE83: 0 | DF83: 0 | DG83: 0 | DH83: 0 | DI83: 0 | DJ83: 0 | DK83: 0 | DL83: 0 | DM83: 0 | DN83: 0
B84: 10 - 32: Manufacturing | E84: =E56*$AD$33 -> 0 | F84: 0 | G84: 0 | H84: 0 | I84: 0 | J84: 0 | K84: 0 | L84: 0 | M84: 0 | N84: 0 | O84: 0 | P84: 0 | Q84: 0 | R84: 0 | S84: 0 | T84: 0 | U84: 0 | V84: 0 | W84: 0 | X84: 0 | Y84: 0 | Z84: 0 | AA84: 0 | AB84: 0 | AC84: 0 | AD84: 0 | AE84: 0 | AF84: 0 | AG84: 0 | AH84: =AH56*$AD$33 -> 0 | AI84: 0 | CG84: 10 - 32: Manufacturing | CJ84: 0 | CK84: 0 | CL84: 0 | CM84: 0 | CN84: 0 | CO84: 0 | CP84: 0 | CQ84: 0 | CR84: 0 | CS84: 0 | CT84: 0 | CU84: 0 | CV84: 0 | CW84: 0 | CX84: 0 | CY84: 0 | CZ84: 0 | DA84: 0 | DB84: 0 | DC84: 0 | DD84: 0 | DE84: 0 | DF84: 0 | DG84: 0 | DH84: 0 | DI84: 0 | DJ84: 0 | DK84: 0 | DL84: 0 | DM84: 0 | DN84: 0
B85: 10 - 12: Manufacture of food products, beverages, tobacco products | E85: =E57*$AD$33 -> 0 | F85: 0 | G85: 0 | H85: 0 | I85: 0 | J85: 0 | K85: 0 | L85: 0 | M85: 0 | N85: 0 | O85: 0 | P85: 0 | Q85: 0 | R85: 0 | S85: 0 | T85: 0 | U85: 0 | V85: 0 | W85: 0 | X85: 0 | Y85: 0 | Z85: 0 | AA85: 0 | AB85: 0 | AC85: 0 | AD85: 0 | AE85: 0 | AF85: 0 | AG85: 0 | AH85: =AH57*$AD$33 -> 0 | AI85: 0 | CG85: 10 - 12: Manufacture of food products, beverages, tobacco products | CJ85: 0 | CK85: 0 | CL85: 0 | CM85: 0 | CN85: 0 | CO85: 0 | CP85: 0 | CQ85: 0 | CR85: 0 | CS85: 0 | CT85: 0 | CU85: 0 | CV85: 0 | CW85: 0 | CX85: 0 | CY85: 0 | CZ85: 0 | DA85: 0 | DB85: 0 | DC85: 0 | DD85: 0 | DE85: 0 | DF85: 0 | DG85: 0 | DH85: 0 | DI85: 0 | DJ85: 0 | DK85: 0 | DL85: 0 | DM85: 0 | DN85: 0
B86: 13 - 15: Manufacture of textiles, wearing apparel, leather and related products | E86: =E58*$AD$33 -> 0 | F86: 0 | G86: 0 | H86: 0 | I86: 0 | J86: 0 | K86: 0 | L86: 0 | M86: 0 | N86: 0 | O86: 0 | P86: 0 | Q86: 0 | R86: 0 | S86: 0 | T86: 0 | U86: 0 | V86: 0 | W86: 0 | X86: 0 | Y86: 0 | Z86: 0 | AA86: 0 | AB86: 0 | AC86: 0 | AD86: 0 | AE86: 0 | AF86: 0 | AG86: 0 | AH86: =AH58*$AD$33 -> 0 | AI86: 0 | CG86: 13 - 15: Manufacture of textiles, wearing apparel, leather and related products | CJ86: 0 | CK86: 0 | CL86: 0 | CM86: 0 | CN86: 0 | CO86: 0 | CP86: 0 | CQ86: 0 | CR86: 0 | CS86: 0 | CT86: 0 | CU86: 0 | CV86: 0 | CW86: 0 | CX86: 0 | CY86: 0 | CZ86: 0 | DA86: 0 | DB86: 0 | DC86: 0 | DD86: 0 | DE86: 0 | DF86: 0 | DG86: 0 | DH86: 0 | DI86: 0 | DJ86: 0 | DK86: 0 | DL86: 0 | DM86: 0 | DN86: 0
B87: 16: Manufacture of wood and of products of wood and cork, except furniture; manufacture of articles of straw and plaiting materials | E87: =E59*$AD$33 -> 0 | F87: 0 | G87: 0 | H87: 0 | I87: 0 | J87: 0 | K87: 0 | L87: 0 | M87: 0 | N87: 0 | O87: 0 | P87: 0 | Q87: 0 | R87: 0 | S87: 0 | T87: 0 | U87: 0 | V87: 0 | W87: 0 | X87: 0 | Y87: 0 | Z87: 0 | AA87: 0 | AB87: 0 | AC87: 0 | AD87: 0 | AE87: 0 | AF87: 0 | AG87: 0 | AH87: =AH59*$AD$33 -> 0 | AI87: 0 | CG87: 16: Manufacture of wood and of products of wood and cork, except furniture; manufacture of articles of straw and plaiting materials | CJ87: 0 | CK87: 0 | CL87: 0 | CM87: 0 | CN87: 0 | CO87: 0 | CP87: 0 | CQ87: 0 | CR87: 0 | CS87: 0 | CT87: 0 | CU87: 0 | CV87: 0 | CW87: 0 | CX87: 0 | CY87: 0 | CZ87: 0 | DA87: 0 | DB87: 0 | DC87: 0 | DD87: 0 | DE87: 0 | DF87: 0 | DG87: 0 | DH87: 0 | DI87: 0 | DJ87: 0 | DK87: 0 | DL87: 0 | DM87: 0 | DN87: 0
B88: 17: Manufacture of paper and paper products | E88: =E60*$AD$33 -> 0 | F88: 0 | G88: 0 | H88: 0 | I88: 0 | J88: 0 | K88: 0 | L88: 0 | M88: 0 | N88: 0 | O88: 0 | P88: 0 | Q88: 0 | R88: 0 | S88: 0 | T88: 0 | U88: 0 | V88: 0 | W88: 0 | X88: 0 | Y88: 0 | Z88: 0 | AA88: 0 | AB88: 0 | AC88: 0 | AD88: 0 | AE88: 0 | AF88: 0 | AG88: 0 | AH88: =AH60*$AD$33 -> 0 | AI88: 0 | CG88: 17: Manufacture of paper and paper products | CJ88: 0 | CK88: 0 | CL88: 0 | CM88: 0 | CN88: 0 | CO88: 0 | CP88: 0 | CQ88: 0 | CR88: 0 | CS88: 0 | CT88: 0 | CU88: 0 | CV88: 0 | CW88: 0 | CX88: 0 | CY88: 0 | CZ88: 0 | DA88: 0 | DB88: 0 | DC88: 0 | DD88: 0 | DE88: 0 | DF88: 0 | DG88: 0 | DH88: 0 | DI88: 0 | DJ88: 0 | DK88: 0 | DL88: 0 | DM88: 0 | DN88: 0
B89: 18: Printing and reproduction of recorded media | E89: =E61*$AD$33 -> 0 | F89: 0 | G89: 0 | H89: 0 | I89: 0 | J89: 0 | K89: 0 | L89: 0 | M89: 0 | N89: 0 | O89: 0 | P89: 0 | Q89: 0 | R89: 0 | S89: 0 | T89: 0 | U89: 0 | V89: 0 | W89: 0 | X89: 0 | Y89: 0 | Z89: 0 | AA89: 0 | AB89: 0 | AC89: 0 | AD89: 0 | AE89: 0 | AF89: 0 | AG89: 0 | AH89: =AH61*$AD$33 -> 0 | AI89: 0 | CG89: 18: Printing and reproduction of recorded media | CJ89: 0 | CK89: 0 | CL89: 0 | CM89: 0 | CN89: 0 | CO89: 0 | CP89: 0 | CQ89: 0 | CR89: 0 | CS89: 0 | CT89: 0 | CU89: 0 | CV89: 0 | CW89: 0 | CX89: 0 | CY89: 0 | CZ89: 0 | DA89: 0 | DB89: 0 | DC89: 0 | DD89: 0 | DE89: 0 | DF89: 0 | DG89: 0 | DH89: 0 | DI89: 0 | DJ89: 0 | DK89: 0 | DL89: 0 | DM89: 0 | DN89: 0
B90: 17 - 18: Paper & Printing | E90: =E62*$AD$33 -> 0 | F90: 0 | G90: 0 | H90: 0 | I90: 0 | J90: 0 | K90: 0 | L90: 0 | M90: 0 | N90: 0 | O90: 0 | P90: 0 | Q90: 0 | R90: 0 | S90: 0 | T90: 0 | U90: 0 | V90: 0 | W90: 0 | X90: 0 | Y90: 0 | Z90: 0 | AA90: 0 | AB90: 0 | AC90: 0 | AD90: 0 | AE90: 0 | AF90: 0 | AG90: 0 | AH90: =AH62*$AD$33 -> 0 | AI90: 0 | CG90: 17 - 18: Paper & Printing | CJ90: 0 | CK90: 0 | CL90: 0 | CM90: 0 | CN90: 0 | CO90: 0 | CP90: 0 | CQ90: 0 | CR90: 0 | CS90: 0 | CT90: 0 | CU90: 0 | CV90: 0 | CW90: 0 | CX90: 0 | CY90: 0 | CZ90: 0 | DA90: 0 | DB90: 0 | DC90: 0 | DD90: 0 | DE90: 0 | DF90: 0 | DG90: 0 | DH90: 0 | DI90: 0 | DJ90: 0 | DK90: 0 | DL90: 0 | DM90: 0 | DN90: 0
B91: 19: Manufacture of coke and refined petroleum products | E91: =E63*$AD$33 -> 0 | F91: 0 | G91: 0 | H91: 0 | I91: 0 | J91: 0 | K91: 0 | L91: 0 | M91: 0 | N91: 0 | O91: 0 | P91: 0 | Q91: 0 | R91: 0 | S91: 0 | T91: 0 | U91: 0 | V91: 0 | W91: 0 | X91: 0 | Y91: 0 | Z91: 0 | AA91: 0 | AB91: 0 | AC91: 0 | AD91: 0 | AE91: 0 | AF91: 0 | AG91: 0 | AH91: =AH63*$AD$33 -> 0 | AI91: 0 | CG91: 19: Manufacture of coke and refined petroleum products | CJ91: 0 | CK91: 0 | CL91: 0 | CM91: 0 | CN91: 0 | CO91: 0 | CP91: 0 | CQ91: 0 | CR91: 0 | CS91: 0 | CT91: 0 | CU91: 0 | CV91: 0 | CW91: 0 | CX91: 0 | CY91: 0 | CZ91: 0 | DA91: 0 | DB91: 0 | DC91: 0 | DD91: 0 | DE91: 0 | DF91: 0 | DG91: 0 | DH91: 0 | DI91: 0 | DJ91: 0 | DK91: 0 | DL91: 0 | DM91: 0 | DN91: 0
B92: 20 - 21: Manufacture of chemicals and chemical products & basic pharmaceutical products and pharmaceutical preparations | E92: =E64*$AD$33 -> 0 | F92: 0 | G92: 0 | H92: 0 | I92: 0 | J92: 0 | K92: 0 | L92: 0 | M92: 0 | N92: 0 | O92: 0 | P92: 0 | Q92: 0 | R92: 0 | S92: 0 | T92: 0 | U92: 0 | V92: 0 | W92: 0 | X92: 0 | Y92: 0 | Z92: 0 | AA92: 0 | AB92: 0 | AC92: 0 | AD92: 0 | AE92: 0 | AF92: 0 | AG92: 0 | AH92: =AH64*$AD$33 -> 0 | AI92: 0 | CG92: 20 - 21: Manufacture of chemicals and chemical products & basic pharmaceutical products and pharmaceutical preparations | CJ92: 0 | CK92: 0 | CL92: 0 | CM92: 0 | CN92: 0 | CO92: 0 | CP92: 0 | CQ92: 0 | CR92: 0 | CS92: 0 | CT92: 0 | CU92: 0 | CV92: 0 | CW92: 0 | CX92: 0 | CY92: 0 | CZ92: 0 | DA92: 0 | DB92: 0 | DC92: 0 | DD92: 0 | DE92: 0 | DF92: 0 | DG92: 0 | DH92: 0 | DI92: 0 | DJ92: 0 | DK92: 0 | DL92: 0 | DM92: 0 | DN92: 0
B93: 22: Manufacture of rubber and plastics products | E93: =E65*$AD$33 -> 0 | F93: 0 | G93: 0 | H93: 0 | I93: 0 | J93: 0 | K93: 0 | L93: 0 | M93: 0 | N93: 0 | O93: 0 | P93: 0 | Q93: 0 | R93: 0 | S93: 0 | T93: 0 | U93: 0 | V93: 0 | W93: 0 | X93: 0 | Y93: 0 | Z93: 0 | AA93: 0 | AB93: 0 | AC93: 0 | AD93: 0 | AE93: 0 | AF93: 0 | AG93: 0 | AH93: =AH65*$AD$33 -> 0 | AI93: 0 | CG93: 22: Manufacture of rubber and plastics products | CJ93: 0 | CK93: 0 | CL93: 0 | CM93: 0 | CN93: 0 | CO93: 0 | CP93: 0 | CQ93: 0 | CR93: 0 | CS93: 0 | CT93: 0 | CU93: 0 | CV93: 0 | CW93: 0 | CX93: 0 | CY93: 0 | CZ93: 0 | DA93: 0 | DB93: 0 | DC93: 0 | DD93: 0 | DE93: 0 | DF93: 0 | DG93: 0 | DH93: 0 | DI93: 0 | DJ93: 0 | DK93: 0 | DL93: 0 | DM93: 0 | DN93: 0
B94: 23: Manufacture of other non-metallic mineral products | E94: =E66*$AD$33 -> 0 | F94: 0 | G94: 0 | H94: 0 | I94: 0 | J94: 0 | K94: 0 | L94: 0 | M94: 0 | N94: 0 | O94: 0 | P94: 0 | Q94: 0 | R94: 0 | S94: 0 | T94: 0 | U94: 0 | V94: 0 | W94: 0 | X94: 0 | Y94: 0 | Z94: 0 | AA94: 0 | AB94: 0 | AC94: 0 | AD94: 0 | AE94: 0 | AF94: 0 | AG94: 0 | AH94: =AH66*$AD$33 -> 0 | AI94: 0 | CG94: 23: Manufacture of other non-metallic mineral products | CJ94: 0 | CK94: 0 | CL94: 0 | CM94: 0 | CN94: 0 | CO94: 0 | CP94: 0 | CQ94: 0 | CR94: 0 | CS94: 0 | CT94: 0 | CU94: 0 | CV94: 0 | CW94: 0 | CX94: 0 | CY94: 0 | CZ94: 0 | DA94: 0 | DB94: 0 | DC94: 0 | DD94: 0 | DE94: 0 | DF94: 0 | DG94: 0 | DH94: 0 | DI94: 0 | DJ94: 0 | DK94: 0 | DL94: 0 | DM94: 0 | DN94: 0
B95: 24: Manufacture of basic metals | E95: =E67*$AD$33 -> 0 | F95: 0 | G95: 0 | H95: 0 | I95: 0 | J95: 0 | K95: 0 | L95: 0 | M95: 0 | N95: 0 | O95: 0 | P95: 0 | Q95: 0 | R95: 0 | S95: 0 | T95: 0 | U95: 0 | V95: 0 | W95: 0 | X95: 0 | Y95: 0 | Z95: 0 | AA95: 0 | AB95: 0 | AC95: 0 | AD95: 0 | AE95: 0 | AF95: 0 | AG95: 0 | AH95: =AH67*$AD$33 -> 0 | AI95: 0 | CG95: 24: Manufacture of basic metals | CJ95: 0 | CK95: 0 | CL95: 0 | CM95: 0 | CN95: 0 | CO95: 0 | CP95: 0 | CQ95: 0 | CR95: 0 | CS95: 0 | CT95: 0 | CU95: 0 | CV95: 0 | CW95: 0 | CX95: 0 | CY95: 0 | CZ95: 0 | DA95: 0 | DB95: 0 | DC95: 0 | DD95: 0 | DE95: 0 | DF95: 0 | DG95: 0 | DH95: 0 | DI95: 0 | DJ95: 0 | DK95: 0 | DL95: 0 | DM95: 0 | DN95: 0
B96: Class 2410+2431: Manufacture + Casting of iron and steel | E96: =E68*$AD$33 -> 0 | F96: 0 | G96: 0 | H96: 0 | I96: 0 | J96: 0 | K96: 0 | L96: 0 | M96: 0 | N96: 0 | O96: 0 | P96: 0 | Q96: 0 | R96: 0 | S96: 0 | T96: 0 | U96: 0 | V96: 0 | W96: 0 | X96: 0 | Y96: 0 | Z96: 0 | AA96: 0 | AB96: 0 | AC96: 0 | AD96: 0 | AE96: 0 | AF96: 0 | AG96: 0 | AH96: =AH68*$AD$33 -> 0 | AI96: 0 | CG96: Class 2410+2431: Manufacture + Casting of iron and steel | CJ96: 0 | CK96: 0 | CL96: 0 | CM96: 0 | CN96: 0 | CO96: 0 | CP96: 0 | CQ96: 0 | CR96: 0 | CS96: 0 | CT96: 0 | CU96: 0 | CV96: 0 | CW96: 0 | CX96: 0 | CY96: 0 | CZ96: 0 | DA96: 0 | DB96: 0 | DC96: 0 | DD96: 0 | DE96: 0 | DF96: 0 | DG96: 0 | DH96: 0 | DI96: 0 | DJ96: 0 | DK96: 0 | DL96: 0 | DM96: 0 | DN96: 0
B97: Class 2420+2432: Manufacture + Casting of precious and non-ferrous metals | E97: =E69*$AD$33 -> 0 | F97: 0 | G97: =G69*$AD$33 -> 0 | H97: 0 | I97: 0 | J97: 0 | K97: 0 | L97: 0 | M97: 0 | N97: 0 | O97: 0 | P97: 0 | Q97: 0 | R97: 0 | S97: 0 | T97: 0 | U97: 0 | V97: 0 | W97: 0 | X97: 0 | Y97: 0 | Z97: 0 | AA97: 0 | AB97: 0 | AC97: 0 | AD97: 0 | AE97: 0 | AF97: 0 | AG97: 0 | AH97: =AH69*$AD$33 -> 0 | AI97: 0 | CG97: Class 2420+2432: Manufacture + Casting of precious and non-ferrous metals | CJ97: 0 | CK97: 0 | CL97: 0 | CM97: 0 | CN97: 0 | CO97: 0 | CP97: 0 | CQ97: 0 | CR97: 0 | CS97: 0 | CT97: 0 | CU97: 0 | CV97: 0 | CW97: 0 | CX97: 0 | CY97: 0 | CZ97: 0 | DA97: 0 | DB97: 0 | DC97: 0 | DD97: 0 | DE97: 0 | DF97: 0 | DG97: 0 | DH97: 0 | DI97: 0 | DJ97: 0 | DK97: 0 | DL97: 0 | DM97: 0 | DN97: 0
B98: 25 - 28: Manufacture of fabricated metal products, machinery and equipment | E98: =E70*$AD$33 -> 0 | F98: 0 | G98: 0 | H98: 0 | I98: 0 | J98: 0 | K98: 0 | L98: 0 | M98: 0 | N98: 0 | O98: 0 | P98: 0 | Q98: 0 | R98: 0 | S98: 0 | T98: 0 | U98: 0 | V98: 0 | W98: 0 | X98: 0 | Y98: 0 | Z98: 0 | AA98: 0 | AB98: 0 | AC98: 0 | AD98: 0 | AE98: 0 | AF98: 0 | AG98: 0 | AH98: =AH70*$AD$33 -> 0 | AI98: 0 | CG98: 25 - 28: Manufacture of fabricated metal products, machinery and equipment | CJ98: 0 | CK98: 0 | CL98: 0 | CM98: 0 | CN98: 0 | CO98: 0 | CP98: 0 | CQ98: 0 | CR98: 0 | CS98: 0 | CT98: 0 | CU98: 0 | CV98: 0 | CW98: 0 | CX98: 0 | CY98: 0 | CZ98: 0 | DA98: 0 | DB98: 0 | DC98: 0 | DD98: 0 | DE98: 0 | DF98: 0 | DG98: 0 | DH98: 0 | DI98: 0 | DJ98: 0 | DK98: 0 | DL98: 0 | DM98: 0 | DN98: 0
B99: 29 - 30: Manufacture of motor vehicles, trailers, other transport equipment | E99: =E71*$AD$33 -> 0 | F99: 0 | G99: 0 | H99: 0 | I99: 0 | J99: 0 | K99: 0 | L99: 0 | M99: 0 | N99: 0 | O99: 0 | P99: 0 | Q99: 0 | R99: 0 | S99: 0 | T99: 0 | U99: 0 | V99: 0 | W99: 0 | X99: 0 | Y99: 0 | Z99: 0 | AA99: 0 | AB99: 0 | AC99: 0 | AD99: 0 | AE99: 0 | AF99: 0 | AG99: 0 | AH99: =AH71*$AD$33 -> 0 | AI99: 0 | CG99: 29 - 30: Manufacture of motor vehicles, trailers, other transport equipment | CJ99: 0 | CK99: 0 | CL99: 0 | CM99: 0 | CN99: 0 | CO99: 0 | CP99: 0 | CQ99: 0 | CR99: 0 | CS99: 0 | CT99: 0 | CU99: 0 | CV99: 0 | CW99: 0 | CX99: 0 | CY99: 0 | CZ99: 0 | DA99: 0 | DB99: 0 | DC99: 0 | DD99: 0 | DE99: 0 | DF99: 0 | DG99: 0 | DH99: 0 | DI99: 0 | DJ99: 0 | DK99: 0 | DL99: 0 | DM99: 0 | DN99: 0
B100: 31 - 32: Manufacture of furniture & Other manufacturing | E100: =E72*$AD$33 -> 0 | F100: 0 | G100: 0 | H100: 0 | I100: 0 | J100: 0 | K100: 0 | L100: 0 | M100: 0 | N100: 0 | O100: 0 | P100: 0 | Q100: 0 | R100: 0 | S100: 0 | T100: 0 | U100: 0 | V100: 0 | W100: 0 | X100: 0 | Y100: 0 | Z100: 0 | AA100: 0 | AB100: 0 | AC100: 0 | AD100: 0 | AE100: 0 | AF100: 0 | AG100: 0 | AH100: =AH72*$AD$33 -> 0 | AI100: 0 | CG100: 31 - 32: Manufacture of furniture & Other manufacturing | CJ100: 0 | CK100: 0 | CL100: 0 | CM100: 0 | CN100: 0 | CO100: 0 | CP100: 0 | CQ100: 0 | CR100: 0 | CS100: 0 | CT100: 0 | CU100: 0 | CV100: 0 | CW100: 0 | CX100: 0 | CY100: 0 | CZ100: 0 | DA100: 0 | DB100: 0 | DC100: 0 | DD100: 0 | DE100: 0 | DF100: 0 | DG100: 0 | DH100: 0 | DI100: 0 | DJ100: 0 | DK100: 0 | DL100: 0 | DM100: 0 | DN100: 0
B101: 35 -36: Electricity, gas, steam, air conditioning, and water supply | E101: =E73*$AD$33 -> 0 | F101: 0 | G101: 0 | H101: 0 | I101: 0 | J101: 0 | K101: 0 | L101: 0 | M101: 0 | N101: 0 | O101: 0 | P101: 0 | Q101: 0 | R101: 0 | S101: 0 | T101: 0 | U101: 0 | V101: 0 | W101: 0 | X101: 0 | Y101: 0 | Z101: 0 | AA101: 0 | AB101: 0 | AC101: 0 | AD101: 0 | AE101: 0 | AF101: 0 | AG101: 0 | AH101: =AH73*$AD$33 -> 0 | AI101: 0 | CG101: 35 -36: Electricity, gas, steam, air conditioning, and water supply | CJ101: 0 | CK101: 0 | CL101: 0 | CM101: 0 | CN101: 0 | CO101: 0 | CP101: 0 | CQ101: 0 | CR101: 0 | CS101: 0 | CT101: 0 | CU101: 0 | CV101: 0 | CW101: 0 | CX101: 0 | CY101: 0 | CZ101: 0 | DA101: 0 | DB101: 0 | DC101: 0 | DD101: 0 | DE101: 0 | DF101: 0 | DG101: 0 | DH101: 0 | DI101: 0 | DJ101: 0 | DK101: 0 | DL101: 0 | DM101: 0 | DN101: 0
B102: 41 - 43: Construction | E102: =E74*$AD$33 -> 0 | F102: 0 | G102: 0 | H102: 0 | I102: 0 | J102: 0 | K102: 0 | L102: 0 | M102: 0 | N102: 0 | O102: 0 | P102: 0 | Q102: 0 | R102: 0 | S102: 0 | T102: 0 | U102: 0 | V102: 0 | W102: 0 | X102: 0 | Y102: 0 | Z102: 0 | AA102: 0 | AB102: 0 | AC102: 0 | AD102: 0 | AE102: 0 | AF102: 0 | AG102: 0 | AH102: =AH74*$AD$33 -> 0 | AI102: 0 | CG102: 41 - 43: Construction | CJ102: 0 | CK102: 0 | CL102: 0 | CM102: 0 | CN102: 0 | CO102: 0 | CP102: 0 | CQ102: 0 | CR102: 0 | CS102: 0 | CT102: 0 | CU102: 0 | CV102: 0 | CW102: 0 | CX102: 0 | CY102: 0 | CZ102: 0 | DA102: 0 | DB102: 0 | DC102: 0 | DD102: 0 | DE102: 0 | DF102: 0 | DG102: 0 | DH102: 0 | DI102: 0 | DJ102: 0 | DK102: 0 | DL102: 0 | DM102: 0 | DN102: 0
B103: 33 - 99: Services | E103: =E75*$AD$33 -> 0 | F103: 0 | G103: 0 | H103: 0 | I103: 0 | J103: 0 | K103: 0 | L103: 0 | M103: 0 | N103: 0 | O103: 0 | P103: 0 | Q103: 0 | R103: 0 | S103: 0 | T103: 0 | U103: 0 | V103: 0 | W103: 0 | X103: 0 | Y103: 0 | Z103: 0 | AA103: 0 | AB103: 0 | AC103: 0 | AD103: 0 | AE103: 0 | AF103: 0 | AG103: 0 | AH103: =AH75*$AD$33 -> 0 | AI103: 0 | CG103: 33 - 99: Services | CJ103: 0 | CK103: 0 | CL103: 0 | CM103: 0 | CN103: 0 | CO103: 0 | CP103: 0 | CQ103: 0 | CR103: 0 | CS103: 0 | CT103: 0 | CU103: 0 | CV103: 0 | CW103: 0 | CX103: 0 | CY103: 0 | CZ103: 0 | DA103: 0 | DB103: 0 | DC103: 0 | DD103: 0 | DE103: 0 | DF103: 0 | DG103: 0 | DH103: 0 | DI103: 0 | DJ103: 0 | DK103: 0 | DL103: 0 | DM103: 0 | DN103: 0
B104: Total gross value added at basic prices | E104: 0 | F104: 0 | G104: 0 | H104: 0 | I104: 0 | J104: 0 | K104: 0 | L104: 0 | M104: 0 | N104: 0 | O104: 0 | P104: 0 | Q104: 0 | R104: 0 | S104: 0 | T104: 0 | U104: 0 | V104: 0 | W104: 0 | X104: 0 | Y104: 0 | Z104: 0 | AA104: 0 | AB104: 0 | AC104: 0 | AD104: 0 | AE104: 0 | AF104: 0 | AG104: 0 | AH104: =AH76*$AD$33 -> 0 | AI104: 0 | CG104: Total gross value added at basic prices | CJ104: 0 | CK104: 0 | CL104: 0 | CM104: 0 | CN104: 0 | CO104: 0 | CP104: 0 | CQ104: 0 | CR104: 0 | CS104: 0 | CT104: 0 | CU104: 0 | CV104: 0 | CW104: 0 | CX104: 0 | CY104: 0 | CZ104: 0 | DA104: 0 | DB104: 0 | DC104: 0 | DD104: 0 | DE104: 0 | DF104: 0 | DG104: 0 | DH104: 0 | DI104: 0 | DJ104: 0 | DK104: 0 | DL104: 0 | DM104: 0 | DN104: 0
B105: Statistical discrepancy (output approach) | E105: =E106-E104 -> 0 | F105: 0 | G105: 0 | H105: 0 | I105: 0 | J105: 0 | K105: 0 | L105: 0 | M105: 0 | N105: 0 | O105: 0 | P105: 0 | Q105: 0 | R105: 0 | S105: 0 | T105: 0 | U105: 0 | V105: 0 | W105: 0 | X105: 0 | Y105: 0 | Z105: 0 | AA105: 0 | AB105: 0 | AC105: 0 | AD105: 0 | AE105: 0 | AF105: 0 | AG105: 0 | AH105: =AH106-AH104 -> 0 | AI105: 0 | CG105: Statistical discrepancy (output approach) | CJ105: 0 | CK105: 0 | CL105: 0 | CM105: 0 | CN105: 0 | CO105: 0 | CP105: 0 | CQ105: 0 | CR105: 0 | CS105: 0 | CT105: 0 | CU105: 0 | CV105: 0 | CW105: 0 | CX105: 0 | CY105: 0 | CZ105: 0 | DA105: 0 | DB105: 0 | DC105: 0 | DD105: 0 | DE105: 0 | DF105: 0 | DG105: 0 | DH105: 0 | DI105: 0 | DJ105: 0 | DK105: 0 | DL105: 0 | DM105: 0 | DN105: 0
B106: GDP at market prices (output approach) | E106: =E47*$AD$33 -> 0 | F106: 0 | G106: 0 | H106: 0 | I106: 0 | J106: 0 | K106: 0 | L106: 0 | M106: 0 | N106: 0 | O106: 0 | P106: 0 | Q106: 0 | R106: 0 | S106: 0 | T106: 0 | U106: 0 | V106: 0 | W106: 0 | X106: 0 | Y106: 0 | Z106: 0 | AA106: 0 | AB106: 0 | AC106: 0 | AD106: 0 | AE106: 0 | AF106: 0 | AG106: 0 | AH106: =AH47*$AD$33 -> 0 | AI106: 0 | CG106: GDP at market prices (output approach) | CJ106: 0 | CK106: 0 | CL106: 0 | CM106: 0 | CN106: 0 | CO106: 0 | CP106: 0 | CQ106: 0 | CR106: 0 | CS106: 0 | CT106: 0 | CU106: 0 | CV106: 0 | CW106: 0 | CX106: 0 | CY106: 0 | CZ106: 0 | DA106: 0 | DB106: 0 | DC106: 0 | DD106: 0 | DE106: 0 | DF106: 0 | DG106: 0 | DH106: 0 | DI106: 0 | DJ106: 0 | DK106: 0 | DL106: 0 | DM106: 0 | DN106: 0
A108: VI. | B108: Value-added in USD MER 2015 $ (at the price levels and MER of 2015) | CF108: VI. | CG108: Value-added in USD MER 2010 $ (at the price levels and MER of 2010)
A109: ISIC Rev.4 Division | CF109: ISIC Rev.4 Division
B110: 01 - 03: Agriculture, forestry and fishing | D110: billions of 2015$ | E110: =IF(E54*$AD$32*$AD$33>0,E54*$AD$33/$AD$32,0) -> 0 | F110: 0 | G110: 0 | H110: 0 | I110: 0 | J110: 0 | K110: 0 | L110: 0 | M110: 0 | N110: 0 | O110: 0 | P110: 0 | Q110: 0 | R110: 0 | S110: 0 | T110: 0 | U110: 0 | V110: 0 | W110: 0 | X110: 0 | Y110: 0 | Z110: 0 | AA110: 0 | AB110: 0 | AC110: 0 | AD110: 0 | AE110: 0 | AF110: 0 | AG110: =IF(AG54*$AD$32*$AD$33>0,AG54*$AD$33/$AD$32,0) -> 0 | AH110: =IF(AH54*$AD$32*$AD$33>0,AH54*$AD$33/$AD$32,0) -> 0 | AI110: =IF(AI54*$AD$32*$AD$33>0,AI54*$AD$33/$AD$32,0) -> 0 | CG110: 01 - 03: Agriculture, forestry and fishing | CI110: billions of 2010$ | CJ110: 0 | CK110: 0 | CL110: 0 | CM110: 0 | CN110: 0 | CO110: 0 | CP110: 0 | CQ110: 0 | CR110: 0 | CS110: 0 | CT110: 0 | CU110: 0 | CV110: 0 | CW110: 0 | CX110: 0 | CY110: 0 | CZ110: 0 | DA110: 0 | DB110: 0 | DC110: 0 | DD110: 0 | DE110: 0 | DF110: 0 | DG110: 0 | DH110: 0 | DI110: 0 | DJ110: 0 | DK110: 0 | DL110: 0 | DM110: 0 | DN110: 0
B111: 05 - 09: Mining and quarrying | E111: =IF(E55*$AD$32*$AD$33>0,E55*$AD$33/$AD$32,0) -> 0 | F111: 0 | G111: 0 | H111: 0 | I111: 0 | J111: 0 | K111: 0 | L111: 0 | M111: 0 | N111: 0 | O111: 0 | P111: 0 | Q111: 0 | R111: 0 | S111: 0 | T111: 0 | U111: 0 | V111: 0 | W111: 0 | X111: 0 | Y111: 0 | Z111: 0 | AA111: 0 | AB111: 0 | AC111: 0 | AD111: 0 | AE111: 0 | AF111: 0 | AG111: 0 | AH111: =IF(AH55*$AD$32*$AD$33>0,AH55*$AD$33/$AD$32,0) -> 0 | AI111: 0 | CG111: 05 - 09: Mining and quarrying | CJ111: 0 | CK111: 0 | CL111: 0 | CM111: 0 | CN111: 0 | CO111: 0 | CP111: 0 | CQ111: 0 | CR111: 0 | CS111: 0 | CT111: 0 | CU111: 0 | CV111: 0 | CW111: 0 | CX111: 0 | CY111: 0 | CZ111: 0 | DA111: 0 | DB111: 0 | DC111: 0 | DD111: 0 | DE111: 0 | DF111: 0 | DG111: 0 | DH111: 0 | DI111: 0 | DJ111: 0 | DK111: 0 | DL111: 0 | DM111: 0 | DN111: 0
B112: 10 - 32: Manufacturing | E112: =IF(E56*$AD$32*$AD$33>0,E56*$AD$33/$AD$32,0) -> 0 | F112: 0 | G112: 0 | H112: 0 | I112: 0 | J112: 0 | K112: 0 | L112: 0 | M112: 0 | N112: 0 | O112: 0 | P112: 0 | Q112: 0 | R112: 0 | S112: 0 | T112: 0 | U112: 0 | V112: 0 | W112: 0 | X112: 0 | Y112: 0 | Z112: 0 | AA112: 0 | AB112: 0 | AC112: 0 | AD112: 0 | AE112: 0 | AF112: 0 | AG112: 0 | AH112: =IF(AH56*$AD$32*$AD$33>0,AH56*$AD$33/$AD$32,0) -> 0 | AI112: 0 | CG112: 10 - 32: Manufacturing | CJ112: 0 | CK112: 0 | CL112: 0 | CM112: 0 | CN112: 0 | CO112: 0 | CP112: 0 | CQ112: 0 | CR112: 0 | CS112: 0 | CT112: 0 | CU112: 0 | CV112: 0 | CW112: 0 | CX112: 0 | CY112: 0 | CZ112: 0 | DA112: 0 | DB112: 0 | DC112: 0 | DD112: 0 | DE112: 0 | DF112: 0 | DG112: 0 | DH112: 0 | DI112: 0 | DJ112: 0 | DK112: 0 | DL112: 0 | DM112: 0 | DN112: 0
B113: 10 - 12: Manufacture of food products, beverages, tobacco products | E113: =IF(E57*$AD$32*$AD$33>0,E57*$AD$33/$AD$32,0) -> 0 | F113: 0 | G113: 0 | H113: 0 | I113: 0 | J113: 0 | K113: 0 | L113: 0 | M113: 0 | N113: 0 | O113: 0 | P113: 0 | Q113: 0 | R113: 0 | S113: 0 | T113: 0 | U113: 0 | V113: 0 | W113: 0 | X113: 0 | Y113: 0 | Z113: 0 | AA113: 0 | AB113: 0 | AC113: 0 | AD113: 0 | AE113: 0 | AF113: 0 | AG113: 0 | AH113: =IF(AH57*$AD$32*$AD$33>0,AH57*$AD$33/$AD$32,0) -> 0 | AI113: 0 | CG113: 10 - 12: Manufacture of food products, beverages, tobacco products | CJ113: 0 | CK113: 0 | CL113: 0 | CM113: 0 | CN113: 0 | CO113: 0 | CP113: 0 | CQ113: 0 | CR113: 0 | CS113: 0 | CT113: 0 | CU113: 0 | CV113: 0 | CW113: 0 | CX113: 0 | CY113: 0 | CZ113: 0 | DA113: 0 | DB113: 0 | DC113: 0 | DD113: 0 | DE113: 0 | DF113: 0 | DG113: 0 | DH113: 0 | DI113: 0 | DJ113: 0 | DK113: 0 | DL113: 0 | DM113: 0 | DN113: 0
B114: 13 - 15: Manufacture of textiles, wearing apparel, leather and related products | E114: =IF(E58*$AD$32*$AD$33>0,E58*$AD$33/$AD$32,0) -> 0 | F114: 0 | G114: 0 | H114: 0 | I114: 0 | J114: 0 | K114: 0 | L114: 0 | M114: 0 | N114: 0 | O114: 0 | P114: 0 | Q114: 0 | R114: 0 | S114: 0 | T114: 0 | U114: 0 | V114: 0 | W114: 0 | X114: 0 | Y114: 0 | Z114: 0 | AA114: 0 | AB114: 0 | AC114: 0 | AD114: 0 | AE114: 0 | AF114: 0 | AG114: 0 | AH114: =IF(AH58*$AD$32*$AD$33>0,AH58*$AD$33/$AD$32,0) -> 0 | AI114: 0 | CG114: 13 - 15: Manufacture of textiles, wearing apparel, leather and related products | CJ114: 0 | CK114: 0 | CL114: 0 | CM114: 0 | CN114: 0 | CO114: 0 | CP114: 0 | CQ114: 0 | CR114: 0 | CS114: 0 | CT114: 0 | CU114: 0 | CV114: 0 | CW114: 0 | CX114: 0 | CY114: 0 | CZ114: 0 | DA114: 0 | DB114: 0 | DC114: 0 | DD114: 0 | DE114: 0 | DF114: 0 | DG114: 0 | DH114: 0 | DI114: 0 | DJ114: 0 | DK114: 0 | DL114: 0 | DM114: 0 | DN114: 0
B115: 16: Manufacture of wood and of products of wood and cork, except furniture; manufacture of articles of straw and plaiting materials | E115: =IF(E59*$AD$32*$AD$33>0,E59*$AD$33/$AD$32,0) -> 0 | F115: 0 | G115: 0 | H115: 0 | I115: 0 | J115: 0 | K115: 0 | L115: 0 | M115: 0 | N115: 0 | O115: 0 | P115: 0 | Q115: 0 | R115: 0 | S115: 0 | T115: 0 | U115: 0 | V115: 0 | W115: 0 | X115: 0 | Y115: 0 | Z115: 0 | AA115: 0 | AB115: 0 | AC115: 0 | AD115: 0 | AE115: 0 | AF115: 0 | AG115: 0 | AH115: =IF(AH59*$AD$32*$AD$33>0,AH59*$AD$33/$AD$32,0) -> 0 | AI115: 0 | CG115: 16: Manufacture of wood and of products of wood and cork, except furniture; manufacture of articles of straw and plaiting materials | CJ115: 0 | CK115: 0 | CL115: 0 | CM115: 0 | CN115: 0 | CO115: 0 | CP115: 0 | CQ115: 0 | CR115: 0 | CS115: 0 | CT115: 0 | CU115: 0 | CV115: 0 | CW115: 0 | CX115: 0 | CY115: 0 | CZ115: 0 | DA115: 0 | DB115: 0 | DC115: 0 | DD115: 0 | DE115: 0 | DF115: 0 | DG115: 0 | DH115: 0 | DI115: 0 | DJ115: 0 | DK115: 0 | DL115: 0 | DM115: 0 | DN115: 0
B116: 17: Manufacture of paper and paper products | E116: =IF(E60*$AD$32*$AD$33>0,E60*$AD$33/$AD$32,0) -> 0 | F116: 0 | G116: 0 | H116: 0 | I116: 0 | J116: 0 | K116: 0 | L116: 0 | M116: 0 | N116: 0 | O116: 0 | P116: 0 | Q116: 0 | R116: 0 | S116: 0 | T116: 0 | U116: 0 | V116: 0 | W116: 0 | X116: 0 | Y116: 0 | Z116: 0 | AA116: 0 | AB116: 0 | AC116: 0 | AD116: 0 | AE116: 0 | AF116: 0 | AG116: 0 | AH116: =IF(AH60*$AD$32*$AD$33>0,AH60*$AD$33/$AD$32,0) -> 0 | AI116: 0 | CG116: 17: Manufacture of paper and paper products | CJ116: 0 | CK116: 0 | CL116: 0 | CM116: 0 | CN116: 0 | CO116: 0 | CP116: 0 | CQ116: 0 | CR116: 0 | CS116: 0 | CT116: 0 | CU116: 0 | CV116: 0 | CW116: 0 | CX116: 0 | CY116: 0 | CZ116: 0 | DA116: 0 | DB116: 0 | DC116: 0 | DD116: 0 | DE116: 0 | DF116: 0 | DG116: 0 | DH116: 0 | DI116: 0 | DJ116: 0 | DK116: 0 | DL116: 0 | DM116: 0 | DN116: 0
B117: 18: Printing and reproduction of recorded media | E117: =IF(E61*$AD$32*$AD$33>0,E61*$AD$33/$AD$32,0) -> 0 | F117: 0 | G117: 0 | H117: 0 | I117: 0 | J117: 0 | K117: 0 | L117: 0 | M117: 0 | N117: 0 | O117: 0 | P117: 0 | Q117: 0 | R117: 0 | S117: 0 | T117: 0 | U117: 0 | V117: 0 | W117: 0 | X117: 0 | Y117: 0 | Z117: 0 | AA117: 0 | AB117: 0 | AC117: 0 | AD117: 0 | AE117: 0 | AF117: 0 | AG117: 0 | AH117: =IF(AH61*$AD$32*$AD$33>0,AH61*$AD$33/$AD$32,0) -> 0 | AI117: 0 | CG117: 18: Printing and reproduction of recorded media | CJ117: 0 | CK117: 0 | CL117: 0 | CM117: 0 | CN117: 0 | CO117: 0 | CP117: 0 | CQ117: 0 | CR117: 0 | CS117: 0 | CT117: 0 | CU117: 0 | CV117: 0 | CW117: 0 | CX117: 0 | CY117: 0 | CZ117: 0 | DA117: 0 | DB117: 0 | DC117: 0 | DD117: 0 | DE117: 0 | DF117: 0 | DG117: 0 | DH117: 0 | DI117: 0 | DJ117: 0 | DK117: 0 | DL117: 0 | DM117: 0 | DN117: 0
B118: 17 - 18: Paper & Printing | E118: =IF(E62*$AD$32*$AD$33>0,E62*$AD$33/$AD$32,0) -> 0 | F118: 0 | G118: 0 | H118: 0 | I118: 0 | J118: 0 | K118: 0 | L118: 0 | M118: 0 | N118: 0 | O118: 0 | P118: 0 | Q118: 0 | R118: 0 | S118: 0 | T118: 0 | U118: 0 | V118: 0 | W118: 0 | X118: 0 | Y118: 0 | Z118: 0 | AA118: 0 | AB118: 0 | AC118: 0 | AD118: 0 | AE118: 0 | AF118: 0 | AG118: 0 | AH118: =IF(AH62*$AD$32*$AD$33>0,AH62*$AD$33/$AD$32,0) -> 0 | AI118: 0 | CG118: 17 - 18: Paper & Printing | CJ118: 0 | CK118: 0 | CL118: 0 | CM118: 0 | CN118: 0 | CO118: 0 | CP118: 0 | CQ118: 0 | CR118: 0 | CS118: 0 | CT118: 0 | CU118: 0 | CV118: 0 | CW118: 0 | CX118: 0 | CY118: 0 | CZ118: 0 | DA118: 0 | DB118: 0 | DC118: 0 | DD118: 0 | DE118: 0 | DF118: 0 | DG118: 0 | DH118: 0 | DI118: 0 | DJ118: 0 | DK118: 0 | DL118: 0 | DM118: 0 | DN118: 0
B119: 19: Manufacture of coke and refined petroleum products | E119: =IF(E63*$AD$32*$AD$33>0,E63*$AD$33/$AD$32,0) -> 0 | F119: 0 | G119: 0 | H119: 0 | I119: 0 | J119: 0 | K119: 0 | L119: 0 | M119: 0 | N119: 0 | O119: 0 | P119: 0 | Q119: 0 | R119: 0 | S119: 0 | T119: 0 | U119: 0 | V119: 0 | W119: 0 | X119: 0 | Y119: 0 | Z119: 0 | AA119: 0 | AB119: 0 | AC119: 0 | AD119: 0 | AE119: 0 | AF119: 0 | AG119: 0 | AH119: =IF(AH63*$AD$32*$AD$33>0,AH63*$AD$33/$AD$32,0) -> 0 | AI119: 0 | CG119: 19: Manufacture of coke and refined petroleum products | CJ119: 0 | CK119: 0 | CL119: 0 | CM119: 0 | CN119: 0 | CO119: 0 | CP119: 0 | CQ119: 0 | CR119: 0 | CS119: 0 | CT119: 0 | CU119: 0 | CV119: 0 | CW119: 0 | CX119: 0 | CY119: 0 | CZ119: 0 | DA119: 0 | DB119: 0 | DC119: 0 | DD119: 0 | DE119: 0 | DF119: 0 | DG119: 0 | DH119: 0 | DI119: 0 | DJ119: 0 | DK119: 0 | DL119: 0 | DM119: 0 | DN119: 0
B120: 20 - 21: Manufacture of chemicals and chemical products & basic pharmaceutical products and pharmaceutical preparations | E120: =IF(E64*$AD$32*$AD$33>0,E64*$AD$33/$AD$32,0) -> 0 | F120: 0 | G120: 0 | H120: 0 | I120: 0 | J120: 0 | K120: 0 | L120: 0 | M120: 0 | N120: 0 | O120: 0 | P120: 0 | Q120: 0 | R120: 0 | S120: 0 | T120: 0 | U120: 0 | V120: 0 | W120: =IF(W64*$AD$32*$AD$33>0,W64*$AD$33/$AD$32,0) -> 0 | X120: 0 | Y120: 0 | Z120: 0 | AA120: 0 | AB120: 0 | AC120: 0 | AD120: 0 | AE120: 0 | AF120: 0 | AG120: 0 | AH120: =IF(AH64*$AD$32*$AD$33>0,AH64*$AD$33/$AD$32,0) -> 0 | AI120: 0 | CG120: 20 - 21: Manufacture of chemicals and chemical products & basic pharmaceutical products and pharmaceutical preparations | CJ120: 0 | CK120: 0 | CL120: 0 | CM120: 0 | CN120: 0 | CO120: 0 | CP120: 0 | CQ120: 0 | CR120: 0 | CS120: 0 | CT120: 0 | CU120: 0 | CV120: 0 | CW120: 0 | CX120: 0 | CY120: 0 | CZ120: 0 | DA120: 0 | DB120: 0 | DC120: 0 | DD120: 0 | DE120: 0 | DF120: 0 | DG120: 0 | DH120: 0 | DI120: 0 | DJ120: 0 | DK120: 0 | DL120: 0 | DM120: 0 | DN120: 0
B121: 22: Manufacture of rubber and plastics products | E121: =IF(E65*$AD$32*$AD$33>0,E65*$AD$33/$AD$32,0) -> 0 | F121: 0 | G121: 0 | H121: 0 | I121: 0 | J121: 0 | K121: 0 | L121: 0 | M121: 0 | N121: 0 | O121: 0 | P121: 0 | Q121: 0 | R121: 0 | S121: 0 | T121: 0 | U121: 0 | V121: 0 | W121: 0 | X121: 0 | Y121: 0 | Z121: 0 | AA121: 0 | AB121: 0 | AC121: 0 | AD121: 0 | AE121: 0 | AF121: 0 | AG121: 0 | AH121: =IF(AH65*$AD$32*$AD$33>0,AH65*$AD$33/$AD$32,0) -> 0 | AI121: 0 | CG121: 22: Manufacture of rubber and plastics products | CJ121: 0 | CK121: 0 | CL121: 0 | CM121: 0 | CN121: 0 | CO121: 0 | CP121: 0 | CQ121: 0 | CR121: 0 | CS121: 0 | CT121: 0 | CU121: 0 | CV121: 0 | CW121: 0 | CX121: 0 | CY121: 0 | CZ121: 0 | DA121: 0 | DB121: 0 | DC121: 0 | DD121: 0 | DE121: 0 | DF121: 0 | DG121: 0 | DH121: 0 | DI121: 0 | DJ121: 0 | DK121: 0 | DL121: 0 | DM121: 0 | DN121: 0
B122: 23: Manufacture of other non-metallic mineral products | E122: =IF(E66*$AD$32*$AD$33>0,E66*$AD$33/$AD$32,0) -> 0 | F122: 0 | G122: 0 | H122: 0 | I122: 0 | J122: 0 | K122: 0 | L122: 0 | M122: 0 | N122: 0 | O122: 0 | P122: 0 | Q122: 0 | R122: 0 | S122: 0 | T122: 0 | U122: 0 | V122: 0 | W122: 0 | X122: 0 | Y122: 0 | Z122: 0 | AA122: 0 | AB122: 0 | AC122: 0 | AD122: 0 | AE122: 0 | AF122: 0 | AG122: 0 | AH122: =IF(AH66*$AD$32*$AD$33>0,AH66*$AD$33/$AD$32,0) -> 0 | AI122: 0 | CG122: 23: Manufacture of other non-metallic mineral products | CJ122: 0 | CK122: 0 | CL122: 0 | CM122: 0 | CN122: 0 | CO122: 0 | CP122: 0 | CQ122: 0 | CR122: 0 | CS122: 0 | CT122: 0 | CU122: 0 | CV122: 0 | CW122: 0 | CX122: 0 | CY122: 0 | CZ122: 0 | DA122: 0 | DB122: 0 | DC122: 0 | DD122: 0 | DE122: 0 | DF122: 0 | DG122: 0 | DH122: 0 | DI122: 0 | DJ122: 0 | DK122: 0 | DL122: 0 | DM122: 0 | DN122: 0
B123: 24: Manufacture of basic metals | E123: =IF(E67*$AD$32*$AD$33>0,E67*$AD$33/$AD$32,0) -> 0 | F123: 0 | G123: 0 | H123: 0 | I123: 0 | J123: 0 | K123: 0 | L123: 0 | M123: 0 | N123: 0 | O123: 0 | P123: 0 | Q123: 0 | R123: 0 | S123: 0 | T123: 0 | U123: 0 | V123: 0 | W123: 0 | X123: 0 | Y123: 0 | Z123: 0 | AA123: 0 | AB123: 0 | AC123: 0 | AD123: 0 | AE123: 0 | AF123: 0 | AG123: 0 | AH123: =IF(AH67*$AD$32*$AD$33>0,AH67*$AD$33/$AD$32,0) -> 0 | AI123: 0 | CG123: 24: Manufacture of basic metals | CJ123: 0 | CK123: 0 | CL123: 0 | CM123: 0 | CN123: 0 | CO123: 0 | CP123: 0 | CQ123: 0 | CR123: 0 | CS123: 0 | CT123: 0 | CU123: 0 | CV123: 0 | CW123: 0 | CX123: 0 | CY123: 0 | CZ123: 0 | DA123: 0 | DB123: 0 | DC123: 0 | DD123: 0 | DE123: 0 | DF123: 0 | DG123: 0 | DH123: 0 | DI123: 0 | DJ123: 0 | DK123: 0 | DL123: 0 | DM123: 0 | DN123: 0
B124: Class 2410+2431: Manufacture + Casting of iron and steel | E124: =IF(E68*$AD$32*$AD$33>0,E68*$AD$33/$AD$32,0) -> 0 | F124: 0 | G124: 0 | H124: 0 | I124: 0 | J124: 0 | K124: 0 | L124: 0 | M124: 0 | N124: 0 | O124: 0 | P124: 0 | Q124: 0 | R124: 0 | S124: 0 | T124: 0 | U124: 0 | V124: 0 | W124: 0 | X124: 0 | Y124: 0 | Z124: 0 | AA124: 0 | AB124: 0 | AC124: 0 | AD124: 0 | AE124: 0 | AF124: 0 | AG124: 0 | AH124: =IF(AH68*$AD$32*$AD$33>0,AH68*$AD$33/$AD$32,0) -> 0 | AI124: 0 | CG124: Class 2410+2431: Manufacture + Casting of iron and steel | CJ124: 0 | CK124: 0 | CL124: 0 | CM124: 0 | CN124: 0 | CO124: 0 | CP124: 0 | CQ124: 0 | CR124: 0 | CS124: 0 | CT124: 0 | CU124: 0 | CV124: 0 | CW124: 0 | CX124: 0 | CY124: 0 | CZ124: 0 | DA124: 0 | DB124: 0 | DC124: 0 | DD124: 0 | DE124: 0 | DF124: 0 | DG124: 0 | DH124: 0 | DI124: 0 | DJ124: 0 | DK124: 0 | DL124: 0 | DM124: 0 | DN124: 0
B125: Class 2420+2432: Manufacture + Casting of precious and non-ferrous metals | E125: =IF(E69*$AD$32*$AD$33>0,E69*$AD$33/$AD$32,0) -> 0 | F125: 0 | G125: 0 | H125: 0 | I125: 0 | J125: 0 | K125: 0 | L125: 0 | M125: 0 | N125: 0 | O125: 0 | P125: 0 | Q125: 0 | R125: 0 | S125: 0 | T125: 0 | U125: 0 | V125: 0 | W125: 0 | X125: 0 | Y125: 0 | Z125: 0 | AA125: 0 | AB125: 0 | AC125: 0 | AD125: 0 | AE125: 0 | AF125: 0 | AG125: 0 | AH125: =IF(AH69*$AD$32*$AD$33>0,AH69*$AD$33/$AD$32,0) -> 0 | AI125: 0 | CG125: Class 2420+2432: Manufacture + Casting of precious and non-ferrous metals | CJ125: 0 | CK125: 0 | CL125: 0 | CM125: 0 | CN125: 0 | CO125: 0 | CP125: 0 | CQ125: 0 | CR125: 0 | CS125: 0 | CT125: 0 | CU125: 0 | CV125: 0 | CW125: 0 | CX125: 0 | CY125: 0 | CZ125: 0 | DA125: 0 | DB125: 0 | DC125: 0 | DD125: 0 | DE125: 0 | DF125: 0 | DG125: 0 | DH125: 0 | DI125: 0 | DJ125: 0 | DK125: 0 | DL125: 0 | DM125: 0 | DN125: 0
B126: 25 - 28: Manufacture of fabricated metal products, machinery and equipment | E126: =IF(E70*$AD$32*$AD$33>0,E70*$AD$33/$AD$32,0) -> 0 | F126: 0 | G126: 0 | H126: 0 | I126: 0 | J126: 0 | K126: 0 | L126: 0 | M126: 0 | N126: 0 | O126: 0 | P126: 0 | Q126: 0 | R126: 0 | S126: 0 | T126: 0 | U126: 0 | V126: 0 | W126: 0 | X126: 0 | Y126: 0 | Z126: 0 | AA126: 0 | AB126: 0 | AC126: 0 | AD126: 0 | AE126: 0 | AF126: 0 | AG126: 0 | AH126: =IF(AH70*$AD$32*$AD$33>0,AH70*$AD$33/$AD$32,0) -> 0 | AI126: 0 | CG126: 25 - 28: Manufacture of fabricated metal products, machinery and equipment | CJ126: 0 | CK126: 0 | CL126: 0 | CM126: 0 | CN126: 0 | CO126: 0 | CP126: 0 | CQ126: 0 | CR126: 0 | CS126: 0 | CT126: 0 | CU126: 0 | CV126: 0 | CW126: 0 | CX126: 0 | CY126: 0 | CZ126: 0 | DA126: 0 | DB126: 0 | DC126: 0 | DD126: 0 | DE126: 0 | DF126: 0 | DG126: 0 | DH126: 0 | DI126: 0 | DJ126: 0 | DK126: 0 | DL126: 0 | DM126: 0 | DN126: 0
B127: 29 - 30: Manufacture of motor vehicles, trailers, other transport equipment | E127: =IF(E71*$AD$32*$AD$33>0,E71*$AD$33/$AD$32,0) -> 0 | F127: 0 | G127: 0 | H127: 0 | I127: 0 | J127: 0 | K127: 0 | L127: 0 | M127: 0 | N127: 0 | O127: 0 | P127: 0 | Q127: 0 | R127: 0 | S127: 0 | T127: 0 | U127: 0 | V127: 0 | W127: 0 | X127: 0 | Y127: 0 | Z127: 0 | AA127: 0 | AB127: 0 | AC127: 0 | AD127: 0 | AE127: 0 | AF127: 0 | AG127: 0 | AH127: =IF(AH71*$AD$32*$AD$33>0,AH71*$AD$33/$AD$32,0) -> 0 | AI127: 0 | CG127: 29 - 30: Manufacture of motor vehicles, trailers, other transport equipment | CJ127: 0 | CK127: 0 | CL127: 0 | CM127: 0 | CN127: 0 | CO127: 0 | CP127: 0 | CQ127: 0 | CR127: 0 | CS127: 0 | CT127: 0 | CU127: 0 | CV127: 0 | CW127: 0 | CX127: 0 | CY127: 0 | CZ127: 0 | DA127: 0 | DB127: 0 | DC127: 0 | DD127: 0 | DE127: 0 | DF127: 0 | DG127: 0 | DH127: 0 | DI127: 0 | DJ127: 0 | DK127: 0 | DL127: 0 | DM127: 0 | DN127: 0
B128: 31 - 32: Manufacture of furniture & Other manufacturing | E128: =IF(E72*$AD$32*$AD$33>0,E72*$AD$33/$AD$32,0) -> 0 | F128: 0 | G128: 0 | H128: 0 | I128: 0 | J128: 0 | K128: 0 | L128: 0 | M128: 0 | N128: 0 | O128: 0 | P128: 0 | Q128: 0 | R128: 0 | S128: 0 | T128: 0 | U128: 0 | V128: 0 | W128: 0 | X128: 0 | Y128: 0 | Z128: 0 | AA128: 0 | AB128: 0 | AC128: 0 | AD128: 0 | AE128: 0 | AF128: 0 | AG128: 0 | AH128: =IF(AH72*$AD$32*$AD$33>0,AH72*$AD$33/$AD$32,0) -> 0 | AI128: 0 | CG128: 31 - 32: Manufacture of furniture & Other manufacturing | CJ128: 0 | CK128: 0 | CL128: 0 | CM128: 0 | CN128: 0 | CO128: 0 | CP128: 0 | CQ128: 0 | CR128: 0 | CS128: 0 | CT128: 0 | CU128: 0 | CV128: 0 | CW128: 0 | CX128: 0 | CY128: 0 | CZ128: 0 | DA128: 0 | DB128: 0 | DC128: 0 | DD128: 0 | DE128: 0 | DF128: 0 | DG128: 0 | DH128: 0 | DI128: 0 | DJ128: 0 | DK128: 0 | DL128: 0 | DM128: 0 | DN128: 0
B129: 35 -36: Electricity, gas, steam, air conditioning, and water supply | E129: =IF(E73*$AD$32*$AD$33>0,E73*$AD$33/$AD$32,0) -> 0 | F129: 0 | G129: 0 | H129: 0 | I129: 0 | J129: 0 | K129: 0 | L129: 0 | M129: 0 | N129: 0 | O129: 0 | P129: 0 | Q129: 0 | R129: 0 | S129: 0 | T129: 0 | U129: 0 | V129: 0 | W129: 0 | X129: 0 | Y129: 0 | Z129: 0 | AA129: 0 | AB129: 0 | AC129: 0 | AD129: 0 | AE129: 0 | AF129: 0 | AG129: 0 | AH129: =IF(AH73*$AD$32*$AD$33>0,AH73*$AD$33/$AD$32,0) -> 0 | AI129: 0 | CG129: 35 -36: Electricity, gas, steam, air conditioning, and water supply | CJ129: 0 | CK129: 0 | CL129: 0 | CM129: 0 | CN129: 0 | CO129: 0 | CP129: 0 | CQ129: 0 | CR129: 0 | CS129: 0 | CT129: 0 | CU129: 0 | CV129: 0 | CW129: 0 | CX129: 0 | CY129: 0 | CZ129: 0 | DA129: 0 | DB129: 0 | DC129: 0 | DD129: 0 | DE129: 0 | DF129: 0 | DG129: 0 | DH129: 0 | DI129: 0 | DJ129: 0 | DK129: 0 | DL129: 0 | DM129: 0 | DN129: 0
B130: 41 - 43: Construction | E130: =IF(E74*$AD$32*$AD$33>0,E74*$AD$33/$AD$32,0) -> 0 | F130: 0 | G130: 0 | H130: 0 | I130: 0 | J130: 0 | K130: 0 | L130: 0 | M130: 0 | N130: 0 | O130: 0 | P130: 0 | Q130: 0 | R130: 0 | S130: 0 | T130: 0 | U130: 0 | V130: 0 | W130: 0 | X130: 0 | Y130: 0 | Z130: 0 | AA130: 0 | AB130: 0 | AC130: 0 | AD130: 0 | AE130: 0 | AF130: 0 | AG130: 0 | AH130: =IF(AH74*$AD$32*$AD$33>0,AH74*$AD$33/$AD$32,0) -> 0 | AI130: 0 | CG130: 41 - 43: Construction | CJ130: 0 | CK130: 0 | CL130: 0 | CM130: 0 | CN130: 0 | CO130: 0 | CP130: 0 | CQ130: 0 | CR130: 0 | CS130: 0 | CT130: 0 | CU130: 0 | CV130: 0 | CW130: 0 | CX130: 0 | CY130: 0 | CZ130: 0 | DA130: 0 | DB130: 0 | DC130: 0 | DD130: 0 | DE130: 0 | DF130: 0 | DG130: 0 | DH130: 0 | DI130: 0 | DJ130: 0 | DK130: 0 | DL130: 0 | DM130: 0 | DN130: 0
B131: 33 - 99: Services | E131: =IF(E75*$AD$32*$AD$33>0,E75*$AD$33/$AD$32,0) -> 0 | F131: 0 | G131: 0 | H131: 0 | I131: 0 | J131: 0 | K131: 0 | L131: 0 | M131: 0 | N131: 0 | O131: 0 | P131: 0 | Q131: 0 | R131: 0 | S131: 0 | T131: 0 | U131: 0 | V131: 0 | W131: 0 | X131: 0 | Y131: 0 | Z131: 0 | AA131: 0 | AB131: 0 | AC131: 0 | AD131: 0 | AE131: 0 | AF131: 0 | AG131: 0 | AH131: =IF(AH75*$AD$32*$AD$33>0,AH75*$AD$33/$AD$32,0) -> 0 | AI131: 0 | CG131: 33 - 99: Services | CJ131: 0 | CK131: 0 | CL131: 0 | CM131: 0 | CN131: 0 | CO131: 0 | CP131: 0 | CQ131: 0 | CR131: 0 | CS131: 0 | CT131: 0 | CU131: 0 | CV131: 0 | CW131: 0 | CX131: 0 | CY131: 0 | CZ131: 0 | DA131: 0 | DB131: 0 | DC131: 0 | DD131: 0 | DE131: 0 | DF131: 0 | DG131: 0 | DH131: 0 | DI131: 0 | DJ131: 0 | DK131: 0 | DL131: 0 | DM131: 0 | DN131: 0
B132: Total gross value added at basic prices | E132: =IF(E76*$AD$32*$AD$33>0,E76*$AD$33/$AD$32,0) -> 0 | F132: 0 | G132: 0 | H132: 0 | I132: 0 | J132: 0 | K132: 0 | L132: 0 | M132: 0 | N132: 0 | O132: 0 | P132: 0 | Q132: 0 | R132: 0 | S132: 0 | T132: 0 | U132: 0 | V132: 0 | W132: 0 | X132: 0 | Y132: 0 | Z132: 0 | AA132: 0 | AB132: 0 | AC132: 0 | AD132: 0 | AE132: 0 | AF132: 0 | AG132: 0 | AH132: =IF(AH76*$AD$32*$AD$33>0,AH76*$AD$33/$AD$32,0) -> 0 | AI132: 0 | CG132: Total gross value added at basic prices | CJ132: 0 | CK132: 0 | CL132: 0 | CM132: 0 | CN132: 0 | CO132: 0 | CP132: 0 | CQ132: 0 | CR132: 0 | CS132: 0 | CT132: 0 | CU132: 0 | CV132: 0 | CW132: 0 | CX132: 0 | CY132: 0 | CZ132: 0 | DA132: 0 | DB132: 0 | DC132: 0 | DD132: 0 | DE132: 0 | DF132: 0 | DG132: 0 | DH132: 0 | DI132: 0 | DJ132: 0 | DK132: 0 | DL132: 0 | DM132: 0 | DN132: 0
B133: EEI statistical discrepancy | E133: =E134-E132 -> 0 | F133: 0 | G133: 0 | H133: 0 | I133: 0 | J133: 0 | K133: 0 | L133: 0 | M133: 0 | N133: 0 | O133: 0 | P133: 0 | Q133: 0 | R133: 0 | S133: 0 | T133: 0 | U133: 0 | V133: =V134-V132 -> 0 | W133: 0 | X133: 0 | Y133: 0 | Z133: 0 | AA133: 0 | AB133: =AB134-AB132 -> 0 | AC133: 0 | AD133: 0 | AE133: 0 | AF133: 0 | AG133: =AG134-AG132 -> 0 | AH133: =AH134-AH132 -> 0 | AI133: =AI134-AI132 -> 0 | CG133: EEI statistical discrepancy | CJ133: 0 | CK133: 0 | CL133: 0 | CM133: 0 | CN133: 0 | CO133: 0 | CP133: 0 | CQ133: 0 | CR133: 0 | CS133: 0 | CT133: 0 | CU133: 0 | CV133: 0 | CW133: 0 | CX133: 0 | CY133: 0 | CZ133: 0 | DA133: 0 | DB133: 0 | DC133: 0 | DD133: 0 | DE133: 0 | DF133: 0 | DG133: 0 | DH133: 0 | DI133: 0 | DJ133: 0 | DK133: 0 | DL133: 0 | DM133: 0 | DN133: 0
B134: GDP MER 2015 | E134: =E44 -> 0 | F134: =F44 -> 0 | G134: 0 | H134: 0 | I134: 0 | J134: 0 | K134: 0 | L134: 0 | M134: 0 | N134: 0 | O134: 0 | P134: 0 | Q134: 0 | R134: 0 | S134: 0 | T134: 0 | U134: 0 | V134: 0 | W134: =W44 -> 0 | X134: 0 | Y134: 0 | Z134: 0 | AA134: 0 | AB134: 0 | AC134: =AC44 -> 0 | AD134: 0 | AE134: 0 | AF134: 0 | AG134: 0 | AH134: 0 | AI134: =AI44 -> 0 | CG134: GDP MER 2005 | CJ134: 0 | CK134: 0 | CL134: 0 | CM134: 0 | CN134: 0 | CO134: 0 | CP134: 0 | CQ134: 0 | CR134: 0 | CS134: 0 | CT134: 0 | CU134: 0 | CV134: 0 | CW134: 0 | CX134: 0 | CY134: 0 | CZ134: 0 | DA134: 0 | DB134: 0 | DC134: 0 | DD134: 0 | DE134: 0 | DF134: 0 | DG134: 0 | DH134: 0 | DI134: 0 | DJ134: 0 | DK134: 0 | DL134: 0 | DM134: 0 | DN134: 0
B136: END OF GDP (VALUE ADDED) | CG136: END OF GDP (VALUE ADDED)
A139: ©IEA | CF139: ©IEA
A141: HIDE START | CF141: HIDE START
B143: national currency | D143: NC
B144: latest year | D144: 2020
B145: user excel version | E145: 12.0 | F145: 11.0 | G145: 14.0
B146: used n of times | G146: 50
A148: DATA COVERAGE
B149: Total Population | E149: =IF(AND($A$4, E4>0),1,0) -> 0 | F149: 0 | G149: 0 | H149: 0 | I149: 0 | J149: 0 | K149: 0 | L149: 0 | M149: 0 | N149: 0 | O149: 0 | P149: 0 | Q149: 0 | R149: 0 | S149: 0 | T149: 0 | U149: 0 | V149: 0 | W149: 0 | X149: 0 | Y149: 0 | Z149: 0 | AA149: 0 | AB149: 0 | AC149: 0 | AD149: 0 | AE149: 0 | AF149: 0 | AG149: =IF(AND($A$4, AG4>0),1,0) -> 0 | AH149: 0 | AI149: =IF(AND($A$4, AI4>0),1,0) -> 0
B150: Total Employment | E150: =IF(AND($A$37, E37>0),1,0) -> 0 | F150: 0 | G150: 0 | H150: 0 | I150: 0 | J150: 0 | K150: 0 | L150: 0 | M150: 0 | N150: 0 | O150: 0 | P150: 0 | Q150: 0 | R150: 0 | S150: 0 | T150: 0 | U150: 0 | V150: 0 | W150: 0 | X150: 0 | Y150: 0 | Z150: 0 | AA150: 0 | AB150: 0 | AC150: 0 | AD150: 0 | AE150: 0 | AF150: 0 | AG150: =IF(AND($A$37, AG37>0),1,0) -> 0 | AH150: 0 | AI150: =IF(AND($A$37, AI37>0),1,0) -> 0
B151: Services Employment | E151: =IF(AND($A$38, E38>0),1,0) -> 0 | F151: 0 | G151: 0 | H151: 0 | I151: 0 | J151: 0 | K151: 0 | L151: 0 | M151: 0 | N151: 0 | O151: 0 | P151: 0 | Q151: 0 | R151: 0 | S151: 0 | T151: 0 | U151: 0 | V151: 0 | W151: 0 | X151: 0 | Y151: 0 | Z151: 0 | AA151: 0 | AB151: 0 | AC151: 0 | AD151: 0 | AE151: 0 | AF151: 0 | AG151: =IF(AND($A$38, AG38>0),1,0) -> 0 | AH151: 0 | AI151: =IF(AND($A$38, AI38>0),1,0) -> 0
B152: Total Dwellings | E152: =IF(AND($A$8, E8>0),1,0) -> 0 | F152: 0 | G152: 0 | H152: 0 | I152: 0 | J152: 0 | K152: 0 | L152: 0 | M152: 0 | N152: 0 | O152: 0 | P152: 0 | Q152: 0 | R152: 0 | S152: 0 | T152: 0 | U152: 0 | V152: 0 | W152: 0 | X152: 0 | Y152: 0 | Z152: 0 | AA152: 0 | AB152: 0 | AC152: 0 | AD152: 0 | AE152: 0 | AF152: 0 | AG152: =IF(AND($A$8, AG8>0),1,0) -> 0 | AH152: 0 | AI152: =IF(AND($A$8, AI8>0),1,0) -> 0
B153: Occupied Dwellings | E153: =IF(AND($A$9, E9>0),1,0) -> 0 | F153: 0 | G153: 0 | H153: 0 | I153: 0 | J153: 0 | K153: 0 | L153: 0 | M153: 0 | N153: 0 | O153: 0 | P153: 0 | Q153: 0 | R153: 0 | S153: 0 | T153: 0 | U153: 0 | V153: 0 | W153: 0 | X153: 0 | Y153: 0 | Z153: 0 | AA153: 0 | AB153: 0 | AC153: 0 | AD153: 0 | AE153: 0 | AF153: 0 | AG153: =IF(AND($A$9, AG9>0),1,0) -> 0 | AH153: 0 | AI153: =IF(AND($A$9, AI9>0),1,0) -> 0
B154: Total Dwelling Area (Residential Floor Area) | E154: =IF(AND($A$27, E27>0),1,0) -> 0 | F154: =IF(AND($A$27, F27>0),1,0) -> 0 | G154: 0 | H154: 0 | I154: 0 | J154: 0 | K154: 0 | L154: 0 | M154: 0 | N154: 0 | O154: 0 | P154: 0 | Q154: 0 | R154: 0 | S154: 0 | T154: 0 | U154: 0 | V154: 0 | W154: =IF(AND($A$27, W27>0),1,0) -> 0 | X154: 0 | Y154: 0 | Z154: 0 | AA154: 0 | AB154: 0 | AC154: =IF(AND($A$27, AC27>0),1,0) -> 0 | AD154: 0 | AE154: 0 | AF154: 0 | AG154: 0 | AH154: 0 | AI154: =IF(AND($A$27, AI27>0),1,0) -> 0
B155: Annual Heating Degree-Days | E155: =IF(AND($A$29, E29>0),1,0) -> 0 | F155: =IF(AND($A$29, F29>0),1,0) -> 0 | G155: 0 | H155: 0 | I155: 0 | J155: 0 | K155: 0 | L155: 0 | M155: 0 | N155: 0 | O155: 0 | P155: 0 | Q155: 0 | R155: 0 | S155: 0 | T155: 0 | U155: 0 | V155: 0 | W155: =IF(AND($A$29, W29>0),1,0) -> 0 | X155: 0 | Y155: 0 | Z155: 0 | AA155: 0 | AB155: 0 | AC155: =IF(AND($A$29, AC29>0),1,0) -> 0 | AD155: 0 | AE155: 0 | AF155: 0 | AG155: 0 | AH155: 0 | AI155: =IF(AND($A$29, AI29>0),1,0) -> 0
B156: Annual Cooling Degree-Days | E156: =IF(AND($A$30, E30>0),1,0) -> 0 | F156: =IF(AND($A$30, F30>0),1,0) -> 0 | G156: 0 | H156: 0 | I156: 0 | J156: 0 | K156: 0 | L156: 0 | M156: 0 | N156: 0 | O156: 0 | P156: 0 | Q156: 0 | R156: 0 | S156: 0 | T156: 0 | U156: 0 | V156: 0 | W156: =IF(AND($A$30, W30>0),1,0) -> 0 | X156: 0 | Y156: 0 | Z156: 0 | AA156: 0 | AB156: 0 | AC156: =IF(AND($A$30, AC30>0),1,0) -> 0 | AD156: 0 | AE156: 0 | AF156: 0 | AG156: 0 | AH156: 0 | AI156: =IF(AND($A$30, AI30>0),1,0) -> 0
B157: Total Services Floor Area | E157: =IF(AND($A$39, E39>0),1,0) -> 0 | F157: =IF(AND($A$39, F39>0),1,0) -> 0 | G157: 0 | H157: 0 | I157: 0 | J157: 0 | K157: 0 | L157: 0 | M157: 0 | N157: 0 | O157: 0 | P157: 0 | Q157: 0 | R157: 0 | S157: 0 | T157: 0 | U157: 0 | V157: 0 | W157: =IF(AND($A$39, W39>0),1,0) -> 0 | X157: 0 | Y157: 0 | Z157: 0 | AA157: 0 | AB157: 0 | AC157: =IF(AND($A$39, AC39>0),1,0) -> 0 | AD157: 0 | AE157: 0 | AF157: 0 | AG157: 0 | AH157: 0 | AI157: =IF(AND($A$39, AI39>0),1,0) -> 0
B158: 01 - 03: Agriculture, forestry and fishing | E158: =IF(AND($A$54, E54>0),1,0) -> 0 | F158: 0 | G158: 0 | H158: 0 | I158: 0 | J158: 0 | K158: 0 | L158: 0 | M158: 0 | N158: 0 | O158: 0 | P158: 0 | Q158: 0 | R158: 0 | S158: 0 | T158: 0 | U158: 0 | V158: 0 | W158: =IF(AND($A$54, W54>0),1,0) -> 0 | X158: 0 | Y158: 0 | Z158: 0 | AA158: 0 | AB158: 0 | AC158: =IF(AND($A$54, AC54>0),1,0) -> 0 | AD158: 0 | AE158: 0 | AF158: 0 | AG158: 0 | AH158: 0 | AI158: =IF(AND($A$54, AI54>0),1,0) -> 0
B159: 05 - 09: Mining and quarrying | E159: =IF(AND($A$55, E55>0),1,0) -> 0 | F159: 0 | G159: 0 | H159: 0 | I159: 0 | J159: 0 | K159: 0 | L159: 0 | M159: 0 | N159: 0 | O159: 0 | P159: 0 | Q159: 0 | R159: 0 | S159: 0 | T159: 0 | U159: 0 | V159: 0 | W159: =IF(AND($A$55, W55>0),1,0) -> 0 | X159: 0 | Y159: 0 | Z159: 0 | AA159: 0 | AB159: 0 | AC159: =IF(AND($A$55, AC55>0),1,0) -> 0 | AD159: 0 | AE159: 0 | AF159: 0 | AG159: 0 | AH159: 0 | AI159: =IF(AND($A$55, AI55>0),1,0) -> 0
B160: 10 - 32: Manufacturing | E160: =IF(AND($A$56, E56>0),1,0) -> 0 | F160: 0 | G160: 0 | H160: 0 | I160: 0 | J160: 0 | K160: 0 | L160: 0 | M160: 0 | N160: 0 | O160: 0 | P160: 0 | Q160: 0 | R160: 0 | S160: 0 | T160: 0 | U160: 0 | V160: 0 | W160: =IF(AND($A$56, W56>0),1,0) -> 0 | X160: 0 | Y160: 0 | Z160: 0 | AA160: 0 | AB160: 0 | AC160: =IF(AND($A$56, AC56>0),1,0) -> 0 | AD160: 0 | AE160: 0 | AF160: 0 | AG160: 0 | AH160: 0 | AI160: =IF(AND($A$56, AI56>0),1,0) -> 0
B161: 10 - 12: Manufacture of food products, beverages, tobacco products | E161: =IF(AND($A$57, E57>0),1,0) -> 0 | F161: 0 | G161: 0 | H161: 0 | I161: 0 | J161: 0 | K161: 0 | L161: 0 | M161: 0 | N161: 0 | O161: 0 | P161: 0 | Q161: 0 | R161: 0 | S161: 0 | T161: 0 | U161: 0 | V161: 0 | W161: =IF(AND($A$57, W57>0),1,0) -> 0 | X161: 0 | Y161: 0 | Z161: 0 | AA161: 0 | AB161: 0 | AC161: =IF(AND($A$57, AC57>0),1,0) -> 0 | AD161: 0 | AE161: 0 | AF161: 0 | AG161: 0 | AH161: 0 | AI161: =IF(AND($A$57, AI57>0),1,0) -> 0
B162: 13 - 15: Manufacture of textiles, wearing apparel, leather and related products | E162: =IF(AND($A$58, E58>0),1,0) -> 0 | F162: 0 | G162: 0 | H162: 0 | I162: 0 | J162: 0 | K162: 0 | L162: 0 | M162: 0 | N162: 0 | O162: 0 | P162: 0 | Q162: 0 | R162: 0 | S162: 0 | T162: 0 | U162: 0 | V162: 0 | W162: =IF(AND($A$58, W58>0),1,0) -> 0 | X162: 0 | Y162: 0 | Z162: 0 | AA162: 0 | AB162: 0 | AC162: =IF(AND($A$58, AC58>0),1,0) -> 0 | AD162: 0 | AE162: 0 | AF162: 0 | AG162: 0 | AH162: 0 | AI162: =IF(AND($A$58, AI58>0),1,0) -> 0
B163: 16: Manufacture of wood and of products of wood and cork, except furniture; manufacture of articles of straw and plaiting materials | E163: =IF(AND($A$59, E59>0),1,0) -> 0 | F163: 0 | G163: 0 | H163: 0 | I163: 0 | J163: 0 | K163: 0 | L163: 0 | M163: 0 | N163: 0 | O163: 0 | P163: 0 | Q163: 0 | R163: 0 | S163: 0 | T163: 0 | U163: 0 | V163: 0 | W163: =IF(AND($A$59, W59>0),1,0) -> 0 | X163: 0 | Y163: 0 | Z163: 0 | AA163: 0 | AB163: 0 | AC163: =IF(AND($A$59, AC59>0),1,0) -> 0 | AD163: 0 | AE163: 0 | AF163: 0 | AG163: 0 | AH163: 0 | AI163: =IF(AND($A$59, AI59>0),1,0) -> 0
B164: 17: Manufacture of paper and paper products | E164: =IF(AND($A$60, E60>0),1,0) -> 0 | F164: 0 | G164: 0 | H164: 0 | I164: 0 | J164: 0 | K164: 0 | L164: 0 | M164: 0 | N164: 0 | O164: 0 | P164: 0 | Q164: 0 | R164: 0 | S164: 0 | T164: 0 | U164: 0 | V164: 0 | W164: =IF(AND($A$60, W60>0),1,0) -> 0 | X164: 0 | Y164: 0 | Z164: 0 | AA164: 0 | AB164: 0 | AC164: =IF(AND($A$60, AC60>0),1,0) -> 0 | AD164: 0 | AE164: 0 | AF164: 0 | AG164: 0 | AH164: 0 | AI164: =IF(AND($A$60, AI60>0),1,0) -> 0
B165: 18: Printing and reproduction of recorded media | E165: =IF(AND($A$61, E61>0),1,0) -> 0 | F165: 0 | G165: 0 | H165: 0 | I165: 0 | J165: 0 | K165: 0 | L165: 0 | M165: 0 | N165: 0 | O165: 0 | P165: 0 | Q165: 0 | R165: 0 | S165: 0 | T165: 0 | U165: 0 | V165: 0 | W165: =IF(AND($A$61, W61>0),1,0) -> 0 | X165: 0 | Y165: 0 | Z165: 0 | AA165: 0 | AB165: 0 | AC165: =IF(AND($A$61, AC61>0),1,0) -> 0 | AD165: 0 | AE165: 0 | AF165: 0 | AG165: 0 | AH165: 0 | AI165: =IF(AND($A$61, AI61>0),1,0) -> 0
B166: 17 - 18: Paper & Printing | E166: =IF(AND($A$62, E62>0),1,0) -> 0 | F166: 0 | G166: 0 | H166: 0 | I166: 0 | J166: 0 | K166: 0 | L166: 0 | M166: 0 | N166: 0 | O166: 0 | P166: 0 | Q166: 0 | R166: 0 | S166: 0 | T166: 0 | U166: 0 | V166: 0 | W166: =IF(AND($A$62, W62>0),1,0) -> 0 | X166: 0 | Y166: 0 | Z166: 0 | AA166: 0 | AB166: 0 | AC166: =IF(AND($A$62, AC62>0),1,0) -> 0 | AD166: 0 | AE166: 0 | AF166: 0 | AG166: 0 | AH166: 0 | AI166: =IF(AND($A$62, AI62>0),1,0) -> 0
B167: 19: Manufacture of coke and refined petroleum products | E167: =IF(AND($A$63, E63>0),1,0) -> 0 | F167: 0 | G167: 0 | H167: 0 | I167: 0 | J167: 0 | K167: 0 | L167: 0 | M167: 0 | N167: 0 | O167: 0 | P167: 0 | Q167: 0 | R167: 0 | S167: 0 | T167: 0 | U167: 0 | V167: 0 | W167: =IF(AND($A$63, W63>0),1,0) -> 0 | X167: 0 | Y167: 0 | Z167: 0 | AA167: 0 | AB167: 0 | AC167: =IF(AND($A$63, AC63>0),1,0) -> 0 | AD167: 0 | AE167: 0 | AF167: 0 | AG167: 0 | AH167: 0 | AI167: =IF(AND($A$63, AI63>0),1,0) -> 0
B168: 20 - 21: Manufacture of chemicals and chemical products & basic pharmaceutical products and pharmaceutical preparations | E168: =IF(AND($A$64, E64>0),1,0) -> 0 | F168: 0 | G168: 0 | H168: 0 | I168: 0 | J168: 0 | K168: 0 | L168: 0 | M168: 0 | N168: 0 | O168: 0 | P168: 0 | Q168: 0 | R168: 0 | S168: 0 | T168: 0 | U168: 0 | V168: 0 | W168: =IF(AND($A$64, W64>0),1,0) -> 0 | X168: 0 | Y168: 0 | Z168: 0 | AA168: 0 | AB168: 0 | AC168: =IF(AND($A$64, AC64>0),1,0) -> 0 | AD168: 0 | AE168: 0 | AF168: 0 | AG168: 0 | AH168: 0 | AI168: =IF(AND($A$64, AI64>0),1,0) -> 0
B169: 22: Manufacture of rubber and plastics products | E169: =IF(AND($A$65, E65>0),1,0) -> 0 | F169: 0 | G169: 0 | H169: 0 | I169: 0 | J169: 0 | K169: 0 | L169: 0 | M169: 0 | N169: 0 | O169: 0 | P169: 0 | Q169: 0 | R169: 0 | S169: 0 | T169: 0 | U169: 0 | V169: 0 | W169: =IF(AND($A$65, W65>0),1,0) -> 0 | X169: 0 | Y169: 0 | Z169: 0 | AA169: 0 | AB169: 0 | AC169: =IF(AND($A$65, AC65>0),1,0) -> 0 | AD169: 0 | AE169: 0 | AF169: 0 | AG169: 0 | AH169: 0 | AI169: =IF(AND($A$65, AI65>0),1,0) -> 0
B170: 23: Manufacture of other non-metallic mineral products | E170: =IF(AND($A$66, E66>0),1,0) -> 0 | F170: 0 | G170: 0 | H170: 0 | I170: 0 | J170: 0 | K170: 0 | L170: 0 | M170: 0 | N170: 0 | O170: 0 | P170: 0 | Q170: 0 | R170: 0 | S170: 0 | T170: 0 | U170: 0 | V170: 0 | W170: =IF(AND($A$66, W66>0),1,0) -> 0 | X170: 0 | Y170: 0 | Z170: 0 | AA170: 0 | AB170: 0 | AC170: =IF(AND($A$66, AC66>0),1,0) -> 0 | AD170: 0 | AE170: 0 | AF170: 0 | AG170: 0 | AH170: 0 | AI170: =IF(AND($A$66, AI66>0),1,0) -> 0
B171: 24: Manufacture of basic metals | E171: =IF(AND($A$67, E67>0),1,0) -> 0 | F171: 0 | G171: 0 | H171: 0 | I171: 0 | J171: 0 | K171: 0 | L171: 0 | M171: 0 | N171: 0 | O171: 0 | P171: 0 | Q171: 0 | R171: 0 | S171: 0 | T171: 0 | U171: 0 | V171: 0 | W171: =IF(AND($A$67, W67>0),1,0) -> 0 | X171: 0 | Y171: 0 | Z171: 0 | AA171: 0 | AB171: 0 | AC171: =IF(AND($A$67, AC67>0),1,0) -> 0 | AD171: 0 | AE171: 0 | AF171: 0 | AG171: 0 | AH171: 0 | AI171: =IF(AND($A$67, AI67>0),1,0) -> 0
B172: Class 2410+2431: Manufacture + Casting of iron and steel | E172: =IF(AND($A$68, E68>0),1,0) -> 0 | F172: 0 | G172: 0 | H172: 0 | I172: 0 | J172: 0 | K172: 0 | L172: 0 | M172: 0 | N172: 0 | O172: 0 | P172: 0 | Q172: 0 | R172: 0 | S172: 0 | T172: 0 | U172: 0 | V172: 0 | W172: =IF(AND($A$68, W68>0),1,0) -> 0 | X172: 0 | Y172: 0 | Z172: 0 | AA172: 0 | AB172: 0 | AC172: =IF(AND($A$68, AC68>0),1,0) -> 0 | AD172: 0 | AE172: 0 | AF172: 0 | AG172: 0 | AH172: 0 | AI172: =IF(AND($A$68, AI68>0),1,0) -> 0
B173: Class 2420+2432: Manufacture + Casting of precious and non-ferrous metals | E173: =IF(AND($A$69, E69>0),1,0) -> 0 | F173: 0 | G173: 0 | H173: 0 | I173: 0 | J173: 0 | K173: 0 | L173: 0 | M173: 0 | N173: 0 | O173: 0 | P173: 0 | Q173: 0 | R173: 0 | S173: 0 | T173: 0 | U173: 0 | V173: 0 | W173: =IF(AND($A$69, W69>0),1,0) -> 0 | X173: 0 | Y173: 0 | Z173: 0 | AA173: 0 | AB173: 0 | AC173: =IF(AND($A$69, AC69>0),1,0) -> 0 | AD173: 0 | AE173: 0 | AF173: 0 | AG173: 0 | AH173: 0 | AI173: =IF(AND($A$69, AI69>0),1,0) -> 0
B174: 25 - 28: Manufacture of fabricated metal products, machinery and equipment | E174: =IF(AND($A$70, E70>0),1,0) -> 0 | F174: 0 | G174: 0 | H174: 0 | I174: 0 | J174: 0 | K174: 0 | L174: 0 | M174: 0 | N174: 0 | O174: 0 | P174: 0 | Q174: 0 | R174: 0 | S174: 0 | T174: 0 | U174: 0 | V174: 0 | W174: =IF(AND($A$70, W70>0),1,0) -> 0 | X174: 0 | Y174: 0 | Z174: 0 | AA174: 0 | AB174: 0 | AC174: =IF(AND($A$70, AC70>0),1,0) -> 0 | AD174: 0 | AE174: 0 | AF174: 0 | AG174: 0 | AH174: 0 | AI174: =IF(AND($A$70, AI70>0),1,0) -> 0
B175: 29 - 30: Manufacture of motor vehicles, trailers, other transport equipment | E175: =IF(AND($A$71, E71>0),1,0) -> 0 | F175: 0 | G175: 0 | H175: 0 | I175: 0 | J175: 0 | K175: 0 | L175: 0 | M175: 0 | N175: 0 | O175: 0 | P175: 0 | Q175: 0 | R175: 0 | S175: 0 | T175: 0 | U175: 0 | V175: 0 | W175: =IF(AND($A$71, W71>0),1,0) -> 0 | X175: 0 | Y175: 0 | Z175: 0 | AA175: 0 | AB175: 0 | AC175: =IF(AND($A$71, AC71>0),1,0) -> 0 | AD175: 0 | AE175: 0 | AF175: 0 | AG175: 0 | AH175: 0 | AI175: =IF(AND($A$71, AI71>0),1,0) -> 0
B176: 31 - 32: Manufacture of furniture & Other manufacturing | E176: =IF(AND($A$72, E72>0),1,0) -> 0 | F176: 0 | G176: 0 | H176: 0 | I176: 0 | J176: 0 | K176: 0 | L176: 0 | M176: 0 | N176: 0 | O176: 0 | P176: 0 | Q176: 0 | R176: 0 | S176: 0 | T176: 0 | U176: 0 | V176: 0 | W176: =IF(AND($A$72, W72>0),1,0) -> 0 | X176: 0 | Y176: 0 | Z176: 0 | AA176: 0 | AB176: 0 | AC176: =IF(AND($A$72, AC72>0),1,0) -> 0 | AD176: 0 | AE176: 0 | AF176: 0 | AG176: 0 | AH176: 0 | AI176: =IF(AND($A$72, AI72>0),1,0) -> 0
B177: 35 -36: Electricity, gas, steam, air conditioning, and water supply | E177: =IF(AND($A$73, E73>0),1,0) -> 0 | F177: 0 | G177: 0 | H177: 0 | I177: 0 | J177: 0 | K177: 0 | L177: 0 | M177: 0 | N177: 0 | O177: 0 | P177: 0 | Q177: 0 | R177: 0 | S177: 0 | T177: 0 | U177: 0 | V177: 0 | W177: =IF(AND($A$73, W73>0),1,0) -> 0 | X177: 0 | Y177: 0 | Z177: 0 | AA177: 0 | AB177: 0 | AC177: =IF(AND($A$73, AC73>0),1,0) -> 0 | AD177: 0 | AE177: 0 | AF177: 0 | AG177: 0 | AH177: 0 | AI177: =IF(AND($A$73, AI73>0),1,0) -> 0
B178: 41 - 43: Construction | E178: =IF(AND($A$74, E74>0),1,0) -> 0 | F178: 0 | G178: 0 | H178: 0 | I178: 0 | J178: 0 | K178: 0 | L178: 0 | M178: 0 | N178: 0 | O178: 0 | P178: 0 | Q178: 0 | R178: 0 | S178: 0 | T178: 0 | U178: 0 | V178: 0 | W178: =IF(AND($A$74, W74>0),1,0) -> 0 | X178: 0 | Y178: 0 | Z178: 0 | AA178: 0 | AB178: 0 | AC178: =IF(AND($A$74, AC74>0),1,0) -> 0 | AD178: 0 | AE178: 0 | AF178: 0 | AG178: 0 | AH178: 0 | AI178: =IF(AND($A$74, AI74>0),1,0) -> 0
B179: 33 - 99: Services | E179: =IF(AND($A$75, E75>0),1,0) -> 0 | F179: 0 | G179: 0 | H179: 0 | I179: 0 | J179: 0 | K179: 0 | L179: 0 | M179: 0 | N179: 0 | O179: 0 | P179: 0 | Q179: 0 | R179: 0 | S179: 0 | T179: 0 | U179: 0 | V179: 0 | W179: =IF(AND($A$75, W75>0),1,0) -> 0 | X179: 0 | Y179: 0 | Z179: 0 | AA179: 0 | AB179: 0 | AC179: =IF(AND($A$75, AC75>0),1,0) -> 0 | AD179: 0 | AE179: 0 | AF179: 0 | AG179: 0 | AH179: 0 | AI179: =IF(AND($A$75, AI75>0),1,0) -> 0
B180: Total gross value added at basic prices | E180: =IF(AND($A$76, E76>0),1,0) -> 0 | F180: =IF(AND($A$76, F76>0),1,0) -> 0 | G180: 0 | H180: 0 | I180: 0 | J180: 0 | K180: 0 | L180: 0 | M180: 0 | N180: 0 | O180: 0 | P180: 0 | Q180: 0 | R180: 0 | S180: 0 | T180: 0 | U180: 0 | V180: 0 | W180: 0 | X180: =IF(AND($A$76, X76>0),1,0) -> 0 | Y180: 0 | Z180: 0 | AA180: 0 | AB180: 0 | AC180: 0 | AD180: =IF(AND($A$76, AD76>0),1,0) -> 0 | AE180: 0 | AF180: 0 | AG180: 0 | AH180: 0 | AI180: 0
A181: DATA COVERAGE TOTAL | E181: =SUM(E149:E180)/COUNTIF($A$4:$A$136,"=True") -> 0 | F181: 0 | G181: 0 | H181: 0 | I181: 0 | J181: 0 | K181: 0 | L181: 0 | M181: 0 | N181: 0 | O181: 0 | P181: 0 | Q181: 0 | R181: 0 | S181: 0 | T181: 0 | U181: 0 | V181: 0 | W181: 0 | X181: 0 | Y181: 0 | Z181: 0 | AA181: 0 | AB181: 0 | AC181: 0 | AD181: 0 | AE181: 0 | AF181: 0 | AG181: =SUM(AG149:AG180)/COUNTIF($A$4:$A$136,"=True") -> 0 | AH181: 0 | AI181: =SUM(AI149:AI180)/COUNTIF($A$4:$A$136,"=True") -> 0
A185: CONSISTENCY CHECKS
B186: ADDITIVE GDP | D186: =IF(AD78=SUM(AD54:AD56,AD73:AD75),TRUE,FALSE) -> TRUE
B188: Heating degree-days average | D188: =SUMIF(E29:AI29,">0")/COUNTIF(E29:AI29,">0") -> 
B189: Cooling degree-days average | D189: =SUMIF(E30:AI30,">0")/COUNTIF(E30:AI30,">0") -> 
A190: HIDE STOP

Sheet COMMODITIES
B1: COMMODITIES | C1: SHORTNAME | D1: units | E1: 1990 | F1: 1991 | G1: 1992 | H1: 1993 | I1: 1994 | J1: 1995 | K1: 1996 | L1: 1997 | M1: 1998 | N1: 1999 | O1: 2000 | P1: =O1+1 -> 2001 | Q1: =P1+1 -> 2002 | R1: =Q1+1 -> 2003 | S1: =R1+1 -> 2004 | T1: =S1+1 -> 2005 | U1: =T1+1 -> 2006 | V1: =U1+1 -> 2007 | W1: =V1+1 -> 2008 | X1: =W1+1 -> 2009 | Y1: =X1+1 -> 2010 | Z1: =Y1+1 -> 2011 | AA1: =Z1+1 -> 2012 | AB1: =AA1+1 -> 2013 | AC1: =AB1+1 -> 2014 | AD1: =AC1+1 -> 2015 | AE1: =AD1+1 -> 2016 | AF1: =AE1+1 -> 2017 | AG1: =AF1+1 -> 2018 | AH1: =AG1+1 -> 2019 | AI1: 2020 | AK1: sources | AL1: comments and methodology | CG1: COMMODITIES | CH1: SHORTNAME | CI1: units | CJ1: 1990 | CK1: 1991 | CL1: 1992 | CM1: 1993 | CN1: 1994 | CO1: 1995 | CP1: 1996 | CQ1: 1997 | CR1: 1998 | CS1: 1999 | CT1: 2000 | CU1: 2001 | CV1: 2002 | CW1: 2003 | CX1: 2004 | CY1: 2005 | CZ1: 2006 | DA1: 2007 | DB1: 2008 | DC1: 2009 | DD1: 2010 | DE1: 2011 | DF1: 2012 | DG1: 2013 | DH1: 2014 | DI1: 2015 | DJ1: 2016 | DK1: 2017 | DL1: 2018
B3: Production of commodities based on ISIC Rev.4 Division | CG3: Production of commodities based on ISIC Rev.4 Division
A4: 17 | B4: 17: Manufacture of paper and paper products | CF4: 17 | CG4: 17: Manufacture of paper and paper products
A5: TRUE | B5: Pulp | C5: PULP_TOT | D5: Mt | E5: 0 | F5: 0 | G5: 0 | H5: 0 | I5: 0 | J5: 0 | K5: 0 | L5: 0 | M5: 0 | N5: 0 | O5: 0 | P5: 0 | Q5: 0 | R5: 0 | S5: 0 | T5: 0 | U5: 0 | V5: 0 | W5: 0 | X5: 0 | Y5: 0 | Z5: 0 | AA5: 0 | AB5: 0 | AC5: 0 | AD5: 0 | AE5: 0 | AF5: 0 | AG5: 0 | AH5: 0 | AI5: 0 | CF5: TRUE | CG5: Pulp | CH5: PULP_TOT | CI5: Mt | CJ5: 0 | CK5: 0 | CL5: 0 | CM5: 0 | CN5: 0 | CO5: 0 | CP5: 0 | CQ5: 0 | CR5: 0 | CS5: 0 | CT5: 0 | CU5: 0 | CV5: 0 | CW5: 0 | CX5: 0 | CY5: 0 | CZ5: 0 | DA5: 0 | DB5: 0 | DC5: 0 | DD5: 0 | DE5: 0 | DF5: 0 | DG5: 0 | DH5: 0 | DI5: 0 | DJ5: 0 | DK5: 0 | DL5: 0
A6: TRUE | B6: Chemical pulp | C6: PULP_CHEM | D6: Mt | E6: 0 | F6: 0 | G6: 0 | H6: 0 | I6: 0 | J6: 0 | K6: 0 | L6: 0 | M6: 0 | N6: 0 | O6: 0 | P6: 0 | Q6: 0 | R6: 0 | S6: 0 | T6: 0 | U6: 0 | V6: 0 | W6: 0 | X6: 0 | Y6: 0 | Z6: 0 | AA6: 0 | AB6: 0 | AC6: 0 | AD6: 0 | AE6: 0 | AF6: 0 | AG6: 0 | AH6: 0 | AI6: 0 | CF6: TRUE | CG6: Chemical pulp | CH6: PULP_CHEM | CI6: Mt | CJ6: 0 | CK6: 0 | CL6: 0 | CM6: 0 | CN6: 0 | CO6: 0 | CP6: 0 | CQ6: 0 | CR6: 0 | CS6: 0 | CT6: 0 | CU6: 0 | CV6: 0 | CW6: 0 | CX6: 0 | CY6: 0 | CZ6: 0 | DA6: 0 | DB6: 0 | DC6: 0 | DD6: 0 | DE6: 0 | DF6: 0 | DG6: 0 | DH6: 0 | DI6: 0 | DJ6: 0 | DK6: 0 | DL6: 0
A7: TRUE | B7: Mechanical pulp | C7: PULP_MECH | D7: Mt | E7: 0 | F7: 0 | G7: 0 | H7: 0 | I7: 0 | J7: 0 | K7: 0 | L7: 0 | M7: 0 | N7: 0 | O7: 0 | P7: 0 | Q7: 0 | R7: 0 | S7: 0 | T7: 0 | U7: 0 | V7: 0 | W7: 0 | X7: 0 | Y7: 0 | Z7: 0 | AA7: 0 | AB7: 0 | AC7: 0 | AD7: 0 | AE7: 0 | AF7: 0 | AG7: 0 | AH7: 0 | AI7: 0 | CF7: TRUE | CG7: Mechanical pulp | CH7: PULP_MECH | CI7: Mt | CJ7: 0 | CK7: 0 | CL7: 0 | CM7: 0 | CN7: 0 | CO7: 0 | CP7: 0 | CQ7: 0 | CR7: 0 | CS7: 0 | CT7: 0 | CU7: 0 | CV7: 0 | CW7: 0 | CX7: 0 | CY7: 0 | CZ7: 0 | DA7: 0 | DB7: 0 | DC7: 0 | DD7: 0 | DE7: 0 | DF7: 0 | DG7: 0 | DH7: 0 | DI7: 0 | DJ7: 0 | DK7: 0 | DL7: 0
A8: TRUE | B8: Recovered Paper | C8: REC_TOT | D8: Mt | E8: 0 | F8: 0 | G8: 0 | H8: 0 | I8: 0 | J8: 0 | K8: 0 | L8: 0 | M8: 0 | N8: 0 | O8: 0 | P8: 0 | Q8: 0 | R8: 0 | S8: 0 | T8: 0 | U8: 0 | V8: 0 | W8: 0 | X8: 0 | Y8: 0 | Z8: 0 | AA8: 0 | AB8: 0 | AC8: 0 | AD8: 0 | AE8: 0 | AF8: 0 | AG8: 0 | AH8: 0 | AI8: 0 | CF8: TRUE | CG8: Recovered Paper | CH8: REC_TOT | CI8: Mt | CJ8: 0 | CK8: 0 | CL8: 0 | CM8: 0 | CN8: 0 | CO8: 0 | CP8: 0 | CQ8: 0 | CR8: 0 | CS8: 0 | CT8: 0 | CU8: 0 | CV8: 0 | CW8: 0 | CX8: 0 | CY8: 0 | CZ8: 0 | DA8: 0 | DB8: 0 | DC8: 0 | DD8: 0 | DE8: 0 | DF8: 0 | DG8: 0 | DH8: 0 | DI8: 0 | DJ8: 0 | DK8: 0 | DL8: 0
A9: TRUE | B9: Inked | C9: REC_INK | D9: Mt | E9: 0 | F9: 0 | G9: 0 | H9: 0 | I9: 0 | J9: 0 | K9: 0 | L9: 0 | M9: 0 | N9: 0 | O9: 0 | P9: 0 | Q9: 0 | R9: 0 | S9: 0 | T9: 0 | U9: 0 | V9: 0 | W9: 0 | X9: 0 | Y9: 0 | Z9: 0 | AA9: 0 | AB9: 0 | AC9: 0 | AD9: 0 | AE9: 0 | AF9: 0 | AG9: 0 | AH9: 0 | AI9: 0 | CF9: TRUE | CG9: Inked | CH9: REC_INK | CI9: Mt | CJ9: 0 | CK9: 0 | CL9: 0 | CM9: 0 | CN9: 0 | CO9: 0 | CP9: 0 | CQ9: 0 | CR9: 0 | CS9: 0 | CT9: 0 | CU9: 0 | CV9: 0 | CW9: 0 | CX9: 0 | CY9: 0 | CZ9: 0 | DA9: 0 | DB9: 0 | DC9: 0 | DD9: 0 | DE9: 0 | DF9: 0 | DG9: 0 | DH9: 0 | DI9: 0 | DJ9: 0 | DK9: 0 | DL9: 0
A10: TRUE | B10: De-inked | C10: REC_DEINK | D10: Mt | E10: 0 | F10: 0 | G10: 0 | H10: 0 | I10: 0 | J10: 0 | K10: 0 | L10: 0 | M10: 0 | N10: 0 | O10: 0 | P10: 0 | Q10: 0 | R10: 0 | S10: 0 | T10: 0 | U10: 0 | V10: 0 | W10: 0 | X10: 0 | Y10: 0 | Z10: 0 | AA10: 0 | AB10: 0 | AC10: 0 | AD10: 0 | AE10: 0 | AF10: 0 | AG10: 0 | AH10: 0 | AI10: 0 | CF10: TRUE | CG10: De-inked | CH10: REC_DEINK | CI10: Mt | CJ10: 0 | CK10: 0 | CL10: 0 | CM10: 0 | CN10: 0 | CO10: 0 | CP10: 0 | CQ10: 0 | CR10: 0 | CS10: 0 | CT10: 0 | CU10: 0 | CV10: 0 | CW10: 0 | CX10: 0 | CY10: 0 | CZ10: 0 | DA10: 0 | DB10: 0 | DC10: 0 | DD10: 0 | DE10: 0 | DF10: 0 | DG10: 0 | DH10: 0 | DI10: 0 | DJ10: 0 | DK10: 0 | DL10: 0
B11: structural impact - index | E11: =IF(ISERROR(E95),NA(),E95) ->  | F11: =IF(ISERROR(F95),NA(),F95) ->  | W11: =IF(ISERROR(W95),NA(),W95) ->  | AC11: =IF(ISERROR(AC95),NA(),AC95) ->  | AI11: =IF(ISERROR(AI95),NA(),AI95) ->  | CG11: structural impact - index
A13: TRUE | B13: Paper and paperboard | C13: PP_TOT | D13: Mt | E13: 0 | F13: 0 | G13: 0 | H13: 0 | I13: 0 | J13: 0 | K13: 0 | L13: 0 | M13: 0 | N13: 0 | O13: 0 | P13: 0 | Q13: 0 | R13: 0 | S13: 0 | T13: 0 | U13: 0 | V13: 0 | W13: 0 | X13: 0 | Y13: 0 | Z13: 0 | AA13: 0 | AB13: 0 | AC13: 0 | AD13: 0 | AE13: 0 | AF13: 0 | AG13: 0 | AH13: 0 | AI13: 0 | CF13: TRUE | CG13: Paper and paperboard | CH13: PP_TOT | CI13: Mt | CJ13: 0 | CK13: 0 | CL13: 0 | CM13: 0 | CN13: 0 | CO13: 0 | CP13: 0 | CQ13: 0 | CR13: 0 | CS13: 0 | CT13: 0 | CU13: 0 | CV13: 0 | CW13: 0 | CX13: 0 | CY13: 0 | CZ13: 0 | DA13: 0 | DB13: 0 | DC13: 0 | DD13: 0 | DE13: 0 | DF13: 0 | DG13: 0 | DH13: 0 | DI13: 0 | DJ13: 0 | DK13: 0 | DL13: 0
A14: TRUE | B14: Household + Sanitary Paper | C14: PP_HOUSE | D14: Mt | E14: 0 | F14: 0 | G14: 0 | H14: 0 | I14: 0 | J14: 0 | K14: 0 | L14: 0 | M14: 0 | N14: 0 | O14: 0 | P14: 0 | Q14: 0 | R14: 0 | S14: 0 | T14: 0 | U14: 0 | V14: 0 | W14: 0 | X14: 0 | Y14: 0 | Z14: 0 | AA14: 0 | AB14: 0 | AC14: 0 | AD14: 0 | AE14: 0 | AF14: 0 | AG14: 0 | AH14: 0 | AI14: 0 | CF14: TRUE | CG14: Household + Sanitary Paper | CH14: PP_HOUSE | CI14: Mt | CJ14: 0 | CK14: 0 | CL14: 0 | CM14: 0 | CN14: 0 | CO14: 0 | CP14: 0 | CQ14: 0 | CR14: 0 | CS14: 0 | CT14: 0 | CU14: 0 | CV14: 0 | CW14: 0 | CX14: 0 | CY14: 0 | CZ14: 0 | DA14: 0 | DB14: 0 | DC14: 0 | DD14: 0 | DE14: 0 | DF14: 0 | DG14: 0 | DH14: 0 | DI14: 0 | DJ14: 0 | DK14: 0 | DL14: 0
A15: TRUE | B15: Newsprint | C15: PP_NEWSPR | D15: Mt | E15: 0 | F15: 0 | G15: 0 | H15: 0 | I15: 0 | J15: 0 | K15: 0 | L15: 0 | M15: 0 | N15: 0 | O15: 0 | P15: 0 | Q15: 0 | R15: 0 | S15: 0 | T15: 0 | U15: 0 | V15: 0 | W15: 0 | X15: 0 | Y15: 0 | Z15: 0 | AA15: 0 | AB15: 0 | AC15: 0 | AD15: 0 | AE15: 0 | AF15: 0 | AG15: 0 | AH15: 0 | AI15: 0 | CF15: TRUE | CG15: Newsprint | CH15: PP_NEWSPR | CI15: Mt | CJ15: 0 | CK15: 0 | CL15: 0 | CM15: 0 | CN15: 0 | CO15: 0 | CP15: 0 | CQ15: 0 | CR15: 0 | CS15: 0 | CT15: 0 | CU15: 0 | CV15: 0 | CW15: 0 | CX15: 0 | CY15: 0 | CZ15: 0 | DA15: 0 | DB15: 0 | DC15: 0 | DD15: 0 | DE15: 0 | DF15: 0 | DG15: 0 | DH15: 0 | DI15: 0 | DJ15: 0 | DK15: 0 | DL15: 0
A16: TRUE | B16: Printing + Writing Paper | C16: PP_PRINT | D16: Mt | E16: 0 | F16: 0 | G16: 0 | H16: 0 | I16: 0 | J16: 0 | K16: 0 | L16: 0 | M16: 0 | N16: 0 | O16: 0 | P16: 0 | Q16: 0 | R16: 0 | S16: 0 | T16: 0 | U16: 0 | V16: 0 | W16: 0 | X16: 0 | Y16: 0 | Z16: 0 | AA16: 0 | AB16: 0 | AC16: 0 | AD16: 0 | AE16: 0 | AF16: 0 | AG16: 0 | AH16: 0 | AI16: 0 | CF16: TRUE | CG16: Printing + Writing Paper | CH16: PP_PRINT | CI16: Mt | CJ16: 0 | CK16: 0 | CL16: 0 | CM16: 0 | CN16: 0 | CO16: 0 | CP16: 0 | CQ16: 0 | CR16: 0 | CS16: 0 | CT16: 0 | CU16: 0 | CV16: 0 | CW16: 0 | CX16: 0 | CY16: 0 | CZ16: 0 | DA16: 0 | DB16: 0 | DC16: 0 | DD16: 0 | DE16: 0 | DF16: 0 | DG16: 0 | DH16: 0 | DI16: 0 | DJ16: 0 | DK16: 0 | DL16: 0
A17: TRUE | B17: Wrapping + Packaging Paper + Paperboard | C17: PP_WRAP | D17: Mt | E17: 0 | F17: 0 | G17: 0 | H17: 0 | I17: 0 | J17: 0 | K17: 0 | L17: 0 | M17: 0 | N17: 0 | O17: 0 | P17: 0 | Q17: 0 | R17: 0 | S17: 0 | T17: 0 | U17: 0 | V17: 0 | W17: 0 | X17: 0 | Y17: 0 | Z17: 0 | AA17: 0 | AB17: 0 | AC17: 0 | AD17: 0 | AE17: 0 | AF17: 0 | AG17: 0 | AH17: 0 | AI17: 0 | CF17: TRUE | CG17: Wrapping + Packaging Paper + Paperboard | CH17: PP_WRAP | CI17: Mt | CJ17: 0 | CK17: 0 | CL17: 0 | CM17: 0 | CN17: 0 | CO17: 0 | CP17: 0 | CQ17: 0 | CR17: 0 | CS17: 0 | CT17: 0 | CU17: 0 | CV17: 0 | CW17: 0 | CX17: 0 | CY17: 0 | CZ17: 0 | DA17: 0 | DB17: 0 | DC17: 0 | DD17: 0 | DE17: 0 | DF17: 0 | DG17: 0 | DH17: 0 | DI17: 0 | DJ17: 0 | DK17: 0 | DL17: 0
A18: TRUE | B18: Other | C18: PP_OTHER | D18: Mt | E18: 0 | F18: 0 | G18: 0 | H18: 0 | I18: 0 | J18: 0 | K18: 0 | L18: 0 | M18: 0 | N18: 0 | O18: 0 | P18: 0 | Q18: 0 | R18: 0 | S18: 0 | T18: 0 | U18: 0 | V18: 0 | W18: 0 | X18: 0 | Y18: 0 | Z18: 0 | AA18: 0 | AB18: 0 | AC18: 0 | AD18: 0 | AE18: 0 | AF18: 0 | AG18: 0 | AH18: 0 | AI18: 0 | CF18: TRUE | CG18: Other | CH18: PP_OTHER | CI18: Mt | CJ18: 0 | CK18: 0 | CL18: 0 | CM18: 0 | CN18: 0 | CO18: 0 | CP18: 0 | CQ18: 0 | CR18: 0 | CS18: 0 | CT18: 0 | CU18: 0 | CV18: 0 | CW18: 0 | CX18: 0 | CY18: 0 | CZ18: 0 | DA18: 0 | DB18: 0 | DC18: 0 | DD18: 0 | DE18: 0 | DF18: 0 | DG18: 0 | DH18: 0 | DI18: 0 | DJ18: 0 | DK18: 0 | DL18: 0
B19: structural impact - index | E19: =IF(ISERROR(E96),NA(),E96) ->  | F19: =IF(ISERROR(F96),NA(),F96) ->  | W19: =IF(ISERROR(W96),NA(),W96) ->  | AC19: =IF(ISERROR(AC96),NA(),AC96) ->  | AI19: =IF(ISERROR(AI96),NA(),AI96) ->  | CG19: structural impact - index
A21: 20 - 21 | B21: 20 - 21: Manufacture of chemicals and chemical products & basic pharmaceutical products and pharmaceutical preparations | CF21: 20 - 21 | CG21: 20 - 21: Manufacture of chemicals and chemical products & basic pharmaceutical products and pharmaceutical preparations
A22: TRUE | B22: Ethylene | C22: ETHYLENE | D22: Mt | E22: 0 | F22: 0 | G22: 0 | H22: 0 | I22: 0 | J22: 0 | K22: 0 | L22: 0 | M22: 0 | N22: 0 | O22: 0 | P22: 0 | Q22: 0 | R22: 0 | S22: 0 | T22: 0 | U22: 0 | V22: 0 | W22: 0 | X22: 0 | Y22: 0 | Z22: 0 | AA22: 0 | AB22: 0 | AC22: 0 | AD22: 0 | AE22: 0 | AF22: 0 | AG22: 0 | AH22: 0 | AI22: 0 | CF22: TRUE | CG22: Ethylene | CH22: ETHYLENE | CI22: Mt | CJ22: 0 | CK22: 0 | CL22: 0 | CM22: 0 | CN22: 0 | CO22: 0 | CP22: 0 | CQ22: 0 | CR22: 0 | CS22: 0 | CT22: 0 | CU22: 0 | CV22: 0 | CW22: 0 | CX22: 0 | CY22: 0 | CZ22: 0 | DA22: 0 | DB22: 0 | DC22: 0 | DD22: 0 | DE22: 0 | DF22: 0 | DG22: 0 | DH22: 0 | DI22: 0 | DJ22: 0 | DK22: 0 | DL22: 0
A23: TRUE | B23: Propylene | C23: PROPYLENE | D23: Mt | E23: 0 | F23: 0 | G23: 0 | H23: 0 | I23: 0 | J23: 0 | K23: 0 | L23: 0 | M23: 0 | N23: 0 | O23: 0 | P23: 0 | Q23: 0 | R23: 0 | S23: 0 | T23: 0 | U23: 0 | V23: 0 | W23: 0 | X23: 0 | Y23: 0 | Z23: 0 | AA23: 0 | AB23: 0 | AC23: 0 | AD23: 0 | AE23: 0 | AF23: 0 | AG23: 0 | AH23: 0 | AI23: 0 | CF23: TRUE | CG23: Propylene | CH23: PROPYLENE | CI23: Mt | CJ23: 0 | CK23: 0 | CL23: 0 | CM23: 0 | CN23: 0 | CO23: 0 | CP23: 0 | CQ23: 0 | CR23: 0 | CS23: 0 | CT23: 0 | CU23: 0 | CV23: 0 | CW23: 0 | CX23: 0 | CY23: 0 | CZ23: 0 | DA23: 0 | DB23: 0 | DC23: 0 | DD23: 0 | DE23: 0 | DF23: 0 | DG23: 0 | DH23: 0 | DI23: 0 | DJ23: 0 | DK23: 0 | DL23: 0
A24: TRUE | B24: BTX | C24: BTX | D24: Mt | E24: 0 | F24: 0 | G24: 0 | H24: 0 | I24: 0 | J24: 0 | K24: 0 | L24: 0 | M24: 0 | N24: 0 | O24: 0 | P24: 0 | Q24: 0 | R24: 0 | S24: 0 | T24: 0 | U24: 0 | V24: 0 | W24: 0 | X24: 0 | Y24: 0 | Z24: 0 | AA24: 0 | AB24: 0 | AC24: 0 | AD24: 0 | AE24: 0 | AF24: 0 | AG24: 0 | AH24: 0 | AI24: 0 | CF24: TRUE | CG24: BTX | CH24: BTX | CI24: Mt | CJ24: 0 | CK24: 0 | CL24: 0 | CM24: 0 | CN24: 0 | CO24: 0 | CP24: 0 | CQ24: 0 | CR24: 0 | CS24: 0 | CT24: 0 | CU24: 0 | CV24: 0 | CW24: 0 | CX24: 0 | CY24: 0 | CZ24: 0 | DA24: 0 | DB24: 0 | DC24: 0 | DD24: 0 | DE24: 0 | DF24: 0 | DG24: 0 | DH24: 0 | DI24: 0 | DJ24: 0 | DK24: 0 | DL24: 0
A25: TRUE | B25: Ammonia (NH3) | C25: AMMONIA | D25: Mt | E25: 0 | F25: 0 | G25: 0 | H25: 0 | I25: 0 | J25: 0 | K25: 0 | L25: 0 | M25: 0 | N25: 0 | O25: 0 | P25: 0 | Q25: 0 | R25: 0 | S25: 0 | T25: 0 | U25: 0 | V25: 0 | W25: 0 | X25: 0 | Y25: 0 | Z25: 0 | AA25: 0 | AB25: 0 | AC25: 0 | AD25: 0 | AE25: 0 | AF25: 0 | AG25: 0 | AH25: 0 | AI25: 0 | CF25: TRUE | CG25: Ammonia (NH3) | CH25: AMMONIA | CI25: Mt | CJ25: 0 | CK25: 0 | CL25: 0 | CM25: 0 | CN25: 0 | CO25: 0 | CP25: 0 | CQ25: 0 | CR25: 0 | CS25: 0 | CT25: 0 | CU25: 0 | CV25: 0 | CW25: 0 | CX25: 0 | CY25: 0 | CZ25: 0 | DA25: 0 | DB25: 0 | DC25: 0 | DD25: 0 | DE25: 0 | DF25: 0 | DG25: 0 | DH25: 0 | DI25: 0 | DJ25: 0 | DK25: 0 | DL25: 0
A26: TRUE | B26: Butadiene | C26: BUTADIENE | D26: Mt | E26: 0 | F26: 0 | G26: 0 | H26: 0 | I26: 0 | J26: 0 | K26: 0 | L26: 0 | M26: 0 | N26: 0 | O26: 0 | P26: 0 | Q26: 0 | R26: 0 | S26: 0 | T26: 0 | U26: 0 | V26: 0 | W26: 0 | X26: 0 | Y26: 0 | Z26: 0 | AA26: 0 | AB26: 0 | AC26: 0 | AD26: 0 | AE26: 0 | AF26: 0 | AG26: 0 | AH26: 0 | AI26: 0 | CF26: TRUE | CG26: Butadiene | CH26: BUTADIENE | CI26: Mt | CJ26: 0 | CK26: 0 | CL26: 0 | CM26: 0 | CN26: 0 | CO26: 0 | CP26: 0 | CQ26: 0 | CR26: 0 | CS26: 0 | CT26: 0 | CU26: 0 | CV26: 0 | CW26: 0 | CX26: 0 | CY26: 0 | CZ26: 0 | DA26: 0 | DB26: 0 | DC26: 0 | DD26: 0 | DE26: 0 | DF26: 0 | DG26: 0 | DH26: 0 | DI26: 0 | DJ26: 0 | DK26: 0 | DL26: 0
A27: TRUE | B27: Caustic Soda | C27: CAUS_SODA | D27: Mt | E27: 0 | F27: 0 | G27: 0 | H27: 0 | I27: 0 | J27: 0 | K27: 0 | L27: 0 | M27: 0 | N27: 0 | O27: 0 | P27: 0 | Q27: 0 | R27: 0 | S27: 0 | T27: 0 | U27: 0 | V27: 0 | W27: 0 | X27: 0 | Y27: 0 | Z27: 0 | AA27: 0 | AB27: 0 | AC27: 0 | AD27: 0 | AE27: 0 | AF27: 0 | AG27: 0 | AH27: 0 | AI27: 0 | CF27: TRUE | CG27: Caustic Soda | CH27: CAUS_SODA | CI27: Mt | CJ27: 0 | CK27: 0 | CL27: 0 | CM27: 0 | CN27: 0 | CO27: 0 | CP27: 0 | CQ27: 0 | CR27: 0 | CS27: 0 | CT27: 0 | CU27: 0 | CV27: 0 | CW27: 0 | CX27: 0 | CY27: 0 | CZ27: 0 | DA27: 0 | DB27: 0 | DC27: 0 | DD27: 0 | DE27: 0 | DF27: 0 | DG27: 0 | DH27: 0 | DI27: 0 | DJ27: 0 | DK27: 0 | DL27: 0
B28: structural impact - index | E28: =IF(ISERROR(E97),NA(),E97) ->  | F28: =IF(ISERROR(F97),NA(),F97) ->  | W28: =IF(ISERROR(W97),NA(),W97) ->  | AC28: =IF(ISERROR(AC97),NA(),AC97) ->  | AI28: =IF(ISERROR(AI97),NA(),AI97) ->  | CG28: structural impact - index
A30: 23 | B30: 23: Manufacture of other non-metallic mineral products | CF30: 23 | CG30: 23: Manufacture of other non-metallic mineral products
B31: Cement | CG31: Cement
A32: TRUE | B32: Clinker production | C32: CLINKER | D32: Mt | E32: 0 | F32: 0 | G32: 0 | H32: 0 | I32: 0 | J32: 0 | K32: 0 | L32: 0 | M32: 0 | N32: 0 | O32: 0 | P32: 0 | Q32: 0 | R32: 0 | S32: 0 | T32: 0 | U32: 0 | V32: 0 | W32: 0 | X32: 0 | Y32: 0 | Z32: 0 | AA32: 0 | AB32: 0 | AC32: 0 | AD32: 0 | AE32: 0 | AF32: 0 | AG32: 0 | AH32: 0 | AI32: 0 | CF32: TRUE | CG32: Clinker production | CH32: CLINKER | CI32: Mt | CJ32: 0 | CK32: 0 | CL32: 0 | CM32: 0 | CN32: 0 | CO32: 0 | CP32: 0 | CQ32: 0 | CR32: 0 | CS32: 0 | CT32: 0 | CU32: 0 | CV32: 0 | CW32: 0 | CX32: 0 | CY32: 0 | CZ32: 0 | DA32: 0 | DB32: 0 | DC32: 0 | DD32: 0 | DE32: 0 | DF32: 0 | DG32: 0 | DH32: 0 | DI32: 0 | DJ32: 0 | DK32: 0 | DL32: 0
A33: TRUE | B33: Cement production | C33: CEMENT | D33: Mt | E33: 0 | F33: 0 | G33: 0 | H33: 0 | I33: 0 | J33: 0 | K33: 0 | L33: 0 | M33: 0 | N33: 0 | O33: 0 | P33: 0 | Q33: 0 | R33: 0 | S33: 0 | T33: 0 | U33: 0 | V33: 0 | W33: 0 | X33: 0 | Y33: 0 | Z33: 0 | AA33: 0 | AB33: 0 | AC33: 0 | AD33: 0 | AE33: 0 | AF33: 0 | AG33: 0 | AH33: 0 | AI33: 0 | CF33: TRUE | CG33: Cement production | CH33: CEMENT | CI33: Mt | CJ33: 0 | CK33: 0 | CL33: 0 | CM33: 0 | CN33: 0 | CO33: 0 | CP33: 0 | CQ33: 0 | CR33: 0 | CS33: 0 | CT33: 0 | CU33: 0 | CV33: 0 | CW33: 0 | CX33: 0 | CY33: 0 | CZ33: 0 | DA33: 0 | DB33: 0 | DC33: 0 | DD33: 0 | DE33: 0 | DF33: 0 | DG33: 0 | DH33: 0 | DI33: 0 | DJ33: 0 | DK33: 0 | DL33: 0
B34: structural impact - index | E34: =IF(ISERROR(E98),NA(),E98) ->  | F34: =IF(ISERROR(F98),NA(),F98) ->  | W34: =IF(ISERROR(W98),NA(),W98) ->  | AC34: =IF(ISERROR(AC98),NA(),AC98) ->  | AI34: =IF(ISERROR(AI98),NA(),AI98) ->  | CG34: structural impact - index
A36: 24 | B36: 24: Manufacture of basic metals | CF36: 24 | CG36: 24: Manufacture of basic metals
A37: TRUE | B37: Crude Steel | C37: STEEL_TOT | D37: Mt | E37: 0 | F37: 0 | G37: 0 | H37: 0 | I37: 0 | J37: 0 | K37: 0 | L37: 0 | M37: 0 | N37: 0 | O37: 0 | P37: 0 | Q37: 0 | R37: 0 | S37: 0 | T37: 0 | U37: 0 | V37: 0 | W37: 0 | X37: 0 | Y37: 0 | Z37: 0 | AA37: 0 | AB37: 0 | AC37: 0 | AD37: 0 | AE37: 0 | AF37: 0 | AG37: 0 | AH37: 0 | AI37: 0 | CF37: TRUE | CG37: Crude Steel | CH37: STEEL_TOT | CI37: Mt | CJ37: 0 | CK37: 0 | CL37: 0 | CM37: 0 | CN37: 0 | CO37: 0 | CP37: 0 | CQ37: 0 | CR37: 0 | CS37: 0 | CT37: 0 | CU37: 0 | CV37: 0 | CW37: 0 | CX37: 0 | CY37: 0 | CZ37: 0 | DA37: 0 | DB37: 0 | DC37: 0 | DD37: 0 | DE37: 0 | DF37: 0 | DG37: 0 | DH37: 0 | DI37: 0 | DJ37: 0 | DK37: 0 | DL37: 0
A38: TRUE | B38: Basic Oxygen Furnace production | C38: STEEL_BOF | D38: Mt | E38: 0 | F38: 0 | G38: 0 | H38: 0 | I38: 0 | J38: 0 | K38: 0 | L38: 0 | M38: 0 | N38: 0 | O38: 0 | P38: 0 | Q38: 0 | R38: 0 | S38: 0 | T38: 0 | U38: 0 | V38: 0 | W38: 0 | X38: 0 | Y38: 0 | Z38: 0 | AA38: 0 | AB38: 0 | AC38: 0 | AD38: 0 | AE38: 0 | AF38: 0 | AG38: 0 | AH38: 0 | AI38: 0 | CF38: TRUE | CG38: Basic Oxygen Furnace production | CH38: STEEL_BOF | CI38: Mt | CJ38: 0 | CK38: 0 | CL38: 0 | CM38: 0 | CN38: 0 | CO38: 0 | CP38: 0 | CQ38: 0 | CR38: 0 | CS38: 0 | CT38: 0 | CU38: 0 | CV38: 0 | CW38: 0 | CX38: 0 | CY38: 0 | CZ38: 0 | DA38: 0 | DB38: 0 | DC38: 0 | DD38: 0 | DE38: 0 | DF38: 0 | DG38: 0 | DH38: 0 | DI38: 0 | DJ38: 0 | DK38: 0 | DL38: 0
A39: TRUE | B39: Electric Arc Furnace production | C39: STEEL_EAF | D39: Mt | E39: 0 | F39: 0 | G39: 0 | H39: 0 | I39: 0 | J39: 0 | K39: 0 | L39: 0 | M39: 0 | N39: 0 | O39: 0 | P39: 0 | Q39: 0 | R39: 0 | S39: 0 | T39: 0 | U39: 0 | V39: 0 | W39: 0 | X39: 0 | Y39: 0 | Z39: 0 | AA39: 0 | AB39: 0 | AC39: 0 | AD39: 0 | AE39: 0 | AF39: 0 | AG39: 0 | AH39: 0 | AI39: 0 | CF39: TRUE | CG39: Electric Arc Furnace production | CH39: STEEL_EAF | CI39: Mt | CJ39: 0 | CK39: 0 | CL39: 0 | CM39: 0 | CN39: 0 | CO39: 0 | CP39: 0 | CQ39: 0 | CR39: 0 | CS39: 0 | CT39: 0 | CU39: 0 | CV39: 0 | CW39: 0 | CX39: 0 | CY39: 0 | CZ39: 0 | DA39: 0 | DB39: 0 | DC39: 0 | DD39: 0 | DE39: 0 | DF39: 0 | DG39: 0 | DH39: 0 | DI39: 0 | DJ39: 0 | DK39: 0 | DL39: 0
A40: TRUE | B40: Direct Reduced Iron | C40: STEEL_DRI | D40: Mt | E40: 0 | F40: 0 | G40: 0 | H40: 0 | I40: 0 | J40: 0 | K40: 0 | L40: 0 | M40: 0 | N40: 0 | O40: 0 | P40: 0 | Q40: 0 | R40: 0 | S40: 0 | T40: 0 | U40: 0 | V40: 0 | W40: 0 | X40: 0 | Y40: 0 | Z40: 0 | AA40: 0 | AB40: 0 | AC40: 0 | AD40: 0 | AE40: 0 | AF40: 0 | AG40: 0 | AH40: 0 | AI40: 0 | CF40: TRUE | CG40: Direct Reduced Iron | CH40: STEEL_DRI | CI40: Mt | CJ40: 0 | CK40: 0 | CL40: 0 | CM40: 0 | CN40: 0 | CO40: 0 | CP40: 0 | CQ40: 0 | CR40: 0 | CS40: 0 | CT40: 0 | CU40: 0 | CV40: 0 | CW40: 0 | CX40: 0 | CY40: 0 | CZ40: 0 | DA40: 0 | DB40: 0 | DC40: 0 | DD40: 0 | DE40: 0 | DF40: 0 | DG40: 0 | DH40: 0 | DI40: 0 | DJ40: 0 | DK40: 0 | DL40: 0
B41: structural impact - index | E41: =IF(ISERROR(E99),NA(),E99) ->  | F41: =IF(ISERROR(F99),NA(),F99) ->  | W41: =IF(ISERROR(W99),NA(),W99) ->  | AC41: =IF(ISERROR(AC99),NA(),AC99) ->  | AI41: =IF(ISERROR(AI99),NA(),AI99) ->  | CG41: structural impact - index
A43: TRUE | B43: Bauxite | C43: BAUXITE | D43: Mt | E43: 0 | F43: 0 | G43: 0 | H43: 0 | I43: 0 | J43: 0 | K43: 0 | L43: 0 | M43: 0 | N43: 0 | O43: 0 | P43: 0 | Q43: 0 | R43: 0 | S43: 0 | T43: 0 | U43: 0 | V43: 0 | W43: 0 | X43: 0 | Y43: 0 | Z43: 0 | AA43: 0 | AB43: 0 | AC43: 0 | AD43: 0 | AE43: 0 | AF43: 0 | AG43: 0 | AH43: 0 | AI43: 0 | CF43: TRUE | CG43: Bauxite | CH43: BAUXITE | CI43: Mt | CJ43: 0 | CK43: 0 | CL43: 0 | CM43: 0 | CN43: 0 | CO43: 0 | CP43: 0 | CQ43: 0 | CR43: 0 | CS43: 0 | CT43: 0 | CU43: 0 | CV43: 0 | CW43: 0 | CX43: 0 | CY43: 0 | CZ43: 0 | DA43: 0 | DB43: 0 | DC43: 0 | DD43: 0 | DE43: 0 | DF43: 0 | DG43: 0 | DH43: 0 | DI43: 0 | DJ43: 0 | DK43: 0 | DL43: 0
A44: TRUE | B44: Alumina refining | C44: ALUMINA_RE | D44: Mt | E44: 0 | F44: 0 | G44: 0 | H44: 0 | I44: 0 | J44: 0 | K44: 0 | L44: 0 | M44: 0 | N44: 0 | O44: 0 | P44: 0 | Q44: 0 | R44: 0 | S44: 0 | T44: 0 | U44: 0 | V44: 0 | W44: 0 | X44: 0 | Y44: 0 | Z44: 0 | AA44: 0 | AB44: 0 | AC44: 0 | AD44: 0 | AE44: 0 | AF44: 0 | AG44: 0 | AH44: 0 | AI44: 0 | CF44: TRUE | CG44: Alumina refining | CH44: ALUMINA_RE | CI44: Mt | CJ44: 0 | CK44: 0 | CL44: 0 | CM44: 0 | CN44: 0 | CO44: 0 | CP44: 0 | CQ44: 0 | CR44: 0 | CS44: 0 | CT44: 0 | CU44: 0 | CV44: 0 | CW44: 0 | CX44: 0 | CY44: 0 | CZ44: 0 | DA44: 0 | DB44: 0 | DC44: 0 | DD44: 0 | DE44: 0 | DF44: 0 | DG44: 0 | DH44: 0 | DI44: 0 | DJ44: 0 | DK44: 0 | DL44: 0
A45: TRUE | B45: Aluminium | C45: ALU_TOT | D45: Mt | E45: 0 | F45: 0 | G45: 0 | H45: 0 | I45: 0 | J45: 0 | K45: 0 | L45: 0 | M45: 0 | N45: 0 | O45: 0 | P45: 0 | Q45: 0 | R45: 0 | S45: 0 | T45: 0 | U45: 0 | V45: 0 | W45: 0 | X45: 0 | Y45: 0 | Z45: 0 | AA45: 0 | AB45: 0 | AC45: 0 | AD45: 0 | AE45: 0 | AF45: 0 | AG45: 0 | AH45: 0 | AI45: 0 | CF45: TRUE | CG45: Aluminium | CH45: ALU_TOT | CI45: Mt | CJ45: 0 | CK45: 0 | CL45: 0 | CM45: 0 | CN45: 0 | CO45: 0 | CP45: 0 | CQ45: 0 | CR45: 0 | CS45: 0 | CT45: 0 | CU45: 0 | CV45: 0 | CW45: 0 | CX45: 0 | CY45: 0 | CZ45: 0 | DA45: 0 | DB45: 0 | DC45: 0 | DD45: 0 | DE45: 0 | DF45: 0 | DG45: 0 | DH45: 0 | DI45: 0 | DJ45: 0 | DK45: 0 | DL45: 0
A46: TRUE | B46: Primary production | C46: ALU_PRIMAR | D46: Mt | E46: 0 | F46: 0 | G46: 0 | H46: 0 | I46: 0 | J46: 0 | K46: 0 | L46: 0 | M46: 0 | N46: 0 | O46: 0 | P46: 0 | Q46: 0 | R46: 0 | S46: 0 | T46: 0 | U46: 0 | V46: 0 | W46: 0 | X46: 0 | Y46: 0 | Z46: 0 | AA46: 0 | AB46: 0 | AC46: 0 | AD46: 0 | AE46: 0 | AF46: 0 | AG46: 0 | AH46: 0 | AI46: 0 | CF46: TRUE | CG46: Primary production | CH46: ALU_PRIMAR | CI46: Mt | CJ46: 0 | CK46: 0 | CL46: 0 | CM46: 0 | CN46: 0 | CO46: 0 | CP46: 0 | CQ46: 0 | CR46: 0 | CS46: 0 | CT46: 0 | CU46: 0 | CV46: 0 | CW46: 0 | CX46: 0 | CY46: 0 | CZ46: 0 | DA46: 0 | DB46: 0 | DC46: 0 | DD46: 0 | DE46: 0 | DF46: 0 | DG46: 0 | DH46: 0 | DI46: 0 | DJ46: 0 | DK46: 0 | DL46: 0
A47: TRUE | B47: Recycled production | C47: ALU_RECYCL | D47: Mt | E47: 0 | F47: 0 | G47: 0 | H47: 0 | I47: 0 | J47: 0 | K47: 0 | L47: 0 | M47: 0 | N47: 0 | O47: 0 | P47: 0 | Q47: 0 | R47: 0 | S47: 0 | T47: 0 | U47: 0 | V47: 0 | W47: 0 | X47: 0 | Y47: 0 | Z47: 0 | AA47: 0 | AB47: 0 | AC47: 0 | AD47: 0 | AE47: 0 | AF47: 0 | AG47: 0 | AH47: 0 | AI47: 0 | CF47: TRUE | CG47: Recycled production | CH47: ALU_RECYCL | CI47: Mt | CJ47: 0 | CK47: 0 | CL47: 0 | CM47: 0 | CN47: 0 | CO47: 0 | CP47: 0 | CQ47: 0 | CR47: 0 | CS47: 0 | CT47: 0 | CU47: 0 | CV47: 0 | CW47: 0 | CX47: 0 | CY47: 0 | CZ47: 0 | DA47: 0 | DB47: 0 | DC47: 0 | DD47: 0 | DE47: 0 | DF47: 0 | DG47: 0 | DH47: 0 | DI47: 0 | DJ47: 0 | DK47: 0 | DL47: 0
B48: structural impact - index | E48: =IF(ISERROR(E100),NA(),E100) ->  | F48: =IF(ISERROR(F100),NA(),F100) ->  | W48: =IF(ISERROR(W100),NA(),W100) ->  | AC48: =IF(ISERROR(AC100),NA(),AC100) ->  | AI48: =IF(ISERROR(AI100),NA(),AI100) ->  | CG48: structural impact - index
B50: END OF COMMODITIES | CG50: END OF COMMODITIES
A52: ©IEA | CF52: ©IEA
A58: HIDE START
A60: DATA COVERAGE
B61: Pulp | E61: =IF(AND($A$5, E5>0),1,0) -> 0 | F61: =IF(AND($A$5, F5>0),1,0) -> 0 | G61: 0 | H61: 0 | I61: 0 | J61: 0 | K61: 0 | L61: 0 | M61: 0 | N61: 0 | O61: 0 | P61: 0 | Q61: 0 | R61: 0 | S61: 0 | T61: 0 | U61: 0 | V61: 0 | W61: 0 | X61: 0 | Y61: 0 | Z61: 0 | AA61: 0 | AB61: 0 | AC61: 0 | AD61: 0 | AE61: 0 | AF61: 0 | AG61: 0 | AH61: =IF(AND($A$5, AH5>0),1,0) -> 0 | AI61: 0
B62: Chemical pulp | E62: =IF(AND($A$6, E6>0),1,0) -> 0 | F62: =IF(AND($A$6, F6>0),1,0) -> 0 | G62: 0 | H62: 0 | I62: 0 | J62: 0 | K62: 0 | L62: 0 | M62: 0 | N62: 0 | O62: 0 | P62: 0 | Q62: 0 | R62: 0 | S62: 0 | T62: 0 | U62: 0 | V62: 0 | W62: 0 | X62: 0 | Y62: 0 | Z62: 0 | AA62: 0 | AB62: 0 | AC62: 0 | AD62: 0 | AE62: 0 | AF62: 0 | AG62: 0 | AH62: =IF(AND($A$6, AH6>0),1,0) -> 0 | AI62: 0
B63: Mechanical pulp | E63: =IF(AND($A$7, E7>0),1,0) -> 0 | F63: =IF(AND($A$7, F7>0),1,0) -> 0 | G63: 0 | H63: 0 | I63: 0 | J63: 0 | K63: 0 | L63: 0 | M63: 0 | N63: 0 | O63: 0 | P63: 0 | Q63: 0 | R63: 0 | S63: 0 | T63: 0 | U63: 0 | V63: 0 | W63: 0 | X63: 0 | Y63: 0 | Z63: 0 | AA63: 0 | AB63: 0 | AC63: 0 | AD63: 0 | AE63: 0 | AF63: 0 | AG63: 0 | AH63: =IF(AND($A$7, AH7>0),1,0) -> 0 | AI63: 0
B64: Recovered Paper | E64: =IF(AND($A$8, E8>0),1,0) -> 0 | F64: =IF(AND($A$8, F8>0),1,0) -> 0 | G64: 0 | H64: 0 | I64: 0 | J64: 0 | K64: 0 | L64: 0 | M64: 0 | N64: 0 | O64: 0 | P64: 0 | Q64: 0 | R64: 0 | S64: 0 | T64: 0 | U64: 0 | V64: 0 | W64: 0 | X64: 0 | Y64: 0 | Z64: 0 | AA64: 0 | AB64: 0 | AC64: 0 | AD64: 0 | AE64: 0 | AF64: 0 | AG64: 0 | AH64: =IF(AND($A$8, AH8>0),1,0) -> 0 | AI64: 0
B65: Inked | E65: =IF(AND($A$9, E9>0),1,0) -> 0 | F65: =IF(AND($A$9, F9>0),1,0) -> 0 | G65: 0 | H65: 0 | I65: 0 | J65: 0 | K65: 0 | L65: 0 | M65: 0 | N65: 0 | O65: 0 | P65: 0 | Q65: 0 | R65: 0 | S65: 0 | T65: 0 | U65: 0 | V65: 0 | W65: 0 | X65: 0 | Y65: 0 | Z65: 0 | AA65: 0 | AB65: 0 | AC65: 0 | AD65: 0 | AE65: 0 | AF65: 0 | AG65: 0 | AH65: =IF(AND($A$9, AH9>0),1,0) -> 0 | AI65: 0
B66: De-inked | E66: =IF(AND($A$10, E10>0),1,0) -> 0 | F66: =IF(AND($A$10, F10>0),1,0) -> 0 | G66: 0 | H66: 0 | I66: 0 | J66: 0 | K66: 0 | L66: 0 | M66: 0 | N66: 0 | O66: 0 | P66: 0 | Q66: 0 | R66: 0 | S66: 0 | T66: 0 | U66: 0 | V66: 0 | W66: 0 | X66: 0 | Y66: 0 | Z66: 0 | AA66: 0 | AB66: 0 | AC66: 0 | AD66: 0 | AE66: 0 | AF66: 0 | AG66: 0 | AH66: =IF(AND($A$10, AH10>0),1,0) -> 0 | AI66: 0
B67: Paper and paperboard | E67: =IF(AND($A$13, E13>0),1,0) -> 0 | F67: =IF(AND($A$13, F13>0),1,0) -> 0 | G67: 0 | H67: 0 | I67: 0 | J67: 0 | K67: 0 | L67: 0 | M67: 0 | N67: 0 | O67: 0 | P67: 0 | Q67: 0 | R67: 0 | S67: 0 | T67: 0 | U67: 0 | V67: 0 | W67: 0 | X67: 0 | Y67: 0 | Z67: 0 | AA67: 0 | AB67: 0 | AC67: 0 | AD67: 0 | AE67: 0 | AF67: 0 | AG67: 0 | AH67: =IF(AND($A$13, AH13>0),1,0) -> 0 | AI67: 0
B68: Household + Sanitary Paper | E68: =IF(AND($A$14, E14>0),1,0) -> 0 | F68: =IF(AND($A$14, F14>0),1,0) -> 0 | G68: 0 | H68: 0 | I68: 0 | J68: 0 | K68: 0 | L68: 0 | M68: 0 | N68: 0 | O68: 0 | P68: 0 | Q68: 0 | R68: 0 | S68: 0 | T68: 0 | U68: 0 | V68: 0 | W68: 0 | X68: 0 | Y68: 0 | Z68: 0 | AA68: 0 | AB68: 0 | AC68: 0 | AD68: 0 | AE68: 0 | AF68: 0 | AG68: 0 | AH68: =IF(AND($A$14, AH14>0),1,0) -> 0 | AI68: 0
B69: Newsprint | E69: =IF(AND($A$15, E15>0),1,0) -> 0 | F69: =IF(AND($A$15, F15>0),1,0) -> 0 | G69: 0 | H69: 0 | I69: 0 | J69: 0 | K69: 0 | L69: 0 | M69: 0 | N69: 0 | O69: 0 | P69: 0 | Q69: 0 | R69: 0 | S69: 0 | T69: 0 | U69: 0 | V69: 0 | W69: 0 | X69: 0 | Y69: 0 | Z69: 0 | AA69: 0 | AB69: 0 | AC69: 0 | AD69: 0 | AE69: 0 | AF69: 0 | AG69: 0 | AH69: =IF(AND($A$15, AH15>0),1,0) -> 0 | AI69: 0
B70: Printing + Writing Paper | E70: =IF(AND($A$16, E16>0),1,0) -> 0 | F70: =IF(AND($A$16, F16>0),1,0) -> 0 | G70: 0 | H70: 0 | I70: 0 | J70: 0 | K70: 0 | L70: 0 | M70: 0 | N70: 0 | O70: 0 | P70: 0 | Q70: 0 | R70: 0 | S70: 0 | T70: 0 | U70: 0 | V70: 0 | W70: 0 | X70: 0 | Y70: 0 | Z70: 0 | AA70: 0 | AB70: 0 | AC70: 0 | AD70: 0 | AE70: 0 | AF70: 0 | AG70: 0 | AH70: =IF(AND($A$16, AH16>0),1,0) -> 0 | AI70: 0
B71: Wrapping + Packaging Paper + Paperboard | E71: =IF(AND($A$17, E17>0),1,0) -> 0 | F71: =IF(AND($A$17, F17>0),1,0) -> 0 | G71: 0 | H71: 0 | I71: 0 | J71: 0 | K71: 0 | L71: 0 | M71: 0 | N71: 0 | O71: 0 | P71: 0 | Q71: 0 | R71: 0 | S71: 0 | T71: 0 | U71: 0 | V71: 0 | W71: 0 | X71: 0 | Y71: 0 | Z71: 0 | AA71: 0 | AB71: 0 | AC71: 0 | AD71: 0 | AE71: 0 | AF71: 0 | AG71: 0 | AH71: =IF(AND($A$17, AH17>0),1,0) -> 0 | AI71: 0
B72: Other | E72: =IF(AND($A$18, E18>0),1,0) -> 0 | F72: =IF(AND($A$18, F18>0),1,0) -> 0 | G72: 0 | H72: 0 | I72: 0 | J72: 0 | K72: 0 | L72: 0 | M72: 0 | N72: 0 | O72: 0 | P72: 0 | Q72: 0 | R72: 0 | S72: 0 | T72: 0 | U72: 0 | V72: 0 | W72: 0 | X72: 0 | Y72: 0 | Z72: 0 | AA72: 0 | AB72: 0 | AC72: 0 | AD72: 0 | AE72: 0 | AF72: 0 | AG72: 0 | AH72: =IF(AND($A$18, AH18>0),1,0) -> 0 | AI72: 0
B73: Ethylene | E73: =IF(AND($A$22, E22>0),1,0) -> 0 | F73: =IF(AND($A$22, F22>0),1,0) -> 0 | G73: 0 | H73: 0 | I73: 0 | J73: 0 | K73: 0 | L73: 0 | M73: 0 | N73: 0 | O73: 0 | P73: 0 | Q73: 0 | R73: 0 | S73: 0 | T73: 0 | U73: 0 | V73: 0 | W73: 0 | X73: 0 | Y73: 0 | Z73: 0 | AA73: 0 | AB73: 0 | AC73: 0 | AD73: 0 | AE73: 0 | AF73: 0 | AG73: 0 | AH73: =IF(AND($A$22, AH22>0),1,0) -> 0 | AI73: 0
B74: Propylene | E74: =IF(AND($A$23, E23>0),1,0) -> 0 | F74: =IF(AND($A$23, F23>0),1,0) -> 0 | G74: 0 | H74: 0 | I74: 0 | J74: 0 | K74: 0 | L74: 0 | M74: 0 | N74: 0 | O74: 0 | P74: 0 | Q74: 0 | R74: 0 | S74: 0 | T74: 0 | U74: 0 | V74: 0 | W74: 0 | X74: 0 | Y74: 0 | Z74: 0 | AA74: 0 | AB74: 0 | AC74: 0 | AD74: 0 | AE74: 0 | AF74: 0 | AG74: 0 | AH74: =IF(AND($A$23, AH23>0),1,0) -> 0 | AI74: 0
B75: BTX | E75: =IF(AND($A$24, E24>0),1,0) -> 0 | F75: =IF(AND($A$24, F24>0),1,0) -> 0 | G75: 0 | H75: 0 | I75: 0 | J75: 0 | K75: 0 | L75: 0 | M75: 0 | N75: 0 | O75: 0 | P75: 0 | Q75: 0 | R75: 0 | S75: 0 | T75: 0 | U75: 0 | V75: 0 | W75: 0 | X75: 0 | Y75: 0 | Z75: 0 | AA75: 0 | AB75: 0 | AC75: 0 | AD75: 0 | AE75: 0 | AF75: 0 | AG75: 0 | AH75: =IF(AND($A$24, AH24>0),1,0) -> 0 | AI75: 0
B76: Ammonia (NH3) | E76: =IF(AND($A$25, E25>0),1,0) -> 0 | F76: =IF(AND($A$25, F25>0),1,0) -> 0 | G76: 0 | H76: 0 | I76: 0 | J76: 0 | K76: 0 | L76: 0 | M76: 0 | N76: 0 | O76: 0 | P76: 0 | Q76: 0 | R76: 0 | S76: 0 | T76: 0 | U76: 0 | V76: 0 | W76: 0 | X76: 0 | Y76: 0 | Z76: 0 | AA76: 0 | AB76: 0 | AC76: 0 | AD76: 0 | AE76: 0 | AF76: 0 | AG76: 0 | AH76: =IF(AND($A$25, AH25>0),1,0) -> 0 | AI76: 0
B77: Butadiene | E77: =IF(AND($A$26, E26>0),1,0) -> 0 | F77: =IF(AND($A$26, F26>0),1,0) -> 0 | G77: 0 | H77: 0 | I77: 0 | J77: 0 | K77: 0 | L77: 0 | M77: 0 | N77: 0 | O77: 0 | P77: 0 | Q77: 0 | R77: 0 | S77: 0 | T77: 0 | U77: 0 | V77: 0 | W77: 0 | X77: 0 | Y77: 0 | Z77: 0 | AA77: 0 | AB77: 0 | AC77: 0 | AD77: 0 | AE77: 0 | AF77: 0 | AG77: 0 | AH77: =IF(AND($A$26, AH26>0),1,0) -> 0 | AI77: 0
B78: Caustic Soda | E78: =IF(AND($A$27, E27>0),1,0) -> 0 | F78: =IF(AND($A$27, F27>0),1,0) -> 0 | G78: 0 | H78: 0 | I78: 0 | J78: 0 | K78: 0 | L78: 0 | M78: 0 | N78: 0 | O78: 0 | P78: 0 | Q78: 0 | R78: 0 | S78: 0 | T78: 0 | U78: 0 | V78: 0 | W78: 0 | X78: 0 | Y78: 0 | Z78: 0 | AA78: 0 | AB78: 0 | AC78: 0 | AD78: 0 | AE78: 0 | AF78: 0 | AG78: 0 | AH78: =IF(AND($A$27, AH27>0),1,0) -> 0 | AI78: 0
B79: Clinker | E79: =IF(AND($A$32, E32>0),1,0) -> 0 | F79: =IF(AND($A$32, F32>0),1,0) -> 0 | G79: 0 | H79: 0 | I79: 0 | J79: 0 | K79: 0 | L79: 0 | M79: 0 | N79: 0 | O79: 0 | P79: 0 | Q79: 0 | R79: 0 | S79: 0 | T79: 0 | U79: 0 | V79: 0 | W79: 0 | X79: 0 | Y79: 0 | Z79: 0 | AA79: 0 | AB79: 0 | AC79: 0 | AD79: 0 | AE79: 0 | AF79: 0 | AG79: 0 | AH79: =IF(AND($A$32, AH32>0),1,0) -> 0 | AI79: 0
B80: Cement production | E80: =IF(AND($A$33, E33>0),1,0) -> 0 | F80: =IF(AND($A$33, F33>0),1,0) -> 0 | G80: 0 | H80: 0 | I80: 0 | J80: 0 | K80: 0 | L80: 0 | M80: 0 | N80: 0 | O80: 0 | P80: 0 | Q80: 0 | R80: 0 | S80: 0 | T80: 0 | U80: 0 | V80: 0 | W80: 0 | X80: 0 | Y80: 0 | Z80: 0 | AA80: 0 | AB80: 0 | AC80: 0 | AD80: 0 | AE80: 0 | AF80: 0 | AG80: 0 | AH80: =IF(AND($A$33, AH33>0),1,0) -> 0 | AI80: 0
B81: Crude Steel | E81: =IF(AND($A$37, E37>0),1,0) -> 0 | F81: =IF(AND($A$37, F37>0),1,0) -> 0 | G81: 0 | H81: 0 | I81: 0 | J81: 0 | K81: 0 | L81: 0 | M81: 0 | N81: 0 | O81: 0 | P81: 0 | Q81: 0 | R81: 0 | S81: 0 | T81: 0 | U81: 0 | V81: 0 | W81: 0 | X81: 0 | Y81: 0 | Z81: 0 | AA81: 0 | AB81: 0 | AC81: 0 | AD81: 0 | AE81: 0 | AF81: 0 | AG81: 0 | AH81: =IF(AND($A$37, AH37>0),1,0) -> 0 | AI81: 0
B82: Basic Oxygen Furnace production | E82: =IF(AND($A$38, E38>0),1,0) -> 0 | F82: =IF(AND($A$38, F38>0),1,0) -> 0 | G82: 0 | H82: 0 | I82: 0 | J82: 0 | K82: 0 | L82: 0 | M82: 0 | N82: 0 | O82: 0 | P82: 0 | Q82: 0 | R82: 0 | S82: 0 | T82: 0 | U82: 0 | V82: 0 | W82: 0 | X82: 0 | Y82: 0 | Z82: 0 | AA82: 0 | AB82: 0 | AC82: 0 | AD82: 0 | AE82: 0 | AF82: 0 | AG82: 0 | AH82: =IF(AND($A$38, AH38>0),1,0) -> 0 | AI82: 0
B83: Electric Arc Furnace production | E83: =IF(AND($A$39, E39>0),1,0) -> 0 | F83: =IF(AND($A$39, F39>0),1,0) -> 0 | G83: 0 | H83: 0 | I83: 0 | J83: 0 | K83: 0 | L83: 0 | M83: 0 | N83: 0 | O83: 0 | P83: 0 | Q83: 0 | R83: 0 | S83: 0 | T83: 0 | U83: 0 | V83: 0 | W83: 0 | X83: 0 | Y83: 0 | Z83: 0 | AA83: 0 | AB83: 0 | AC83: 0 | AD83: 0 | AE83: 0 | AF83: 0 | AG83: 0 | AH83: =IF(AND($A$39, AH39>0),1,0) -> 0 | AI83: 0
B84: Direct Reduced Iron | E84: =IF(AND($A$40, E40>0),1,0) -> 0 | F84: =IF(AND($A$40, F40>0),1,0) -> 0 | G84: 0 | H84: 0 | I84: 0 | J84: 0 | K84: 0 | L84: 0 | M84: 0 | N84: 0 | O84: 0 | P84: 0 | Q84: 0 | R84: 0 | S84: 0 | T84: 0 | U84: 0 | V84: 0 | W84: 0 | X84: 0 | Y84: 0 | Z84: 0 | AA84: 0 | AB84: 0 | AC84: 0 | AD84: 0 | AE84: 0 | AF84: 0 | AG84: 0 | AH84: =IF(AND($A$40, AH40>0),1,0) -> 0 | AI84: 0
B85: Bauxite | E85: =IF(AND($A$43, E43>0),1,0) -> 0 | F85: =IF(AND($A$43, F43>0),1,0) -> 0 | G85: 0 | H85: 0 | I85: 0 | J85: 0 | K85: 0 | L85: 0 | M85: 0 | N85: 0 | O85: 0 | P85: 0 | Q85: 0 | R85: 0 | S85: 0 | T85: 0 | U85: 0 | V85: 0 | W85: 0 | X85: 0 | Y85: 0 | Z85: 0 | AA85: 0 | AB85: 0 | AC85: 0 | AD85: 0 | AE85: 0 | AF85: 0 | AG85: 0 | AH85: =IF(AND($A$43, AH43>0),1,0) -> 0 | AI85: 0
B86: Alumina refining | E86: =IF(AND($A$44, E44>0),1,0) -> 0 | F86: =IF(AND($A$44, F44>0),1,0) -> 0 | G86: 0 | H86: 0 | I86: 0 | J86: 0 | K86: 0 | L86: 0 | M86: 0 | N86: 0 | O86: 0 | P86: 0 | Q86: 0 | R86: 0 | S86: 0 | T86: 0 | U86: 0 | V86: 0 | W86: 0 | X86: 0 | Y86: 0 | Z86: 0 | AA86: 0 | AB86: 0 | AC86: 0 | AD86: 0 | AE86: 0 | AF86: 0 | AG86: 0 | AH86: =IF(AND($A$44, AH44>0),1,0) -> 0 | AI86: 0
B87: Aluminium | E87: =IF(AND($A$45, E45>0),1,0) -> 0 | F87: =IF(AND($A$45, F45>0),1,0) -> 0 | G87: 0 | H87: 0 | I87: 0 | J87: 0 | K87: 0 | L87: 0 | M87: 0 | N87: 0 | O87: 0 | P87: 0 | Q87: 0 | R87: 0 | S87: 0 | T87: 0 | U87: 0 | V87: 0 | W87: 0 | X87: 0 | Y87: 0 | Z87: 0 | AA87: 0 | AB87: 0 | AC87: 0 | AD87: 0 | AE87: 0 | AF87: 0 | AG87: 0 | AH87: =IF(AND($A$45, AH45>0),1,0) -> 0 | AI87: 0
B88: Primary production | E88: =IF(AND($A$46, E46>0),1,0) -> 0 | F88: =IF(AND($A$46, F46>0),1,0) -> 0 | G88: 0 | H88: 0 | I88: 0 | J88: 0 | K88: 0 | L88: 0 | M88: 0 | N88: 0 | O88: 0 | P88: 0 | Q88: 0 | R88: 0 | S88: 0 | T88: 0 | U88: 0 | V88: 0 | W88: 0 | X88: 0 | Y88: 0 | Z88: 0 | AA88: 0 | AB88: 0 | AC88: 0 | AD88: 0 | AE88: 0 | AF88: 0 | AG88: 0 | AH88: =IF(AND($A$46, AH46>0),1,0) -> 0 | AI88: 0
B89: Recycled production | E89: =IF(AND($A$47, E47>0),1,0) -> 0 | F89: =IF(AND($A$47, F47>0),1,0) -> 0 | G89: 0 | H89: 0 | I89: 0 | J89: 0 | K89: 0 | L89: 0 | M89: 0 | N89: 0 | O89: 0 | P89: 0 | Q89: 0 | R89: 0 | S89: 0 | T89: 0 | U89: 0 | V89: 0 | W89: 0 | X89: 0 | Y89: 0 | Z89: 0 | AA89: 0 | AB89: 0 | AC89: 0 | AD89: 0 | AE89: 0 | AF89: 0 | AG89: 0 | AH89: =IF(AND($A$47, AH47>0),1,0) -> 0 | AI89: 0
A90: DATA COVERAGE TOTAL | E90: =SUM(E61:E89)/COUNTIF($A$4:$A$50,"=True") -> 0 | F90: =SUM(F61:F89)/COUNTIF($A$4:$A$50,"=True") -> 0 | G90: 0 | H90: 0 | I90: 0 | J90: 0 | K90: 0 | L90: 0 | M90: 0 | N90: 0 | O90: 0 | P90: 0 | Q90: 0 | R90: 0 | S90: 0 | T90: 0 | U90: 0 | V90: 0 | W90: 0 | X90: 0 | Y90: 0 | Z90: 0 | AA90: 0 | AB90: 0 | AC90: 0 | AD90: 0 | AE90: 0 | AF90: 0 | AG90: 0 | AH90: =SUM(AH61:AH89)/COUNTIF($A$4:$A$50,"=True") -> 0 | AI90: 0
A94: STRUCTURE
B95: pulp and paper | E95: =E166/E213 ->  | F95: =F166/F213 ->  | AH95: =AH166/AH213 -> 
B96: paper and paperboard | E96: =E174/E221 ->  | F96: =F174/F221 ->  | AH96: =AH174/AH221 -> 
B97: 24: Manufacture of chemicals and chemical products | E97: =E183/E230 ->  | F97: =F183/F230 ->  | AH97: =AH183/AH230 -> 
B98: 26: Manufacture of other non-metallic mineral products | E98: =E189/E236 ->  | F98: =F189/F236 ->  | AH98: =AH189/AH236 ->  | AI98: =AI189/AI236 -> 
B99: crude steel | E99: =E196/E243 ->  | F99: =F196/F243 ->  | AH99: =AH196/AH243 -> 
B100: other metals | E100: =E203/E250 ->  | F100: =F203/F250 ->  | AH100: =AH203/AH250 -> 
A102: PRODUCTION TOTALS
B103: pulp and paper | E103: =E8+E5 -> 0 | F103: =F8+F5 -> 0 | G103: 0 | H103: 0 | I103: 0 | J103: 0 | K103: 0 | L103: 0 | M103: 0 | N103: 0 | O103: 0 | P103: 0 | Q103: 0 | R103: 0 | S103: 0 | T103: 0 | U103: 0 | V103: 0 | W103: 0 | X103: 0 | Y103: 0 | Z103: 0 | AA103: 0 | AB103: 0 | AC103: 0 | AD103: 0 | AE103: 0 | AF103: 0 | AG103: 0 | AH103: =AH8+AH5 -> 0 | AI103: 0
B104: paper and paperboard | E104: =E13 -> 0 | F104: =F13 -> 0 | G104: 0 | H104: 0 | I104: 0 | J104: 0 | K104: 0 | L104: 0 | M104: 0 | N104: 0 | O104: 0 | P104: 0 | Q104: 0 | R104: 0 | S104: 0 | T104: 0 | U104: 0 | V104: 0 | W104: 0 | X104: 0 | Y104: 0 | Z104: 0 | AA104: 0 | AB104: 0 | AC104: 0 | AD104: 0 | AE104: 0 | AF104: 0 | AG104: 0 | AH104: =AH13 -> 0 | AI104: 0
B105: 24: Manufacture of chemicals and chemical products | E105: =SUM(E22:E26) -> 0 | F105: =SUM(F22:F26) -> 0 | G105: 0 | H105: 0 | I105: 0 | J105: 0 | K105: 0 | L105: 0 | M105: 0 | N105: 0 | O105: 0 | P105: 0 | Q105: 0 | R105: 0 | S105: 0 | T105: 0 | U105: 0 | V105: 0 | W105: 0 | X105: 0 | Y105: 0 | Z105: 0 | AA105: 0 | AB105: 0 | AC105: 0 | AD105: 0 | AE105: 0 | AF105: 0 | AG105: 0 | AH105: =SUM(AH22:AH26) -> 0 | AI105: 0
B106: 26: Manufacture of other non-metallic mineral products | E106: =E31 -> 0 | F106: =F31 -> 0 | G106: 0 | H106: 0 | I106: 0 | J106: 0 | K106: 0 | L106: 0 | M106: 0 | N106: 0 | O106: 0 | P106: 0 | Q106: 0 | R106: 0 | S106: 0 | T106: 0 | U106: 0 | V106: 0 | W106: 0 | X106: 0 | Y106: 0 | Z106: 0 | AA106: 0 | AB106: 0 | AC106: 0 | AD106: 0 | AE106: 0 | AF106: 0 | AG106: 0 | AH106: =AH31 -> 0 | AI106: 0
B107: crude steel | E107: =E37 -> 0 | F107: =F37 -> 0 | G107: 0 | H107: 0 | I107: 0 | J107: 0 | K107: 0 | L107: 0 | M107: 0 | N107: 0 | O107: 0 | P107: 0 | Q107: 0 | R107: 0 | S107: 0 | T107: 0 | U107: 0 | V107: 0 | W107: 0 | X107: 0 | Y107: 0 | Z107: 0 | AA107: 0 | AB107: 0 | AC107: 0 | AD107: 0 | AE107: 0 | AF107: 0 | AG107: 0 | AH107: =AH37 -> 0 | AI107: 0
B108: other metals | E108: =SUM(E43:E45) -> 0 | F108: =SUM(F43:F45) -> 0 | G108: 0 | H108: 0 | I108: 0 | J108: 0 | K108: 0 | L108: 0 | M108: 0 | N108: 0 | O108: 0 | P108: 0 | Q108: 0 | R108: 0 | S108: 0 | T108: 0 | U108: 0 | V108: 0 | W108: 0 | X108: 0 | Y108: 0 | Z108: 0 | AA108: 0 | AB108: 0 | AC108: 0 | AD108: 0 | AE108: 0 | AF108: 0 | AG108: 0 | AH108: =SUM(AH43:AH45) -> 0 | AI108: 0
A111: average intensity GJ/t (from ETP industry model)
B112: =B4 -> 17: Manufacture of paper and paper products
B113: Pulp | E113: 0
B114: Chemical pulp | E114: 9.077444346
B115: Mechanical pulp | E115: 15.6878514
B116: Recovered Paper | E116: 0
B117: Inked | E117: 0.86
B118: De-inked | E118: 3.62
B121: =B13 -> Paper and paperboard | E121: 0
B122: Household + Sanitary Paper | E122: 8.503056859
B123: Newsprint | E123: 6.106886516
B124: Printing + Writing Paper | E124: 6.536277965
B125: Wrapping + Packaging Paper + Paperboard | E125: 5.680346627
B126: Other | E126: 7.76
B129: =B21 -> 20 - 21: Manufacture of chemicals and chemical products & basic pharmaceutical products and pharmaceutical preparations
B130: Ethylene | E130: 62.08928048
B131: Propylene | E131: 62.09505388
B132: BTX | E132: 61.97168603
B133: Ammonia (NH3) | E133: 41.55465921
B134: Butadiene | E134: 52.25
B135: Caustic Soda | E135: 0.6
B138: =B30 -> 23: Manufacture of other non-metallic mineral products
B139: =B31 -> Cement | E139: 0
B140: =B32 -> Clinker production | E140: 4.731499638
B141: =B33 -> Cement production | E141: 3.738416843
B144: =B36 -> 24: Manufacture of basic metals
B145: =B37 -> Crude Steel | E145: 0
B146: =B38 -> Basic Oxygen Furnace production | E146: 12.22272972
B147: =B39 -> Electric Arc Furnace production | E147: 4.016021737
B148: =B40 -> Direct Reduced Iron | E148: 11
B151: =B43 -> Bauxite | E151: 0.045
B152: =B44 -> Alumina refining | E152: 15.68319413
B153: =B45 -> Aluminium | E153: 34.76810514
B154: =B46 -> Primary production | E154: 65.08236048
B155: =B47 -> Recycled production | E155: 5.459026088
A158: ASSUMED ENERGY USE
B159: =B112 -> 17: Manufacture of paper and paper products
B160: Pulp | E160: =$E113*E5 -> 0 | F160: =$E113*F5 -> 0 | G160: 0 | H160: 0 | I160: 0 | J160: 0 | K160: 0 | L160: 0 | M160: 0 | N160: 0 | O160: 0 | P160: 0 | Q160: 0 | R160: 0 | S160: 0 | T160: 0 | U160: 0 | V160: 0 | W160: 0 | X160: 0 | Y160: 0 | Z160: 0 | AA160: 0 | AB160: 0 | AC160: 0 | AD160: 0 | AE160: 0 | AF160: 0 | AG160: 0 | AH160: =$E113*AH5 -> 0 | AI160: 0
B161: Chemical pulp | E161: =$E114*E6 -> 0 | F161: =$E114*F6 -> 0 | G161: 0 | H161: 0 | I161: 0 | J161: 0 | K161: 0 | L161: 0 | M161: 0 | N161: 0 | O161: 0 | P161: 0 | Q161: 0 | R161: 0 | S161: 0 | T161: 0 | U161: 0 | V161: 0 | W161: 0 | X161: 0 | Y161: 0 | Z161: 0 | AA161: 0 | AB161: 0 | AC161: 0 | AD161: 0 | AE161: 0 | AF161: 0 | AG161: 0 | AH161: =$E114*AH6 -> 0 | AI161: 0
B162: Mechanical pulp | E162: =$E115*E7 -> 0 | F162: =$E115*F7 -> 0 | G162: 0 | H162: 0 | I162: 0 | J162: 0 | K162: 0 | L162: 0 | M162: 0 | N162: 0 | O162: 0 | P162: 0 | Q162: 0 | R162: 0 | S162: 0 | T162: 0 | U162: 0 | V162: 0 | W162: 0 | X162: 0 | Y162: 0 | Z162: 0 | AA162: 0 | AB162: 0 | AC162: 0 | AD162: 0 | AE162: 0 | AF162: 0 | AG162: 0 | AH162: =$E115*AH7 -> 0 | AI162: 0
B163: Recovered Paper | E163: =$E116*E8 -> 0 | F163: =$E116*F8 -> 0 | G163: 0 | H163: 0 | I163: 0 | J163: 0 | K163: 0 | L163: 0 | M163: 0 | N163: 0 | O163: 0 | P163: 0 | Q163: 0 | R163: 0 | S163: 0 | T163: 0 | U163: 0 | V163: 0 | W163: 0 | X163: 0 | Y163: 0 | Z163: 0 | AA163: 0 | AB163: 0 | AC163: 0 | AD163: 0 | AE163: 0 | AF163: 0 | AG163: 0 | AH163: =$E116*AH8 -> 0 | AI163: 0
B164: Inked | E164: =$E117*E9 -> 0 | F164: =$E117*F9 -> 0 | G164: 0 | H164: 0 | I164: 0 | J164: 0 | K164: 0 | L164: 0 | M164: 0 | N164: 0 | O164: 0 | P164: 0 | Q164: 0 | R164: 0 | S164: 0 | T164: 0 | U164: 0 | V164: 0 | W164: 0 | X164: 0 | Y164: 0 | Z164: 0 | AA164: 0 | AB164: 0 | AC164: 0 | AD164: 0 | AE164: 0 | AF164: 0 | AG164: 0 | AH164: =$E117*AH9 -> 0 | AI164: 0
B165: De-inked | E165: =$E118*E10 -> 0 | F165: =$E118*F10 -> 0 | G165: 0 | H165: 0 | I165: 0 | J165: 0 | K165: 0 | L165: 0 | M165: 0 | N165: 0 | O165: 0 | P165: 0 | Q165: 0 | R165: 0 | S165: 0 | T165: 0 | U165: 0 | V165: 0 | W165: 0 | X165: 0 | Y165: 0 | Z165: 0 | AA165: 0 | AB165: 0 | AC165: 0 | AD165: 0 | AE165: 0 | AF165: 0 | AG165: 0 | AH165: =$E118*AH10 -> 0 | AI165: 0
B166: TOTAL | E166: =SUM(IF(E161*E162>0,E161+E162,E160),IF(E164*E165>0,E164+E165,E163)) -> 0 | F166: =SUM(IF(F161*F162>0,F161+F162,F160),IF(F164*F165>0,F164+F165,F163)) -> 0 | G166: 0 | H166: 0 | I166: 0 | J166: 0 | K166: 0 | L166: 0 | M166: 0 | N166: 0 | O166: 0 | P166: 0 | Q166: 0 | R166: 0 | S166: 0 | T166: 0 | U166: 0 | V166: 0 | W166: 0 | X166: 0 | Y166: 0 | Z166: 0 | AA166: 0 | AB166: 0 | AC166: 0 | AD166: 0 | AE166: 0 | AF166: 0 | AG166: 0 | AH166: =SUM(IF(AH161*AH162>0,AH161+AH162,AH160),IF(AH164*AH165>0,AH164+AH165,AH163)) -> 0 | AI166: 0
B168: =B121 -> Paper and paperboard | E168: =$E121*E13 -> 0 | F168: =$E121*F13 -> 0 | G168: 0 | H168: 0 | I168: 0 | J168: 0 | K168: 0 | L168: 0 | M168: 0 | N168: 0 | O168: 0 | P168: 0 | Q168: 0 | R168: 0 | S168: 0 | T168: 0 | U168: 0 | V168: 0 | W168: 0 | X168: 0 | Y168: 0 | Z168: 0 | AA168: 0 | AB168: 0 | AC168: 0 | AD168: 0 | AE168: 0 | AF168: 0 | AG168: 0 | AH168: =$E121*AH13 -> 0 | AI168: 0
B169: Household + Sanitary Paper | E169: =$E122*E14 -> 0 | F169: =$E122*F14 -> 0 | G169: 0 | H169: 0 | I169: 0 | J169: 0 | K169: 0 | L169: 0 | M169: 0 | N169: 0 | O169: 0 | P169: 0 | Q169: 0 | R169: 0 | S169: 0 | T169: 0 | U169: 0 | V169: 0 | W169: 0 | X169: 0 | Y169: 0 | Z169: 0 | AA169: 0 | AB169: 0 | AC169: 0 | AD169: 0 | AE169: 0 | AF169: 0 | AG169: 0 | AH169: =$E122*AH14 -> 0 | AI169: 0
B170: Newsprint | E170: =$E123*E15 -> 0 | F170: =$E123*F15 -> 0 | G170: 0 | H170: 0 | I170: 0 | J170: 0 | K170: 0 | L170: 0 | M170: 0 | N170: 0 | O170: 0 | P170: 0 | Q170: 0 | R170: 0 | S170: 0 | T170: 0 | U170: 0 | V170: 0 | W170: 0 | X170: 0 | Y170: 0 | Z170: 0 | AA170: 0 | AB170: 0 | AC170: 0 | AD170: 0 | AE170: 0 | AF170: 0 | AG170: 0 | AH170: =$E123*AH15 -> 0 | AI170: 0
B171: Printing + Writing Paper | E171: =$E124*E16 -> 0 | F171: =$E124*F16 -> 0 | G171: 0 | H171: 0 | I171: 0 | J171: 0 | K171: 0 | L171: 0 | M171: 0 | N171: 0 | O171: 0 | P171: 0 | Q171: 0 | R171: 0 | S171: 0 | T171: 0 | U171: 0 | V171: 0 | W171: 0 | X171: 0 | Y171: 0 | Z171: 0 | AA171: 0 | AB171: 0 | AC171: 0 | AD171: 0 | AE171: 0 | AF171: 0 | AG171: 0 | AH171: =$E124*AH16 -> 0 | AI171: 0
B172: Wrapping + Packaging Paper + Paperboard | E172: =$E125*E17 -> 0 | F172: =$E125*F17 -> 0 | G172: 0 | H172: 0 | I172: 0 | J172: 0 | K172: 0 | L172: 0 | M172: 0 | N172: 0 | O172: 0 | P172: 0 | Q172: 0 | R172: 0 | S172: 0 | T172: 0 | U172: 0 | V172: 0 | W172: 0 | X172: 0 | Y172: 0 | Z172: 0 | AA172: 0 | AB172: 0 | AC172: 0 | AD172: 0 | AE172: 0 | AF172: 0 | AG172: 0 | AH172: =$E125*AH17 -> 0 | AI172: 0
B173: Other | E173: =$E126*E18 -> 0 | F173: =$E126*F18 -> 0 | G173: 0 | H173: 0 | I173: 0 | J173: 0 | K173: 0 | L173: 0 | M173: 0 | N173: 0 | O173: 0 | P173: 0 | Q173: 0 | R173: 0 | S173: 0 | T173: 0 | U173: 0 | V173: 0 | W173: 0 | X173: 0 | Y173: 0 | Z173: 0 | AA173: 0 | AB173: 0 | AC173: 0 | AD173: 0 | AE173: 0 | AF173: 0 | AG173: 0 | AH173: =$E126*AH18 -> 0 | AI173: 0
B174: TOTAL | E174: =SUM(E169:E173) -> 0 | F174: =SUM(F169:F173) -> 0 | G174: 0 | H174: 0 | I174: 0 | J174: 0 | K174: 0 | L174: 0 | M174: 0 | N174: 0 | O174: 0 | P174: 0 | Q174: 0 | R174: 0 | S174: 0 | T174: 0 | U174: 0 | V174: 0 | W174: 0 | X174: 0 | Y174: 0 | Z174: 0 | AA174: 0 | AB174: 0 | AC174: 0 | AD174: 0 | AE174: 0 | AF174: 0 | AG174: 0 | AH174: =SUM(AH169:AH173) -> 0 | AI174: 0
B176: =B129 -> 20 - 21: Manufacture of chemicals and chemical products & basic pharmaceutical products and pharmaceutical preparations
B177: Ethylene | E177: =$E130*E22 -> 0 | F177: =$E130*F22 -> 0 | G177: 0 | H177: 0 | I177: 0 | J177: 0 | K177: 0 | L177: 0 | M177: 0 | N177: 0 | O177: 0 | P177: 0 | Q177: 0 | R177: 0 | S177: 0 | T177: 0 | U177: 0 | V177: 0 | W177: 0 | X177: 0 | Y177: 0 | Z177: 0 | AA177: 0 | AB177: 0 | AC177: 0 | AD177: 0 | AE177: 0 | AF177: 0 | AG177: 0 | AH177: =$E130*AH22 -> 0 | AI177: 0
B178: Propylene | E178: =$E131*E23 -> 0 | F178: =$E131*F23 -> 0 | G178: 0 | H178: 0 | I178: 0 | J178: 0 | K178: 0 | L178: 0 | M178: 0 | N178: 0 | O178: 0 | P178: 0 | Q178: 0 | R178: 0 | S178: 0 | T178: 0 | U178: 0 | V178: 0 | W178: 0 | X178: 0 | Y178: 0 | Z178: 0 | AA178: 0 | AB178: 0 | AC178: 0 | AD178: 0 | AE178: 0 | AF178: 0 | AG178: 0 | AH178: =$E131*AH23 -> 0 | AI178: 0
B179: BTX | E179: =$E132*E24 -> 0 | F179: =$E132*F24 -> 0 | G179: 0 | H179: 0 | I179: 0 | J179: 0 | K179: 0 | L179: 0 | M179: 0 | N179: 0 | O179: 0 | P179: 0 | Q179: 0 | R179: 0 | S179: 0 | T179: 0 | U179: 0 | V179: 0 | W179: 0 | X179: 0 | Y179: 0 | Z179: 0 | AA179: 0 | AB179: 0 | AC179: 0 | AD179: 0 | AE179: 0 | AF179: 0 | AG179: 0 | AH179: =$E132*AH24 -> 0 | AI179: 0
B180: Ammonia (NH3) | E180: =$E133*E25 -> 0 | F180: =$E133*F25 -> 0 | G180: 0 | H180: 0 | I180: 0 | J180: 0 | K180: 0 | L180: 0 | M180: 0 | N180: 0 | O180: 0 | P180: 0 | Q180: 0 | R180: 0 | S180: 0 | T180: 0 | U180: 0 | V180: 0 | W180: 0 | X180: 0 | Y180: 0 | Z180: 0 | AA180: 0 | AB180: 0 | AC180: 0 | AD180: 0 | AE180: 0 | AF180: 0 | AG180: 0 | AH180: =$E133*AH25 -> 0 | AI180: 0
B181: Butadiene | E181: =$E134*E26 -> 0 | F181: =$E134*F26 -> 0 | G181: 0 | H181: 0 | I181: 0 | J181: 0 | K181: 0 | L181: 0 | M181: 0 | N181: 0 | O181: 0 | P181: 0 | Q181: 0 | R181: 0 | S181: 0 | T181: 0 | U181: 0 | V181: 0 | W181: 0 | X181: 0 | Y181: 0 | Z181: 0 | AA181: 0 | AB181: 0 | AC181: 0 | AD181: 0 | AE181: 0 | AF181: 0 | AG181: 0 | AH181: =$E134*AH26 -> 0 | AI181: 0
B182: Caustic Soda | E182: =$E135*E27 -> 0 | F182: =$E135*F27 -> 0 | G182: 0 | H182: 0 | I182: 0 | J182: 0 | K182: 0 | L182: 0 | M182: 0 | N182: 0 | O182: 0 | P182: 0 | Q182: 0 | R182: 0 | S182: 0 | T182: 0 | U182: 0 | V182: 0 | W182: 0 | X182: 0 | Y182: 0 | Z182: 0 | AA182: 0 | AB182: 0 | AC182: 0 | AD182: 0 | AE182: 0 | AF182: 0 | AG182: 0 | AH182: =$E135*AH27 -> 0 | AI182: 0
B183: TOTAL | E183: =SUM(E177:E182) -> 0 | F183: =SUM(F177:F182) -> 0 | G183: 0 | H183: 0 | I183: 0 | J183: 0 | K183: 0 | L183: 0 | M183: 0 | N183: 0 | O183: 0 | P183: 0 | Q183: 0 | R183: 0 | S183: 0 | T183: 0 | U183: 0 | V183: 0 | W183: 0 | X183: 0 | Y183: 0 | Z183: 0 | AA183: 0 | AB183: 0 | AC183: 0 | AD183: 0 | AE183: 0 | AF183: 0 | AG183: 0 | AH183: =SUM(AH177:AH182) -> 0 | AI183: 0
B185: =B138 -> 23: Manufacture of other non-metallic mineral products
B186: Cement
B187: Clinker production | E187: =$E140*E32 -> 0 | F187: =$E140*F32 -> 0 | G187: 0 | H187: 0 | I187: 0 | J187: 0 | K187: 0 | L187: 0 | M187: 0 | N187: 0 | O187: 0 | P187: 0 | Q187: 0 | R187: 0 | S187: 0 | T187: 0 | U187: 0 | V187: 0 | W187: 0 | X187: 0 | Y187: 0 | Z187: 0 | AA187: 0 | AB187: 0 | AC187: 0 | AD187: 0 | AE187: 0 | AF187: 0 | AG187: 0 | AH187: =$E140*AH32 -> 0 | AI187: 0
B188: Cement production | E188: =$E141*E33 -> 0 | F188: =$E141*F33 -> 0 | G188: 0 | H188: 0 | I188: 0 | J188: 0 | K188: 0 | L188: 0 | M188: 0 | N188: 0 | O188: 0 | P188: 0 | Q188: 0 | R188: 0 | S188: 0 | T188: 0 | U188: 0 | V188: 0 | W188: 0 | X188: 0 | Y188: 0 | Z188: 0 | AA188: 0 | AB188: 0 | AC188: 0 | AD188: 0 | AE188: 0 | AF188: 0 | AG188: 0 | AH188: =$E141*AH33 -> 0 | AI188: 0
B189: TOTAL | E189: =IF(E187*E188>0,E187+E188,E186) -> 0 | F189: =IF(F187*F188>0,F187+F188,F186) -> 0 | G189: 0 | H189: 0 | I189: 0 | J189: 0 | K189: 0 | L189: 0 | M189: 0 | N189: 0 | O189: 0 | P189: 0 | Q189: 0 | R189: 0 | S189: 0 | T189: 0 | U189: 0 | V189: 0 | W189: 0 | X189: 0 | Y189: 0 | Z189: 0 | AA189: 0 | AB189: 0 | AC189: 0 | AD189: 0 | AE189: 0 | AF189: 0 | AG189: 0 | AH189: =IF(AH187*AH188>0,AH187+AH188,AH186) -> 0 | AI189: 0
B191: 24: Manufacture of basic metals
B192: Crude Steel | E192: =$E145*E37 -> 0 | F192: =$E145*F37 -> 0 | G192: 0 | H192: 0 | I192: 0 | J192: 0 | K192: 0 | L192: 0 | M192: 0 | N192: 0 | O192: 0 | P192: 0 | Q192: 0 | R192: 0 | S192: 0 | T192: 0 | U192: 0 | V192: 0 | W192: 0 | X192: 0 | Y192: 0 | Z192: 0 | AA192: 0 | AB192: 0 | AC192: 0 | AD192: 0 | AE192: 0 | AF192: 0 | AG192: 0 | AH192: =$E145*AH37 -> 0 | AI192: 0
B193: Basic Oxygen Furnace production | E193: =$E146*E38 -> 0 | F193: =$E146*F38 -> 0 | G193: 0 | H193: 0 | I193: 0 | J193: 0 | K193: 0 | L193: 0 | M193: 0 | N193: 0 | O193: 0 | P193: 0 | Q193: 0 | R193: 0 | S193: 0 | T193: 0 | U193: 0 | V193: 0 | W193: 0 | X193: 0 | Y193: 0 | Z193: 0 | AA193: 0 | AB193: 0 | AC193: 0 | AD193: 0 | AE193: 0 | AF193: 0 | AG193: 0 | AH193: =$E146*AH38 -> 0 | AI193: 0
B194: Electric Arc Furnace production | E194: =$E147*E39 -> 0 | F194: =$E147*F39 -> 0 | G194: 0 | H194: 0 | I194: 0 | J194: 0 | K194: 0 | L194: 0 | M194: 0 | N194: 0 | O194: 0 | P194: 0 | Q194: 0 | R194: 0 | S194: 0 | T194: 0 | U194: 0 | V194: 0 | W194: 0 | X194: 0 | Y194: 0 | Z194: 0 | AA194: 0 | AB194: 0 | AC194: 0 | AD194: 0 | AE194: 0 | AF194: 0 | AG194: 0 | AH194: =$E147*AH39 -> 0 | AI194: 0
B195: Direct Reduced Iron | E195: =$E148*E40 -> 0 | F195: =$E148*F40 -> 0 | G195: 0 | H195: 0 | I195: 0 | J195: 0 | K195: 0 | L195: 0 | M195: 0 | N195: 0 | O195: 0 | P195: 0 | Q195: 0 | R195: 0 | S195: 0 | T195: 0 | U195: 0 | V195: 0 | W195: 0 | X195: 0 | Y195: 0 | Z195: 0 | AA195: 0 | AB195: 0 | AC195: 0 | AD195: 0 | AE195: 0 | AF195: 0 | AG195: 0 | AH195: =$E148*AH40 -> 0 | AI195: 0
B196: TOTAL | E196: =IF(E195*E194*E193>0,SUM(E193:E195),E192) -> 0 | F196: =IF(F195*F194*F193>0,SUM(F193:F195),F192) -> 0 | G196: 0 | H196: 0 | I196: 0 | J196: 0 | K196: 0 | L196: 0 | M196: 0 | N196: 0 | O196: 0 | P196: 0 | Q196: 0 | R196: 0 | S196: 0 | T196: 0 | U196: 0 | V196: 0 | W196: 0 | X196: 0 | Y196: 0 | Z196: 0 | AA196: 0 | AB196: 0 | AC196: 0 | AD196: 0 | AE196: 0 | AF196: 0 | AG196: 0 | AH196: =IF(AH195*AH194*AH193>0,SUM(AH193:AH195),AH192) -> 0 | AI196: 0
B198: Bauxite | E198: =$E151*E43 -> 0 | F198: =$E151*F43 -> 0 | G198: 0 | H198: 0 | I198: 0 | J198: 0 | K198: 0 | L198: 0 | M198: 0 | N198: 0 | O198: 0 | P198: 0 | Q198: 0 | R198: 0 | S198: 0 | T198: 0 | U198: 0 | V198: 0 | W198: 0 | X198: 0 | Y198: 0 | Z198: 0 | AA198: 0 | AB198: 0 | AC198: 0 | AD198: 0 | AE198: 0 | AF198: 0 | AG198: 0 | AH198: =$E151*AH43 -> 0 | AI198: 0
B199: Alumina refining | E199: =$E152*E44 -> 0 | F199: =$E152*F44 -> 0 | G199: 0 | H199: 0 | I199: 0 | J199: 0 | K199: 0 | L199: 0 | M199: 0 | N199: 0 | O199: 0 | P199: 0 | Q199: 0 | R199: 0 | S199: 0 | T199: 0 | U199: 0 | V199: 0 | W199: 0 | X199: 0 | Y199: 0 | Z199: 0 | AA199: 0 | AB199: 0 | AC199: 0 | AD199: 0 | AE199: 0 | AF199: 0 | AG199: 0 | AH199: =$E152*AH44 -> 0 | AI199: 0
B200: Aluminium | E200: =$E153*E45 -> 0 | F200: =$E153*F45 -> 0 | G200: 0 | H200: 0 | I200: 0 | J200: 0 | K200: 0 | L200: 0 | M200: 0 | N200: 0 | O200: 0 | P200: 0 | Q200: 0 | R200: 0 | S200: 0 | T200: 0 | U200: 0 | V200: 0 | W200: 0 | X200: 0 | Y200: 0 | Z200: 0 | AA200: 0 | AB200: 0 | AC200: 0 | AD200: 0 | AE200: 0 | AF200: 0 | AG200: 0 | AH200: =$E153*AH45 -> 0 | AI200: 0
B201: Primary production | E201: =$E154*E46 -> 0 | F201: =$E154*F46 -> 0 | G201: 0 | H201: 0 | I201: 0 | J201: 0 | K201: 0 | L201: 0 | M201: 0 | N201: 0 | O201: 0 | P201: 0 | Q201: 0 | R201: 0 | S201: 0 | T201: 0 | U201: 0 | V201: 0 | W201: 0 | X201: 0 | Y201: 0 | Z201: 0 | AA201: 0 | AB201: 0 | AC201: 0 | AD201: 0 | AE201: 0 | AF201: 0 | AG201: 0 | AH201: =$E154*AH46 -> 0 | AI201: 0
B202: Recycled production | E202: =$E155*E47 -> 0 | F202: =$E155*F47 -> 0 | G202: 0 | H202: 0 | I202: 0 | J202: 0 | K202: 0 | L202: 0 | M202: 0 | N202: 0 | O202: 0 | P202: 0 | Q202: 0 | R202: 0 | S202: 0 | T202: 0 | U202: 0 | V202: 0 | W202: 0 | X202: 0 | Y202: 0 | Z202: 0 | AA202: 0 | AB202: 0 | AC202: 0 | AD202: 0 | AE202: 0 | AF202: 0 | AG202: 0 | AH202: =$E155*AH47 -> 0 | AI202: 0
B203: TOTAL | E203: =SUM(E198:E199,IF(E201*E202>0,SUM(E201:E202),E200)) -> 0 | F203: =SUM(F198:F199,IF(F201*F202>0,SUM(F201:F202),F200)) -> 0 | G203: 0 | H203: 0 | I203: 0 | J203: 0 | K203: 0 | L203: 0 | M203: 0 | N203: 0 | O203: 0 | P203: 0 | Q203: 0 | R203: 0 | S203: 0 | T203: 0 | U203: 0 | V203: 0 | W203: 0 | X203: 0 | Y203: 0 | Z203: 0 | AA203: 0 | AB203: 0 | AC203: 0 | AD203: 0 | AE203: 0 | AF203: 0 | AG203: 0 | AH203: =SUM(AH198:AH199,IF(AH201*AH202>0,SUM(AH201:AH202),AH200)) -> 0 | AI203: 0
A205: CONSTANT PRODUCTION SHARES
B206: =B112 -> 17: Manufacture of paper and paper products
B207: Pulp | E207: =($E5/$E$103*E$103)*$E113 ->  | F207: =($E5/$E$103*F$103)*$E113 ->  | AH207: =($E5/$E$103*AH$103)*$E113 -> 
B208: Chemical pulp | E208: =($E6/$E$103*E$103)*$E114 ->  | F208: =($E6/$E$103*F$103)*$E114 ->  | AH208: =($E6/$E$103*AH$103)*$E114 -> 
B209: Mechanical pulp | E209: =($E7/$E$103*E$103)*$E115 ->  | F209: =($E7/$E$103*F$103)*$E115 ->  | AH209: =($E7/$E$103*AH$103)*$E115 -> 
B210: Recovered Paper | E210: =($E8/$E$103*E$103)*$E116 ->  | F210: =($E8/$E$103*F$103)*$E116 ->  | AH210: =($E8/$E$103*AH$103)*$E116 -> 
B211: Inked | E211: =($E9/$E$103*E$103)*$E117 ->  | F211: =($E9/$E$103*F$103)*$E117 ->  | AH211: =($E9/$E$103*AH$103)*$E117 -> 
B212: De-inked | E212: =($E10/$E$103*E$103)*$E118 ->  | F212: =($E10/$E$103*F$103)*$E118 ->  | AH212: =($E10/$E$103*AH$103)*$E118 -> 
B213: TOTAL | E213: =SUM(IF(E208*E209>0,E208+E209,E207),IF(E211*E212>0,E211+E212,E210)) ->  | F213: =SUM(IF(F208*F209>0,F208+F209,F207),IF(F211*F212>0,F211+F212,F210)) ->  | AH213: =SUM(IF(AH208*AH209>0,AH208+AH209,AH207),IF(AH211*AH212>0,AH211+AH212,AH210)) -> 
B215: =B121 -> Paper and paperboard | E215: =($E13/$E$104*E$104)*$E121 ->  | F215: =($E13/$E$104*F$104)*$E121 ->  | AH215: =($E13/$E$104*AH$104)*$E121 -> 
B216: Household + Sanitary Paper | E216: =($E14/$E$104*E$104)*$E122 ->  | F216: =($E14/$E$104*F$104)*$E122 ->  | AH216: =($E14/$E$104*AH$104)*$E122 -> 
B217: Newsprint | E217: =($E15/$E$104*E$104)*$E123 ->  | F217: =($E15/$E$104*F$104)*$E123 ->  | AH217: =($E15/$E$104*AH$104)*$E123 -> 
B218: Printing + Writing Paper | E218: =($E16/$E$104*E$104)*$E124 ->  | F218: =($E16/$E$104*F$104)*$E124 ->  | AH218: =($E16/$E$104*AH$104)*$E124 -> 
B219: Wrapping + Packaging Paper + Paperboard | E219: =($E17/$E$104*E$104)*$E125 ->  | F219: =($E17/$E$104*F$104)*$E125 ->  | AH219: =($E17/$E$104*AH$104)*$E125 -> 
B220: Other | E220: =($E18/$E$104*E$104)*$E126 ->  | F220: =($E18/$E$104*F$104)*$E126 ->  | AH220: =($E18/$E$104*AH$104)*$E126 -> 
B221: TOTAL | E221: =SUM(E216:E220) ->  | F221: =SUM(F216:F220) ->  | AH221: =SUM(AH216:AH220) -> 
B223: =B129 -> 20 - 21: Manufacture of chemicals and chemical products & basic pharmaceutical products and pharmaceutical preparations
B224: Ethylene | E224: =($E22/$E$105*E$105)*$E130 ->  | F224: =($E22/$E$105*F$105)*$E130 ->  | AH224: =($E22/$E$105*AH$105)*$E130 -> 
B225: Propylene | E225: =($E23/$E$105*E$105)*$E131 ->  | F225: =($E23/$E$105*F$105)*$E131 ->  | AH225: =($E23/$E$105*AH$105)*$E131 -> 
B226: BTX | E226: =($E24/$E$105*E$105)*$E132 ->  | F226: =($E24/$E$105*F$105)*$E132 ->  | AH226: =($E24/$E$105*AH$105)*$E132 -> 
B227: Ammonia (NH3) | E227: =($E25/$E$105*E$105)*$E133 ->  | F227: =($E25/$E$105*F$105)*$E133 ->  | AH227: =($E25/$E$105*AH$105)*$E133 -> 
B228: Butadiene | E228: =($E26/$E$105*E$105)*$E134 ->  | F228: =($E26/$E$105*F$105)*$E134 ->  | AH228: =($E26/$E$105*AH$105)*$E134 -> 
B229: Caustic Soda | E229: =($E27/$E$105*E$105)*$E135 ->  | F229: =($E27/$E$105*F$105)*$E135 ->  | AH229: =($E27/$E$105*AH$105)*$E135 -> 
B230: TOTAL | E230: =SUM(E224:E229) ->  | F230: =SUM(F224:F229) ->  | AH230: =SUM(AH224:AH229) -> 
B232: =B138 -> 23: Manufacture of other non-metallic mineral products
B233: Cement | E233: =($E31/$E$106*E$106)*$E139 ->  | F233: =($E31/$E$106*F$106)*$E139 ->  | AH233: =($E31/$E$106*AH$106)*$E139 -> 
B234: Clinker production | E234: =($E32/$E$106*E$106)*$E140 ->  | F234: =($E32/$E$106*F$106)*$E140 ->  | AH234: =($E32/$E$106*AH$106)*$E140 -> 
B235: Cement production | E235: =($E33/$E$106*E$106)*$E141 ->  | F235: =($E33/$E$106*F$106)*$E141 ->  | AH235: =($E33/$E$106*AH$106)*$E141 -> 
B236: TOTAL | E236: =IF(E234*E235>0,E234+E235,E233) ->  | F236: =IF(F234*F235>0,F234+F235,F233) ->  | AH236: =IF(AH234*AH235>0,AH234+AH235,AH233) -> 
B238: 24: Manufacture of basic metals
B239: Crude Steel | E239: =($E37/$E$107*E$107)*$E145 ->  | F239: =($E37/$E$107*F$107)*$E145 ->  | AH239: =($E37/$E$107*AH$107)*$E145 -> 
B240: Basic Oxygen Furnace production | E240: =($E38/$E$107*E$107)*$E146 ->  | F240: =($E38/$E$107*F$107)*$E146 ->  | AH240: =($E38/$E$107*AH$107)*$E146 -> 
B241: Electric Arc Furnace production | E241: =($E39/$E$107*E$107)*$E147 ->  | F241: =($E39/$E$107*F$107)*$E147 ->  | AH241: =($E39/$E$107*AH$107)*$E147 -> 
B242: Direct Reduced Iron | E242: =($E40/$E$107*E$107)*$E148 ->  | F242: =($E40/$E$107*F$107)*$E148 ->  | AH242: =($E40/$E$107*AH$107)*$E148 -> 
... 25 more rows

Sheet INDUSTRY
B1: INDUSTRY | C1: SHORTNAME | D1: units | E1: 1990 | F1: 1991 | G1: 1992 | H1: 1993 | I1: 1994 | J1: 1995 | K1: 1996 | L1: 1997 | M1: 1998 | N1: 1999 | O1: 2000 | P1: =O1+1 -> 2001 | Q1: =P1+1 -> 2002 | R1: =Q1+1 -> 2003 | S1: =R1+1 -> 2004 | T1: =S1+1 -> 2005 | U1: =T1+1 -> 2006 | V1: =U1+1 -> 2007 | W1: =V1+1 -> 2008 | X1: =W1+1 -> 2009 | Y1: =X1+1 -> 2010 | Z1: =Y1+1 -> 2011 | AA1: =Z1+1 -> 2012 | AB1: =AA1+1 -> 2013 | AC1: =AB1+1 -> 2014 | AD1: =AC1+1 -> 2015 | AE1: =AD1+1 -> 2016 | AF1: =AE1+1 -> 2017 | AG1: =AF1+1 -> 2018 | AH1: =AG1+1 -> 2019 | AI1: 2020 | AK1: sources | AL1: comments and methodology | CG1: INDUSTRY | CH1: SHORTNAME | CI1: units | CJ1: 1990 | CK1: 1991 | CL1: 1992 | CM1: 1993 | CN1: 1994 | CO1: 1995 | CP1: 1996 | CQ1: 1997 | CR1: 1998 | CS1: 1999 | CT1: 2000 | CU1: 2001 | CV1: 2002 | CW1: 2003 | CX1: 2004 | CY1: 2005 | CZ1: 2006 | DA1: 2007 | DB1: 2008 | DC1: 2009 | DD1: 2010 | DE1: 2011 | DF1: 2012 | DG1: 2013 | DH1: 2014 | DI1: 2015 | DJ1: 2016 | DK1: 2017 | DL1: 2018
B3: Energy Use based on ISIC Rev.4 Division | CG3: Energy Use based on ISIC Rev.4 Division
A4: 01 - 03 | B4: 01 - 03: Agriculture, forestry and fishing | CF4: 01 - 03 | CG4: 01 - 03: Agriculture, forestry and fishing
B5: Oil & Oil Products | C5: O_AGROFISH.E_OIL | D5: PJ | E5: 0 | F5: 0 | G5: 0 | H5: 0 | I5: 0 | J5: 0 | K5: 0 | L5: 0 | M5: 0 | N5: 0 | O5: 0 | P5: 0 | Q5: 0 | R5: 0 | S5: 0 | T5: 0 | U5: 0 | V5: 0 | W5: 0 | X5: 0 | Y5: 0 | Z5: 0 | AA5: 0 | AB5: 0 | AC5: 0 | AD5: 0 | AE5: 0 | AF5: 0 | AG5: 0 | AH5: 0 | AI5: 0 | CG5: Oil & Oil Products | CH5: O_AGROFISH.E_OIL | CI5: PJ | CJ5: 0 | CK5: 0 | CL5: 0 | CM5: 0 | CN5: 0 | CO5: 0 | CP5: 0 | CQ5: 0 | CR5: 0 | CS5: 0 | CT5: 0 | CU5: 0 | CV5: 0 | CW5: 0 | CX5: 0 | CY5: 0 | CZ5: 0 | DA5: 0 | DB5: 0 | DC5: 0 | DD5: 0 | DE5: 0 | DF5: 0 | DG5: 0 | DH5: 0 | DI5: 0 | DJ5: 0 | DK5: 0 | DL5: 0
B6: Natural Gas | C6: O_AGROFISH.E_GAS | D6: PJ | E6: 0 | F6: 0 | G6: 0 | H6: 0 | I6: 0 | J6: 0 | K6: 0 | L6: 0 | M6: 0 | N6: 0 | O6: 0 | P6: 0 | Q6: 0 | R6: 0 | S6: 0 | T6: 0 | U6: 0 | V6: 0 | W6: 0 | X6: 0 | Y6: 0 | Z6: 0 | AA6: 0 | AB6: 0 | AC6: 0 | AD6: 0 | AE6: 0 | AF6: 0 | AG6: 0 | AH6: 0 | AI6: 0 | CG6: Natural Gas | CH6: O_AGROFISH.E_GAS | CI6: PJ | CJ6: 0 | CK6: 0 | CL6: 0 | CM6: 0 | CN6: 0 | CO6: 0 | CP6: 0 | CQ6: 0 | CR6: 0 | CS6: 0 | CT6: 0 | CU6: 0 | CV6: 0 | CW6: 0 | CX6: 0 | CY6: 0 | CZ6: 0 | DA6: 0 | DB6: 0 | DC6: 0 | DD6: 0 | DE6: 0 | DF6: 0 | DG6: 0 | DH6: 0 | DI6: 0 | DJ6: 0 | DK6: 0 | DL6: 0
B7: Coal & Coal Products | C7: O_AGROFISH.E_COAL | D7: PJ | E7: 0 | F7: 0 | G7: 0 | H7: 0 | I7: 0 | J7: 0 | K7: 0 | L7: 0 | M7: 0 | N7: 0 | O7: 0 | P7: 0 | Q7: 0 | R7: 0 | S7: 0 | T7: 0 | U7: 0 | V7: 0 | W7: 0 | X7: 0 | Y7: 0 | Z7: 0 | AA7: 0 | AB7: 0 | AC7: 0 | AD7: 0 | AE7: 0 | AF7: 0 | AG7: 0 | AH7: 0 | AI7: 0 | CG7: Coal & Coal Products | CH7: O_AGROFISH.E_COAL | CI7: PJ | CJ7: 0 | CK7: 0 | CL7: 0 | CM7: 0 | CN7: 0 | CO7: 0 | CP7: 0 | CQ7: 0 | CR7: 0 | CS7: 0 | CT7: 0 | CU7: 0 | CV7: 0 | CW7: 0 | CX7: 0 | CY7: 0 | CZ7: 0 | DA7: 0 | DB7: 0 | DC7: 0 | DD7: 0 | DE7: 0 | DF7: 0 | DG7: 0 | DH7: 0 | DI7: 0 | DJ7: 0 | DK7: 0 | DL7: 0
B8: Biofuels & Waste | C8: O_AGROFISH.E_WOOD | D8: PJ | E8: 0 | F8: 0 | G8: 0 | H8: 0 | I8: 0 | J8: 0 | K8: 0 | L8: 0 | M8: 0 | N8: 0 | O8: 0 | P8: 0 | Q8: 0 | R8: 0 | S8: 0 | T8: 0 | U8: 0 | V8: 0 | W8: 0 | X8: 0 | Y8: 0 | Z8: 0 | AA8: 0 | AB8: 0 | AC8: 0 | AD8: 0 | AE8: 0 | AF8: 0 | AG8: 0 | AH8: 0 | AI8: 0 | CG8: Biofuels & Waste | CH8: O_AGROFISH.E_WOOD | CI8: PJ | CJ8: 0 | CK8: 0 | CL8: 0 | CM8: 0 | CN8: 0 | CO8: 0 | CP8: 0 | CQ8: 0 | CR8: 0 | CS8: 0 | CT8: 0 | CU8: 0 | CV8: 0 | CW8: 0 | CX8: 0 | CY8: 0 | CZ8: 0 | DA8: 0 | DB8: 0 | DC8: 0 | DD8: 0 | DE8: 0 | DF8: 0 | DG8: 0 | DH8: 0 | DI8: 0 | DJ8: 0 | DK8: 0 | DL8: 0
B9: Heat | C9: O_AGROFISH.E_DHEAT | D9: PJ | E9: 0 | F9: 0 | G9: 0 | H9: 0 | I9: 0 | J9: 0 | K9: 0 | L9: 0 | M9: 0 | N9: 0 | O9: 0 | P9: 0 | Q9: 0 | R9: 0 | S9: 0 | T9: 0 | U9: 0 | V9: 0 | W9: 0 | X9: 0 | Y9: 0 | Z9: 0 | AA9: 0 | AB9: 0 | AC9: 0 | AD9: 0 | AE9: 0 | AF9: 0 | AG9: 0 | AH9: 0 | AI9: 0 | CG9: Heat | CH9: O_AGROFISH.E_DHEAT | CI9: PJ | CJ9: 0 | CK9: 0 | CL9: 0 | CM9: 0 | CN9: 0 | CO9: 0 | CP9: 0 | CQ9: 0 | CR9: 0 | CS9: 0 | CT9: 0 | CU9: 0 | CV9: 0 | CW9: 0 | CX9: 0 | CY9: 0 | CZ9: 0 | DA9: 0 | DB9: 0 | DC9: 0 | DD9: 0 | DE9: 0 | DF9: 0 | DG9: 0 | DH9: 0 | DI9: 0 | DJ9: 0 | DK9: 0 | DL9: 0
B10: Electricity | C10: O_AGROFISH.E_ELEC | D10: PJ | E10: 0 | F10: 0 | G10: 0 | H10: 0 | I10: 0 | J10: 0 | K10: 0 | L10: 0 | M10: 0 | N10: 0 | O10: 0 | P10: 0 | Q10: 0 | R10: 0 | S10: 0 | T10: 0 | U10: 0 | V10: 0 | W10: 0 | X10: 0 | Y10: 0 | Z10: 0 | AA10: 0 | AB10: 0 | AC10: 0 | AD10: 0 | AE10: 0 | AF10: 0 | AG10: 0 | AH10: 0 | AI10: 0 | CG10: Electricity | CH10: O_AGROFISH.E_ELEC | CI10: PJ | CJ10: 0 | CK10: 0 | CL10: 0 | CM10: 0 | CN10: 0 | CO10: 0 | CP10: 0 | CQ10: 0 | CR10: 0 | CS10: 0 | CT10: 0 | CU10: 0 | CV10: 0 | CW10: 0 | CX10: 0 | CY10: 0 | CZ10: 0 | DA10: 0 | DB10: 0 | DC10: 0 | DD10: 0 | DE10: 0 | DF10: 0 | DG10: 0 | DH10: 0 | DI10: 0 | DJ10: 0 | DK10: 0 | DL10: 0
B11: Other | C11: O_AGROFISH.E_OTHER | D11: PJ | E11: 0 | F11: 0 | G11: 0 | H11: 0 | I11: 0 | J11: 0 | K11: 0 | L11: 0 | M11: 0 | N11: 0 | O11: 0 | P11: 0 | Q11: 0 | R11: 0 | S11: 0 | T11: 0 | U11: 0 | V11: 0 | W11: 0 | X11: 0 | Y11: 0 | Z11: 0 | AA11: 0 | AB11: 0 | AC11: 0 | AD11: 0 | AE11: 0 | AF11: 0 | AG11: 0 | AH11: 0 | AI11: 0 | CG11: Other | CH11: O_AGROFISH.E_OTHER | CI11: PJ | CJ11: 0 | CK11: 0 | CL11: 0 | CM11: 0 | CN11: 0 | CO11: 0 | CP11: 0 | CQ11: 0 | CR11: 0 | CS11: 0 | CT11: 0 | CU11: 0 | CV11: 0 | CW11: 0 | CX11: 0 | CY11: 0 | CZ11: 0 | DA11: 0 | DB11: 0 | DC11: 0 | DD11: 0 | DE11: 0 | DF11: 0 | DG11: 0 | DH11: 0 | DI11: 0 | DJ11: 0 | DK11: 0 | DL11: 0
A12: TRUE | B12: Total Energy Use | C12: O_AGROFISH.E_FINAL | D12: PJ | E12: =SUM(E5:E11) -> 0 | F12: =SUM(F5:F11) -> 0 | G12: 0 | H12: 0 | I12: 0 | J12: 0 | K12: 0 | L12: 0 | M12: 0 | N12: 0 | O12: 0 | P12: 0 | Q12: 0 | R12: 0 | S12: 0 | T12: 0 | U12: 0 | V12: 0 | W12: 0 | X12: 0 | Y12: 0 | Z12: 0 | AA12: 0 | AB12: 0 | AC12: 0 | AD12: 0 | AE12: 0 | AF12: 0 | AG12: 0 | AH12: =SUM(AH5:AH11) -> 0 | AI12: 0 | CF12: TRUE | CG12: Total Energy Use | CH12: O_AGROFISH.E_FINAL | CI12: PJ | CJ12: 0 | CK12: 0 | CL12: 0 | CM12: 0 | CN12: 0 | CO12: 0 | CP12: 0 | CQ12: 0 | CR12: 0 | CS12: 0 | CT12: 0 | CU12: 0 | CV12: 0 | CW12: 0 | CX12: 0 | CY12: 0 | CZ12: 0 | DA12: 0 | DB12: 0 | DC12: 0 | DD12: 0 | DE12: 0 | DF12: 0 | DG12: 0 | DH12: 0 | DI12: 0 | DJ12: 0 | DK12: 0 | DL12: 0
B13: Energy intensity (using GDP at US$PPP) | D13: MJ/US$PPP | E13: =IF(E12*'MACRO ECONOMIC DATA'!E54<>0,INDUSTRY!E12/'MACRO ECONOMIC DATA'!E54,NA()) ->  | F13: =IF(F12*'MACRO ECONOMIC DATA'!F54<>0,INDUSTRY!F12/'MACRO ECONOMIC DATA'!F54,NA()) ->  | G13: =IF(G12*'MACRO ECONOMIC DATA'!G54<>0,INDUSTRY!G12/'MACRO ECONOMIC DATA'!G54,NA()) ->  | H13: =IF(H12*'MACRO ECONOMIC DATA'!H54<>0,INDUSTRY!H12/'MACRO ECONOMIC DATA'!H54,NA()) ->  | I13: =IF(I12*'MACRO ECONOMIC DATA'!I54<>0,INDUSTRY!I12/'MACRO ECONOMIC DATA'!I54,NA()) ->  | J13: =IF(J12*'MACRO ECONOMIC DATA'!J54<>0,INDUSTRY!J12/'MACRO ECONOMIC DATA'!J54,NA()) ->  | K13: =IF(K12*'MACRO ECONOMIC DATA'!K54<>0,INDUSTRY!K12/'MACRO ECONOMIC DATA'!K54,NA()) ->  | L13: =IF(L12*'MACRO ECONOMIC DATA'!L54<>0,INDUSTRY!L12/'MACRO ECONOMIC DATA'!L54,NA()) ->  | M13: =IF(M12*'MACRO ECONOMIC DATA'!M54<>0,INDUSTRY!M12/'MACRO ECONOMIC DATA'!M54,NA()) ->  | N13: =IF(N12*'MACRO ECONOMIC DATA'!N54<>0,INDUSTRY!N12/'MACRO ECONOMIC DATA'!N54,NA()) ->  | O13: =IF(O12*'MACRO ECONOMIC DATA'!O54<>0,INDUSTRY!O12/'MACRO ECONOMIC DATA'!O54,NA()) ->  | P13: =IF(P12*'MACRO ECONOMIC DATA'!P54<>0,INDUSTRY!P12/'MACRO ECONOMIC DATA'!P54,NA()) ->  | Q13: =IF(Q12*'MACRO ECONOMIC DATA'!Q54<>0,INDUSTRY!Q12/'MACRO ECONOMIC DATA'!Q54,NA()) ->  | R13: =IF(R12*'MACRO ECONOMIC DATA'!R54<>0,INDUSTRY!R12/'MACRO ECONOMIC DATA'!R54,NA()) ->  | S13: =IF(S12*'MACRO ECONOMIC DATA'!S54<>0,INDUSTRY!S12/'MACRO ECONOMIC DATA'!S54,NA()) ->  | T13: =IF(T12*'MACRO ECONOMIC DATA'!T54<>0,INDUSTRY!T12/'MACRO ECONOMIC DATA'!T54,NA()) ->  | U13: =IF(U12*'MACRO ECONOMIC DATA'!U54<>0,INDUSTRY!U12/'MACRO ECONOMIC DATA'!U54,NA()) ->  | V13: =IF(V12*'MACRO ECONOMIC DATA'!V54<>0,INDUSTRY!V12/'MACRO ECONOMIC DATA'!V54,NA()) ->  | W13: =IF(W12*'MACRO ECONOMIC DATA'!W54<>0,INDUSTRY!W12/'MACRO ECONOMIC DATA'!W54,NA()) ->  | X13: =IF(X12*'MACRO ECONOMIC DATA'!X54<>0,INDUSTRY!X12/'MACRO ECONOMIC DATA'!X54,NA()) ->  | Y13: =IF(Y12*'MACRO ECONOMIC DATA'!Y54<>0,INDUSTRY!Y12/'MACRO ECONOMIC DATA'!Y54,NA()) ->  | Z13: =IF(Z12*'MACRO ECONOMIC DATA'!Z54<>0,INDUSTRY!Z12/'MACRO ECONOMIC DATA'!Z54,NA()) ->  | AA13: =IF(AA12*'MACRO ECONOMIC DATA'!AA54<>0,INDUSTRY!AA12/'MACRO ECONOMIC DATA'!AA54,NA()) ->  | AB13: =IF(AB12*'MACRO ECONOMIC DATA'!AB54<>0,INDUSTRY!AB12/'MACRO ECONOMIC DATA'!AB54,NA()) ->  | AC13: =IF(AC12*'MACRO ECONOMIC DATA'!AC54<>0,INDUSTRY!AC12/'MACRO ECONOMIC DATA'!AC54,NA()) ->  | AD13: =IF(AD12*'MACRO ECONOMIC DATA'!AD54<>0,INDUSTRY!AD12/'MACRO ECONOMIC DATA'!AD54,NA()) ->  | AE13: =IF(AE12*'MACRO ECONOMIC DATA'!AE54<>0,INDUSTRY!AE12/'MACRO ECONOMIC DATA'!AE54,NA()) ->  | AF13: =IF(AF12*'MACRO ECONOMIC DATA'!AF54<>0,INDUSTRY!AF12/'MACRO ECONOMIC DATA'!AF54,NA()) ->  | AG13: =IF(AG12*'MACRO ECONOMIC DATA'!AG54<>0,INDUSTRY!AG12/'MACRO ECONOMIC DATA'!AG54,NA()) ->  | AH13: =IF(AH12*'MACRO ECONOMIC DATA'!AH54<>0,INDUSTRY!AH12/'MACRO ECONOMIC DATA'!AH54,NA()) ->  | AI13: =IF(AI12*'MACRO ECONOMIC DATA'!AI54<>0,INDUSTRY!AI12/'MACRO ECONOMIC DATA'!AI54,NA()) ->  | CG13: Energy intensity (using GDP at US$PPP) | CI13: MJ/US$PPP
B14: Energy intensity (using GDP at nat. currency) | D14: ="MJ/" &'MACRO ECONOMIC DATA'!$D$143 -> MJ/NC | E14: =IF(E12*'MACRO ECONOMIC DATA'!E82<>0,E12/'MACRO ECONOMIC DATA'!E82,NA()) ->  | F14: =IF(F12*'MACRO ECONOMIC DATA'!F82<>0,F12/'MACRO ECONOMIC DATA'!F82,NA()) ->  | G14: =IF(G12*'MACRO ECONOMIC DATA'!G82<>0,G12/'MACRO ECONOMIC DATA'!G82,NA()) ->  | H14: =IF(H12*'MACRO ECONOMIC DATA'!H82<>0,H12/'MACRO ECONOMIC DATA'!H82,NA()) ->  | I14: =IF(I12*'MACRO ECONOMIC DATA'!I82<>0,I12/'MACRO ECONOMIC DATA'!I82,NA()) ->  | J14: =IF(J12*'MACRO ECONOMIC DATA'!J82<>0,J12/'MACRO ECONOMIC DATA'!J82,NA()) ->  | K14: =IF(K12*'MACRO ECONOMIC DATA'!K82<>0,K12/'MACRO ECONOMIC DATA'!K82,NA()) ->  | L14: =IF(L12*'MACRO ECONOMIC DATA'!L82<>0,L12/'MACRO ECONOMIC DATA'!L82,NA()) ->  | M14: =IF(M12*'MACRO ECONOMIC DATA'!M82<>0,M12/'MACRO ECONOMIC DATA'!M82,NA()) ->  | N14: =IF(N12*'MACRO ECONOMIC DATA'!N82<>0,N12/'MACRO ECONOMIC DATA'!N82,NA()) ->  | O14: =IF(O12*'MACRO ECONOMIC DATA'!O82<>0,O12/'MACRO ECONOMIC DATA'!O82,NA()) ->  | P14: =IF(P12*'MACRO ECONOMIC DATA'!P82<>0,P12/'MACRO ECONOMIC DATA'!P82,NA()) ->  | Q14: =IF(Q12*'MACRO ECONOMIC DATA'!Q82<>0,Q12/'MACRO ECONOMIC DATA'!Q82,NA()) ->  | R14: =IF(R12*'MACRO ECONOMIC DATA'!R82<>0,R12/'MACRO ECONOMIC DATA'!R82,NA()) ->  | S14: =IF(S12*'MACRO ECONOMIC DATA'!S82<>0,S12/'MACRO ECONOMIC DATA'!S82,NA()) ->  | T14: =IF(T12*'MACRO ECONOMIC DATA'!T82<>0,T12/'MACRO ECONOMIC DATA'!T82,NA()) ->  | U14: =IF(U12*'MACRO ECONOMIC DATA'!U82<>0,U12/'MACRO ECONOMIC DATA'!U82,NA()) ->  | V14: =IF(V12*'MACRO ECONOMIC DATA'!V82<>0,V12/'MACRO ECONOMIC DATA'!V82,NA()) ->  | W14: =IF(W12*'MACRO ECONOMIC DATA'!W82<>0,W12/'MACRO ECONOMIC DATA'!W82,NA()) ->  | X14: =IF(X12*'MACRO ECONOMIC DATA'!X82<>0,X12/'MACRO ECONOMIC DATA'!X82,NA()) ->  | Y14: =IF(Y12*'MACRO ECONOMIC DATA'!Y82<>0,Y12/'MACRO ECONOMIC DATA'!Y82,NA()) ->  | Z14: =IF(Z12*'MACRO ECONOMIC DATA'!Z82<>0,Z12/'MACRO ECONOMIC DATA'!Z82,NA()) ->  | AA14: =IF(AA12*'MACRO ECONOMIC DATA'!AA82<>0,AA12/'MACRO ECONOMIC DATA'!AA82,NA()) ->  | AB14: =IF(AB12*'MACRO ECONOMIC DATA'!AB82<>0,AB12/'MACRO ECONOMIC DATA'!AB82,NA()) ->  | AC14: =IF(AC12*'MACRO ECONOMIC DATA'!AC82<>0,AC12/'MACRO ECONOMIC DATA'!AC82,NA()) ->  | AD14: =IF(AD12*'MACRO ECONOMIC DATA'!AD82<>0,AD12/'MACRO ECONOMIC DATA'!AD82,NA()) ->  | AE14: =IF(AE12*'MACRO ECONOMIC DATA'!AE82<>0,AE12/'MACRO ECONOMIC DATA'!AE82,NA()) ->  | AF14: =IF(AF12*'MACRO ECONOMIC DATA'!AF82<>0,AF12/'MACRO ECONOMIC DATA'!AF82,NA()) ->  | AG14: =IF(AG12*'MACRO ECONOMIC DATA'!AG82<>0,AG12/'MACRO ECONOMIC DATA'!AG82,NA()) ->  | AH14: =IF(AH12*'MACRO ECONOMIC DATA'!AH82<>0,AH12/'MACRO ECONOMIC DATA'!AH82,NA()) ->  | AI14: =IF(AI12*'MACRO ECONOMIC DATA'!AI82<>0,AI12/'MACRO ECONOMIC DATA'!AI82,NA()) ->  | CG14: Energy intensity (using GDP at nat. currency) | CI14: MJ/NC
B15: Energy intensity (using GDP at MER) | D15: MJ/US$ | E15: =IF(E12*'MACRO ECONOMIC DATA'!E110<>0,E12/'MACRO ECONOMIC DATA'!E110,NA()) ->  | F15: =IF(F12*'MACRO ECONOMIC DATA'!F110<>0,F12/'MACRO ECONOMIC DATA'!F110,NA()) ->  | G15: =IF(G12*'MACRO ECONOMIC DATA'!G110<>0,G12/'MACRO ECONOMIC DATA'!G110,NA()) ->  | H15: =IF(H12*'MACRO ECONOMIC DATA'!H110<>0,H12/'MACRO ECONOMIC DATA'!H110,NA()) ->  | I15: =IF(I12*'MACRO ECONOMIC DATA'!I110<>0,I12/'MACRO ECONOMIC DATA'!I110,NA()) ->  | J15: =IF(J12*'MACRO ECONOMIC DATA'!J110<>0,J12/'MACRO ECONOMIC DATA'!J110,NA()) ->  | K15: =IF(K12*'MACRO ECONOMIC DATA'!K110<>0,K12/'MACRO ECONOMIC DATA'!K110,NA()) ->  | L15: =IF(L12*'MACRO ECONOMIC DATA'!L110<>0,L12/'MACRO ECONOMIC DATA'!L110,NA()) ->  | M15: =IF(M12*'MACRO ECONOMIC DATA'!M110<>0,M12/'MACRO ECONOMIC DATA'!M110,NA()) ->  | N15: =IF(N12*'MACRO ECONOMIC DATA'!N110<>0,N12/'MACRO ECONOMIC DATA'!N110,NA()) ->  | O15: =IF(O12*'MACRO ECONOMIC DATA'!O110<>0,O12/'MACRO ECONOMIC DATA'!O110,NA()) ->  | P15: =IF(P12*'MACRO ECONOMIC DATA'!P110<>0,P12/'MACRO ECONOMIC DATA'!P110,NA()) ->  | Q15: =IF(Q12*'MACRO ECONOMIC DATA'!Q110<>0,Q12/'MACRO ECONOMIC DATA'!Q110,NA()) ->  | R15: =IF(R12*'MACRO ECONOMIC DATA'!R110<>0,R12/'MACRO ECONOMIC DATA'!R110,NA()) ->  | S15: =IF(S12*'MACRO ECONOMIC DATA'!S110<>0,S12/'MACRO ECONOMIC DATA'!S110,NA()) ->  | T15: =IF(T12*'MACRO ECONOMIC DATA'!T110<>0,T12/'MACRO ECONOMIC DATA'!T110,NA()) ->  | U15: =IF(U12*'MACRO ECONOMIC DATA'!U110<>0,U12/'MACRO ECONOMIC DATA'!U110,NA()) ->  | V15: =IF(V12*'MACRO ECONOMIC DATA'!V110<>0,V12/'MACRO ECONOMIC DATA'!V110,NA()) ->  | W15: =IF(W12*'MACRO ECONOMIC DATA'!W110<>0,W12/'MACRO ECONOMIC DATA'!W110,NA()) ->  | X15: =IF(X12*'MACRO ECONOMIC DATA'!X110<>0,X12/'MACRO ECONOMIC DATA'!X110,NA()) ->  | Y15: =IF(Y12*'MACRO ECONOMIC DATA'!Y110<>0,Y12/'MACRO ECONOMIC DATA'!Y110,NA()) ->  | Z15: =IF(Z12*'MACRO ECONOMIC DATA'!Z110<>0,Z12/'MACRO ECONOMIC DATA'!Z110,NA()) ->  | AA15: =IF(AA12*'MACRO ECONOMIC DATA'!AA110<>0,AA12/'MACRO ECONOMIC DATA'!AA110,NA()) ->  | AB15: =IF(AB12*'MACRO ECONOMIC DATA'!AB110<>0,AB12/'MACRO ECONOMIC DATA'!AB110,NA()) ->  | AC15: =IF(AC12*'MACRO ECONOMIC DATA'!AC110<>0,AC12/'MACRO ECONOMIC DATA'!AC110,NA()) ->  | AD15: =IF(AD12*'MACRO ECONOMIC DATA'!AD110<>0,AD12/'MACRO ECONOMIC DATA'!AD110,NA()) ->  | AE15: =IF(AE12*'MACRO ECONOMIC DATA'!AE110<>0,AE12/'MACRO ECONOMIC DATA'!AE110,NA()) ->  | AF15: =IF(AF12*'MACRO ECONOMIC DATA'!AF110<>0,AF12/'MACRO ECONOMIC DATA'!AF110,NA()) ->  | AG15: =IF(AG12*'MACRO ECONOMIC DATA'!AG110<>0,AG12/'MACRO ECONOMIC DATA'!AG110,NA()) ->  | AH15: =IF(AH12*'MACRO ECONOMIC DATA'!AH110<>0,AH12/'MACRO ECONOMIC DATA'!AH110,NA()) ->  | AI15: =IF(AI12*'MACRO ECONOMIC DATA'!AI110<>0,AI12/'MACRO ECONOMIC DATA'!AI110,NA()) ->  | CG15: Energy intensity (using GDP at MER) | CI15: MJ/US$
A17: 05 - 09 | B17: 05 - 09: Mining and quarrying | CF17: 05 - 09 | CG17: 05 - 09: Mining and quarrying
B18: Oil & Oil Products | C18: O_MINING.E_OIL | D18: PJ | E18: 0 | F18: 0 | G18: 0 | H18: 0 | I18: 0 | J18: 0 | K18: 0 | L18: 0 | M18: 0 | N18: 0 | O18: 0 | P18: 0 | Q18: 0 | R18: 0 | S18: 0 | T18: 0 | U18: 0 | V18: 0 | W18: 0 | X18: 0 | Y18: 0 | Z18: 0 | AA18: 0 | AB18: 0 | AC18: 0 | AD18: 0 | AE18: 0 | AF18: 0 | AG18: 0 | AH18: 0 | AI18: 0 | CG18: Oil & Oil Products | CH18: O_MINING.E_OIL | CI18: PJ | CJ18: 0 | CK18: 0 | CL18: 0 | CM18: 0 | CN18: 0 | CO18: 0 | CP18: 0 | CQ18: 0 | CR18: 0 | CS18: 0 | CT18: 0 | CU18: 0 | CV18: 0 | CW18: 0 | CX18: 0 | CY18: 0 | CZ18: 0 | DA18: 0 | DB18: 0 | DC18: 0 | DD18: 0 | DE18: 0 | DF18: 0 | DG18: 0 | DH18: 0 | DI18: 0 | DJ18: 0 | DK18: 0 | DL18: 0
B19: Natural Gas | C19: O_MINING.E_GAS | D19: PJ | E19: 0 | F19: 0 | G19: 0 | H19: 0 | I19: 0 | J19: 0 | K19: 0 | L19: 0 | M19: 0 | N19: 0 | O19: 0 | P19: 0 | Q19: 0 | R19: 0 | S19: 0 | T19: 0 | U19: 0 | V19: 0 | W19: 0 | X19: 0 | Y19: 0 | Z19: 0 | AA19: 0 | AB19: 0 | AC19: 0 | AD19: 0 | AE19: 0 | AF19: 0 | AG19: 0 | AH19: 0 | AI19: 0 | CG19: Natural Gas | CH19: O_MINING.E_GAS | CI19: PJ | CJ19: 0 | CK19: 0 | CL19: 0 | CM19: 0 | CN19: 0 | CO19: 0 | CP19: 0 | CQ19: 0 | CR19: 0 | CS19: 0 | CT19: 0 | CU19: 0 | CV19: 0 | CW19: 0 | CX19: 0 | CY19: 0 | CZ19: 0 | DA19: 0 | DB19: 0 | DC19: 0 | DD19: 0 | DE19: 0 | DF19: 0 | DG19: 0 | DH19: 0 | DI19: 0 | DJ19: 0 | DK19: 0 | DL19: 0
B20: Coal & Coal Products | C20: O_MINING.E_COAL | D20: PJ | E20: 0 | F20: 0 | G20: 0 | H20: 0 | I20: 0 | J20: 0 | K20: 0 | L20: 0 | M20: 0 | N20: 0 | O20: 0 | P20: 0 | Q20: 0 | R20: 0 | S20: 0 | T20: 0 | U20: 0 | V20: 0 | W20: 0 | X20: 0 | Y20: 0 | Z20: 0 | AA20: 0 | AB20: 0 | AC20: 0 | AD20: 0 | AE20: 0 | AF20: 0 | AG20: 0 | AH20: 0 | AI20: 0 | CG20: Coal & Coal Products | CH20: O_MINING.E_COAL | CI20: PJ | CJ20: 0 | CK20: 0 | CL20: 0 | CM20: 0 | CN20: 0 | CO20: 0 | CP20: 0 | CQ20: 0 | CR20: 0 | CS20: 0 | CT20: 0 | CU20: 0 | CV20: 0 | CW20: 0 | CX20: 0 | CY20: 0 | CZ20: 0 | DA20: 0 | DB20: 0 | DC20: 0 | DD20: 0 | DE20: 0 | DF20: 0 | DG20: 0 | DH20: 0 | DI20: 0 | DJ20: 0 | DK20: 0 | DL20: 0
B21: Biofuels & Waste | C21: O_MINING.E_WOOD | D21: PJ | E21: 0 | F21: 0 | G21: 0 | H21: 0 | I21: 0 | J21: 0 | K21: 0 | L21: 0 | M21: 0 | N21: 0 | O21: 0 | P21: 0 | Q21: 0 | R21: 0 | S21: 0 | T21: 0 | U21: 0 | V21: 0 | W21: 0 | X21: 0 | Y21: 0 | Z21: 0 | AA21: 0 | AB21: 0 | AC21: 0 | AD21: 0 | AE21: 0 | AF21: 0 | AG21: 0 | AH21: 0 | AI21: 0 | CG21: Biofuels & Waste | CH21: O_MINING.E_WOOD | CI21: PJ | CJ21: 0 | CK21: 0 | CL21: 0 | CM21: 0 | CN21: 0 | CO21: 0 | CP21: 0 | CQ21: 0 | CR21: 0 | CS21: 0 | CT21: 0 | CU21: 0 | CV21: 0 | CW21: 0 | CX21: 0 | CY21: 0 | CZ21: 0 | DA21: 0 | DB21: 0 | DC21: 0 | DD21: 0 | DE21: 0 | DF21: 0 | DG21: 0 | DH21: 0 | DI21: 0 | DJ21: 0 | DK21: 0 | DL21: 0
B22: Heat | C22: O_MINING.E_DHEAT | D22: PJ | E22: 0 | F22: 0 | G22: 0 | H22: 0 | I22: 0 | J22: 0 | K22: 0 | L22: 0 | M22: 0 | N22: 0 | O22: 0 | P22: 0 | Q22: 0 | R22: 0 | S22: 0 | T22: 0 | U22: 0 | V22: 0 | W22: 0 | X22: 0 | Y22: 0 | Z22: 0 | AA22: 0 | AB22: 0 | AC22: 0 | AD22: 0 | AE22: 0 | AF22: 0 | AG22: 0 | AH22: 0 | AI22: 0 | CG22: Heat | CH22: O_MINING.E_DHEAT | CI22: PJ | CJ22: 0 | CK22: 0 | CL22: 0 | CM22: 0 | CN22: 0 | CO22: 0 | CP22: 0 | CQ22: 0 | CR22: 0 | CS22: 0 | CT22: 0 | CU22: 0 | CV22: 0 | CW22: 0 | CX22: 0 | CY22: 0 | CZ22: 0 | DA22: 0 | DB22: 0 | DC22: 0 | DD22: 0 | DE22: 0 | DF22: 0 | DG22: 0 | DH22: 0 | DI22: 0 | DJ22: 0 | DK22: 0 | DL22: 0
B23: Electricity | C23: O_MINING.E_ELEC | D23: PJ | E23: 0 | F23: 0 | G23: 0 | H23: 0 | I23: 0 | J23: 0 | K23: 0 | L23: 0 | M23: 0 | N23: 0 | O23: 0 | P23: 0 | Q23: 0 | R23: 0 | S23: 0 | T23: 0 | U23: 0 | V23: 0 | W23: 0 | X23: 0 | Y23: 0 | Z23: 0 | AA23: 0 | AB23: 0 | AC23: 0 | AD23: 0 | AE23: 0 | AF23: 0 | AG23: 0 | AH23: 0 | AI23: 0 | CG23: Electricity | CH23: O_MINING.E_ELEC | CI23: PJ | CJ23: 0 | CK23: 0 | CL23: 0 | CM23: 0 | CN23: 0 | CO23: 0 | CP23: 0 | CQ23: 0 | CR23: 0 | CS23: 0 | CT23: 0 | CU23: 0 | CV23: 0 | CW23: 0 | CX23: 0 | CY23: 0 | CZ23: 0 | DA23: 0 | DB23: 0 | DC23: 0 | DD23: 0 | DE23: 0 | DF23: 0 | DG23: 0 | DH23: 0 | DI23: 0 | DJ23: 0 | DK23: 0 | DL23: 0
B24: Other | C24: O_MINING.E_OTHER | D24: PJ | E24: 0 | F24: 0 | G24: 0 | H24: 0 | I24: 0 | J24: 0 | K24: 0 | L24: 0 | M24: 0 | N24: 0 | O24: 0 | P24: 0 | Q24: 0 | R24: 0 | S24: 0 | T24: 0 | U24: 0 | V24: 0 | W24: 0 | X24: 0 | Y24: 0 | Z24: 0 | AA24: 0 | AB24: 0 | AC24: 0 | AD24: 0 | AE24: 0 | AF24: 0 | AG24: 0 | AH24: 0 | AI24: 0 | CG24: Other | CH24: O_MINING.E_OTHER | CI24: PJ | CJ24: 0 | CK24: 0 | CL24: 0 | CM24: 0 | CN24: 0 | CO24: 0 | CP24: 0 | CQ24: 0 | CR24: 0 | CS24: 0 | CT24: 0 | CU24: 0 | CV24: 0 | CW24: 0 | CX24: 0 | CY24: 0 | CZ24: 0 | DA24: 0 | DB24: 0 | DC24: 0 | DD24: 0 | DE24: 0 | DF24: 0 | DG24: 0 | DH24: 0 | DI24: 0 | DJ24: 0 | DK24: 0 | DL24: 0
A25: TRUE | B25: Total Energy Use | C25: O_MINING.E_FINAL | D25: PJ | E25: =SUM(E18:E24) -> 0 | F25: =SUM(F18:F24) -> 0 | G25: 0 | H25: 0 | I25: 0 | J25: 0 | K25: 0 | L25: 0 | M25: 0 | N25: 0 | O25: 0 | P25: 0 | Q25: 0 | R25: 0 | S25: 0 | T25: 0 | U25: 0 | V25: 0 | W25: 0 | X25: 0 | Y25: 0 | Z25: 0 | AA25: 0 | AB25: 0 | AC25: 0 | AD25: 0 | AE25: 0 | AF25: 0 | AG25: 0 | AH25: =SUM(AH18:AH24) -> 0 | AI25: 0 | CF25: TRUE | CG25: Total Energy Use | CH25: O_MINING.E_FINAL | CI25: PJ | CJ25: 0 | CK25: 0 | CL25: 0 | CM25: 0 | CN25: 0 | CO25: 0 | CP25: 0 | CQ25: 0 | CR25: 0 | CS25: 0 | CT25: 0 | CU25: 0 | CV25: 0 | CW25: 0 | CX25: 0 | CY25: 0 | CZ25: 0 | DA25: 0 | DB25: 0 | DC25: 0 | DD25: 0 | DE25: 0 | DF25: 0 | DG25: 0 | DH25: 0 | DI25: 0 | DJ25: 0 | DK25: 0 | DL25: 0
B26: Energy intensity (using GDP at US$PPP) | D26: MJ/US$PPP | E26: =IF(E25*'MACRO ECONOMIC DATA'!E55<>0,INDUSTRY!E25/'MACRO ECONOMIC DATA'!E55,NA()) ->  | F26: =IF(F25*'MACRO ECONOMIC DATA'!F55<>0,INDUSTRY!F25/'MACRO ECONOMIC DATA'!F55,NA()) ->  | G26: =IF(G25*'MACRO ECONOMIC DATA'!G55<>0,INDUSTRY!G25/'MACRO ECONOMIC DATA'!G55,NA()) ->  | H26: =IF(H25*'MACRO ECONOMIC DATA'!H55<>0,INDUSTRY!H25/'MACRO ECONOMIC DATA'!H55,NA()) ->  | I26: =IF(I25*'MACRO ECONOMIC DATA'!I55<>0,INDUSTRY!I25/'MACRO ECONOMIC DATA'!I55,NA()) ->  | J26: =IF(J25*'MACRO ECONOMIC DATA'!J55<>0,INDUSTRY!J25/'MACRO ECONOMIC DATA'!J55,NA()) ->  | K26: =IF(K25*'MACRO ECONOMIC DATA'!K55<>0,INDUSTRY!K25/'MACRO ECONOMIC DATA'!K55,NA()) ->  | L26: =IF(L25*'MACRO ECONOMIC DATA'!L55<>0,INDUSTRY!L25/'MACRO ECONOMIC DATA'!L55,NA()) ->  | M26: =IF(M25*'MACRO ECONOMIC DATA'!M55<>0,INDUSTRY!M25/'MACRO ECONOMIC DATA'!M55,NA()) ->  | N26: =IF(N25*'MACRO ECONOMIC DATA'!N55<>0,INDUSTRY!N25/'MACRO ECONOMIC DATA'!N55,NA()) ->  | O26: =IF(O25*'MACRO ECONOMIC DATA'!O55<>0,INDUSTRY!O25/'MACRO ECONOMIC DATA'!O55,NA()) ->  | P26: =IF(P25*'MACRO ECONOMIC DATA'!P55<>0,INDUSTRY!P25/'MACRO ECONOMIC DATA'!P55,NA()) ->  | Q26: =IF(Q25*'MACRO ECONOMIC DATA'!Q55<>0,INDUSTRY!Q25/'MACRO ECONOMIC DATA'!Q55,NA()) ->  | R26: =IF(R25*'MACRO ECONOMIC DATA'!R55<>0,INDUSTRY!R25/'MACRO ECONOMIC DATA'!R55,NA()) ->  | S26: =IF(S25*'MACRO ECONOMIC DATA'!S55<>0,INDUSTRY!S25/'MACRO ECONOMIC DATA'!S55,NA()) ->  | T26: =IF(T25*'MACRO ECONOMIC DATA'!T55<>0,INDUSTRY!T25/'MACRO ECONOMIC DATA'!T55,NA()) ->  | U26: =IF(U25*'MACRO ECONOMIC DATA'!U55<>0,INDUSTRY!U25/'MACRO ECONOMIC DATA'!U55,NA()) ->  | V26: =IF(V25*'MACRO ECONOMIC DATA'!V55<>0,INDUSTRY!V25/'MACRO ECONOMIC DATA'!V55,NA()) ->  | W26: =IF(W25*'MACRO ECONOMIC DATA'!W55<>0,INDUSTRY!W25/'MACRO ECONOMIC DATA'!W55,NA()) ->  | X26: =IF(X25*'MACRO ECONOMIC DATA'!X55<>0,INDUSTRY!X25/'MACRO ECONOMIC DATA'!X55,NA()) ->  | Y26: =IF(Y25*'MACRO ECONOMIC DATA'!Y55<>0,INDUSTRY!Y25/'MACRO ECONOMIC DATA'!Y55,NA()) ->  | Z26: =IF(Z25*'MACRO ECONOMIC DATA'!Z55<>0,INDUSTRY!Z25/'MACRO ECONOMIC DATA'!Z55,NA()) ->  | AA26: =IF(AA25*'MACRO ECONOMIC DATA'!AA55<>0,INDUSTRY!AA25/'MACRO ECONOMIC DATA'!AA55,NA()) ->  | AB26: =IF(AB25*'MACRO ECONOMIC DATA'!AB55<>0,INDUSTRY!AB25/'MACRO ECONOMIC DATA'!AB55,NA()) ->  | AC26: =IF(AC25*'MACRO ECONOMIC DATA'!AC55<>0,INDUSTRY!AC25/'MACRO ECONOMIC DATA'!AC55,NA()) ->  | AD26: =IF(AD25*'MACRO ECONOMIC DATA'!AD55<>0,INDUSTRY!AD25/'MACRO ECONOMIC DATA'!AD55,NA()) ->  | AE26: =IF(AE25*'MACRO ECONOMIC DATA'!AE55<>0,INDUSTRY!AE25/'MACRO ECONOMIC DATA'!AE55,NA()) ->  | AF26: =IF(AF25*'MACRO ECONOMIC DATA'!AF55<>0,INDUSTRY!AF25/'MACRO ECONOMIC DATA'!AF55,NA()) ->  | AG26: =IF(AG25*'MACRO ECONOMIC DATA'!AG55<>0,INDUSTRY!AG25/'MACRO ECONOMIC DATA'!AG55,NA()) ->  | AH26: =IF(AH25*'MACRO ECONOMIC DATA'!AH55<>0,INDUSTRY!AH25/'MACRO ECONOMIC DATA'!AH55,NA()) ->  | AI26: =IF(AI25*'MACRO ECONOMIC DATA'!AI55<>0,INDUSTRY!AI25/'MACRO ECONOMIC DATA'!AI55,NA()) ->  | CG26: Energy intensity (using GDP at US$PPP) | CI26: MJ/US$PPP
B27: Energy intensity (using GDP at nat. currency) | D27: ="MJ/" &'MACRO ECONOMIC DATA'!$D$143 -> MJ/NC | E27: =IF(E25*'MACRO ECONOMIC DATA'!E83<>0,E25/'MACRO ECONOMIC DATA'!E83,NA()) ->  | F27: =IF(F25*'MACRO ECONOMIC DATA'!F83<>0,F25/'MACRO ECONOMIC DATA'!F83,NA()) ->  | G27: =IF(G25*'MACRO ECONOMIC DATA'!G83<>0,G25/'MACRO ECONOMIC DATA'!G83,NA()) ->  | H27: =IF(H25*'MACRO ECONOMIC DATA'!H83<>0,H25/'MACRO ECONOMIC DATA'!H83,NA()) ->  | I27: =IF(I25*'MACRO ECONOMIC DATA'!I83<>0,I25/'MACRO ECONOMIC DATA'!I83,NA()) ->  | J27: =IF(J25*'MACRO ECONOMIC DATA'!J83<>0,J25/'MACRO ECONOMIC DATA'!J83,NA()) ->  | K27: =IF(K25*'MACRO ECONOMIC DATA'!K83<>0,K25/'MACRO ECONOMIC DATA'!K83,NA()) ->  | L27: =IF(L25*'MACRO ECONOMIC DATA'!L83<>0,L25/'MACRO ECONOMIC DATA'!L83,NA()) ->  | M27: =IF(M25*'MACRO ECONOMIC DATA'!M83<>0,M25/'MACRO ECONOMIC DATA'!M83,NA()) ->  | N27: =IF(N25*'MACRO ECONOMIC DATA'!N83<>0,N25/'MACRO ECONOMIC DATA'!N83,NA()) ->  | O27: =IF(O25*'MACRO ECONOMIC DATA'!O83<>0,O25/'MACRO ECONOMIC DATA'!O83,NA()) ->  | P27: =IF(P25*'MACRO ECONOMIC DATA'!P83<>0,P25/'MACRO ECONOMIC DATA'!P83,NA()) ->  | Q27: =IF(Q25*'MACRO ECONOMIC DATA'!Q83<>0,Q25/'MACRO ECONOMIC DATA'!Q83,NA()) ->  | R27: =IF(R25*'MACRO ECONOMIC DATA'!R83<>0,R25/'MACRO ECONOMIC DATA'!R83,NA()) ->  | S27: =IF(S25*'MACRO ECONOMIC DATA'!S83<>0,S25/'MACRO ECONOMIC DATA'!S83,NA()) ->  | T27: =IF(T25*'MACRO ECONOMIC DATA'!T83<>0,T25/'MACRO ECONOMIC DATA'!T83,NA()) ->  | U27: =IF(U25*'MACRO ECONOMIC DATA'!U83<>0,U25/'MACRO ECONOMIC DATA'!U83,NA()) ->  | V27: =IF(V25*'MACRO ECONOMIC DATA'!V83<>0,V25/'MACRO ECONOMIC DATA'!V83,NA()) ->  | W27: =IF(W25*'MACRO ECONOMIC DATA'!W83<>0,W25/'MACRO ECONOMIC DATA'!W83,NA()) ->  | X27: =IF(X25*'MACRO ECONOMIC DATA'!X83<>0,X25/'MACRO ECONOMIC DATA'!X83,NA()) ->  | Y27: =IF(Y25*'MACRO ECONOMIC DATA'!Y83<>0,Y25/'MACRO ECONOMIC DATA'!Y83,NA()) ->  | Z27: =IF(Z25*'MACRO ECONOMIC DATA'!Z83<>0,Z25/'MACRO ECONOMIC DATA'!Z83,NA()) ->  | AA27: =IF(AA25*'MACRO ECONOMIC DATA'!AA83<>0,AA25/'MACRO ECONOMIC DATA'!AA83,NA()) ->  | AB27: =IF(AB25*'MACRO ECONOMIC DATA'!AB83<>0,AB25/'MACRO ECONOMIC DATA'!AB83,NA()) ->  | AC27: =IF(AC25*'MACRO ECONOMIC DATA'!AC83<>0,AC25/'MACRO ECONOMIC DATA'!AC83,NA()) ->  | AD27: =IF(AD25*'MACRO ECONOMIC DATA'!AD83<>0,AD25/'MACRO ECONOMIC DATA'!AD83,NA()) ->  | AE27: =IF(AE25*'MACRO ECONOMIC DATA'!AE83<>0,AE25/'MACRO ECONOMIC DATA'!AE83,NA()) ->  | AF27: =IF(AF25*'MACRO ECONOMIC DATA'!AF83<>0,AF25/'MACRO ECONOMIC DATA'!AF83,NA()) ->  | AG27: =IF(AG25*'MACRO ECONOMIC DATA'!AG83<>0,AG25/'MACRO ECONOMIC DATA'!AG83,NA()) ->  | AH27: =IF(AH25*'MACRO ECONOMIC DATA'!AH83<>0,AH25/'MACRO ECONOMIC DATA'!AH83,NA()) ->  | AI27: =IF(AI25*'MACRO ECONOMIC DATA'!AI83<>0,AI25/'MACRO ECONOMIC DATA'!AI83,NA()) ->  | CG27: Energy intensity (using GDP at nat. currency) | CI27: MJ/NC
B28: Energy intensity (using GDP at MER) | D28: MJ/US$ | E28: =IF(E25*'MACRO ECONOMIC DATA'!E111<>0,E25/'MACRO ECONOMIC DATA'!E111,NA()) ->  | F28: =IF(F25*'MACRO ECONOMIC DATA'!F111<>0,F25/'MACRO ECONOMIC DATA'!F111,NA()) ->  | G28: =IF(G25*'MACRO ECONOMIC DATA'!G111<>0,G25/'MACRO ECONOMIC DATA'!G111,NA()) ->  | H28: =IF(H25*'MACRO ECONOMIC DATA'!H111<>0,H25/'MACRO ECONOMIC DATA'!H111,NA()) ->  | I28: =IF(I25*'MACRO ECONOMIC DATA'!I111<>0,I25/'MACRO ECONOMIC DATA'!I111,NA()) ->  | J28: =IF(J25*'MACRO ECONOMIC DATA'!J111<>0,J25/'MACRO ECONOMIC DATA'!J111,NA()) ->  | K28: =IF(K25*'MACRO ECONOMIC DATA'!K111<>0,K25/'MACRO ECONOMIC DATA'!K111,NA()) ->  | L28: =IF(L25*'MACRO ECONOMIC DATA'!L111<>0,L25/'MACRO ECONOMIC DATA'!L111,NA()) ->  | M28: =IF(M25*'MACRO ECONOMIC DATA'!M111<>0,M25/'MACRO ECONOMIC DATA'!M111,NA()) ->  | N28: =IF(N25*'MACRO ECONOMIC DATA'!N111<>0,N25/'MACRO ECONOMIC DATA'!N111,NA()) ->  | O28: =IF(O25*'MACRO ECONOMIC DATA'!O111<>0,O25/'MACRO ECONOMIC DATA'!O111,NA()) ->  | P28: =IF(P25*'MACRO ECONOMIC DATA'!P111<>0,P25/'MACRO ECONOMIC DATA'!P111,NA()) ->  | Q28: =IF(Q25*'MACRO ECONOMIC DATA'!Q111<>0,Q25/'MACRO ECONOMIC DATA'!Q111,NA()) ->  | R28: =IF(R25*'MACRO ECONOMIC DATA'!R111<>0,R25/'MACRO ECONOMIC DATA'!R111,NA()) ->  | S28: =IF(S25*'MACRO ECONOMIC DATA'!S111<>0,S25/'MACRO ECONOMIC DATA'!S111,NA()) ->  | T28: =IF(T25*'MACRO ECONOMIC DATA'!T111<>0,T25/'MACRO ECONOMIC DATA'!T111,NA()) ->  | U28: =IF(U25*'MACRO ECONOMIC DATA'!U111<>0,U25/'MACRO ECONOMIC DATA'!U111,NA()) ->  | V28: =IF(V25*'MACRO ECONOMIC DATA'!V111<>0,V25/'MACRO ECONOMIC DATA'!V111,NA()) ->  | W28: =IF(W25*'MACRO ECONOMIC DATA'!W111<>0,W25/'MACRO ECONOMIC DATA'!W111,NA()) ->  | X28: =IF(X25*'MACRO ECONOMIC DATA'!X111<>0,X25/'MACRO ECONOMIC DATA'!X111,NA()) ->  | Y28: =IF(Y25*'MACRO ECONOMIC DATA'!Y111<>0,Y25/'MACRO ECONOMIC DATA'!Y111,NA()) ->  | Z28: =IF(Z25*'MACRO ECONOMIC DATA'!Z111<>0,Z25/'MACRO ECONOMIC DATA'!Z111,NA()) ->  | AA28: =IF(AA25*'MACRO ECONOMIC DATA'!AA111<>0,AA25/'MACRO ECONOMIC DATA'!AA111,NA()) ->  | AB28: =IF(AB25*'MACRO ECONOMIC DATA'!AB111<>0,AB25/'MACRO ECONOMIC DATA'!AB111,NA()) ->  | AC28: =IF(AC25*'MACRO ECONOMIC DATA'!AC111<>0,AC25/'MACRO ECONOMIC DATA'!AC111,NA()) ->  | AD28: =IF(AD25*'MACRO ECONOMIC DATA'!AD111<>0,AD25/'MACRO ECONOMIC DATA'!AD111,NA()) ->  | AE28: =IF(AE25*'MACRO ECONOMIC DATA'!AE111<>0,AE25/'MACRO ECONOMIC DATA'!AE111,NA()) ->  | AF28: =IF(AF25*'MACRO ECONOMIC DATA'!AF111<>0,AF25/'MACRO ECONOMIC DATA'!AF111,NA()) ->  | AG28: =IF(AG25*'MACRO ECONOMIC DATA'!AG111<>0,AG25/'MACRO ECONOMIC DATA'!AG111,NA()) ->  | AH28: =IF(AH25*'MACRO ECONOMIC DATA'!AH111<>0,AH25/'MACRO ECONOMIC DATA'!AH111,NA()) ->  | AI28: =IF(AI25*'MACRO ECONOMIC DATA'!AI111<>0,AI25/'MACRO ECONOMIC DATA'!AI111,NA()) ->  | CG28: Energy intensity (using GDP at MER) | CI28: MJ/US$
A30: 10 - 32 | B30: 10 - 18, 20 - 32: Manufacturing (excluding ISIC 19: Manufacture of coke and refined petroleum products) | CF30: 10 - 32 | CG30: 10 - 18, 20 - 32: Manufacturing (excluding ISIC 19: Manufacture of coke and refined petroleum products)
B31: Oil & Oil Products | C31: M_TOTAL.E_OIL | D31: PJ | E31: =E45+E58+E71+E133+E159+E172+E185+E221+E294+E307+E320+E333 -> 0 | F31: =F45+F58+F71+F133+F159+F172+F185+F221+F294+F307+F320+F333 -> 0 | G31: 0 | H31: 0 | I31: 0 | J31: 0 | K31: 0 | L31: 0 | M31: 0 | N31: 0 | O31: 0 | P31: 0 | Q31: 0 | R31: 0 | S31: 0 | T31: 0 | U31: 0 | V31: 0 | W31: 0 | X31: 0 | Y31: 0 | Z31: 0 | AA31: 0 | AB31: 0 | AC31: 0 | AD31: 0 | AE31: 0 | AF31: 0 | AG31: 0 | AH31: =AH45+AH58+AH71+AH133+AH159+AH172+AH185+AH221+AH294+AH307+AH320+AH333 -> 0 | AI31: 0 | CG31: Oil & Oil Products | CH31: M_TOTAL.E_OIL | CI31: PJ | CJ31: 0 | CK31: 0 | CL31: 0 | CM31: 0 | CN31: 0 | CO31: 0 | CP31: 0 | CQ31: 0 | CR31: 0 | CS31: 0 | CT31: 0 | CU31: 0 | CV31: 0 | CW31: 0 | CX31: 0 | CY31: 0 | CZ31: 0 | DA31: 0 | DB31: 0 | DC31: 0 | DD31: 0 | DE31: 0 | DF31: 0 | DG31: 0 | DH31: 0 | DI31: 0 | DJ31: 0 | DK31: 0 | DL31: 0
B32: Natural Gas | C32: M_TOTAL.E_GAS | D32: PJ | E32: =E46+E59+E72+E134+E160+E173+E186+E222+E295+E308+E321+E334 -> 0 | F32: =F46+F59+F72+F134+F160+F173+F186+F222+F295+F308+F321+F334 -> 0 | G32: 0 | H32: 0 | I32: 0 | J32: 0 | K32: 0 | L32: 0 | M32: 0 | N32: 0 | O32: 0 | P32: 0 | Q32: 0 | R32: 0 | S32: 0 | T32: 0 | U32: 0 | V32: 0 | W32: 0 | X32: 0 | Y32: 0 | Z32: 0 | AA32: 0 | AB32: 0 | AC32: 0 | AD32: 0 | AE32: 0 | AF32: 0 | AG32: 0 | AH32: =AH46+AH59+AH72+AH134+AH160+AH173+AH186+AH222+AH295+AH308+AH321+AH334 -> 0 | AI32: 0 | CG32: Natural Gas | CH32: M_TOTAL.E_GAS | CI32: PJ | CJ32: 0 | CK32: 0 | CL32: 0 | CM32: 0 | CN32: 0 | CO32: 0 | CP32: 0 | CQ32: 0 | CR32: 0 | CS32: 0 | CT32: 0 | CU32: 0 | CV32: 0 | CW32: 0 | CX32: 0 | CY32: 0 | CZ32: 0 | DA32: 0 | DB32: 0 | DC32: 0 | DD32: 0 | DE32: 0 | DF32: 0 | DG32: 0 | DH32: 0 | DI32: 0 | DJ32: 0 | DK32: 0 | DL32: 0
B33: Coal & Coal Products | C33: M_TOTAL.E_COAL | D33: PJ | E33: =E47+E60+E73+E135+E161+E174+E187+E223+E296+E309+E322+E335 -> 0 | F33: =F47+F60+F73+F135+F161+F174+F187+F223+F296+F309+F322+F335 -> 0 | G33: 0 | H33: 0 | I33: 0 | J33: 0 | K33: 0 | L33: 0 | M33: 0 | N33: 0 | O33: 0 | P33: 0 | Q33: 0 | R33: 0 | S33: 0 | T33: 0 | U33: 0 | V33: 0 | W33: 0 | X33: 0 | Y33: 0 | Z33: 0 | AA33: 0 | AB33: 0 | AC33: 0 | AD33: 0 | AE33: 0 | AF33: 0 | AG33: 0 | AH33: =AH47+AH60+AH73+AH135+AH161+AH174+AH187+AH223+AH296+AH309+AH322+AH335 -> 0 | AI33: 0 | CG33: Coal & Coal Products | CH33: M_TOTAL.E_COAL | CI33: PJ | CJ33: 0 | CK33: 0 | CL33: 0 | CM33: 0 | CN33: 0 | CO33: 0 | CP33: 0 | CQ33: 0 | CR33: 0 | CS33: 0 | CT33: 0 | CU33: 0 | CV33: 0 | CW33: 0 | CX33: 0 | CY33: 0 | CZ33: 0 | DA33: 0 | DB33: 0 | DC33: 0 | DD33: 0 | DE33: 0 | DF33: 0 | DG33: 0 | DH33: 0 | DI33: 0 | DJ33: 0 | DK33: 0 | DL33: 0
B34: Biofuels & Waste | C34: M_TOTAL.E_WOOD | D34: PJ | E34: =E48+E61+E74+E136+E162+E175+E188+E224+E297+E310+E323+E336 -> 0 | F34: =F48+F61+F74+F136+F162+F175+F188+F224+F297+F310+F323+F336 -> 0 | G34: 0 | H34: 0 | I34: 0 | J34: 0 | K34: 0 | L34: 0 | M34: 0 | N34: 0 | O34: 0 | P34: 0 | Q34: 0 | R34: 0 | S34: 0 | T34: 0 | U34: 0 | V34: 0 | W34: 0 | X34: 0 | Y34: 0 | Z34: 0 | AA34: 0 | AB34: 0 | AC34: 0 | AD34: 0 | AE34: 0 | AF34: 0 | AG34: 0 | AH34: =AH48+AH61+AH74+AH136+AH162+AH175+AH188+AH224+AH297+AH310+AH323+AH336 -> 0 | AI34: 0 | CG34: Biofuels & Waste | CH34: M_TOTAL.E_WOOD | CI34: PJ | CJ34: 0 | CK34: 0 | CL34: 0 | CM34: 0 | CN34: 0 | CO34: 0 | CP34: 0 | CQ34: 0 | CR34: 0 | CS34: 0 | CT34: 0 | CU34: 0 | CV34: 0 | CW34: 0 | CX34: 0 | CY34: 0 | CZ34: 0 | DA34: 0 | DB34: 0 | DC34: 0 | DD34: 0 | DE34: 0 | DF34: 0 | DG34: 0 | DH34: 0 | DI34: 0 | DJ34: 0 | DK34: 0 | DL34: 0
B35: Heat | C35: M_TOTAL.E_DHEAT | D35: PJ | E35: =E49+E62+E75+E137+E163+E176+E189+E225+E298+E311+E324+E337 -> 0 | F35: =F49+F62+F75+F137+F163+F176+F189+F225+F298+F311+F324+F337 -> 0 | G35: 0 | H35: 0 | I35: 0 | J35: 0 | K35: 0 | L35: 0 | M35: 0 | N35: 0 | O35: 0 | P35: 0 | Q35: 0 | R35: 0 | S35: 0 | T35: 0 | U35: 0 | V35: 0 | W35: 0 | X35: 0 | Y35: 0 | Z35: 0 | AA35: 0 | AB35: 0 | AC35: 0 | AD35: 0 | AE35: 0 | AF35: 0 | AG35: 0 | AH35: =AH49+AH62+AH75+AH137+AH163+AH176+AH189+AH225+AH298+AH311+AH324+AH337 -> 0 | AI35: 0 | CG35: Heat | CH35: M_TOTAL.E_DHEAT | CI35: PJ | CJ35: 0 | CK35: 0 | CL35: 0 | CM35: 0 | CN35: 0 | CO35: 0 | CP35: 0 | CQ35: 0 | CR35: 0 | CS35: 0 | CT35: 0 | CU35: 0 | CV35: 0 | CW35: 0 | CX35: 0 | CY35: 0 | CZ35: 0 | DA35: 0 | DB35: 0 | DC35: 0 | DD35: 0 | DE35: 0 | DF35: 0 | DG35: 0 | DH35: 0 | DI35: 0 | DJ35: 0 | DK35: 0 | DL35: 0
B36: Electricity | C36: M_TOTAL.E_ELEC | D36: PJ | E36: =E50+E63+E76+E138+E164+E177+E190+E226+E299+E312+E325+E338 -> 0 | F36: =F50+F63+F76+F138+F164+F177+F190+F226+F299+F312+F325+F338 -> 0 | G36: 0 | H36: 0 | I36: 0 | J36: 0 | K36: 0 | L36: 0 | M36: 0 | N36: 0 | O36: 0 | P36: 0 | Q36: 0 | R36: 0 | S36: 0 | T36: 0 | U36: 0 | V36: 0 | W36: 0 | X36: 0 | Y36: 0 | Z36: 0 | AA36: 0 | AB36: 0 | AC36: 0 | AD36: 0 | AE36: 0 | AF36: 0 | AG36: 0 | AH36: =AH50+AH63+AH76+AH138+AH164+AH177+AH190+AH226+AH299+AH312+AH325+AH338 -> 0 | AI36: 0 | CG36: Electricity | CH36: M_TOTAL.E_ELEC | CI36: PJ | CJ36: 0 | CK36: 0 | CL36: 0 | CM36: 0 | CN36: 0 | CO36: 0 | CP36: 0 | CQ36: 0 | CR36: 0 | CS36: 0 | CT36: 0 | CU36: 0 | CV36: 0 | CW36: 0 | CX36: 0 | CY36: 0 | CZ36: 0 | DA36: 0 | DB36: 0 | DC36: 0 | DD36: 0 | DE36: 0 | DF36: 0 | DG36: 0 | DH36: 0 | DI36: 0 | DJ36: 0 | DK36: 0 | DL36: 0
B37: Other | C37: M_TOTAL.E_OTHER | D37: PJ | E37: =E51+E64+E77+E139+E165+E178+E191+E227+E300+E313+E326+E339 -> 0 | F37: =F51+F64+F77+F139+F165+F178+F191+F227+F300+F313+F326+F339 -> 0 | G37: 0 | H37: 0 | I37: 0 | J37: 0 | K37: 0 | L37: 0 | M37: 0 | N37: 0 | O37: 0 | P37: 0 | Q37: 0 | R37: 0 | S37: 0 | T37: 0 | U37: 0 | V37: 0 | W37: 0 | X37: 0 | Y37: 0 | Z37: 0 | AA37: 0 | AB37: 0 | AC37: 0 | AD37: 0 | AE37: 0 | AF37: 0 | AG37: 0 | AH37: =AH51+AH64+AH77+AH139+AH165+AH178+AH191+AH227+AH300+AH313+AH326+AH339 -> 0 | AI37: 0 | CG37: Other | CH37: M_TOTAL.E_OTHER | CI37: PJ | CJ37: 0 | CK37: 0 | CL37: 0 | CM37: 0 | CN37: 0 | CO37: 0 | CP37: 0 | CQ37: 0 | CR37: 0 | CS37: 0 | CT37: 0 | CU37: 0 | CV37: 0 | CW37: 0 | CX37: 0 | CY37: 0 | CZ37: 0 | DA37: 0 | DB37: 0 | DC37: 0 | DD37: 0 | DE37: 0 | DF37: 0 | DG37: 0 | DH37: 0 | DI37: 0 | DJ37: 0 | DK37: 0 | DL37: 0
B38: Total Energy Use | C38: M_TOTAL.E_FINAL | D38: PJ | E38: =SUM(E31:E37) -> 0 | F38: =SUM(F31:F37) -> 0 | G38: 0 | H38: 0 | I38: 0 | J38: 0 | K38: 0 | L38: 0 | M38: 0 | N38: 0 | O38: 0 | P38: 0 | Q38: 0 | R38: 0 | S38: 0 | T38: 0 | U38: 0 | V38: 0 | W38: 0 | X38: 0 | Y38: 0 | Z38: 0 | AA38: 0 | AB38: 0 | AC38: 0 | AD38: 0 | AE38: 0 | AF38: 0 | AG38: 0 | AH38: =SUM(AH31:AH37) -> 0 | AI38: 0 | CG38: Total Energy Use | CH38: M_TOTAL.E_FINAL | CI38: PJ | CJ38: 0 | CK38: 0 | CL38: 0 | CM38: 0 | CN38: 0 | CO38: 0 | CP38: 0 | CQ38: 0 | CR38: 0 | CS38: 0 | CT38: 0 | CU38: 0 | CV38: 0 | CW38: 0 | CX38: 0 | CY38: 0 | CZ38: 0 | DA38: 0 | DB38: 0 | DC38: 0 | DD38: 0 | DE38: 0 | DF38: 0 | DG38: 0 | DH38: 0 | DI38: 0 | DJ38: 0 | DK38: 0 | DL38: 0
B39: Energy intensity (using GDP at US$PPP) | D39: MJ/US$PPP | E39: =IF(E38*'MACRO ECONOMIC DATA'!E56<>0,INDUSTRY!E38/('MACRO ECONOMIC DATA'!E56-'MACRO ECONOMIC DATA'!E63),NA()) ->  | F39: =IF(F38*'MACRO ECONOMIC DATA'!F56<>0,INDUSTRY!F38/('MACRO ECONOMIC DATA'!F56-'MACRO ECONOMIC DATA'!F63),NA()) ->  | G39: =IF(G38*'MACRO ECONOMIC DATA'!G56<>0,INDUSTRY!G38/('MACRO ECONOMIC DATA'!G56-'MACRO ECONOMIC DATA'!G63),NA()) ->  | H39: =IF(H38*'MACRO ECONOMIC DATA'!H56<>0,INDUSTRY!H38/('MACRO ECONOMIC DATA'!H56-'MACRO ECONOMIC DATA'!H63),NA()) ->  | I39: =IF(I38*'MACRO ECONOMIC DATA'!I56<>0,INDUSTRY!I38/('MACRO ECONOMIC DATA'!I56-'MACRO ECONOMIC DATA'!I63),NA()) ->  | J39: =IF(J38*'MACRO ECONOMIC DATA'!J56<>0,INDUSTRY!J38/('MACRO ECONOMIC DATA'!J56-'MACRO ECONOMIC DATA'!J63),NA()) ->  | K39: =IF(K38*'MACRO ECONOMIC DATA'!K56<>0,INDUSTRY!K38/('MACRO ECONOMIC DATA'!K56-'MACRO ECONOMIC DATA'!K63),NA()) ->  | L39: =IF(L38*'MACRO ECONOMIC DATA'!L56<>0,INDUSTRY!L38/('MACRO ECONOMIC DATA'!L56-'MACRO ECONOMIC DATA'!L63),NA()) ->  | M39: =IF(M38*'MACRO ECONOMIC DATA'!M56<>0,INDUSTRY!M38/('MACRO ECONOMIC DATA'!M56-'MACRO ECONOMIC DATA'!M63),NA()) ->  | N39: =IF(N38*'MACRO ECONOMIC DATA'!N56<>0,INDUSTRY!N38/('MACRO ECONOMIC DATA'!N56-'MACRO ECONOMIC DATA'!N63),NA()) ->  | O39: =IF(O38*'MACRO ECONOMIC DATA'!O56<>0,INDUSTRY!O38/('MACRO ECONOMIC DATA'!O56-'MACRO ECONOMIC DATA'!O63),NA()) ->  | P39: =IF(P38*'MACRO ECONOMIC DATA'!P56<>0,INDUSTRY!P38/('MACRO ECONOMIC DATA'!P56-'MACRO ECONOMIC DATA'!P63),NA()) ->  | Q39: =IF(Q38*'MACRO ECONOMIC DATA'!Q56<>0,INDUSTRY!Q38/('MACRO ECONOMIC DATA'!Q56-'MACRO ECONOMIC DATA'!Q63),NA()) ->  | R39: =IF(R38*'MACRO ECONOMIC DATA'!R56<>0,INDUSTRY!R38/('MACRO ECONOMIC DATA'!R56-'MACRO ECONOMIC DATA'!R63),NA()) ->  | S39: =IF(S38*'MACRO ECONOMIC DATA'!S56<>0,INDUSTRY!S38/('MACRO ECONOMIC DATA'!S56-'MACRO ECONOMIC DATA'!S63),NA()) ->  | T39: =IF(T38*'MACRO ECONOMIC DATA'!T56<>0,INDUSTRY!T38/('MACRO ECONOMIC DATA'!T56-'MACRO ECONOMIC DATA'!T63),NA()) ->  | U39: =IF(U38*'MACRO ECONOMIC DATA'!U56<>0,INDUSTRY!U38/('MACRO ECONOMIC DATA'!U56-'MACRO ECONOMIC DATA'!U63),NA()) ->  | V39: =IF(V38*'MACRO ECONOMIC DATA'!V56<>0,INDUSTRY!V38/('MACRO ECONOMIC DATA'!V56-'MACRO ECONOMIC DATA'!V63),NA()) ->  | W39: =IF(W38*'MACRO ECONOMIC DATA'!W56<>0,INDUSTRY!W38/('MACRO ECONOMIC DATA'!W56-'MACRO ECONOMIC DATA'!W63),NA()) ->  | X39: =IF(X38*'MACRO ECONOMIC DATA'!X56<>0,INDUSTRY!X38/('MACRO ECONOMIC DATA'!X56-'MACRO ECONOMIC DATA'!X63),NA()) ->  | Y39: =IF(Y38*'MACRO ECONOMIC DATA'!Y56<>0,INDUSTRY!Y38/('MACRO ECONOMIC DATA'!Y56-'MACRO ECONOMIC DATA'!Y63),NA()) ->  | Z39: =IF(Z38*'MACRO ECONOMIC DATA'!Z56<>0,INDUSTRY!Z38/('MACRO ECONOMIC DATA'!Z56-'MACRO ECONOMIC DATA'!Z63),NA()) ->  | AA39: =IF(AA38*'MACRO ECONOMIC DATA'!AA56<>0,INDUSTRY!AA38/('MACRO ECONOMIC DATA'!AA56-'MACRO ECONOMIC DATA'!AA63),NA()) ->  | AB39: =IF(AB38*'MACRO ECONOMIC DATA'!AB56<>0,INDUSTRY!AB38/('MACRO ECONOMIC DATA'!AB56-'MACRO ECONOMIC DATA'!AB63),NA()) ->  | AC39: =IF(AC38*'MACRO ECONOMIC DATA'!AC56<>0,INDUSTRY!AC38/('MACRO ECONOMIC DATA'!AC56-'MACRO ECONOMIC DATA'!AC63),NA()) ->  | AD39: =IF(AD38*'MACRO ECONOMIC DATA'!AD56<>0,INDUSTRY!AD38/('MACRO ECONOMIC DATA'!AD56-'MACRO ECONOMIC DATA'!AD63),NA()) ->  | AE39: =IF(AE38*'MACRO ECONOMIC DATA'!AE56<>0,INDUSTRY!AE38/('MACRO ECONOMIC DATA'!AE56-'MACRO ECONOMIC DATA'!AE63),NA()) ->  | AF39: =IF(AF38*'MACRO ECONOMIC DATA'!AF56<>0,INDUSTRY!AF38/('MACRO ECONOMIC DATA'!AF56-'MACRO ECONOMIC DATA'!AF63),NA()) ->  | AG39: =IF(AG38*'MACRO ECONOMIC DATA'!AG56<>0,INDUSTRY!AG38/('MACRO ECONOMIC DATA'!AG56-'MACRO ECONOMIC DATA'!AG63),NA()) ->  | AH39: =IF(AH38*'MACRO ECONOMIC DATA'!AH56<>0,INDUSTRY!AH38/('MACRO ECONOMIC DATA'!AH56-'MACRO ECONOMIC DATA'!AH63),NA()) ->  | AI39: =IF(AI38*'MACRO ECONOMIC DATA'!AI56<>0,INDUSTRY!AI38/('MACRO ECONOMIC DATA'!AI56-'MACRO ECONOMIC DATA'!AI63),NA()) ->  | CG39: Energy intensity (using GDP at US$PPP) | CI39: MJ/US$PPP
B40: Energy intensity (using GDP at nat. currency) | D40: ="MJ/" &'MACRO ECONOMIC DATA'!$D$143 -> MJ/NC | E40: =IF(E38*'MACRO ECONOMIC DATA'!E84<>0,E38/('MACRO ECONOMIC DATA'!E84-'MACRO ECONOMIC DATA'!E91),NA()) ->  | F40: =IF(F38*'MACRO ECONOMIC DATA'!F84<>0,F38/('MACRO ECONOMIC DATA'!F84-'MACRO ECONOMIC DATA'!F91),NA()) ->  | G40: =IF(G38*'MACRO ECONOMIC DATA'!G84<>0,G38/('MACRO ECONOMIC DATA'!G84-'MACRO ECONOMIC DATA'!G91),NA()) ->  | H40: =IF(H38*'MACRO ECONOMIC DATA'!H84<>0,H38/('MACRO ECONOMIC DATA'!H84-'MACRO ECONOMIC DATA'!H91),NA()) ->  | I40: =IF(I38*'MACRO ECONOMIC DATA'!I84<>0,I38/('MACRO ECONOMIC DATA'!I84-'MACRO ECONOMIC DATA'!I91),NA()) ->  | J40: =IF(J38*'MACRO ECONOMIC DATA'!J84<>0,J38/('MACRO ECONOMIC DATA'!J84-'MACRO ECONOMIC DATA'!J91),NA()) ->  | K40: =IF(K38*'MACRO ECONOMIC DATA'!K84<>0,K38/('MACRO ECONOMIC DATA'!K84-'MACRO ECONOMIC DATA'!K91),NA()) ->  | L40: =IF(L38*'MACRO ECONOMIC DATA'!L84<>0,L38/('MACRO ECONOMIC DATA'!L84-'MACRO ECONOMIC DATA'!L91),NA()) ->  | M40: =IF(M38*'MACRO ECONOMIC DATA'!M84<>0,M38/('MACRO ECONOMIC DATA'!M84-'MACRO ECONOMIC DATA'!M91),NA()) ->  | N40: =IF(N38*'MACRO ECONOMIC DATA'!N84<>0,N38/('MACRO ECONOMIC DATA'!N84-'MACRO ECONOMIC DATA'!N91),NA()) ->  | O40: =IF(O38*'MACRO ECONOMIC DATA'!O84<>0,O38/('MACRO ECONOMIC DATA'!O84-'MACRO ECONOMIC DATA'!O91),NA()) ->  | P40: =IF(P38*'MACRO ECONOMIC DATA'!P84<>0,P38/('MACRO ECONOMIC DATA'!P84-'MACRO ECONOMIC DATA'!P91),NA()) ->  | Q40: =IF(Q38*'MACRO ECONOMIC DATA'!Q84<>0,Q38/('MACRO ECONOMIC DATA'!Q84-'MACRO ECONOMIC DATA'!Q91),NA()) ->  | R40: =IF(R38*'MACRO ECONOMIC DATA'!R84<>0,R38/('MACRO ECONOMIC DATA'!R84-'MACRO ECONOMIC DATA'!R91),NA()) ->  | S40: =IF(S38*'MACRO ECONOMIC DATA'!S84<>0,S38/('MACRO ECONOMIC DATA'!S84-'MACRO ECONOMIC DATA'!S91),NA()) ->  | T40: =IF(T38*'MACRO ECONOMIC DATA'!T84<>0,T38/('MACRO ECONOMIC DATA'!T84-'MACRO ECONOMIC DATA'!T91),NA()) ->  | U40: =IF(U38*'MACRO ECONOMIC DATA'!U84<>0,U38/('MACRO ECONOMIC DATA'!U84-'MACRO ECONOMIC DATA'!U91),NA()) ->  | V40: =IF(V38*'MACRO ECONOMIC DATA'!V84<>0,V38/('MACRO ECONOMIC DATA'!V84-'MACRO ECONOMIC DATA'!V91),NA()) ->  | W40: =IF(W38*'MACRO ECONOMIC DATA'!W84<>0,W38/('MACRO ECONOMIC DATA'!W84-'MACRO ECONOMIC DATA'!W91),NA()) ->  | X40: =IF(X38*'MACRO ECONOMIC DATA'!X84<>0,X38/('MACRO ECONOMIC DATA'!X84-'MACRO ECONOMIC DATA'!X91),NA()) ->  | Y40: =IF(Y38*'MACRO ECONOMIC DATA'!Y84<>0,Y38/('MACRO ECONOMIC DATA'!Y84-'MACRO ECONOMIC DATA'!Y91),NA()) ->  | Z40: =IF(Z38*'MACRO ECONOMIC DATA'!Z84<>0,Z38/('MACRO ECONOMIC DATA'!Z84-'MACRO ECONOMIC DATA'!Z91),NA()) ->  | AA40: =IF(AA38*'MACRO ECONOMIC DATA'!AA84<>0,AA38/('MACRO ECONOMIC DATA'!AA84-'MACRO ECONOMIC DATA'!AA91),NA()) ->  | AB40: =IF(AB38*'MACRO ECONOMIC DATA'!AB84<>0,AB38/('MACRO ECONOMIC DATA'!AB84-'MACRO ECONOMIC DATA'!AB91),NA()) ->  | AC40: =IF(AC38*'MACRO ECONOMIC DATA'!AC84<>0,AC38/('MACRO ECONOMIC DATA'!AC84-'MACRO ECONOMIC DATA'!AC91),NA()) ->  | AD40: =IF(AD38*'MACRO ECONOMIC DATA'!AD84<>0,AD38/('MACRO ECONOMIC DATA'!AD84-'MACRO ECONOMIC DATA'!AD91),NA()) ->  | AE40: =IF(AE38*'MACRO ECONOMIC DATA'!AE84<>0,AE38/('MACRO ECONOMIC DATA'!AE84-'MACRO ECONOMIC DATA'!AE91),NA()) ->  | AF40: =IF(AF38*'MACRO ECONOMIC DATA'!AF84<>0,AF38/('MACRO ECONOMIC DATA'!AF84-'MACRO ECONOMIC DATA'!AF91),NA()) ->  | AG40: =IF(AG38*'MACRO ECONOMIC DATA'!AG84<>0,AG38/('MACRO ECONOMIC DATA'!AG84-'MACRO ECONOMIC DATA'!AG91),NA()) ->  | AH40: =IF(AH38*'MACRO ECONOMIC DATA'!AH84<>0,AH38/('MACRO ECONOMIC DATA'!AH84-'MACRO ECONOMIC DATA'!AH91),NA()) ->  | AI40: =IF(AI38*'MACRO ECONOMIC DATA'!AI84<>0,AI38/('MACRO ECONOMIC DATA'!AI84-'MACRO ECONOMIC DATA'!AI91),NA()) ->  | CG40: Energy intensity (using GDP at nat. currency) | CI40: MJ/NC
B41: Energy intensity (using GDP at MER) | D41: MJ/US$ | E41: =IF(E38*'MACRO ECONOMIC DATA'!E112<>0,E38/('MACRO ECONOMIC DATA'!E112-'MACRO ECONOMIC DATA'!E119),NA()) ->  | F41: =IF(F38*'MACRO ECONOMIC DATA'!F112<>0,F38/('MACRO ECONOMIC DATA'!F112-'MACRO ECONOMIC DATA'!F119),NA()) ->  | G41: =IF(G38*'MACRO ECONOMIC DATA'!G112<>0,G38/('MACRO ECONOMIC DATA'!G112-'MACRO ECONOMIC DATA'!G119),NA()) ->  | H41: =IF(H38*'MACRO ECONOMIC DATA'!H112<>0,H38/('MACRO ECONOMIC DATA'!H112-'MACRO ECONOMIC DATA'!H119),NA()) ->  | I41: =IF(I38*'MACRO ECONOMIC DATA'!I112<>0,I38/('MACRO ECONOMIC DATA'!I112-'MACRO ECONOMIC DATA'!I119),NA()) ->  | J41: =IF(J38*'MACRO ECONOMIC DATA'!J112<>0,J38/('MACRO ECONOMIC DATA'!J112-'MACRO ECONOMIC DATA'!J119),NA()) ->  | K41: =IF(K38*'MACRO ECONOMIC DATA'!K112<>0,K38/('MACRO ECONOMIC DATA'!K112-'MACRO ECONOMIC DATA'!K119),NA()) ->  | L41: =IF(L38*'MACRO ECONOMIC DATA'!L112<>0,L38/('MACRO ECONOMIC DATA'!L112-'MACRO ECONOMIC DATA'!L119),NA()) ->  | M41: =IF(M38*'MACRO ECONOMIC DATA'!M112<>0,M38/('MACRO ECONOMIC DATA'!M112-'MACRO ECONOMIC DATA'!M119),NA()) ->  | N41: =IF(N38*'MACRO ECONOMIC DATA'!N112<>0,N38/('MACRO ECONOMIC DATA'!N112-'MACRO ECONOMIC DATA'!N119),NA()) ->  | O41: =IF(O38*'MACRO ECONOMIC DATA'!O112<>0,O38/('MACRO ECONOMIC DATA'!O112-'MACRO ECONOMIC DATA'!O119),NA()) ->  | P41: =IF(P38*'MACRO ECONOMIC DATA'!P112<>0,P38/('MACRO ECONOMIC DATA'!P112-'MACRO ECONOMIC DATA'!P119),NA()) ->  | Q41: =IF(Q38*'MACRO ECONOMIC DATA'!Q112<>0,Q38/('MACRO ECONOMIC DATA'!Q112-'MACRO ECONOMIC DATA'!Q119),NA()) ->  | R41: =IF(R38*'MACRO ECONOMIC DATA'!R112<>0,R38/('MACRO ECONOMIC DATA'!R112-'MACRO ECONOMIC DATA'!R119),NA()) ->  | S41: =IF(S38*'MACRO ECONOMIC DATA'!S112<>0,S38/('MACRO ECONOMIC DATA'!S112-'MACRO ECONOMIC DATA'!S119),NA()) ->  | T41: =IF(T38*'MACRO ECONOMIC DATA'!T112<>0,T38/('MACRO ECONOMIC DATA'!T112-'MACRO ECONOMIC DATA'!T119),NA()) ->  | U41: =IF(U38*'MACRO ECONOMIC DATA'!U112<>0,U38/('MACRO ECONOMIC DATA'!U112-'MACRO ECONOMIC DATA'!U119),NA()) ->  | V41: =IF(V38*'MACRO ECONOMIC DATA'!V112<>0,V38/('MACRO ECONOMIC DATA'!V112-'MACRO ECONOMIC DATA'!V119),NA()) ->  | W41: =IF(W38*'MACRO ECONOMIC DATA'!W112<>0,W38/('MACRO ECONOMIC DATA'!W112-'MACRO ECONOMIC DATA'!W119),NA()) ->  | X41: =IF(X38*'MACRO ECONOMIC DATA'!X112<>0,X38/('MACRO ECONOMIC DATA'!X112-'MACRO ECONOMIC DATA'!X119),NA()) ->  | Y41: =IF(Y38*'MACRO ECONOMIC DATA'!Y112<>0,Y38/('MACRO ECONOMIC DATA'!Y112-'MACRO ECONOMIC DATA'!Y119),NA()) ->  | Z41: =IF(Z38*'MACRO ECONOMIC DATA'!Z112<>0,Z38/('MACRO ECONOMIC DATA'!Z112-'MACRO ECONOMIC DATA'!Z119),NA()) ->  | AA41: =IF(AA38*'MACRO ECONOMIC DATA'!AA112<>0,AA38/('MACRO ECONOMIC DATA'!AA112-'MACRO ECONOMIC DATA'!AA119),NA()) ->  | AB41: =IF(AB38*'MACRO ECONOMIC DATA'!AB112<>0,AB38/('MACRO ECONOMIC DATA'!AB112-'MACRO ECONOMIC DATA'!AB119),NA()) ->  | AC41: =IF(AC38*'MACRO ECONOMIC DATA'!AC112<>0,AC38/('MACRO ECONOMIC DATA'!AC112-'MACRO ECONOMIC DATA'!AC119),NA()) ->  | AD41: =IF(AD38*'MACRO ECONOMIC DATA'!AD112<>0,AD38/('MACRO ECONOMIC DATA'!AD112-'MACRO ECONOMIC DATA'!AD119),NA()) ->  | AE41: =IF(AE38*'MACRO ECONOMIC DATA'!AE112<>0,AE38/('MACRO ECONOMIC DATA'!AE112-'MACRO ECONOMIC DATA'!AE119),NA()) ->  | AF41: =IF(AF38*'MACRO ECONOMIC DATA'!AF112<>0,AF38/('MACRO ECONOMIC DATA'!AF112-'MACRO ECONOMIC DATA'!AF119),NA()) ->  | AG41: =IF(AG38*'MACRO ECONOMIC DATA'!AG112<>0,AG38/('MACRO ECONOMIC DATA'!AG112-'MACRO ECONOMIC DATA'!AG119),NA()) ->  | AH41: =IF(AH38*'MACRO ECONOMIC DATA'!AH112<>0,AH38/('MACRO ECONOMIC DATA'!AH112-'MACRO ECONOMIC DATA'!AH119),NA()) ->  | AI41: =IF(AI38*'MACRO ECONOMIC DATA'!AI112<>0,AI38/('MACRO ECONOMIC DATA'!AI112-'MACRO ECONOMIC DATA'!AI119),NA()) ->  | CG41: Energy intensity (using GDP at MER) | CI41: MJ/US$
B42: Structural impact - index | E42: =IF(ISERROR(E410),NA(),E410) ->  | F42: =IF(ISERROR(F410),NA(),F410) ->  | AH42: =IF(ISERROR(AH410),NA(),AH410) ->  | CG42: Structural impact - index
A44: 10 - 12 | B44: 10 - 12: Manufacture of food products, beverages, tobacco products | CF44: 10 - 12 | CG44: 10 - 12: Manufacture of food products, beverages, tobacco products
B45: Oil & Oil Products | C45: M_FOOD.E_OIL | D45: PJ | E45: 0 | F45: 0 | G45: 0 | H45: 0 | I45: 0 | J45: 0 | K45: 0 | L45: 0 | M45: 0 | N45: 0 | O45: 0 | P45: 0 | Q45: 0 | R45: 0 | S45: 0 | T45: 0 | U45: 0 | V45: 0 | W45: 0 | X45: 0 | Y45: 0 | Z45: 0 | AA45: 0 | AB45: 0 | AC45: 0 | AD45: 0 | AE45: 0 | AF45: 0 | AG45: 0 | AH45: 0 | AI45: 0 | CG45: Oil & Oil Products | CH45: M_FOOD.E_OIL | CI45: PJ | CJ45: 0 | CK45: 0 | CL45: 0 | CM45: 0 | CN45: 0 | CO45: 0 | CP45: 0 | CQ45: 0 | CR45: 0 | CS45: 0 | CT45: 0 | CU45: 0 | CV45: 0 | CW45: 0 | CX45: 0 | CY45: 0 | CZ45: 0 | DA45: 0 | DB45: 0 | DC45: 0 | DD45: 0 | DE45: 0 | DF45: 0 | DG45: 0 | DH45: 0 | DI45: 0 | DJ45: 0 | DK45: 0 | DL45: 0
B46: Natural Gas | C46: M_FOOD.E_GAS | D46: PJ | E46: 0 | F46: 0 | G46: 0 | H46: 0 | I46: 0 | J46: 0 | K46: 0 | L46: 0 | M46: 0 | N46: 0 | O46: 0 | P46: 0 | Q46: 0 | R46: 0 | S46: 0 | T46: 0 | U46: 0 | V46: 0 | W46: 0 | X46: 0 | Y46: 0 | Z46: 0 | AA46: 0 | AB46: 0 | AC46: 0 | AD46: 0 | AE46: 0 | AF46: 0 | AG46: 0 | AH46: 0 | AI46: 0 | CG46: Natural Gas | CH46: M_FOOD.E_GAS | CI46: PJ | CJ46: 0 | CK46: 0 | CL46: 0 | CM46: 0 | CN46: 0 | CO46: 0 | CP46: 0 | CQ46: 0 | CR46: 0 | CS46: 0 | CT46: 0 | CU46: 0 | CV46: 0 | CW46: 0 | CX46: 0 | CY46: 0 | CZ46: 0 | DA46: 0 | DB46: 0 | DC46: 0 | DD46: 0 | DE46: 0 | DF46: 0 | DG46: 0 | DH46: 0 | DI46: 0 | DJ46: 0 | DK46: 0 | DL46: 0
B47: Coal & Coal Products | C47: M_FOOD.E_COAL | D47: PJ | E47: 0 | F47: 0 | G47: 0 | H47: 0 | I47: 0 | J47: 0 | K47: 0 | L47: 0 | M47: 0 | N47: 0 | O47: 0 | P47: 0 | Q47: 0 | R47: 0 | S47: 0 | T47: 0 | U47: 0 | V47: 0 | W47: 0 | X47: 0 | Y47: 0 | Z47: 0 | AA47: 0 | AB47: 0 | AC47: 0 | AD47: 0 | AE47: 0 | AF47: 0 | AG47: 0 | AH47: 0 | AI47: 0 | CG47: Coal & Coal Products | CH47: M_FOOD.E_COAL | CI47: PJ | CJ47: 0 | CK47: 0 | CL47: 0 | CM47: 0 | CN47: 0 | CO47: 0 | CP47: 0 | CQ47: 0 | CR47: 0 | CS47: 0 | CT47: 0 | CU47: 0 | CV47: 0 | CW47: 0 | CX47: 0 | CY47: 0 | CZ47: 0 | DA47: 0 | DB47: 0 | DC47: 0 | DD47: 0 | DE47: 0 | DF47: 0 | DG47: 0 | DH47: 0 | DI47: 0 | DJ47: 0 | DK47: 0 | DL47: 0
B48: Biofuels & Waste | C48: M_FOOD.E_WOOD | D48: PJ | E48: 0 | F48: 0 | G48: 0 | H48: 0 | I48: 0 | J48: 0 | K48: 0 | L48: 0 | M48: 0 | N48: 0 | O48: 0 | P48: 0 | Q48: 0 | R48: 0 | S48: 0 | T48: 0 | U48: 0 | V48: 0 | W48: 0 | X48: 0 | Y48: 0 | Z48: 0 | AA48: 0 | AB48: 0 | AC48: 0 | AD48: 0 | AE48: 0 | AF48: 0 | AG48: 0 | AH48: 0 | AI48: 0 | CG48: Biofuels & Waste | CH48: M_FOOD.E_WOOD | CI48: PJ | CJ48: 0 | CK48: 0 | CL48: 0 | CM48: 0 | CN48: 0 | CO48: 0 | CP48: 0 | CQ48: 0 | CR48: 0 | CS48: 0 | CT48: 0 | CU48: 0 | CV48: 0 | CW48: 0 | CX48: 0 | CY48: 0 | CZ48: 0 | DA48: 0 | DB48: 0 | DC48: 0 | DD48: 0 | DE48: 0 | DF48: 0 | DG48: 0 | DH48: 0 | DI48: 0 | DJ48: 0 | DK48: 0 | DL48: 0
B49: Heat | C49: M_FOOD.E_DHEAT | D49: PJ | E49: 0 | F49: 0 | G49: 0 | H49: 0 | I49: 0 | J49: 0 | K49: 0 | L49: 0 | M49: 0 | N49: 0 | O49: 0 | P49: 0 | Q49: 0 | R49: 0 | S49: 0 | T49: 0 | U49: 0 | V49: 0 | W49: 0 | X49: 0 | Y49: 0 | Z49: 0 | AA49: 0 | AB49: 0 | AC49: 0 | AD49: 0 | AE49: 0 | AF49: 0 | AG49: 0 | AH49: 0 | AI49: 0 | CG49: Heat | CH49: M_FOOD.E_DHEAT | CI49: PJ | CJ49: 0 | CK49: 0 | CL49: 0 | CM49: 0 | CN49: 0 | CO49: 0 | CP49: 0 | CQ49: 0 | CR49: 0 | CS49: 0 | CT49: 0 | CU49: 0 | CV49: 0 | CW49: 0 | CX49: 0 | CY49: 0 | CZ49: 0 | DA49: 0 | DB49: 0 | DC49: 0 | DD49: 0 | DE49: 0 | DF49: 0 | DG49: 0 | DH49: 0 | DI49: 0 | DJ49: 0 | DK49: 0 | DL49: 0
B50: Electricity | C50: M_FOOD.E_ELEC | D50: PJ | E50: 0 | F50: 0 | G50: 0 | H50: 0 | I50: 0 | J50: 0 | K50: 0 | L50: 0 | M50: 0 | N50: 0 | O50: 0 | P50: 0 | Q50: 0 | R50: 0 | S50: 0 | T50: 0 | U50: 0 | V50: 0 | W50: 0 | X50: 0 | Y50: 0 | Z50: 0 | AA50: 0 | AB50: 0 | AC50: 0 | AD50: 0 | AE50: 0 | AF50: 0 | AG50: 0 | AH50: 0 | AI50: 0 | CG50: Electricity | CH50: M_FOOD.E_ELEC | CI50: PJ | CJ50: 0 | CK50: 0 | CL50: 0 | CM50: 0 | CN50: 0 | CO50: 0 | CP50: 0 | CQ50: 0 | CR50: 0 | CS50: 0 | CT50: 0 | CU50: 0 | CV50: 0 | CW50: 0 | CX50: 0 | CY50: 0 | CZ50: 0 | DA50: 0 | DB50: 0 | DC50: 0 | DD50: 0 | DE50: 0 | DF50: 0 | DG50: 0 | DH50: 0 | DI50: 0 | DJ50: 0 | DK50: 0 | DL50: 0
B51: Other | C51: M_FOOD.E_OTHER | D51: PJ | E51: 0 | F51: 0 | G51: 0 | H51: 0 | I51: 0 | J51: 0 | K51: 0 | L51: 0 | M51: 0 | N51: 0 | O51: 0 | P51: 0 | Q51: 0 | R51: 0 | S51: 0 | T51: 0 | U51: 0 | V51: 0 | W51: 0 | X51: 0 | Y51: 0 | Z51: 0 | AA51: 0 | AB51: 0 | AC51: 0 | AD51: 0 | AE51: 0 | AF51: 0 | AG51: 0 | AH51: 0 | AI51: 0 | CG51: Other | CH51: M_FOOD.E_OTHER | CI51: PJ | CJ51: 0 | CK51: 0 | CL51: 0 | CM51: 0 | CN51: 0 | CO51: 0 | CP51: 0 | CQ51: 0 | CR51: 0 | CS51: 0 | CT51: 0 | CU51: 0 | CV51: 0 | CW51: 0 | CX51: 0 | CY51: 0 | CZ51: 0 | DA51: 0 | DB51: 0 | DC51: 0 | DD51: 0 | DE51: 0 | DF51: 0 | DG51: 0 | DH51: 0 | DI51: 0 | DJ51: 0 | DK51: 0 | DL51: 0
A52: TRUE | B52: Total Energy Use | C52: M_FOOD.E_FINAL | D52: PJ | E52: =SUM(E45:E51) -> 0 | F52: =SUM(F45:F51) -> 0 | G52: 0 | H52: 0 | I52: 0 | J52: 0 | K52: 0 | L52: 0 | M52: 0 | N52: 0 | O52: 0 | P52: 0 | Q52: 0 | R52: 0 | S52: 0 | T52: 0 | U52: 0 | V52: 0 | W52: 0 | X52: 0 | Y52: 0 | Z52: 0 | AA52: 0 | AB52: 0 | AC52: 0 | AD52: 0 | AE52: 0 | AF52: 0 | AG52: 0 | AH52: =SUM(AH45:AH51) -> 0 | AI52: 0 | CF52: TRUE | CG52: Total Energy Use | CH52: M_FOOD.E_FINAL | CI52: PJ | CJ52: 0 | CK52: 0 | CL52: 0 | CM52: 0 | CN52: 0 | CO52: 0 | CP52: 0 | CQ52: 0 | CR52: 0 | CS52: 0 | CT52: 0 | CU52: 0 | CV52: 0 | CW52: 0 | CX52: 0 | CY52: 0 | CZ52: 0 | DA52: 0 | DB52: 0 | DC52: 0 | DD52: 0 | DE52: 0 | DF52: 0 | DG52: 0 | DH52: 0 | DI52: 0 | DJ52: 0 | DK52: 0 | DL52: 0
B53: Energy intensity (using GDP at US$PPP) | D53: MJ/US$PPP | E53: =IF(E52*'MACRO ECONOMIC DATA'!E57<>0,INDUSTRY!E52/'MACRO ECONOMIC DATA'!E57,NA()) ->  | F53: =IF(F52*'MACRO ECONOMIC DATA'!F57<>0,INDUSTRY!F52/'MACRO ECONOMIC DATA'!F57,NA()) ->  | G53: =IF(G52*'MACRO ECONOMIC DATA'!G57<>0,INDUSTRY!G52/'MACRO ECONOMIC DATA'!G57,NA()) ->  | H53: =IF(H52*'MACRO ECONOMIC DATA'!H57<>0,INDUSTRY!H52/'MACRO ECONOMIC DATA'!H57,NA()) ->  | I53: =IF(I52*'MACRO ECONOMIC DATA'!I57<>0,INDUSTRY!I52/'MACRO ECONOMIC DATA'!I57,NA()) ->  | J53: =IF(J52*'MACRO ECONOMIC DATA'!J57<>0,INDUSTRY!J52/'MACRO ECONOMIC DATA'!J57,NA()) ->  | K53: =IF(K52*'MACRO ECONOMIC DATA'!K57<>0,INDUSTRY!K52/'MACRO ECONOMIC DATA'!K57,NA()) ->  | L53: =IF(L52*'MACRO ECONOMIC DATA'!L57<>0,INDUSTRY!L52/'MACRO ECONOMIC DATA'!L57,NA()) ->  | M53: =IF(M52*'MACRO ECONOMIC DATA'!M57<>0,INDUSTRY!M52/'MACRO ECONOMIC DATA'!M57,NA()) ->  | N53: =IF(N52*'MACRO ECONOMIC DATA'!N57<>0,INDUSTRY!N52/'MACRO ECONOMIC DATA'!N57,NA()) ->  | O53: =IF(O52*'MACRO ECONOMIC DATA'!O57<>0,INDUSTRY!O52/'MACRO ECONOMIC DATA'!O57,NA()) ->  | P53: =IF(P52*'MACRO ECONOMIC DATA'!P57<>0,INDUSTRY!P52/'MACRO ECONOMIC DATA'!P57,NA()) ->  | Q53: =IF(Q52*'MACRO ECONOMIC DATA'!Q57<>0,INDUSTRY!Q52/'MACRO ECONOMIC DATA'!Q57,NA()) ->  | R53: =IF(R52*'MACRO ECONOMIC DATA'!R57<>0,INDUSTRY!R52/'MACRO ECONOMIC DATA'!R57,NA()) ->  | S53: =IF(S52*'MACRO ECONOMIC DATA'!S57<>0,INDUSTRY!S52/'MACRO ECONOMIC DATA'!S57,NA()) ->  | T53: =IF(T52*'MACRO ECONOMIC DATA'!T57<>0,INDUSTRY!T52/'MACRO ECONOMIC DATA'!T57,NA()) ->  | U53: =IF(U52*'MACRO ECONOMIC DATA'!U57<>0,INDUSTRY!U52/'MACRO ECONOMIC DATA'!U57,NA()) ->  | V53: =IF(V52*'MACRO ECONOMIC DATA'!V57<>0,INDUSTRY!V52/'MACRO ECONOMIC DATA'!V57,NA()) ->  | W53: =IF(W52*'MACRO ECONOMIC DATA'!W57<>0,INDUSTRY!W52/'MACRO ECONOMIC DATA'!W57,NA()) ->  | X53: =IF(X52*'MACRO ECONOMIC DATA'!X57<>0,INDUSTRY!X52/'MACRO ECONOMIC DATA'!X57,NA()) ->  | Y53: =IF(Y52*'MACRO ECONOMIC DATA'!Y57<>0,INDUSTRY!Y52/'MACRO ECONOMIC DATA'!Y57,NA()) ->  | Z53: =IF(Z52*'MACRO ECONOMIC DATA'!Z57<>0,INDUSTRY!Z52/'MACRO ECONOMIC DATA'!Z57,NA()) ->  | AA53: =IF(AA52*'MACRO ECONOMIC DATA'!AA57<>0,INDUSTRY!AA52/'MACRO ECONOMIC DATA'!AA57,NA()) ->  | AB53: =IF(AB52*'MACRO ECONOMIC DATA'!AB57<>0,INDUSTRY!AB52/'MACRO ECONOMIC DATA'!AB57,NA()) ->  | AC53: =IF(AC52*'MACRO ECONOMIC DATA'!AC57<>0,INDUSTRY!AC52/'MACRO ECONOMIC DATA'!AC57,NA()) ->  | AD53: =IF(AD52*'MACRO ECONOMIC DATA'!AD57<>0,INDUSTRY!AD52/'MACRO ECONOMIC DATA'!AD57,NA()) ->  | AE53: =IF(AE52*'MACRO ECONOMIC DATA'!AE57<>0,INDUSTRY!AE52/'MACRO ECONOMIC DATA'!AE57,NA()) ->  | AF53: =IF(AF52*'MACRO ECONOMIC DATA'!AF57<>0,INDUSTRY!AF52/'MACRO ECONOMIC DATA'!AF57,NA()) ->  | AG53: =IF(AG52*'MACRO ECONOMIC DATA'!AG57<>0,INDUSTRY!AG52/'MACRO ECONOMIC DATA'!AG57,NA()) ->  | AH53: =IF(AH52*'MACRO ECONOMIC DATA'!AH57<>0,INDUSTRY!AH52/'MACRO ECONOMIC DATA'!AH57,NA()) ->  | AI53: =IF(AI52*'MACRO ECONOMIC DATA'!AI57<>0,INDUSTRY!AI52/'MACRO ECONOMIC DATA'!AI57,NA()) ->  | CG53: Energy intensity (using GDP at US$PPP) | CI53: MJ/US$PPP
B54: Energy intensity (using GDP at nat. currency) | D54: ="MJ/" &'MACRO ECONOMIC DATA'!$D$143 -> MJ/NC | E54: =IF(E52*'MACRO ECONOMIC DATA'!E85<>0,E52/'MACRO ECONOMIC DATA'!E85,NA()) ->  | F54: =IF(F52*'MACRO ECONOMIC DATA'!F85<>0,F52/'MACRO ECONOMIC DATA'!F85,NA()) ->  | G54: =IF(G52*'MACRO ECONOMIC DATA'!G85<>0,G52/'MACRO ECONOMIC DATA'!G85,NA()) ->  | H54: =IF(H52*'MACRO ECONOMIC DATA'!H85<>0,H52/'MACRO ECONOMIC DATA'!H85,NA()) ->  | I54: =IF(I52*'MACRO ECONOMIC DATA'!I85<>0,I52/'MACRO ECONOMIC DATA'!I85,NA()) ->  | J54: =IF(J52*'MACRO ECONOMIC DATA'!J85<>0,J52/'MACRO ECONOMIC DATA'!J85,NA()) ->  | K54: =IF(K52*'MACRO ECONOMIC DATA'!K85<>0,K52/'MACRO ECONOMIC DATA'!K85,NA()) ->  | L54: =IF(L52*'MACRO ECONOMIC DATA'!L85<>0,L52/'MACRO ECONOMIC DATA'!L85,NA()) ->  | M54: =IF(M52*'MACRO ECONOMIC DATA'!M85<>0,M52/'MACRO ECONOMIC DATA'!M85,NA()) ->  | N54: =IF(N52*'MACRO ECONOMIC DATA'!N85<>0,N52/'MACRO ECONOMIC DATA'!N85,NA()) ->  | O54: =IF(O52*'MACRO ECONOMIC DATA'!O85<>0,O52/'MACRO ECONOMIC DATA'!O85,NA()) ->  | P54: =IF(P52*'MACRO ECONOMIC DATA'!P85<>0,P52/'MACRO ECONOMIC DATA'!P85,NA()) ->  | Q54: =IF(Q52*'MACRO ECONOMIC DATA'!Q85<>0,Q52/'MACRO ECONOMIC DATA'!Q85,NA()) ->  | R54: =IF(R52*'MACRO ECONOMIC DATA'!R85<>0,R52/'MACRO ECONOMIC DATA'!R85,NA()) ->  | S54: =IF(S52*'MACRO ECONOMIC DATA'!S85<>0,S52/'MACRO ECONOMIC DATA'!S85,NA()) ->  | T54: =IF(T52*'MACRO ECONOMIC DATA'!T85<>0,T52/'MACRO ECONOMIC DATA'!T85,NA()) ->  | U54: =IF(U52*'MACRO ECONOMIC DATA'!U85<>0,U52/'MACRO ECONOMIC DATA'!U85,NA()) ->  | V54: =IF(V52*'MACRO ECONOMIC DATA'!V85<>0,V52/'MACRO ECONOMIC DATA'!V85,NA()) ->  | W54: =IF(W52*'MACRO ECONOMIC DATA'!W85<>0,W52/'MACRO ECONOMIC DATA'!W85,NA()) ->  | X54: =IF(X52*'MACRO ECONOMIC DATA'!X85<>0,X52/'MACRO ECONOMIC DATA'!X85,NA()) ->  | Y54: =IF(Y52*'MACRO ECONOMIC DATA'!Y85<>0,Y52/'MACRO ECONOMIC DATA'!Y85,NA()) ->  | Z54: =IF(Z52*'MACRO ECONOMIC DATA'!Z85<>0,Z52/'MACRO ECONOMIC DATA'!Z85,NA()) ->  | AA54: =IF(AA52*'MACRO ECONOMIC DATA'!AA85<>0,AA52/'MACRO ECONOMIC DATA'!AA85,NA()) ->  | AB54: =IF(AB52*'MACRO ECONOMIC DATA'!AB85<>0,AB52/'MACRO ECONOMIC DATA'!AB85,NA()) ->  | AC54: =IF(AC52*'MACRO ECONOMIC DATA'!AC85<>0,AC52/'MACRO ECONOMIC DATA'!AC85,NA()) ->  | AD54: =IF(AD52*'MACRO ECONOMIC DATA'!AD85<>0,AD52/'MACRO ECONOMIC DATA'!AD85,NA()) ->  | AE54: =IF(AE52*'MACRO ECONOMIC DATA'!AE85<>0,AE52/'MACRO ECONOMIC DATA'!AE85,NA()) ->  | AF54: =IF(AF52*'MACRO ECONOMIC DATA'!AF85<>0,AF52/'MACRO ECONOMIC DATA'!AF85,NA()) ->  | AG54: =IF(AG52*'MACRO ECONOMIC DATA'!AG85<>0,AG52/'MACRO ECONOMIC DATA'!AG85,NA()) ->  | AH54: =IF(AH52*'MACRO ECONOMIC DATA'!AH85<>0,AH52/'MACRO ECONOMIC DATA'!AH85,NA()) ->  | AI54: =IF(AI52*'MACRO ECONOMIC DATA'!AI85<>0,AI52/'MACRO ECONOMIC DATA'!AI85,NA()) ->  | CG54: Energy intensity (using GDP at nat. currency) | CI54: MJ/NC
B55: Energy intensity (using GDP at MER) | D55: MJ/US$ | E55: =IF(E52*'MACRO ECONOMIC DATA'!E113<>0,E52/'MACRO ECONOMIC DATA'!E113,NA()) ->  | F55: =IF(F52*'MACRO ECONOMIC DATA'!F113<>0,F52/'MACRO ECONOMIC DATA'!F113,NA()) ->  | G55: =IF(G52*'MACRO ECONOMIC DATA'!G113<>0,G52/'MACRO ECONOMIC DATA'!G113,NA()) ->  | H55: =IF(H52*'MACRO ECONOMIC DATA'!H113<>0,H52/'MACRO ECONOMIC DATA'!H113,NA()) ->  | I55: =IF(I52*'MACRO ECONOMIC DATA'!I113<>0,I52/'MACRO ECONOMIC DATA'!I113,NA()) ->  | J55: =IF(J52*'MACRO ECONOMIC DATA'!J113<>0,J52/'MACRO ECONOMIC DATA'!J113,NA()) ->  | K55: =IF(K52*'MACRO ECONOMIC DATA'!K113<>0,K52/'MACRO ECONOMIC DATA'!K113,NA()) ->  | L55: =IF(L52*'MACRO ECONOMIC DATA'!L113<>0,L52/'MACRO ECONOMIC DATA'!L113,NA()) ->  | M55: =IF(M52*'MACRO ECONOMIC DATA'!M113<>0,M52/'MACRO ECONOMIC DATA'!M113,NA()) ->  | N55: =IF(N52*'MACRO ECONOMIC DATA'!N113<>0,N52/'MACRO ECONOMIC DATA'!N113,NA()) ->  | O55: =IF(O52*'MACRO ECONOMIC DATA'!O113<>0,O52/'MACRO ECONOMIC DATA'!O113,NA()) ->  | P55: =IF(P52*'MACRO ECONOMIC DATA'!P113<>0,P52/'MACRO ECONOMIC DATA'!P113,NA()) ->  | Q55: =IF(Q52*'MACRO ECONOMIC DATA'!Q113<>0,Q52/'MACRO ECONOMIC DATA'!Q113,NA()) ->  | R55: =IF(R52*'MACRO ECONOMIC DATA'!R113<>0,R52/'MACRO ECONOMIC DATA'!R113,NA()) ->  | S55: =IF(S52*'MACRO ECONOMIC DATA'!S113<>0,S52/'MACRO ECONOMIC DATA'!S113,NA()) ->  | T55: =IF(T52*'MACRO ECONOMIC DATA'!T113<>0,T52/'MACRO ECONOMIC DATA'!T113,NA()) ->  | U55: =IF(U52*'MACRO ECONOMIC DATA'!U113<>0,U52/'MACRO ECONOMIC DATA'!U113,NA()) ->  | V55: =IF(V52*'MACRO ECONOMIC DATA'!V113<>0,V52/'MACRO ECONOMIC DATA'!V113,NA()) ->  | W55: =IF(W52*'MACRO ECONOMIC DATA'!W113<>0,W52/'MACRO ECONOMIC DATA'!W113,NA()) ->  | X55: =IF(X52*'MACRO ECONOMIC DATA'!X113<>0,X52/'MACRO ECONOMIC DATA'!X113,NA()) ->  | Y55: =IF(Y52*'MACRO ECONOMIC DATA'!Y113<>0,Y52/'MACRO ECONOMIC DATA'!Y113,NA()) ->  | Z55: =IF(Z52*'MACRO ECONOMIC DATA'!Z113<>0,Z52/'MACRO ECONOMIC DATA'!Z113,NA()) ->  | AA55: =IF(AA52*'MACRO ECONOMIC DATA'!AA113<>0,AA52/'MACRO ECONOMIC DATA'!AA113,NA()) ->  | AB55: =IF(AB52*'MACRO ECONOMIC DATA'!AB113<>0,AB52/'MACRO ECONOMIC DATA'!AB113,NA()) ->  | AC55: =IF(AC52*'MACRO ECONOMIC DATA'!AC113<>0,AC52/'MACRO ECONOMIC DATA'!AC113,NA()) ->  | AD55: =IF(AD52*'MACRO ECONOMIC DATA'!AD113<>0,AD52/'MACRO ECONOMIC DATA'!AD113,NA()) ->  | AE55: =IF(AE52*'MACRO ECONOMIC DATA'!AE113<>0,AE52/'MACRO ECONOMIC DATA'!AE113,NA()) ->  | AF55: =IF(AF52*'MACRO ECONOMIC DATA'!AF113<>0,AF52/'MACRO ECONOMIC DATA'!AF113,NA()) ->  | AG55: =IF(AG52*'MACRO ECONOMIC DATA'!AG113<>0,AG52/'MACRO ECONOMIC DATA'!AG113,NA()) ->  | AH55: =IF(AH52*'MACRO ECONOMIC DATA'!AH113<>0,AH52/'MACRO ECONOMIC DATA'!AH113,NA()) ->  | AI55: =IF(AI52*'MACRO ECONOMIC DATA'!AI113<>0,AI52/'MACRO ECONOMIC DATA'!AI113,NA()) ->  | CG55: Energy intensity (using GDP at MER) | CI55: MJ/US$
A57: 13 - 15 | B57: 13 - 15: Manufacture of textiles, wearing apparel, leather and related products | CF57: 13 - 15 | CG57: 13 - 15: Manufacture of textiles, wearing apparel, leather and related products
B58: Oil & Oil Products | C58: M_TEXTILE.E_OIL | D58: PJ | E58: 0 | F58: 0 | G58: 0 | H58: 0 | I58: 0 | J58: 0 | K58: 0 | L58: 0 | M58: 0 | N58: 0 | O58: 0 | P58: 0 | Q58: 0 | R58: 0 | S58: 0 | T58: 0 | U58: 0 | V58: 0 | W58: 0 | X58: 0 | Y58: 0 | Z58: 0 | AA58: 0 | AB58: 0 | AC58: 0 | AD58: 0 | AE58: 0 | AF58: 0 | AG58: 0 | AH58: 0 | AI58: 0 | CG58: Oil & Oil Products | CH58: M_TEXTILE.E_OIL | CI58: PJ | CJ58: 0 | CK58: 0 | CL58: 0 | CM58: 0 | CN58: 0 | CO58: 0 | CP58: 0 | CQ58: 0 | CR58: 0 | CS58: 0 | CT58: 0 | CU58: 0 | CV58: 0 | CW58: 0 | CX58: 0 | CY58: 0 | CZ58: 0 | DA58: 0 | DB58: 0 | DC58: 0 | DD58: 0 | DE58: 0 | DF58: 0 | DG58: 0 | DH58: 0 | DI58: 0 | DJ58: 0 | DK58: 0 | DL58: 0
B59: Natural Gas | C59: M_TEXTILE.E_GAS | D59: PJ | E59: 0 | F59: 0 | G59: 0 | H59: 0 | I59: 0 | J59: 0 | K59: 0 | L59: 0 | M59: 0 | N59: 0 | O59: 0 | P59: 0 | Q59: 0 | R59: 0 | S59: 0 | T59: 0 | U59: 0 | V59: 0 | W59: 0 | X59: 0 | Y59: 0 | Z59: 0 | AA59: 0 | AB59: 0 | AC59: 0 | AD59: 0 | AE59: 0 | AF59: 0 | AG59: 0 | AH59: 0 | AI59: 0 | CG59: Natural Gas | CH59: M_TEXTILE.E_GAS | CI59: PJ | CJ59: 0 | CK59: 0 | CL59: 0 | CM59: 0 | CN59: 0 | CO59: 0 | CP59: 0 | CQ59: 0 | CR59: 0 | CS59: 0 | CT59: 0 | CU59: 0 | CV59: 0 | CW59: 0 | CX59: 0 | CY59: 0 | CZ59: 0 | DA59: 0 | DB59: 0 | DC59: 0 | DD59: 0 | DE59: 0 | DF59: 0 | DG59: 0 | DH59: 0 | DI59: 0 | DJ59: 0 | DK59: 0 | DL59: 0
B60: Coal & Coal Products | C60: M_TEXTILE.E_COAL | D60: PJ | E60: 0 | F60: 0 | G60: 0 | H60: 0 | I60: 0 | J60: 0 | K60: 0 | L60: 0 | M60: 0 | N60: 0 | O60: 0 | P60: 0 | Q60: 0 | R60: 0 | S60: 0 | T60: 0 | U60: 0 | V60: 0 | W60: 0 | X60: 0 | Y60: 0 | Z60: 0 | AA60: 0 | AB60: 0 | AC60: 0 | AD60: 0 | AE60: 0 | AF60: 0 | AG60: 0 | AH60: 0 | AI60: 0 | CG60: Coal & Coal Products | CH60: M_TEXTILE.E_COAL | CI60: PJ | CJ60: 0 | CK60: 0 | CL60: 0 | CM60: 0 | CN60: 0 | CO60: 0 | CP60: 0 | CQ60: 0 | CR60: 0 | CS60: 0 | CT60: 0 | CU60: 0 | CV60: 0 | CW60: 0 | CX60: 0 | CY60: 0 | CZ60: 0 | DA60: 0 | DB60: 0 | DC60: 0 | DD60: 0 | DE60: 0 | DF60: 0 | DG60: 0 | DH60: 0 | DI60: 0 | DJ60: 0 | DK60: 0 | DL60: 0
B61: Biofuels & Waste | C61: M_TEXTILE.E_WOOD | D61: PJ | E61: 0 | F61: 0 | G61: 0 | H61: 0 | I61: 0 | J61: 0 | K61: 0 | L61: 0 | M61: 0 | N61: 0 | O61: 0 | P61: 0 | Q61: 0 | R61: 0 | S61: 0 | T61: 0 | U61: 0 | V61: 0 | W61: 0 | X61: 0 | Y61: 0 | Z61: 0 | AA61: 0 | AB61: 0 | AC61: 0 | AD61: 0 | AE61: 0 | AF61: 0 | AG61: 0 | AH61: 0 | AI61: 0 | CG61: Biofuels & Waste | CH61: M_TEXTILE.E_WOOD | CI61: PJ | CJ61: 0 | CK61: 0 | CL61: 0 | CM61: 0 | CN61: 0 | CO61: 0 | CP61: 0 | CQ61: 0 | CR61: 0 | CS61: 0 | CT61: 0 | CU61: 0 | CV61: 0 | CW61: 0 | CX61: 0 | CY61: 0 | CZ61: 0 | DA61: 0 | DB61: 0 | DC61: 0 | DD61: 0 | DE61: 0 | DF61: 0 | DG61: 0 | DH61: 0 | DI61: 0 | DJ61: 0 | DK61: 0 | DL61: 0
B62: Heat | C62: M_TEXTILE.E_DHEAT | D62: PJ | E62: 0 | F62: 0 | G62: 0 | H62: 0 | I62: 0 | J62: 0 | K62: 0 | L62: 0 | M62: 0 | N62: 0 | O62: 0 | P62: 0 | Q62: 0 | R62: 0 | S62: 0 | T62: 0 | U62: 0 | V62: 0 | W62: 0 | X62: 0 | Y62: 0 | Z62: 0 | AA62: 0 | AB62: 0 | AC62: 0 | AD62: 0 | AE62: 0 | AF62: 0 | AG62: 0 | AH62: 0 | AI62: 0 | CG62: Heat | CH62: M_TEXTILE.E_DHEAT | CI62: PJ | CJ62: 0 | CK62: 0 | CL62: 0 | CM62: 0 | CN62: 0 | CO62: 0 | CP62: 0 | CQ62: 0 | CR62: 0 | CS62: 0 | CT62: 0 | CU62: 0 | CV62: 0 | CW62: 0 | CX62: 0 | CY62: 0 | CZ62: 0 | DA62: 0 | DB62: 0 | DC62: 0 | DD62: 0 | DE62: 0 | DF62: 0 | DG62: 0 | DH62: 0 | DI62: 0 | DJ62: 0 | DK62: 0 | DL62: 0
B63: Electricity | C63: M_TEXTILE.E_ELEC | D63: PJ | E63: 0 | F63: 0 | G63: 0 | H63: 0 | I63: 0 | J63: 0 | K63: 0 | L63: 0 | M63: 0 | N63: 0 | O63: 0 | P63: 0 | Q63: 0 | R63: 0 | S63: 0 | T63: 0 | U63: 0 | V63: 0 | W63: 0 | X63: 0 | Y63: 0 | Z63: 0 | AA63: 0 | AB63: 0 | AC63: 0 | AD63: 0 | AE63: 0 | AF63: 0 | AG63: 0 | AH63: 0 | AI63: 0 | CG63: Electricity | CH63: M_TEXTILE.E_ELEC | CI63: PJ | CJ63: 0 | CK63: 0 | CL63: 0 | CM63: 0 | CN63: 0 | CO63: 0 | CP63: 0 | CQ63: 0 | CR63: 0 | CS63: 0 | CT63: 0 | CU63: 0 | CV63: 0 | CW63: 0 | CX63: 0 | CY63: 0 | CZ63: 0 | DA63: 0 | DB63: 0 | DC63: 0 | DD63: 0 | DE63: 0 | DF63: 0 | DG63: 0 | DH63: 0 | DI63: 0 | DJ63: 0 | DK63: 0 | DL63: 0
B64: Other | C64: M_TEXTILE.E_OTHER | D64: PJ | E64: 0 | F64: 0 | G64: 0 | H64: 0 | I64: 0 | J64: 0 | K64: 0 | L64: 0 | M64: 0 | N64: 0 | O64: 0 | P64: 0 | Q64: 0 | R64: 0 | S64: 0 | T64: 0 | U64: 0 | V64: 0 | W64: 0 | X64: 0 | Y64: 0 | Z64: 0 | AA64: 0 | AB64: 0 | AC64: 0 | AD64: 0 | AE64: 0 | AF64: 0 | AG64: 0 | AH64: 0 | AI64: 0 | CG64: Other | CH64: M_TEXTILE.E_OTHER | CI64: PJ | CJ64: 0 | CK64: 0 | CL64: 0 | CM64: 0 | CN64: 0 | CO64: 0 | CP64: 0 | CQ64: 0 | CR64: 0 | CS64: 0 | CT64: 0 | CU64: 0 | CV64: 0 | CW64: 0 | CX64: 0 | CY64: 0 | CZ64: 0 | DA64: 0 | DB64: 0 | DC64: 0 | DD64: 0 | DE64: 0 | DF64: 0 | DG64: 0 | DH64: 0 | DI64: 0 | DJ64: 0 | DK64: 0 | DL64: 0
A65: TRUE | B65: Total Energy Use | C65: M_TEXTILE.E_FINAL | D65: PJ | E65: =SUM(E58:E64) -> 0 | F65: =SUM(F58:F64) -> 0 | G65: 0 | H65: 0 | I65: 0 | J65: 0 | K65: 0 | L65: 0 | M65: 0 | N65: 0 | O65: 0 | P65: 0 | Q65: 0 | R65: 0 | S65: 0 | T65: 0 | U65: 0 | V65: 0 | W65: 0 | X65: 0 | Y65: 0 | Z65: 0 | AA65: 0 | AB65: 0 | AC65: 0 | AD65: 0 | AE65: 0 | AF65: 0 | AG65: 0 | AH65: =SUM(AH58:AH64) -> 0 | AI65: 0 | CF65: TRUE | CG65: Total Energy Use | CH65: M_TEXTILE.E_FINAL | CI65: PJ | CJ65: 0 | CK65: 0 | CL65: 0 | CM65: 0 | CN65: 0 | CO65: 0 | CP65: 0 | CQ65: 0 | CR65: 0 | CS65: 0 | CT65: 0 | CU65: 0 | CV65: 0 | CW65: 0 | CX65: 0 | CY65: 0 | CZ65: 0 | DA65: 0 | DB65: 0 | DC65: 0 | DD65: 0 | DE65: 0 | DF65: 0 | DG65: 0 | DH65: 0 | DI65: 0 | DJ65: 0 | DK65: 0 | DL65: 0
B66: Energy intensity (using GDP at US$PPP) | D66: MJ/US$PPP | E66: =IF(E65*'MACRO ECONOMIC DATA'!E58<>0,INDUSTRY!E65/'MACRO ECONOMIC DATA'!E58,NA()) ->  | F66: =IF(F65*'MACRO ECONOMIC DATA'!F58<>0,INDUSTRY!F65/'MACRO ECONOMIC DATA'!F58,NA()) ->  | G66: =IF(G65*'MACRO ECONOMIC DATA'!G58<>0,INDUSTRY!G65/'MACRO ECONOMIC DATA'!G58,NA()) ->  | H66: =IF(H65*'MACRO ECONOMIC DATA'!H58<>0,INDUSTRY!H65/'MACRO ECONOMIC DATA'!H58,NA()) ->  | I66: =IF(I65*'MACRO ECONOMIC DATA'!I58<>0,INDUSTRY!I65/'MACRO ECONOMIC DATA'!I58,NA()) ->  | J66: =IF(J65*'MACRO ECONOMIC DATA'!J58<>0,INDUSTRY!J65/'MACRO ECONOMIC DATA'!J58,NA()) ->  | K66: =IF(K65*'MACRO ECONOMIC DATA'!K58<>0,INDUSTRY!K65/'MACRO ECONOMIC DATA'!K58,NA()) ->  | L66: =IF(L65*'MACRO ECONOMIC DATA'!L58<>0,INDUSTRY!L65/'MACRO ECONOMIC DATA'!L58,NA()) ->  | M66: =IF(M65*'MACRO ECONOMIC DATA'!M58<>0,INDUSTRY!M65/'MACRO ECONOMIC DATA'!M58,NA()) ->  | N66: =IF(N65*'MACRO ECONOMIC DATA'!N58<>0,INDUSTRY!N65/'MACRO ECONOMIC DATA'!N58,NA()) ->  | O66: =IF(O65*'MACRO ECONOMIC DATA'!O58<>0,INDUSTRY!O65/'MACRO ECONOMIC DATA'!O58,NA()) ->  | P66: =IF(P65*'MACRO ECONOMIC DATA'!P58<>0,INDUSTRY!P65/'MACRO ECONOMIC DATA'!P58,NA()) ->  | Q66: =IF(Q65*'MACRO ECONOMIC DATA'!Q58<>0,INDUSTRY!Q65/'MACRO ECONOMIC DATA'!Q58,NA()) ->  | R66: =IF(R65*'MACRO ECONOMIC DATA'!R58<>0,INDUSTRY!R65/'MACRO ECONOMIC DATA'!R58,NA()) ->  | S66: =IF(S65*'MACRO ECONOMIC DATA'!S58<>0,INDUSTRY!S65/'MACRO ECONOMIC DATA'!S58,NA()) ->  | T66: =IF(T65*'MACRO ECONOMIC DATA'!T58<>0,INDUSTRY!T65/'MACRO ECONOMIC DATA'!T58,NA()) ->  | U66: =IF(U65*'MACRO ECONOMIC DATA'!U58<>0,INDUSTRY!U65/'MACRO ECONOMIC DATA'!U58,NA()) ->  | V66: =IF(V65*'MACRO ECONOMIC DATA'!V58<>0,INDUSTRY!V65/'MACRO ECONOMIC DATA'!V58,NA()) ->  | W66: =IF(W65*'MACRO ECONOMIC DATA'!W58<>0,INDUSTRY!W65/'MACRO ECONOMIC DATA'!W58,NA()) ->  | X66: =IF(X65*'MACRO ECONOMIC DATA'!X58<>0,INDUSTRY!X65/'MACRO ECONOMIC DATA'!X58,NA()) ->  | Y66: =IF(Y65*'MACRO ECONOMIC DATA'!Y58<>0,INDUSTRY!Y65/'MACRO ECONOMIC DATA'!Y58,NA()) ->  | Z66: =IF(Z65*'MACRO ECONOMIC DATA'!Z58<>0,INDUSTRY!Z65/'MACRO ECONOMIC DATA'!Z58,NA()) ->  | AA66: =IF(AA65*'MACRO ECONOMIC DATA'!AA58<>0,INDUSTRY!AA65/'MACRO ECONOMIC DATA'!AA58,NA()) ->  | AB66: =IF(AB65*'MACRO ECONOMIC DATA'!AB58<>0,INDUSTRY!AB65/'MACRO ECONOMIC DATA'!AB58,NA()) ->  | AC66: =IF(AC65*'MACRO ECONOMIC DATA'!AC58<>0,INDUSTRY!AC65/'MACRO ECONOMIC DATA'!AC58,NA()) ->  | AD66: =IF(AD65*'MACRO ECONOMIC DATA'!AD58<>0,INDUSTRY!AD65/'MACRO ECONOMIC DATA'!AD58,NA()) ->  | AE66: =IF(AE65*'MACRO ECONOMIC DATA'!AE58<>0,INDUSTRY!AE65/'MACRO ECONOMIC DATA'!AE58,NA()) ->  | AF66: =IF(AF65*'MACRO ECONOMIC DATA'!AF58<>0,INDUSTRY!AF65/'MACRO ECONOMIC DATA'!AF58,NA()) ->  | AG66: =IF(AG65*'MACRO ECONOMIC DATA'!AG58<>0,INDUSTRY!AG65/'MACRO ECONOMIC DATA'!AG58,NA()) ->  | AH66: =IF(AH65*'MACRO ECONOMIC DATA'!AH58<>0,INDUSTRY!AH65/'MACRO ECONOMIC DATA'!AH58,NA()) ->  | AI66: =IF(AI65*'MACRO ECONOMIC DATA'!AI58<>0,INDUSTRY!AI65/'MACRO ECONOMIC DATA'!AI58,NA()) ->  | CG66: Energy intensity (using GDP at US$PPP) | CI66: MJ/US$PPP
B67: Energy intensity (using GDP at nat. currency) | D67: ="MJ/" &'MACRO ECONOMIC DATA'!$D$143 -> MJ/NC | E67: =IF(E65*'MACRO ECONOMIC DATA'!E86<>0,E65/'MACRO ECONOMIC DATA'!E86,NA()) ->  | F67: =IF(F65*'MACRO ECONOMIC DATA'!F86<>0,F65/'MACRO ECONOMIC DATA'!F86,NA()) ->  | G67: =IF(G65*'MACRO ECONOMIC DATA'!G86<>0,G65/'MACRO ECONOMIC DATA'!G86,NA()) ->  | H67: =IF(H65*'MACRO ECONOMIC DATA'!H86<>0,H65/'MACRO ECONOMIC DATA'!H86,NA()) ->  | I67: =IF(I65*'MACRO ECONOMIC DATA'!I86<>0,I65/'MACRO ECONOMIC DATA'!I86,NA()) ->  | J67: =IF(J65*'MACRO ECONOMIC DATA'!J86<>0,J65/'MACRO ECONOMIC DATA'!J86,NA()) ->  | K67: =IF(K65*'MACRO ECONOMIC DATA'!K86<>0,K65/'MACRO ECONOMIC DATA'!K86,NA()) ->  | L67: =IF(L65*'MACRO ECONOMIC DATA'!L86<>0,L65/'MACRO ECONOMIC DATA'!L86,NA()) ->  | M67: =IF(M65*'MACRO ECONOMIC DATA'!M86<>0,M65/'MACRO ECONOMIC DATA'!M86,NA()) ->  | N67: =IF(N65*'MACRO ECONOMIC DATA'!N86<>0,N65/'MACRO ECONOMIC DATA'!N86,NA()) ->  | O67: =IF(O65*'MACRO ECONOMIC DATA'!O86<>0,O65/'MACRO ECONOMIC DATA'!O86,NA()) ->  | P67: =IF(P65*'MACRO ECONOMIC DATA'!P86<>0,P65/'MACRO ECONOMIC DATA'!P86,NA()) ->  | Q67: =IF(Q65*'MACRO ECONOMIC DATA'!Q86<>0,Q65/'MACRO ECONOMIC DATA'!Q86,NA()) ->  | R67: =IF(R65*'MACRO ECONOMIC DATA'!R86<>0,R65/'MACRO ECONOMIC DATA'!R86,NA()) ->  | S67: =IF(S65*'MACRO ECONOMIC DATA'!S86<>0,S65/'MACRO ECONOMIC DATA'!S86,NA()) ->  | T67: =IF(T65*'MACRO ECONOMIC DATA'!T86<>0,T65/'MACRO ECONOMIC DATA'!T86,NA()) ->  | U67: =IF(U65*'MACRO ECONOMIC DATA'!U86<>0,U65/'MACRO ECONOMIC DATA'!U86,NA()) ->  | V67: =IF(V65*'MACRO ECONOMIC DATA'!V86<>0,V65/'MACRO ECONOMIC DATA'!V86,NA()) ->  | W67: =IF(W65*'MACRO ECONOMIC DATA'!W86<>0,W65/'MACRO ECONOMIC DATA'!W86,NA()) ->  | X67: =IF(X65*'MACRO ECONOMIC DATA'!X86<>0,X65/'MACRO ECONOMIC DATA'!X86,NA()) ->  | Y67: =IF(Y65*'MACRO ECONOMIC DATA'!Y86<>0,Y65/'MACRO ECONOMIC DATA'!Y86,NA()) ->  | Z67: =IF(Z65*'MACRO ECONOMIC DATA'!Z86<>0,Z65/'MACRO ECONOMIC DATA'!Z86,NA()) ->  | AA67: =IF(AA65*'MACRO ECONOMIC DATA'!AA86<>0,AA65/'MACRO ECONOMIC DATA'!AA86,NA()) ->  | AB67: =IF(AB65*'MACRO ECONOMIC DATA'!AB86<>0,AB65/'MACRO ECONOMIC DATA'!AB86,NA()) ->  | AC67: =IF(AC65*'MACRO ECONOMIC DATA'!AC86<>0,AC65/'MACRO ECONOMIC DATA'!AC86,NA()) ->  | AD67: =IF(AD65*'MACRO ECONOMIC DATA'!AD86<>0,AD65/'MACRO ECONOMIC DATA'!AD86,NA()) ->  | AE67: =IF(AE65*'MACRO ECONOMIC DATA'!AE86<>0,AE65/'MACRO ECONOMIC DATA'!AE86,NA()) ->  | AF67: =IF(AF65*'MACRO ECONOMIC DATA'!AF86<>0,AF65/'MACRO ECONOMIC DATA'!AF86,NA()) ->  | AG67: =IF(AG65*'MACRO ECONOMIC DATA'!AG86<>0,AG65/'MACRO ECONOMIC DATA'!AG86,NA()) ->  | AH67: =IF(AH65*'MACRO ECONOMIC DATA'!AH86<>0,AH65/'MACRO ECONOMIC DATA'!AH86,NA()) ->  | AI67: =IF(AI65*'MACRO ECONOMIC DATA'!AI86<>0,AI65/'MACRO ECONOMIC DATA'!AI86,NA()) ->  | CG67: Energy intensity (using GDP at nat. currency) | CI67: MJ/NC
B68: Energy intensity (using GDP at MER) | D68: MJ/US$ | E68: =IF(E65*'MACRO ECONOMIC DATA'!E114<>0,E65/'MACRO ECONOMIC DATA'!E114,NA()) ->  | F68: =IF(F65*'MACRO ECONOMIC DATA'!F114<>0,F65/'MACRO ECONOMIC DATA'!F114,NA()) ->  | G68: =IF(G65*'MACRO ECONOMIC DATA'!G114<>0,G65/'MACRO ECONOMIC DATA'!G114,NA()) ->  | H68: =IF(H65*'MACRO ECONOMIC DATA'!H114<>0,H65/'MACRO ECONOMIC DATA'!H114,NA()) ->  | I68: =IF(I65*'MACRO ECONOMIC DATA'!I114<>0,I65/'MACRO ECONOMIC DATA'!I114,NA()) ->  | J68: =IF(J65*'MACRO ECONOMIC DATA'!J114<>0,J65/'MACRO ECONOMIC DATA'!J114,NA()) ->  | K68: =IF(K65*'MACRO ECONOMIC DATA'!K114<>0,K65/'MACRO ECONOMIC DATA'!K114,NA()) ->  | L68: =IF(L65*'MACRO ECONOMIC DATA'!L114<>0,L65/'MACRO ECONOMIC DATA'!L114,NA()) ->  | M68: =IF(M65*'MACRO ECONOMIC DATA'!M114<>0,M65/'MACRO ECONOMIC DATA'!M114,NA()) ->  | N68: =IF(N65*'MACRO ECONOMIC DATA'!N114<>0,N65/'MACRO ECONOMIC DATA'!N114,NA()) ->  | O68: =IF(O65*'MACRO ECONOMIC DATA'!O114<>0,O65/'MACRO ECONOMIC DATA'!O114,NA()) ->  | P68: =IF(P65*'MACRO ECONOMIC DATA'!P114<>0,P65/'MACRO ECONOMIC DATA'!P114,NA()) ->  | Q68: =IF(Q65*'MACRO ECONOMIC DATA'!Q114<>0,Q65/'MACRO ECONOMIC DATA'!Q114,NA()) ->  | R68: =IF(R65*'MACRO ECONOMIC DATA'!R114<>0,R65/'MACRO ECONOMIC DATA'!R114,NA()) ->  | S68: =IF(S65*'MACRO ECONOMIC DATA'!S114<>0,S65/'MACRO ECONOMIC DATA'!S114,NA()) ->  | T68: =IF(T65*'MACRO ECONOMIC DATA'!T114<>0,T65/'MACRO ECONOMIC DATA'!T114,NA()) ->  | U68: =IF(U65*'MACRO ECONOMIC DATA'!U114<>0,U65/'MACRO ECONOMIC DATA'!U114,NA()) ->  | V68: =IF(V65*'MACRO ECONOMIC DATA'!V114<>0,V65/'MACRO ECONOMIC DATA'!V114,NA()) ->  | W68: =IF(W65*'MACRO ECONOMIC DATA'!W114<>0,W65/'MACRO ECONOMIC DATA'!W114,NA()) ->  | X68: =IF(X65*'MACRO ECONOMIC DATA'!X114<>0,X65/'MACRO ECONOMIC DATA'!X114,NA()) ->  | Y68: =IF(Y65*'MACRO ECONOMIC DATA'!Y114<>0,Y65/'MACRO ECONOMIC DATA'!Y114,NA()) ->  | Z68: =IF(Z65*'MACRO ECONOMIC DATA'!Z114<>0,Z65/'MACRO ECONOMIC DATA'!Z114,NA()) ->  | AA68: =IF(AA65*'MACRO ECONOMIC DATA'!AA114<>0,AA65/'MACRO ECONOMIC DATA'!AA114,NA()) ->  | AB68: =IF(AB65*'MACRO ECONOMIC DATA'!AB114<>0,AB65/'MACRO ECONOMIC DATA'!AB114,NA()) ->  | AC68: =IF(AC65*'MACRO ECONOMIC DATA'!AC114<>0,AC65/'MACRO ECONOMIC DATA'!AC114,NA()) ->  | AD68: =IF(AD65*'MACRO ECONOMIC DATA'!AD114<>0,AD65/'MACRO ECONOMIC DATA'!AD114,NA()) ->  | AE68: =IF(AE65*'MACRO ECONOMIC DATA'!AE114<>0,AE65/'MACRO ECONOMIC DATA'!AE114,NA()) ->  | AF68: =IF(AF65*'MACRO ECONOMIC DATA'!AF114<>0,AF65/'MACRO ECONOMIC DATA'!AF114,NA()) ->  | AG68: =IF(AG65*'MACRO ECONOMIC DATA'!AG114<>0,AG65/'MACRO ECONOMIC DATA'!AG114,NA()) ->  | AH68: =IF(AH65*'MACRO ECONOMIC DATA'!AH114<>0,AH65/'MACRO ECONOMIC DATA'!AH114,NA()) ->  | AI68: =IF(AI65*'MACRO ECONOMIC DATA'!AI114<>0,AI65/'MACRO ECONOMIC DATA'!AI114,NA()) ->  | CG68: Energy intensity (using GDP at MER) | CI68: MJ/US$
A70: 16 | B70: 16: Manufacture of wood and of products of wood and cork, except furniture; manufacture of articles of straw and plaiting materials | CF70: 16 | CG70: 16: Manufacture of wood and of products of wood and cork, except furniture; manufacture of articles of straw and plaiting materials
B71: Oil & Oil Products | C71: M_WOOD.E_OIL | D71: PJ | E71: 0 | F71: 0 | G71: 0 | H71: 0 | I71: 0 | J71: 0 | K71: 0 | L71: 0 | M71: 0 | N71: 0 | O71: 0 | P71: 0 | Q71: 0 | R71: 0 | S71: 0 | T71: 0 | U71: 0 | V71: 0 | W71: 0 | X71: 0 | Y71: 0 | Z71: 0 | AA71: 0 | AB71: 0 | AC71: 0 | AD71: 0 | AE71: 0 | AF71: 0 | AG71: 0 | AH71: 0 | AI71: 0 | CG71: Oil & Oil Products | CH71: M_WOOD.E_OIL | CI71: PJ | CJ71: 0 | CK71: 0 | CL71: 0 | CM71: 0 | CN71: 0 | CO71: 0 | CP71: 0 | CQ71: 0 | CR71: 0 | CS71: 0 | CT71: 0 | CU71: 0 | CV71: 0 | CW71: 0 | CX71: 0 | CY71: 0 | CZ71: 0 | DA71: 0 | DB71: 0 | DC71: 0 | DD71: 0 | DE71: 0 | DF71: 0 | DG71: 0 | DH71: 0 | DI71: 0 | DJ71: 0 | DK71: 0 | DL71: 0
B72: Natural Gas | C72: M_WOOD.E_GAS | D72: PJ | E72: 0 | F72: 0 | G72: 0 | H72: 0 | I72: 0 | J72: 0 | K72: 0 | L72: 0 | M72: 0 | N72: 0 | O72: 0 | P72: 0 | Q72: 0 | R72: 0 | S72: 0 | T72: 0 | U72: 0 | V72: 0 | W72: 0 | X72: 0 | Y72: 0 | Z72: 0 | AA72: 0 | AB72: 0 | AC72: 0 | AD72: 0 | AE72: 0 | AF72: 0 | AG72: 0 | AH72: 0 | AI72: 0 | CG72: Natural Gas | CH72: M_WOOD.E_GAS | CI72: PJ | CJ72: 0 | CK72: 0 | CL72: 0 | CM72: 0 | CN72: 0 | CO72: 0 | CP72: 0 | CQ72: 0 | CR72: 0 | CS72: 0 | CT72: 0 | CU72: 0 | CV72: 0 | CW72: 0 | CX72: 0 | CY72: 0 | CZ72: 0 | DA72: 0 | DB72: 0 | DC72: 0 | DD72: 0 | DE72: 0 | DF72: 0 | DG72: 0 | DH72: 0 | DI72: 0 | DJ72: 0 | DK72: 0 | DL72: 0
B73: Coal & Coal Products | C73: M_WOOD.E_COAL | D73: PJ | E73: 0 | F73: 0 | G73: 0 | H73: 0 | I73: 0 | J73: 0 | K73: 0 | L73: 0 | M73: 0 | N73: 0 | O73: 0 | P73: 0 | Q73: 0 | R73: 0 | S73: 0 | T73: 0 | U73: 0 | V73: 0 | W73: 0 | X73: 0 | Y73: 0 | Z73: 0 | AA73: 0 | AB73: 0 | AC73: 0 | AD73: 0 | AE73: 0 | AF73: 0 | AG73: 0 | AH73: 0 | AI73: 0 | CG73: Coal & Coal Products | CH73: M_WOOD.E_COAL | CI73: PJ | CJ73: 0 | CK73: 0 | CL73: 0 | CM73: 0 | CN73: 0 | CO73: 0 | CP73: 0 | CQ73: 0 | CR73: 0 | CS73: 0 | CT73: 0 | CU73: 0 | CV73: 0 | CW73: 0 | CX73: 0 | CY73: 0 | CZ73: 0 | DA73: 0 | DB73: 0 | DC73: 0 | DD73: 0 | DE73: 0 | DF73: 0 | DG73: 0 | DH73: 0 | DI73: 0 | DJ73: 0 | DK73: 0 | DL73: 0
B74: Biofuels & Waste | C74: M_WOOD.E_WOOD | D74: PJ | E74: 0 | F74: 0 | G74: 0 | H74: 0 | I74: 0 | J74: 0 | K74: 0 | L74: 0 | M74: 0 | N74: 0 | O74: 0 | P74: 0 | Q74: 0 | R74: 0 | S74: 0 | T74: 0 | U74: 0 | V74: 0 | W74: 0 | X74: 0 | Y74: 0 | Z74: 0 | AA74: 0 | AB74: 0 | AC74: 0 | AD74: 0 | AE74: 0 | AF74: 0 | AG74: 0 | AH74: 0 | AI74: 0 | CG74: Biofuels & Waste | CH74: M_WOOD.E_WOOD | CI74: PJ | CJ74: 0 | CK74: 0 | CL74: 0 | CM74: 0 | CN74: 0 | CO74: 0 | CP74: 0 | CQ74: 0 | CR74: 0 | CS74: 0 | CT74: 0 | CU74: 0 | CV74: 0 | CW74: 0 | CX74: 0 | CY74: 0 | CZ74: 0 | DA74: 0 | DB74: 0 | DC74: 0 | DD74: 0 | DE74: 0 | DF74: 0 | DG74: 0 | DH74: 0 | DI74: 0 | DJ74: 0 | DK74: 0 | DL74: 0
B75: Heat | C75: M_WOOD.E_DHEAT | D75: PJ | E75: 0 | F75: 0 | G75: 0 | H75: 0 | I75: 0 | J75: 0 | K75: 0 | L75: 0 | M75: 0 | N75: 0 | O75: 0 | P75: 0 | Q75: 0 | R75: 0 | S75: 0 | T75: 0 | U75: 0 | V75: 0 | W75: 0 | X75: 0 | Y75: 0 | Z75: 0 | AA75: 0 | AB75: 0 | AC75: 0 | AD75: 0 | AE75: 0 | AF75: 0 | AG75: 0 | AH75: 0 | AI75: 0 | CG75: Heat | CH75: M_WOOD.E_DHEAT | CI75: PJ | CJ75: 0 | CK75: 0 | CL75: 0 | CM75: 0 | CN75: 0 | CO75: 0 | CP75: 0 | CQ75: 0 | CR75: 0 | CS75: 0 | CT75: 0 | CU75: 0 | CV75: 0 | CW75: 0 | CX75: 0 | CY75: 0 | CZ75: 0 | DA75: 0 | DB75: 0 | DC75: 0 | DD75: 0 | DE75: 0 | DF75: 0 | DG75: 0 | DH75: 0 | DI75: 0 | DJ75: 0 | DK75: 0 | DL75: 0
B76: Electricity | C76: M_WOOD.E_ELEC | D76: PJ | E76: 0 | F76: 0 | G76: 0 | H76: 0 | I76: 0 | J76: 0 | K76: 0 | L76: 0 | M76: 0 | N76: 0 | O76: 0 | P76: 0 | Q76: 0 | R76: 0 | S76: 0 | T76: 0 | U76: 0 | V76: 0 | W76: 0 | X76: 0 | Y76: 0 | Z76: 0 | AA76: 0 | AB76: 0 | AC76: 0 | AD76: 0 | AE76: 0 | AF76: 0 | AG76: 0 | AH76: 0 | AI76: 0 | CG76: Electricity | CH76: M_WOOD.E_ELEC | CI76: PJ | CJ76: 0 | CK76: 0 | CL76: 0 | CM76: 0 | CN76: 0 | CO76: 0 | CP76: 0 | CQ76: 0 | CR76: 0 | CS76: 0 | CT76: 0 | CU76: 0 | CV76: 0 | CW76: 0 | CX76: 0 | CY76: 0 | CZ76: 0 | DA76: 0 | DB76: 0 | DC76: 0 | DD76: 0 | DE76: 0 | DF76: 0 | DG76: 0 | DH76: 0 | DI76: 0 | DJ76: 0 | DK76: 0 | DL76: 0
B77: Other | C77: M_WOOD.E_OTHER | D77: PJ | E77: 0 | F77: 0 | G77: 0 | H77: 0 | I77: 0 | J77: 0 | K77: 0 | L77: 0 | M77: 0 | N77: 0 | O77: 0 | P77: 0 | Q77: 0 | R77: 0 | S77: 0 | T77: 0 | U77: 0 | V77: 0 | W77: 0 | X77: 0 | Y77: 0 | Z77: 0 | AA77: 0 | AB77: 0 | AC77: 0 | AD77: 0 | AE77: 0 | AF77: 0 | AG77: 0 | AH77: 0 | AI77: 0 | CG77: Other | CH77: M_WOOD.E_OTHER | CI77: PJ | CJ77: 0 | CK77: 0 | CL77: 0 | CM77: 0 | CN77: 0 | CO77: 0 | CP77: 0 | CQ77: 0 | CR77: 0 | CS77: 0 | CT77: 0 | CU77: 0 | CV77: 0 | CW77: 0 | CX77: 0 | CY77: 0 | CZ77: 0 | DA77: 0 | DB77: 0 | DC77: 0 | DD77: 0 | DE77: 0 | DF77: 0 | DG77: 0 | DH77: 0 | DI77: 0 | DJ77: 0 | DK77: 0 | DL77: 0
A78: TRUE | B78: Total Energy Use | C78: M_WOOD.E_FINAL | D78: PJ | E78: =SUM(E71:E77) -> 0 | F78: =SUM(F71:F77) -> 0 | G78: 0 | H78: 0 | I78: 0 | J78: 0 | K78: 0 | L78: 0 | M78: 0 | N78: 0 | O78: 0 | P78: 0 | Q78: 0 | R78: 0 | S78: 0 | T78: 0 | U78: 0 | V78: 0 | W78: 0 | X78: 0 | Y78: 0 | Z78: 0 | AA78: 0 | AB78: 0 | AC78: 0 | AD78: 0 | AE78: 0 | AF78: 0 | AG78: 0 | AH78: =SUM(AH71:AH77) -> 0 | AI78: 0 | CF78: TRUE | CG78: Total Energy Use | CH78: M_WOOD.E_FINAL | CI78: PJ | CJ78: 0 | CK78: 0 | CL78: 0 | CM78: 0 | CN78: 0 | CO78: 0 | CP78: 0 | CQ78: 0 | CR78: 0 | CS78: 0 | CT78: 0 | CU78: 0 | CV78: 0 | CW78: 0 | CX78: 0 | CY78: 0 | CZ78: 0 | DA78: 0 | DB78: 0 | DC78: 0 | DD78: 0 | DE78: 0 | DF78: 0 | DG78: 0 | DH78: 0 | DI78: 0 | DJ78: 0 | DK78: 0 | DL78: 0
B79: Energy intensity (using GDP at US$PPP) | D79: MJ/US$PPP | E79: =IF(E78*'MACRO ECONOMIC DATA'!E59<>0,INDUSTRY!E78/'MACRO ECONOMIC DATA'!E59,NA()) ->  | F79: =IF(F78*'MACRO ECONOMIC DATA'!F59<>0,INDUSTRY!F78/'MACRO ECONOMIC DATA'!F59,NA()) ->  | G79: =IF(G78*'MACRO ECONOMIC DATA'!G59<>0,INDUSTRY!G78/'MACRO ECONOMIC DATA'!G59,NA()) ->  | H79: =IF(H78*'MACRO ECONOMIC DATA'!H59<>0,INDUSTRY!H78/'MACRO ECONOMIC DATA'!H59,NA()) ->  | I79: =IF(I78*'MACRO ECONOMIC DATA'!I59<>0,INDUSTRY!I78/'MACRO ECONOMIC DATA'!I59,NA()) ->  | J79: =IF(J78*'MACRO ECONOMIC DATA'!J59<>0,INDUSTRY!J78/'MACRO ECONOMIC DATA'!J59,NA()) ->  | K79: =IF(K78*'MACRO ECONOMIC DATA'!K59<>0,INDUSTRY!K78/'MACRO ECONOMIC DATA'!K59,NA()) ->  | L79: =IF(L78*'MACRO ECONOMIC DATA'!L59<>0,INDUSTRY!L78/'MACRO ECONOMIC DATA'!L59,NA()) ->  | M79: =IF(M78*'MACRO ECONOMIC DATA'!M59<>0,INDUSTRY!M78/'MACRO ECONOMIC DATA'!M59,NA()) ->  | N79: =IF(N78*'MACRO ECONOMIC DATA'!N59<>0,INDUSTRY!N78/'MACRO ECONOMIC DATA'!N59,NA()) ->  | O79: =IF(O78*'MACRO ECONOMIC DATA'!O59<>0,INDUSTRY!O78/'MACRO ECONOMIC DATA'!O59,NA()) ->  | P79: =IF(P78*'MACRO ECONOMIC DATA'!P59<>0,INDUSTRY!P78/'MACRO ECONOMIC DATA'!P59,NA()) ->  | Q79: =IF(Q78*'MACRO ECONOMIC DATA'!Q59<>0,INDUSTRY!Q78/'MACRO ECONOMIC DATA'!Q59,NA()) ->  | R79: =IF(R78*'MACRO ECONOMIC DATA'!R59<>0,INDUSTRY!R78/'MACRO ECONOMIC DATA'!R59,NA()) ->  | S79: =IF(S78*'MACRO ECONOMIC DATA'!S59<>0,INDUSTRY!S78/'MACRO ECONOMIC DATA'!S59,NA()) ->  | T79: =IF(T78*'MACRO ECONOMIC DATA'!T59<>0,INDUSTRY!T78/'MACRO ECONOMIC DATA'!T59,NA()) ->  | U79: =IF(U78*'MACRO ECONOMIC DATA'!U59<>0,INDUSTRY!U78/'MACRO ECONOMIC DATA'!U59,NA()) ->  | V79: =IF(V78*'MACRO ECONOMIC DATA'!V59<>0,INDUSTRY!V78/'MACRO ECONOMIC DATA'!V59,NA()) ->  | W79: =IF(W78*'MACRO ECONOMIC DATA'!W59<>0,INDUSTRY!W78/'MACRO ECONOMIC DATA'!W59,NA()) ->  | X79: =IF(X78*'MACRO ECONOMIC DATA'!X59<>0,INDUSTRY!X78/'MACRO ECONOMIC DATA'!X59,NA()) ->  | Y79: =IF(Y78*'MACRO ECONOMIC DATA'!Y59<>0,INDUSTRY!Y78/'MACRO ECONOMIC DATA'!Y59,NA()) ->  | Z79: =IF(Z78*'MACRO ECONOMIC DATA'!Z59<>0,INDUSTRY!Z78/'MACRO ECONOMIC DATA'!Z59,NA()) ->  | AA79: =IF(AA78*'MACRO ECONOMIC DATA'!AA59<>0,INDUSTRY!AA78/'MACRO ECONOMIC DATA'!AA59,NA()) ->  | AB79: =IF(AB78*'MACRO ECONOMIC DATA'!AB59<>0,INDUSTRY!AB78/'MACRO ECONOMIC DATA'!AB59,NA()) ->  | AC79: =IF(AC78*'MACRO ECONOMIC DATA'!AC59<>0,INDUSTRY!AC78/'MACRO ECONOMIC DATA'!AC59,NA()) ->  | AD79: =IF(AD78*'MACRO ECONOMIC DATA'!AD59<>0,INDUSTRY!AD78/'MACRO ECONOMIC DATA'!AD59,NA()) ->  | AE79: =IF(AE78*'MACRO ECONOMIC DATA'!AE59<>0,INDUSTRY!AE78/'MACRO ECONOMIC DATA'!AE59,NA()) ->  | AF79: =IF(AF78*'MACRO ECONOMIC DATA'!AF59<>0,INDUSTRY!AF78/'MACRO ECONOMIC DATA'!AF59,NA()) ->  | AG79: =IF(AG78*'MACRO ECONOMIC DATA'!AG59<>0,INDUSTRY!AG78/'MACRO ECONOMIC DATA'!AG59,NA()) ->  | AH79: =IF(AH78*'MACRO ECONOMIC DATA'!AH59<>0,INDUSTRY!AH78/'MACRO ECONOMIC DATA'!AH59,NA()) ->  | AI79: =IF(AI78*'MACRO ECONOMIC DATA'!AI59<>0,INDUSTRY!AI78/'MACRO ECONOMIC DATA'!AI59,NA()) ->  | CG79: Energy intensity (using GDP at US$PPP) | CI79: MJ/US$PPP
B80: Energy intensity (using GDP at nat. currency) | D80: ="MJ/" &'MACRO ECONOMIC DATA'!$D$143 -> MJ/NC | E80: =IF(E78*'MACRO ECONOMIC DATA'!E87<>0,E78/'MACRO ECONOMIC DATA'!E87,NA()) ->  | F80: =IF(F78*'MACRO ECONOMIC DATA'!F87<>0,F78/'MACRO ECONOMIC DATA'!F87,NA()) ->  | G80: =IF(G78*'MACRO ECONOMIC DATA'!G87<>0,G78/'MACRO ECONOMIC DATA'!G87,NA()) ->  | H80: =IF(H78*'MACRO ECONOMIC DATA'!H87<>0,H78/'MACRO ECONOMIC DATA'!H87,NA()) ->  | I80: =IF(I78*'MACRO ECONOMIC DATA'!I87<>0,I78/'MACRO ECONOMIC DATA'!I87,NA()) ->  | J80: =IF(J78*'MACRO ECONOMIC DATA'!J87<>0,J78/'MACRO ECONOMIC DATA'!J87,NA()) ->  | K80: =IF(K78*'MACRO ECONOMIC DATA'!K87<>0,K78/'MACRO ECONOMIC DATA'!K87,NA()) ->  | L80: =IF(L78*'MACRO ECONOMIC DATA'!L87<>0,L78/'MACRO ECONOMIC DATA'!L87,NA()) ->  | M80: =IF(M78*'MACRO ECONOMIC DATA'!M87<>0,M78/'MACRO ECONOMIC DATA'!M87,NA()) ->  | N80: =IF(N78*'MACRO ECONOMIC DATA'!N87<>0,N78/'MACRO ECONOMIC DATA'!N87,NA()) ->  | O80: =IF(O78*'MACRO ECONOMIC DATA'!O87<>0,O78/'MACRO ECONOMIC DATA'!O87,NA()) ->  | P80: =IF(P78*'MACRO ECONOMIC DATA'!P87<>0,P78/'MACRO ECONOMIC DATA'!P87,NA()) ->  | Q80: =IF(Q78*'MACRO ECONOMIC DATA'!Q87<>0,Q78/'MACRO ECONOMIC DATA'!Q87,NA()) ->  | R80: =IF(R78*'MACRO ECONOMIC DATA'!R87<>0,R78/'MACRO ECONOMIC DATA'!R87,NA()) ->  | S80: =IF(S78*'MACRO ECONOMIC DATA'!S87<>0,S78/'MACRO ECONOMIC DATA'!S87,NA()) ->  | T80: =IF(T78*'MACRO ECONOMIC DATA'!T87<>0,T78/'MACRO ECONOMIC DATA'!T87,NA()) ->  | U80: =IF(U78*'MACRO ECONOMIC DATA'!U87<>0,U78/'MACRO ECONOMIC DATA'!U87,NA()) ->  | V80: =IF(V78*'MACRO ECONOMIC DATA'!V87<>0,V78/'MACRO ECONOMIC DATA'!V87,NA()) ->  | W80: =IF(W78*'MACRO ECONOMIC DATA'!W87<>0,W78/'MACRO ECONOMIC DATA'!W87,NA()) ->  | X80: =IF(X78*'MACRO ECONOMIC DATA'!X87<>0,X78/'MACRO ECONOMIC DATA'!X87,NA()) ->  | Y80: =IF(Y78*'MACRO ECONOMIC DATA'!Y87<>0,Y78/'MACRO ECONOMIC DATA'!Y87,NA()) ->  | Z80: =IF(Z78*'MACRO ECONOMIC DATA'!Z87<>0,Z78/'MACRO ECONOMIC DATA'!Z87,NA()) ->  | AA80: =IF(AA78*'MACRO ECONOMIC DATA'!AA87<>0,AA78/'MACRO ECONOMIC DATA'!AA87,NA()) ->  | AB80: =IF(AB78*'MACRO ECONOMIC DATA'!AB87<>0,AB78/'MACRO ECONOMIC DATA'!AB87,NA()) ->  | AC80: =IF(AC78*'MACRO ECONOMIC DATA'!AC87<>0,AC78/'MACRO ECONOMIC DATA'!AC87,NA()) ->  | AD80: =IF(AD78*'MACRO ECONOMIC DATA'!AD87<>0,AD78/'MACRO ECONOMIC DATA'!AD87,NA()) ->  | AE80: =IF(AE78*'MACRO ECONOMIC DATA'!AE87<>0,AE78/'MACRO ECONOMIC DATA'!AE87,NA()) ->  | AF80: =IF(AF78*'MACRO ECONOMIC DATA'!AF87<>0,AF78/'MACRO ECONOMIC DATA'!AF87,NA()) ->  | AG80: =IF(AG78*'MACRO ECONOMIC DATA'!AG87<>0,AG78/'MACRO ECONOMIC DATA'!AG87,NA()) ->  | AH80: =IF(AH78*'MACRO ECONOMIC DATA'!AH87<>0,AH78/'MACRO ECONOMIC DATA'!AH87,NA()) ->  | AI80: =IF(AI78*'MACRO ECONOMIC DATA'!AI87<>0,AI78/'MACRO ECONOMIC DATA'!AI87,NA()) ->  | CG80: Energy intensity (using GDP at nat. currency) | CI80: MJ/NC
B81: Energy intensity (using GDP at MER) | D81: MJ/US$ | E81: =IF(E78*'MACRO ECONOMIC DATA'!E115<>0,E78/'MACRO ECONOMIC DATA'!E115,NA()) ->  | F81: =IF(F78*'MACRO ECONOMIC DATA'!F115<>0,F78/'MACRO ECONOMIC DATA'!F115,NA()) ->  | G81: =IF(G78*'MACRO ECONOMIC DATA'!G115<>0,G78/'MACRO ECONOMIC DATA'!G115,NA()) ->  | H81: =IF(H78*'MACRO ECONOMIC DATA'!H115<>0,H78/'MACRO ECONOMIC DATA'!H115,NA()) ->  | I81: =IF(I78*'MACRO ECONOMIC DATA'!I115<>0,I78/'MACRO ECONOMIC DATA'!I115,NA()) ->  | J81: =IF(J78*'MACRO ECONOMIC DATA'!J115<>0,J78/'MACRO ECONOMIC DATA'!J115,NA()) ->  | K81: =IF(K78*'MACRO ECONOMIC DATA'!K115<>0,K78/'MACRO ECONOMIC DATA'!K115,NA()) ->  | L81: =IF(L78*'MACRO ECONOMIC DATA'!L115<>0,L78/'MACRO ECONOMIC DATA'!L115,NA()) ->  | M81: =IF(M78*'MACRO ECONOMIC DATA'!M115<>0,M78/'MACRO ECONOMIC DATA'!M115,NA()) ->  | N81: =IF(N78*'MACRO ECONOMIC DATA'!N115<>0,N78/'MACRO ECONOMIC DATA'!N115,NA()) ->  | O81: =IF(O78*'MACRO ECONOMIC DATA'!O115<>0,O78/'MACRO ECONOMIC DATA'!O115,NA()) ->  | P81: =IF(P78*'MACRO ECONOMIC DATA'!P115<>0,P78/'MACRO ECONOMIC DATA'!P115,NA()) ->  | Q81: =IF(Q78*'MACRO ECONOMIC DATA'!Q115<>0,Q78/'MACRO ECONOMIC DATA'!Q115,NA()) ->  | R81: =IF(R78*'MACRO ECONOMIC DATA'!R115<>0,R78/'MACRO ECONOMIC DATA'!R115,NA()) ->  | S81: =IF(S78*'MACRO ECONOMIC DATA'!S115<>0,S78/'MACRO ECONOMIC DATA'!S115,NA()) ->  | T81: =IF(T78*'MACRO ECONOMIC DATA'!T115<>0,T78/'MACRO ECONOMIC DATA'!T115,NA()) ->  | U81: =IF(U78*'MACRO ECONOMIC DATA'!U115<>0,U78/'MACRO ECONOMIC DATA'!U115,NA()) ->  | V81: =IF(V78*'MACRO ECONOMIC DATA'!V115<>0,V78/'MACRO ECONOMIC DATA'!V115,NA()) ->  | W81: =IF(W78*'MACRO ECONOMIC DATA'!W115<>0,W78/'MACRO ECONOMIC DATA'!W115,NA()) ->  | X81: =IF(X78*'MACRO ECONOMIC DATA'!X115<>0,X78/'MACRO ECONOMIC DATA'!X115,NA()) ->  | Y81: =IF(Y78*'MACRO ECONOMIC DATA'!Y115<>0,Y78/'MACRO ECONOMIC DATA'!Y115,NA()) ->  | Z81: =IF(Z78*'MACRO ECONOMIC DATA'!Z115<>0,Z78/'MACRO ECONOMIC DATA'!Z115,NA()) ->  | AA81: =IF(AA78*'MACRO ECONOMIC DATA'!AA115<>0,AA78/'MACRO ECONOMIC DATA'!AA115,NA()) ->  | AB81: =IF(AB78*'MACRO ECONOMIC DATA'!AB115<>0,AB78/'MACRO ECONOMIC DATA'!AB115,NA()) ->  | AC81: =IF(AC78*'MACRO ECONOMIC DATA'!AC115<>0,AC78/'MACRO ECONOMIC DATA'!AC115,NA()) ->  | AD81: =IF(AD78*'MACRO ECONOMIC DATA'!AD115<>0,AD78/'MACRO ECONOMIC DATA'!AD115,NA()) ->  | AE81: =IF(AE78*'MACRO ECONOMIC DATA'!AE115<>0,AE78/'MACRO ECONOMIC DATA'!AE115,NA()) ->  | AF81: =IF(AF78*'MACRO ECONOMIC DATA'!AF115<>0,AF78/'MACRO ECONOMIC DATA'!AF115,NA()) ->  | AG81: =IF(AG78*'MACRO ECONOMIC DATA'!AG115<>0,AG78/'MACRO ECONOMIC DATA'!AG115,NA()) ->  | AH81: =IF(AH78*'MACRO ECONOMIC DATA'!AH115<>0,AH78/'MACRO ECONOMIC DATA'!AH115,NA()) ->  | AI81: =IF(AI78*'MACRO ECONOMIC DATA'!AI115<>0,AI78/'MACRO ECONOMIC DATA'!AI115,NA()) ->  | CG81: Energy intensity (using GDP at MER) | CI81: MJ/US$
A83: 17 | B83: 17: Manufacture of paper and paper products | CF83: 17 | CG83: 17: Manufacture of paper and paper products
B84: Oil & Oil Products | C84: M_PAPPULP.E_OIL | D84: PJ | E84: 0 | F84: 0 | G84: 0 | H84: 0 | I84: 0 | J84: 0 | K84: 0 | L84: 0 | M84: 0 | N84: 0 | O84: 0 | P84: 0 | Q84: 0 | R84: 0 | S84: 0 | T84: 0 | U84: 0 | V84: 0 | W84: 0 | X84: 0 | Y84: 0 | Z84: 0 | AA84: 0 | AB84: 0 | AC84: 0 | AD84: 0 | AE84: 0 | AF84: 0 | AG84: 0 | AH84: 0 | AI84: 0 | CG84: Oil & Oil Products | CH84: M_PAPPULP.E_OIL | CI84: PJ | CJ84: 0 | CK84: 0 | CL84: 0 | CM84: 0 | CN84: 0 | CO84: 0 | CP84: 0 | CQ84: 0 | CR84: 0 | CS84: 0 | CT84: 0 | CU84: 0 | CV84: 0 | CW84: 0 | CX84: 0 | CY84: 0 | CZ84: 0 | DA84: 0 | DB84: 0 | DC84: 0 | DD84: 0 | DE84: 0 | DF84: 0 | DG84: 0 | DH84: 0 | DI84: 0 | DJ84: 0 | DK84: 0 | DL84: 0
B85: Natural Gas | C85: M_PAPPULP.E_GAS | D85: PJ | E85: 0 | F85: 0 | G85: 0 | H85: 0 | I85: 0 | J85: 0 | K85: 0 | L85: 0 | M85: 0 | N85: 0 | O85: 0 | P85: 0 | Q85: 0 | R85: 0 | S85: 0 | T85: 0 | U85: 0 | V85: 0 | W85: 0 | X85: 0 | Y85: 0 | Z85: 0 | AA85: 0 | AB85: 0 | AC85: 0 | AD85: 0 | AE85: 0 | AF85: 0 | AG85: 0 | AH85: 0 | AI85: 0 | CG85: Natural Gas | CH85: M_PAPPULP.E_GAS | CI85: PJ | CJ85: 0 | CK85: 0 | CL85: 0 | CM85: 0 | CN85: 0 | CO85: 0 | CP85: 0 | CQ85: 0 | CR85: 0 | CS85: 0 | CT85: 0 | CU85: 0 | CV85: 0 | CW85: 0 | CX85: 0 | CY85: 0 | CZ85: 0 | DA85: 0 | DB85: 0 | DC85: 0 | DD85: 0 | DE85: 0 | DF85: 0 | DG85: 0 | DH85: 0 | DI85: 0 | DJ85: 0 | DK85: 0 | DL85: 0
B86: Coal & Coal Products | C86: M_PAPPULP.E_COAL | D86: PJ | E86: 0 | F86: 0 | G86: 0 | H86: 0 | I86: 0 | J86: 0 | K86: 0 | L86: 0 | M86: 0 | N86: 0 | O86: 0 | P86: 0 | Q86: 0 | R86: 0 | S86: 0 | T86: 0 | U86: 0 | V86: 0 | W86: 0 | X86: 0 | Y86: 0 | Z86: 0 | AA86: 0 | AB86: 0 | AC86: 0 | AD86: 0 | AE86: 0 | AF86: 0 | AG86: 0 | AH86: 0 | AI86: 0 | CG86: Coal & Coal Products | CH86: M_PAPPULP.E_COAL | CI86: PJ | CJ86: 0 | CK86: 0 | CL86: 0 | CM86: 0 | CN86: 0 | CO86: 0 | CP86: 0 | CQ86: 0 | CR86: 0 | CS86: 0 | CT86: 0 | CU86: 0 | CV86: 0 | CW86: 0 | CX86: 0 | CY86: 0 | CZ86: 0 | DA86: 0 | DB86: 0 | DC86: 0 | DD86: 0 | DE86: 0 | DF86: 0 | DG86: 0 | DH86: 0 | DI86: 0 | DJ86: 0 | DK86: 0 | DL86: 0
B87: Biofuels & Waste | C87: M_PAPPULP.E_WOOD | D87: PJ | E87: 0 | F87: 0 | G87: 0 | H87: 0 | I87: 0 | J87: 0 | K87: 0 | L87: 0 | M87: 0 | N87: 0 | O87: 0 | P87: 0 | Q87: 0 | R87: 0 | S87: 0 | T87: 0 | U87: 0 | V87: 0 | W87: 0 | X87: 0 | Y87: 0 | Z87: 0 | AA87: 0 | AB87: 0 | AC87: 0 | AD87: 0 | AE87: 0 | AF87: 0 | AG87: 0 | AH87: 0 | AI87: 0 | CG87: Biofuels & Waste | CH87: M_PAPPULP.E_WOOD | CI87: PJ | CJ87: 0 | CK87: 0 | CL87: 0 | CM87: 0 | CN87: 0 | CO87: 0 | CP87: 0 | CQ87: 0 | CR87: 0 | CS87: 0 | CT87: 0 | CU87: 0 | CV87: 0 | CW87: 0 | CX87: 0 | CY87: 0 | CZ87: 0 | DA87: 0 | DB87: 0 | DC87: 0 | DD87: 0 | DE87: 0 | DF87: 0 | DG87: 0 | DH87: 0 | DI87: 0 | DJ87: 0 | DK87: 0 | DL87: 0
B88: Heat | C88: M_PAPPULP.E_DHEAT | D88: PJ | E88: 0 | F88: 0 | G88: 0 | H88: 0 | I88: 0 | J88: 0 | K88: 0 | L88: 0 | M88: 0 | N88: 0 | O88: 0 | P88: 0 | Q88: 0 | R88: 0 | S88: 0 | T88: 0 | U88: 0 | V88: 0 | W88: 0 | X88: 0 | Y88: 0 | Z88: 0 | AA88: 0 | AB88: 0 | AC88: 0 | AD88: 0 | AE88: 0 | AF88: 0 | AG88: 0 | AH88: 0 | AI88: 0 | CG88: Heat | CH88: M_PAPPULP.E_DHEAT | CI88: PJ | CJ88: 0 | CK88: 0 | CL88: 0 | CM88: 0 | CN88: 0 | CO88: 0 | CP88: 0 | CQ88: 0 | CR88: 0 | CS88: 0 | CT88: 0 | CU88: 0 | CV88: 0 | CW88: 0 | CX88: 0 | CY88: 0 | CZ88: 0 | DA88: 0 | DB88: 0 | DC88: 0 | DD88: 0 | DE88: 0 | DF88: 0 | DG88: 0 | DH88: 0 | DI88: 0 | DJ88: 0 | DK88: 0 | DL88: 0
B89: Electricity | C89: M_PAPPULP.E_ELEC | D89: PJ | E89: 0 | F89: 0 | G89: 0 | H89: 0 | I89: 0 | J89: 0 | K89: 0 | L89: 0 | M89: 0 | N89: 0 | O89: 0 | P89: 0 | Q89: 0 | R89: 0 | S89: 0 | T89: 0 | U89: 0 | V89: 0 | W89: 0 | X89: 0 | Y89: 0 | Z89: 0 | AA89: 0 | AB89: 0 | AC89: 0 | AD89: 0 | AE89: 0 | AF89: 0 | AG89: 0 | AH89: 0 | AI89: 0 | CG89: Electricity | CH89: M_PAPPULP.E_ELEC | CI89: PJ | CJ89: 0 | CK89: 0 | CL89: 0 | CM89: 0 | CN89: 0 | CO89: 0 | CP89: 0 | CQ89: 0 | CR89: 0 | CS89: 0 | CT89: 0 | CU89: 0 | CV89: 0 | CW89: 0 | CX89: 0 | CY89: 0 | CZ89: 0 | DA89: 0 | DB89: 0 | DC89: 0 | DD89: 0 | DE89: 0 | DF89: 0 | DG89: 0 | DH89: 0 | DI89: 0 | DJ89: 0 | DK89: 0 | DL89: 0
B90: Other | C90: M_PAPPULP.E_OTHER | D90: PJ | E90: 0 | F90: 0 | G90: 0 | H90: 0 | I90: 0 | J90: 0 | K90: 0 | L90: 0 | M90: 0 | N90: 0 | O90: 0 | P90: 0 | Q90: 0 | R90: 0 | S90: 0 | T90: 0 | U90: 0 | V90: 0 | W90: 0 | X90: 0 | Y90: 0 | Z90: 0 | AA90: 0 | AB90: 0 | AC90: 0 | AD90: 0 | AE90: 0 | AF90: 0 | AG90: 0 | AH90: 0 | AI90: 0 | CG90: Other | CH90: M_PAPPULP.E_OTHER | CI90: PJ | CJ90: 0 | CK90: 0 | CL90: 0 | CM90: 0 | CN90: 0 | CO90: 0 | CP90: 0 | CQ90: 0 | CR90: 0 | CS90: 0 | CT90: 0 | CU90: 0 | CV90: 0 | CW90: 0 | CX90: 0 | CY90: 0 | CZ90: 0 | DA90: 0 | DB90: 0 | DC90: 0 | DD90: 0 | DE90: 0 | DF90: 0 | DG90: 0 | DH90: 0 | DI90: 0 | DJ90: 0 | DK90: 0 | DL90: 0
A91: TRUE | B91: Total Energy Use | C91: M_PAPPULP.E_FINAL | D91: PJ | E91: =SUM(E84:E90) -> 0 | F91: =SUM(F84:F90) -> 0 | G91: 0 | H91: 0 | I91: 0 | J91: 0 | K91: 0 | L91: 0 | M91: 0 | N91: 0 | O91: 0 | P91: 0 | Q91: 0 | R91: 0 | S91: 0 | T91: 0 | U91: 0 | V91: 0 | W91: 0 | X91: 0 | Y91: 0 | Z91: 0 | AA91: 0 | AB91: 0 | AC91: 0 | AD91: 0 | AE91: 0 | AF91: 0 | AG91: 0 | AH91: =SUM(AH84:AH90) -> 0 | AI91: 0 | CF91: TRUE | CG91: Total Energy Use | CH91: M_PAPPULP.E_FINAL | CI91: PJ | CJ91: 0 | CK91: 0 | CL91: 0 | CM91: 0 | CN91: 0 | CO91: 0 | CP91: 0 | CQ91: 0 | CR91: 0 | CS91: 0 | CT91: 0 | CU91: 0 | CV91: 0 | CW91: 0 | CX91: 0 | CY91: 0 | CZ91: 0 | DA91: 0 | DB91: 0 | DC91: 0 | DD91: 0 | DE91: 0 | DF91: 0 | DG91: 0 | DH91: 0 | DI91: 0 | DJ91: 0 | DK91: 0 | DL91: 0
B92: Energy intensity (using GDP at US$PPP) | D92: MJ/US$PPP | E92: =IF(E91*'MACRO ECONOMIC DATA'!E60<>0,INDUSTRY!E91/'MACRO ECONOMIC DATA'!E60,NA()) ->  | F92: =IF(F91*'MACRO ECONOMIC DATA'!F60<>0,INDUSTRY!F91/'MACRO ECONOMIC DATA'!F60,NA()) ->  | G92: =IF(G91*'MACRO ECONOMIC DATA'!G60<>0,INDUSTRY!G91/'MACRO ECONOMIC DATA'!G60,NA()) ->  | H92: =IF(H91*'MACRO ECONOMIC DATA'!H60<>0,INDUSTRY!H91/'MACRO ECONOMIC DATA'!H60,NA()) ->  | I92: =IF(I91*'MACRO ECONOMIC DATA'!I60<>0,INDUSTRY!I91/'MACRO ECONOMIC DATA'!I60,NA()) ->  | J92: =IF(J91*'MACRO ECONOMIC DATA'!J60<>0,INDUSTRY!J91/'MACRO ECONOMIC DATA'!J60,NA()) ->  | K92: =IF(K91*'MACRO ECONOMIC DATA'!K60<>0,INDUSTRY!K91/'MACRO ECONOMIC DATA'!K60,NA()) ->  | L92: =IF(L91*'MACRO ECONOMIC DATA'!L60<>0,INDUSTRY!L91/'MACRO ECONOMIC DATA'!L60,NA()) ->  | M92: =IF(M91*'MACRO ECONOMIC DATA'!M60<>0,INDUSTRY!M91/'MACRO ECONOMIC DATA'!M60,NA()) ->  | N92: =IF(N91*'MACRO ECONOMIC DATA'!N60<>0,INDUSTRY!N91/'MACRO ECONOMIC DATA'!N60,NA()) ->  | O92: =IF(O91*'MACRO ECONOMIC DATA'!O60<>0,INDUSTRY!O91/'MACRO ECONOMIC DATA'!O60,NA()) ->  | P92: =IF(P91*'MACRO ECONOMIC DATA'!P60<>0,INDUSTRY!P91/'MACRO ECONOMIC DATA'!P60,NA()) ->  | Q92: =IF(Q91*'MACRO ECONOMIC DATA'!Q60<>0,INDUSTRY!Q91/'MACRO ECONOMIC DATA'!Q60,NA()) ->  | R92: =IF(R91*'MACRO ECONOMIC DATA'!R60<>0,INDUSTRY!R91/'MACRO ECONOMIC DATA'!R60,NA()) ->  | S92: =IF(S91*'MACRO ECONOMIC DATA'!S60<>0,INDUSTRY!S91/'MACRO ECONOMIC DATA'!S60,NA()) ->  | T92: =IF(T91*'MACRO ECONOMIC DATA'!T60<>0,INDUSTRY!T91/'MACRO ECONOMIC DATA'!T60,NA()) ->  | U92: =IF(U91*'MACRO ECONOMIC DATA'!U60<>0,INDUSTRY!U91/'MACRO ECONOMIC DATA'!U60,NA()) ->  | V92: =IF(V91*'MACRO ECONOMIC DATA'!V60<>0,INDUSTRY!V91/'MACRO ECONOMIC DATA'!V60,NA()) ->  | W92: =IF(W91*'MACRO ECONOMIC DATA'!W60<>0,INDUSTRY!W91/'MACRO ECONOMIC DATA'!W60,NA()) ->  | X92: =IF(X91*'MACRO ECONOMIC DATA'!X60<>0,INDUSTRY!X91/'MACRO ECONOMIC DATA'!X60,NA()) ->  | Y92: =IF(Y91*'MACRO ECONOMIC DATA'!Y60<>0,INDUSTRY!Y91/'MACRO ECONOMIC DATA'!Y60,NA()) ->  | Z92: =IF(Z91*'MACRO ECONOMIC DATA'!Z60<>0,INDUSTRY!Z91/'MACRO ECONOMIC DATA'!Z60,NA()) ->  | AA92: =IF(AA91*'MACRO ECONOMIC DATA'!AA60<>0,INDUSTRY!AA91/'MACRO ECONOMIC DATA'!AA60,NA()) ->  | AB92: =IF(AB91*'MACRO ECONOMIC DATA'!AB60<>0,INDUSTRY!AB91/'MACRO ECONOMIC DATA'!AB60,NA()) ->  | AC92: =IF(AC91*'MACRO ECONOMIC DATA'!AC60<>0,INDUSTRY!AC91/'MACRO ECONOMIC DATA'!AC60,NA()) ->  | AD92: =IF(AD91*'MACRO ECONOMIC DATA'!AD60<>0,INDUSTRY!AD91/'MACRO ECONOMIC DATA'!AD60,NA()) ->  | AE92: =IF(AE91*'MACRO ECONOMIC DATA'!AE60<>0,INDUSTRY!AE91/'MACRO ECONOMIC DATA'!AE60,NA()) ->  | AF92: =IF(AF91*'MACRO ECONOMIC DATA'!AF60<>0,INDUSTRY!AF91/'MACRO ECONOMIC DATA'!AF60,NA()) ->  | AG92: =IF(AG91*'MACRO ECONOMIC DATA'!AG60<>0,INDUSTRY!AG91/'MACRO ECONOMIC DATA'!AG60,NA()) ->  | AH92: =IF(AH91*'MACRO ECONOMIC DATA'!AH60<>0,INDUSTRY!AH91/'MACRO ECONOMIC DATA'!AH60,NA()) ->  | AI92: =IF(AI91*'MACRO ECONOMIC DATA'!AI60<>0,INDUSTRY!AI91/'MACRO ECONOMIC DATA'!AI60,NA()) ->  | CG92: Energy intensity (using GDP at US$PPP) | CI92: MJ/US$PPP
B93: Energy intensity (using GDP at nat. currency) | D93: ="MJ/" &'MACRO ECONOMIC DATA'!$D$143 -> MJ/NC | E93: =IF(E91*'MACRO ECONOMIC DATA'!E88<>0,E91/'MACRO ECONOMIC DATA'!E88,NA()) ->  | F93: =IF(F91*'MACRO ECONOMIC DATA'!F88<>0,F91/'MACRO ECONOMIC DATA'!F88,NA()) ->  | G93: =IF(G91*'MACRO ECONOMIC DATA'!G88<>0,G91/'MACRO ECONOMIC DATA'!G88,NA()) ->  | H93: =IF(H91*'MACRO ECONOMIC DATA'!H88<>0,H91/'MACRO ECONOMIC DATA'!H88,NA()) ->  | I93: =IF(I91*'MACRO ECONOMIC DATA'!I88<>0,I91/'MACRO ECONOMIC DATA'!I88,NA()) ->  | J93: =IF(J91*'MACRO ECONOMIC DATA'!J88<>0,J91/'MACRO ECONOMIC DATA'!J88,NA()) ->  | K93: =IF(K91*'MACRO ECONOMIC DATA'!K88<>0,K91/'MACRO ECONOMIC DATA'!K88,NA()) ->  | L93: =IF(L91*'MACRO ECONOMIC DATA'!L88<>0,L91/'MACRO ECONOMIC DATA'!L88,NA()) ->  | M93: =IF(M91*'MACRO ECONOMIC DATA'!M88<>0,M91/'MACRO ECONOMIC DATA'!M88,NA()) ->  | N93: =IF(N91*'MACRO ECONOMIC DATA'!N88<>0,N91/'MACRO ECONOMIC DATA'!N88,NA()) ->  | O93: =IF(O91*'MACRO ECONOMIC DATA'!O88<>0,O91/'MACRO ECONOMIC DATA'!O88,NA()) ->  | P93: =IF(P91*'MACRO ECONOMIC DATA'!P88<>0,P91/'MACRO ECONOMIC DATA'!P88,NA()) ->  | Q93: =IF(Q91*'MACRO ECONOMIC DATA'!Q88<>0,Q91/'MACRO ECONOMIC DATA'!Q88,NA()) ->  | R93: =IF(R91*'MACRO ECONOMIC DATA'!R88<>0,R91/'MACRO ECONOMIC DATA'!R88,NA()) ->  | S93: =IF(S91*'MACRO ECONOMIC DATA'!S88<>0,S91/'MACRO ECONOMIC DATA'!S88,NA()) ->  | T93: =IF(T91*'MACRO ECONOMIC DATA'!T88<>0,T91/'MACRO ECONOMIC DATA'!T88,NA()) ->  | U93: =IF(U91*'MACRO ECONOMIC DATA'!U88<>0,U91/'MACRO ECONOMIC DATA'!U88,NA()) ->  | V93: =IF(V91*'MACRO ECONOMIC DATA'!V88<>0,V91/'MACRO ECONOMIC DATA'!V88,NA()) ->  | W93: =IF(W91*'MACRO ECONOMIC DATA'!W88<>0,W91/'MACRO ECONOMIC DATA'!W88,NA()) ->  | X93: =IF(X91*'MACRO ECONOMIC DATA'!X88<>0,X91/'MACRO ECONOMIC DATA'!X88,NA()) ->  | Y93: =IF(Y91*'MACRO ECONOMIC DATA'!Y88<>0,Y91/'MACRO ECONOMIC DATA'!Y88,NA()) ->  | Z93: =IF(Z91*'MACRO ECONOMIC DATA'!Z88<>0,Z91/'MACRO ECONOMIC DATA'!Z88,NA()) ->  | AA93: =IF(AA91*'MACRO ECONOMIC DATA'!AA88<>0,AA91/'MACRO ECONOMIC DATA'!AA88,NA()) ->  | AB93: =IF(AB91*'MACRO ECONOMIC DATA'!AB88<>0,AB91/'MACRO ECONOMIC DATA'!AB88,NA()) ->  | AC93: =IF(AC91*'MACRO ECONOMIC DATA'!AC88<>0,AC91/'MACRO ECONOMIC DATA'!AC88,NA()) ->  | AD93: =IF(AD91*'MACRO ECONOMIC DATA'!AD88<>0,AD91/'MACRO ECONOMIC DATA'!AD88,NA()) ->  | AE93: =IF(AE91*'MACRO ECONOMIC DATA'!AE88<>0,AE91/'MACRO ECONOMIC DATA'!AE88,NA()) ->  | AF93: =IF(AF91*'MACRO ECONOMIC DATA'!AF88<>0,AF91/'MACRO ECONOMIC DATA'!AF88,NA()) ->  | AG93: =IF(AG91*'MACRO ECONOMIC DATA'!AG88<>0,AG91/'MACRO ECONOMIC DATA'!AG88,NA()) ->  | AH93: =IF(AH91*'MACRO ECONOMIC DATA'!AH88<>0,AH91/'MACRO ECONOMIC DATA'!AH88,NA()) ->  | AI93: =IF(AI91*'MACRO ECONOMIC DATA'!AI88<>0,AI91/'MACRO ECONOMIC DATA'!AI88,NA()) ->  | CG93: Energy intensity (using GDP at nat. currency) | CI93: MJ/NC
B94: Energy intensity (using GDP at MER) | D94: MJ/US$ | E94: =IF(E91*'MACRO ECONOMIC DATA'!E116<>0,E91/'MACRO ECONOMIC DATA'!E116,NA()) ->  | F94: =IF(F91*'MACRO ECONOMIC DATA'!F116<>0,F91/'MACRO ECONOMIC DATA'!F116,NA()) ->  | G94: =IF(G91*'MACRO ECONOMIC DATA'!G116<>0,G91/'MACRO ECONOMIC DATA'!G116,NA()) ->  | H94: =IF(H91*'MACRO ECONOMIC DATA'!H116<>0,H91/'MACRO ECONOMIC DATA'!H116,NA()) ->  | I94: =IF(I91*'MACRO ECONOMIC DATA'!I116<>0,I91/'MACRO ECONOMIC DATA'!I116,NA()) ->  | J94: =IF(J91*'MACRO ECONOMIC DATA'!J116<>0,J91/'MACRO ECONOMIC DATA'!J116,NA()) ->  | K94: =IF(K91*'MACRO ECONOMIC DATA'!K116<>0,K91/'MACRO ECONOMIC DATA'!K116,NA()) ->  | L94: =IF(L91*'MACRO ECONOMIC DATA'!L116<>0,L91/'MACRO ECONOMIC DATA'!L116,NA()) ->  | M94: =IF(M91*'MACRO ECONOMIC DATA'!M116<>0,M91/'MACRO ECONOMIC DATA'!M116,NA()) ->  | N94: =IF(N91*'MACRO ECONOMIC DATA'!N116<>0,N91/'MACRO ECONOMIC DATA'!N116,NA()) ->  | O94: =IF(O91*'MACRO ECONOMIC DATA'!O116<>0,O91/'MACRO ECONOMIC DATA'!O116,NA()) ->  | P94: =IF(P91*'MACRO ECONOMIC DATA'!P116<>0,P91/'MACRO ECONOMIC DATA'!P116,NA()) ->  | Q94: =IF(Q91*'MACRO ECONOMIC DATA'!Q116<>0,Q91/'MACRO ECONOMIC DATA'!Q116,NA()) ->  | R94: =IF(R91*'MACRO ECONOMIC DATA'!R116<>0,R91/'MACRO ECONOMIC DATA'!R116,NA()) ->  | S94: =IF(S91*'MACRO ECONOMIC DATA'!S116<>0,S91/'MACRO ECONOMIC DATA'!S116,NA()) ->  | T94: =IF(T91*'MACRO ECONOMIC DATA'!T116<>0,T91/'MACRO ECONOMIC DATA'!T116,NA()) ->  | U94: =IF(U91*'MACRO ECONOMIC DATA'!U116<>0,U91/'MACRO ECONOMIC DATA'!U116,NA()) ->  | V94: =IF(V91*'MACRO ECONOMIC DATA'!V116<>0,V91/'MACRO ECONOMIC DATA'!V116,NA()) ->  | W94: =IF(W91*'MACRO ECONOMIC DATA'!W116<>0,W91/'MACRO ECONOMIC DATA'!W116,NA()) ->  | X94: =IF(X91*'MACRO ECONOMIC DATA'!X116<>0,X91/'MACRO ECONOMIC DATA'!X116,NA()) ->  | Y94: =IF(Y91*'MACRO ECONOMIC DATA'!Y116<>0,Y91/'MACRO ECONOMIC DATA'!Y116,NA()) ->  | Z94: =IF(Z91*'MACRO ECONOMIC DATA'!Z116<>0,Z91/'MACRO ECONOMIC DATA'!Z116,NA()) ->  | AA94: =IF(AA91*'MACRO ECONOMIC DATA'!AA116<>0,AA91/'MACRO ECONOMIC DATA'!AA116,NA()) ->  | AB94: =IF(AB91*'MACRO ECONOMIC DATA'!AB116<>0,AB91/'MACRO ECONOMIC DATA'!AB116,NA()) ->  | AC94: =IF(AC91*'MACRO ECONOMIC DATA'!AC116<>0,AC91/'MACRO ECONOMIC DATA'!AC116,NA()) ->  | AD94: =IF(AD91*'MACRO ECONOMIC DATA'!AD116<>0,AD91/'MACRO ECONOMIC DATA'!AD116,NA()) ->  | AE94: =IF(AE91*'MACRO ECONOMIC DATA'!AE116<>0,AE91/'MACRO ECONOMIC DATA'!AE116,NA()) ->  | AF94: =IF(AF91*'MACRO ECONOMIC DATA'!AF116<>0,AF91/'MACRO ECONOMIC DATA'!AF116,NA()) ->  | AG94: =IF(AG91*'MACRO ECONOMIC DATA'!AG116<>0,AG91/'MACRO ECONOMIC DATA'!AG116,NA()) ->  | AH94: =IF(AH91*'MACRO ECONOMIC DATA'!AH116<>0,AH91/'MACRO ECONOMIC DATA'!AH116,NA()) ->  | AI94: =IF(AI91*'MACRO ECONOMIC DATA'!AI116<>0,AI91/'MACRO ECONOMIC DATA'!AI116,NA()) ->  | CG94: Energy intensity (using GDP at MER) | CI94: MJ/US$
B95: Energy intensity (physical production) | D95: GJ/t | E95: =IF(E91*COMMODITIES!E13<>0,E91/COMMODITIES!E13,NA()) ->  | F95: =IF(F91*COMMODITIES!F13<>0,F91/COMMODITIES!F13,NA()) ->  | G95: =IF(G91*COMMODITIES!G13<>0,G91/COMMODITIES!G13,NA()) ->  | H95: =IF(H91*COMMODITIES!H13<>0,H91/COMMODITIES!H13,NA()) ->  | I95: =IF(I91*COMMODITIES!I13<>0,I91/COMMODITIES!I13,NA()) ->  | J95: =IF(J91*COMMODITIES!J13<>0,J91/COMMODITIES!J13,NA()) ->  | K95: =IF(K91*COMMODITIES!K13<>0,K91/COMMODITIES!K13,NA()) ->  | L95: =IF(L91*COMMODITIES!L13<>0,L91/COMMODITIES!L13,NA()) ->  | M95: =IF(M91*COMMODITIES!M13<>0,M91/COMMODITIES!M13,NA()) ->  | N95: =IF(N91*COMMODITIES!N13<>0,N91/COMMODITIES!N13,NA()) ->  | O95: =IF(O91*COMMODITIES!O13<>0,O91/COMMODITIES!O13,NA()) ->  | P95: =IF(P91*COMMODITIES!P13<>0,P91/COMMODITIES!P13,NA()) ->  | Q95: =IF(Q91*COMMODITIES!Q13<>0,Q91/COMMODITIES!Q13,NA()) ->  | R95: =IF(R91*COMMODITIES!R13<>0,R91/COMMODITIES!R13,NA()) ->  | S95: =IF(S91*COMMODITIES!S13<>0,S91/COMMODITIES!S13,NA()) ->  | T95: =IF(T91*COMMODITIES!T13<>0,T91/COMMODITIES!T13,NA()) ->  | U95: =IF(U91*COMMODITIES!U13<>0,U91/COMMODITIES!U13,NA()) ->  | V95: =IF(V91*COMMODITIES!V13<>0,V91/COMMODITIES!V13,NA()) ->  | W95: =IF(W91*COMMODITIES!W13<>0,W91/COMMODITIES!W13,NA()) ->  | X95: =IF(X91*COMMODITIES!X13<>0,X91/COMMODITIES!X13,NA()) ->  | Y95: =IF(Y91*COMMODITIES!Y13<>0,Y91/COMMODITIES!Y13,NA()) ->  | Z95: =IF(Z91*COMMODITIES!Z13<>0,Z91/COMMODITIES!Z13,NA()) ->  | AA95: =IF(AA91*COMMODITIES!AA13<>0,AA91/COMMODITIES!AA13,NA()) ->  | AB95: =IF(AB91*COMMODITIES!AB13<>0,AB91/COMMODITIES!AB13,NA()) ->  | AC95: =IF(AC91*COMMODITIES!AC13<>0,AC91/COMMODITIES!AC13,NA()) ->  | AD95: =IF(AD91*COMMODITIES!AD13<>0,AD91/COMMODITIES!AD13,NA()) ->  | AE95: =IF(AE91*COMMODITIES!AE13<>0,AE91/COMMODITIES!AE13,NA()) ->  | AF95: =IF(AF91*COMMODITIES!AF13<>0,AF91/COMMODITIES!AF13,NA()) ->  | AG95: =IF(AG91*COMMODITIES!AG13<>0,AG91/COMMODITIES!AG13,NA()) ->  | AH95: =IF(AH91*COMMODITIES!AH13<>0,AH91/COMMODITIES!AH13,NA()) ->  | AI95: =IF(AI91*COMMODITIES!AI13<>0,AI91/COMMODITIES!AI13,NA()) ->  | CG95: Energy intensity (physical production) | CI95: GJ/t
B97: Of which pulp | CG97: Of which pulp
B98: Oil & Oil Products | C98: M_PULP.E_OIL | D98: PJ | E98: 0 | F98: 0 | G98: 0 | H98: 0 | I98: 0 | J98: 0 | K98: 0 | L98: 0 | M98: 0 | N98: 0 | O98: 0 | P98: 0 | Q98: 0 | R98: 0 | S98: 0 | T98: 0 | U98: 0 | V98: 0 | W98: 0 | X98: 0 | Y98: 0 | Z98: 0 | AA98: 0 | AB98: 0 | AC98: 0 | AD98: 0 | AE98: 0 | AF98: 0 | AG98: 0 | AH98: 0 | AI98: 0 | CG98: Oil & Oil Products | CH98: M_PULP.E_OIL | CI98: PJ | CJ98: 0 | CK98: 0 | CL98: 0 | CM98: 0 | CN98: 0 | CO98: 0 | CP98: 0 | CQ98: 0 | CR98: 0 | CS98: 0 | CT98: 0 | CU98: 0 | CV98: 0 | CW98: 0 | CX98: 0 | CY98: 0 | CZ98: 0 | DA98: 0 | DB98: 0 | DC98: 0 | DD98: 0 | DE98: 0 | DF98: 0 | DG98: 0 | DH98: 0 | DI98: 0 | DJ98: 0 | DK98: 0 | DL98: 0
B99: Natural Gas | C99: M_PULP.E_GAS | D99: PJ | E99: 0 | F99: 0 | G99: 0 | H99: 0 | I99: 0 | J99: 0 | K99: 0 | L99: 0 | M99: 0 | N99: 0 | O99: 0 | P99: 0 | Q99: 0 | R99: 0 | S99: 0 | T99: 0 | U99: 0 | V99: 0 | W99: 0 | X99: 0 | Y99: 0 | Z99: 0 | AA99: 0 | AB99: 0 | AC99: 0 | AD99: 0 | AE99: 0 | AF99: 0 | AG99: 0 | AH99: 0 | AI99: 0 | CG99: Natural Gas | CH99: M_PULP.E_GAS | CI99: PJ | CJ99: 0 | CK99: 0 | CL99: 0 | CM99: 0 | CN99: 0 | CO99: 0 | CP99: 0 | CQ99: 0 | CR99: 0 | CS99: 0 | CT99: 0 | CU99: 0 | CV99: 0 | CW99: 0 | CX99: 0 | CY99: 0 | CZ99: 0 | DA99: 0 | DB99: 0 | DC99: 0 | DD99: 0 | DE99: 0 | DF99: 0 | DG99: 0 | DH99: 0 | DI99: 0 | DJ99: 0 | DK99: 0 | DL99: 0
B100: Coal & Coal Products | C100: M_PULP.E_COAL | D100: PJ | E100: 0 | F100: 0 | G100: 0 | H100: 0 | I100: 0 | J100: 0 | K100: 0 | L100: 0 | M100: 0 | N100: 0 | O100: 0 | P100: 0 | Q100: 0 | R100: 0 | S100: 0 | T100: 0 | U100: 0 | V100: 0 | W100: 0 | X100: 0 | Y100: 0 | Z100: 0 | AA100: 0 | AB100: 0 | AC100: 0 | AD100: 0 | AE100: 0 | AF100: 0 | AG100: 0 | AH100: 0 | AI100: 0 | CG100: Coal & Coal Products | CH100: M_PULP.E_COAL | CI100: PJ | CJ100: 0 | CK100: 0 | CL100: 0 | CM100: 0 | CN100: 0 | CO100: 0 | CP100: 0 | CQ100: 0 | CR100: 0 | CS100: 0 | CT100: 0 | CU100: 0 | CV100: 0 | CW100: 0 | CX100: 0 | CY100: 0 | CZ100: 0 | DA100: 0 | DB100: 0 | DC100: 0 | DD100: 0 | DE100: 0 | DF100: 0 | DG100: 0 | DH100: 0 | DI100: 0 | DJ100: 0 | DK100: 0 | DL100: 0
B101: Biofuels & Waste | C101: M_PULP.E_WOOD | D101: PJ | E101: 0 | F101: 0 | G101: 0 | H101: 0 | I101: 0 | J101: 0 | K101: 0 | L101: 0 | M101: 0 | N101: 0 | O101: 0 | P101: 0 | Q101: 0 | R101: 0 | S101: 0 | T101: 0 | U101: 0 | V101: 0 | W101: 0 | X101: 0 | Y101: 0 | Z101: 0 | AA101: 0 | AB101: 0 | AC101: 0 | AD101: 0 | AE101: 0 | AF101: 0 | AG101: 0 | AH101: 0 | AI101: 0 | CG101: Biofuels & Waste | CH101: M_PULP.E_WOOD | CI101: PJ | CJ101: 0 | CK101: 0 | CL101: 0 | CM101: 0 | CN101: 0 | CO101: 0 | CP101: 0 | CQ101: 0 | CR101: 0 | CS101: 0 | CT101: 0 | CU101: 0 | CV101: 0 | CW101: 0 | CX101: 0 | CY101: 0 | CZ101: 0 | DA101: 0 | DB101: 0 | DC101: 0 | DD101: 0 | DE101: 0 | DF101: 0 | DG101: 0 | DH101: 0 | DI101: 0 | DJ101: 0 | DK101: 0 | DL101: 0
B102: Heat | C102: M_PULP.E_DHEAT | D102: PJ | E102: 0 | F102: 0 | G102: 0 | H102: 0 | I102: 0 | J102: 0 | K102: 0 | L102: 0 | M102: 0 | N102: 0 | O102: 0 | P102: 0 | Q102: 0 | R102: 0 | S102: 0 | T102: 0 | U102: 0 | V102: 0 | W102: 0 | X102: 0 | Y102: 0 | Z102: 0 | AA102: 0 | AB102: 0 | AC102: 0 | AD102: 0 | AE102: 0 | AF102: 0 | AG102: 0 | AH102: 0 | AI102: 0 | CG102: Heat | CH102: M_PULP.E_DHEAT | CI102: PJ | CJ102: 0 | CK102: 0 | CL102: 0 | CM102: 0 | CN102: 0 | CO102: 0 | CP102: 0 | CQ102: 0 | CR102: 0 | CS102: 0 | CT102: 0 | CU102: 0 | CV102: 0 | CW102: 0 | CX102: 0 | CY102: 0 | CZ102: 0 | DA102: 0 | DB102: 0 | DC102: 0 | DD102: 0 | DE102: 0 | DF102: 0 | DG102: 0 | DH102: 0 | DI102: 0 | DJ102: 0 | DK102: 0 | DL102: 0
B103: Electricity | C103: M_PULP.E_ELEC | D103: PJ | E103: 0 | F103: 0 | G103: 0 | H103: 0 | I103: 0 | J103: 0 | K103: 0 | L103: 0 | M103: 0 | N103: 0 | O103: 0 | P103: 0 | Q103: 0 | R103: 0 | S103: 0 | T103: 0 | U103: 0 | V103: 0 | W103: 0 | X103: 0 | Y103: 0 | Z103: 0 | AA103: 0 | AB103: 0 | AC103: 0 | AD103: 0 | AE103: 0 | AF103: 0 | AG103: 0 | AH103: 0 | AI103: 0 | CG103: Electricity | CH103: M_PULP.E_ELEC | CI103: PJ | CJ103: 0 | CK103: 0 | CL103: 0 | CM103: 0 | CN103: 0 | CO103: 0 | CP103: 0 | CQ103: 0 | CR103: 0 | CS103: 0 | CT103: 0 | CU103: 0 | CV103: 0 | CW103: 0 | CX103: 0 | CY103: 0 | CZ103: 0 | DA103: 0 | DB103: 0 | DC103: 0 | DD103: 0 | DE103: 0 | DF103: 0 | DG103: 0 | DH103: 0 | DI103: 0 | DJ103: 0 | DK103: 0 | DL103: 0
B104: Other | C104: M_PULP.E_OTHER | D104: PJ | E104: 0 | F104: 0 | G104: 0 | H104: 0 | I104: 0 | J104: 0 | K104: 0 | L104: 0 | M104: 0 | N104: 0 | O104: 0 | P104: 0 | Q104: 0 | R104: 0 | S104: 0 | T104: 0 | U104: 0 | V104: 0 | W104: 0 | X104: 0 | Y104: 0 | Z104: 0 | AA104: 0 | AB104: 0 | AC104: 0 | AD104: 0 | AE104: 0 | AF104: 0 | AG104: 0 | AH104: 0 | AI104: 0 | CG104: Other | CH104: M_PULP.E_OTHER | CI104: PJ | CJ104: 0 | CK104: 0 | CL104: 0 | CM104: 0 | CN104: 0 | CO104: 0 | CP104: 0 | CQ104: 0 | CR104: 0 | CS104: 0 | CT104: 0 | CU104: 0 | CV104: 0 | CW104: 0 | CX104: 0 | CY104: 0 | CZ104: 0 | DA104: 0 | DB104: 0 | DC104: 0 | DD104: 0 | DE104: 0 | DF104: 0 | DG104: 0 | DH104: 0 | DI104: 0 | DJ104: 0 | DK104: 0 | DL104: 0
A105: FALSE | B105: Total Energy Use | C105: M_PULP.E_FINAL | D105: PJ | E105: =SUM(E98:E104) -> 0 | F105: =SUM(F98:F104) -> 0 | G105: 0 | H105: 0 | I105: 0 | J105: 0 | K105: 0 | L105: 0 | M105: 0 | N105: 0 | O105: 0 | P105: 0 | Q105: 0 | R105: 0 | S105: 0 | T105: 0 | U105: 0 | V105: 0 | W105: 0 | X105: 0 | Y105: 0 | Z105: 0 | AA105: 0 | AB105: 0 | AC105: 0 | AD105: 0 | AE105: 0 | AF105: 0 | AG105: 0 | AH105: =SUM(AH98:AH104) -> 0 | AI105: 0 | CF105: FALSE | CG105: Total Energy Use | CH105: M_PULP.E_FINAL | CI105: PJ | CJ105: 0 | CK105: 0 | CL105: 0 | CM105: 0 | CN105: 0 | CO105: 0 | CP105: 0 | CQ105: 0 | CR105: 0 | CS105: 0 | CT105: 0 | CU105: 0 | CV105: 0 | CW105: 0 | CX105: 0 | CY105: 0 | CZ105: 0 | DA105: 0 | DB105: 0 | DC105: 0 | DD105: 0 | DE105: 0 | DF105: 0 | DG105: 0 | DH105: 0 | DI105: 0 | DJ105: 0 | DK105: 0 | DL105: 0
B106: Energy intensity | D106: GJ/t | E106: =IF(E105*COMMODITIES!E5<>0,E105/COMMODITIES!E5,NA()) ->  | F106: =IF(F105*COMMODITIES!F5<>0,F105/COMMODITIES!F5,NA()) ->  | G106: =IF(G105*COMMODITIES!G5<>0,G105/COMMODITIES!G5,NA()) ->  | H106: =IF(H105*COMMODITIES!H5<>0,H105/COMMODITIES!H5,NA()) ->  | I106: =IF(I105*COMMODITIES!I5<>0,I105/COMMODITIES!I5,NA()) ->  | J106: =IF(J105*COMMODITIES!J5<>0,J105/COMMODITIES!J5,NA()) ->  | K106: =IF(K105*COMMODITIES!K5<>0,K105/COMMODITIES!K5,NA()) ->  | L106: =IF(L105*COMMODITIES!L5<>0,L105/COMMODITIES!L5,NA()) ->  | M106: =IF(M105*COMMODITIES!M5<>0,M105/COMMODITIES!M5,NA()) ->  | N106: =IF(N105*COMMODITIES!N5<>0,N105/COMMODITIES!N5,NA()) ->  | O106: =IF(O105*COMMODITIES!O5<>0,O105/COMMODITIES!O5,NA()) ->  | P106: =IF(P105*COMMODITIES!P5<>0,P105/COMMODITIES!P5,NA()) ->  | Q106: =IF(Q105*COMMODITIES!Q5<>0,Q105/COMMODITIES!Q5,NA()) ->  | R106: =IF(R105*COMMODITIES!R5<>0,R105/COMMODITIES!R5,NA()) ->  | S106: =IF(S105*COMMODITIES!S5<>0,S105/COMMODITIES!S5,NA()) ->  | T106: =IF(T105*COMMODITIES!T5<>0,T105/COMMODITIES!T5,NA()) ->  | U106: =IF(U105*COMMODITIES!U5<>0,U105/COMMODITIES!U5,NA()) ->  | V106: =IF(V105*COMMODITIES!V5<>0,V105/COMMODITIES!V5,NA()) ->  | W106: =IF(W105*COMMODITIES!W5<>0,W105/COMMODITIES!W5,NA()) ->  | X106: =IF(X105*COMMODITIES!X5<>0,X105/COMMODITIES!X5,NA()) ->  | Y106: =IF(Y105*COMMODITIES!Y5<>0,Y105/COMMODITIES!Y5,NA()) ->  | Z106: =IF(Z105*COMMODITIES!Z5<>0,Z105/COMMODITIES!Z5,NA()) ->  | AA106: =IF(AA105*COMMODITIES!AA5<>0,AA105/COMMODITIES!AA5,NA()) ->  | AB106: =IF(AB105*COMMODITIES!AB5<>0,AB105/COMMODITIES!AB5,NA()) ->  | AC106: =IF(AC105*COMMODITIES!AC5<>0,AC105/COMMODITIES!AC5,NA()) ->  | AD106: =IF(AD105*COMMODITIES!AD5<>0,AD105/COMMODITIES!AD5,NA()) ->  | AE106: =IF(AE105*COMMODITIES!AE5<>0,AE105/COMMODITIES!AE5,NA()) ->  | AF106: =IF(AF105*COMMODITIES!AF5<>0,AF105/COMMODITIES!AF5,NA()) ->  | AG106: =IF(AG105*COMMODITIES!AG5<>0,AG105/COMMODITIES!AG5,NA()) ->  | AH106: =IF(AH105*COMMODITIES!AH5<>0,AH105/COMMODITIES!AH5,NA()) ->  | AI106: =IF(AI105*COMMODITIES!AI5<>0,AI105/COMMODITIES!AI5,NA()) ->  | CG106: Energy intensity | CI106: GJ/t
B108: Of which paper | CG108: Of which paper
B109: Oil & Oil Products | C109: M_PAPER.E_OIL | D109: PJ | E109: 0 | F109: 0 | G109: 0 | H109: 0 | I109: 0 | J109: 0 | K109: 0 | L109: 0 | M109: 0 | N109: 0 | O109: 0 | P109: 0 | Q109: 0 | R109: 0 | S109: 0 | T109: 0 | U109: 0 | V109: 0 | W109: 0 | X109: 0 | Y109: 0 | Z109: 0 | AA109: 0 | AB109: 0 | AC109: 0 | AD109: 0 | AE109: 0 | AF109: 0 | AG109: 0 | AH109: 0 | AI109: 0 | CG109: Oil & Oil Products | CH109: M_PAPER.E_OIL | CI109: PJ | CJ109: 0 | CK109: 0 | CL109: 0 | CM109: 0 | CN109: 0 | CO109: 0 | CP109: 0 | CQ109: 0 | CR109: 0 | CS109: 0 | CT109: 0 | CU109: 0 | CV109: 0 | CW109: 0 | CX109: 0 | CY109: 0 | CZ109: 0 | DA109: 0 | DB109: 0 | DC109: 0 | DD109: 0 | DE109: 0 | DF109: 0 | DG109: 0 | DH109: 0 | DI109: 0 | DJ109: 0 | DK109: 0 | DL109: 0
B110: Natural Gas | C110: M_PAPER.E_GAS | D110: PJ | E110: 0 | F110: 0 | G110: 0 | H110: 0 | I110: 0 | J110: 0 | K110: 0 | L110: 0 | M110: 0 | N110: 0 | O110: 0 | P110: 0 | Q110: 0 | R110: 0 | S110: 0 | T110: 0 | U110: 0 | V110: 0 | W110: 0 | X110: 0 | Y110: 0 | Z110: 0 | AA110: 0 | AB110: 0 | AC110: 0 | AD110: 0 | AE110: 0 | AF110: 0 | AG110: 0 | AH110: 0 | AI110: 0 | CG110: Natural Gas | CH110: M_PAPER.E_GAS | CI110: PJ | CJ110: 0 | CK110: 0 | CL110: 0 | CM110: 0 | CN110: 0 | CO110: 0 | CP110: 0 | CQ110: 0 | CR110: 0 | CS110: 0 | CT110: 0 | CU110: 0 | CV110: 0 | CW110: 0 | CX110: 0 | CY110: 0 | CZ110: 0 | DA110: 0 | DB110: 0 | DC110: 0 | DD110: 0 | DE110: 0 | DF110: 0 | DG110: 0 | DH110: 0 | DI110: 0 | DJ110: 0 | DK110: 0 | DL110: 0
B111: Coal & Coal Products | C111: M_PAPER.E_COAL | D111: PJ | E111: 0 | F111: 0 | G111: 0 | H111: 0 | I111: 0 | J111: 0 | K111: 0 | L111: 0 | M111: 0 | N111: 0 | O111: 0 | P111: 0 | Q111: 0 | R111: 0 | S111: 0 | T111: 0 | U111: 0 | V111: 0 | W111: 0 | X111: 0 | Y111: 0 | Z111: 0 | AA111: 0 | AB111: 0 | AC111: 0 | AD111: 0 | AE111: 0 | AF111: 0 | AG111: 0 | AH111: 0 | AI111: 0 | CG111: Coal & Coal Products | CH111: M_PAPER.E_COAL | CI111: PJ | CJ111: 0 | CK111: 0 | CL111: 0 | CM111: 0 | CN111: 0 | CO111: 0 | CP111: 0 | CQ111: 0 | CR111: 0 | CS111: 0 | CT111: 0 | CU111: 0 | CV111: 0 | CW111: 0 | CX111: 0 | CY111: 0 | CZ111: 0 | DA111: 0 | DB111: 0 | DC111: 0 | DD111: 0 | DE111: 0 | DF111: 0 | DG111: 0 | DH111: 0 | DI111: 0 | DJ111: 0 | DK111: 0 | DL111: 0
B112: Biofuels & Waste | C112: M_PAPER.E_WOOD | D112: PJ | E112: 0 | F112: 0 | G112: 0 | H112: 0 | I112: 0 | J112: 0 | K112: 0 | L112: 0 | M112: 0 | N112: 0 | O112: 0 | P112: 0 | Q112: 0 | R112: 0 | S112: 0 | T112: 0 | U112: 0 | V112: 0 | W112: 0 | X112: 0 | Y112: 0 | Z112: 0 | AA112: 0 | AB112: 0 | AC112: 0 | AD112: 0 | AE112: 0 | AF112: 0 | AG112: 0 | AH112: 0 | AI112: 0 | CG112: Biofuels & Waste | CH112: M_PAPER.E_WOOD | CI112: PJ | CJ112: 0 | CK112: 0 | CL112: 0 | CM112: 0 | CN112: 0 | CO112: 0 | CP112: 0 | CQ112: 0 | CR112: 0 | CS112: 0 | CT112: 0 | CU112: 0 | CV112: 0 | CW112: 0 | CX112: 0 | CY112: 0 | CZ112: 0 | DA112: 0 | DB112: 0 | DC112: 0 | DD112: 0 | DE112: 0 | DF112: 0 | DG112: 0 | DH112: 0 | DI112: 0 | DJ112: 0 | DK112: 0 | DL112: 0
B113: Heat | C113: M_PAPER.E_DHEAT | D113: PJ | E113: 0 | F113: 0 | G113: 0 | H113: 0 | I113: 0 | J113: 0 | K113: 0 | L113: 0 | M113: 0 | N113: 0 | O113: 0 | P113: 0 | Q113: 0 | R113: 0 | S113: 0 | T113: 0 | U113: 0 | V113: 0 | W113: 0 | X113: 0 | Y113: 0 | Z113: 0 | AA113: 0 | AB113: 0 | AC113: 0 | AD113: 0 | AE113: 0 | AF113: 0 | AG113: 0 | AH113: 0 | AI113: 0 | CG113: Heat | CH113: M_PAPER.E_DHEAT | CI113: PJ | CJ113: 0 | CK113: 0 | CL113: 0 | CM113: 0 | CN113: 0 | CO113: 0 | CP113: 0 | CQ113: 0 | CR113: 0 | CS113: 0 | CT113: 0 | CU113: 0 | CV113: 0 | CW113: 0 | CX113: 0 | CY113: 0 | CZ113: 0 | DA113: 0 | DB113: 0 | DC113: 0 | DD113: 0 | DE113: 0 | DF113: 0 | DG113: 0 | DH113: 0 | DI113: 0 | DJ113: 0 | DK113: 0 | DL113: 0
B114: Electricity | C114: M_PAPER.E_ELEC | D114: PJ | E114: 0 | F114: 0 | G114: 0 | H114: 0 | I114: 0 | J114: 0 | K114: 0 | L114: 0 | M114: 0 | N114: 0 | O114: 0 | P114: 0 | Q114: 0 | R114: 0 | S114: 0 | T114: 0 | U114: 0 | V114: 0 | W114: 0 | X114: 0 | Y114: 0 | Z114: 0 | AA114: 0 | AB114: 0 | AC114: 0 | AD114: 0 | AE114: 0 | AF114: 0 | AG114: 0 | AH114: 0 | AI114: 0 | CG114: Electricity | CH114: M_PAPER.E_ELEC | CI114: PJ | CJ114: 0 | CK114: 0 | CL114: 0 | CM114: 0 | CN114: 0 | CO114: 0 | CP114: 0 | CQ114: 0 | CR114: 0 | CS114: 0 | CT114: 0 | CU114: 0 | CV114: 0 | CW114: 0 | CX114: 0 | CY114: 0 | CZ114: 0 | DA114: 0 | DB114: 0 | DC114: 0 | DD114: 0 | DE114: 0 | DF114: 0 | DG114: 0 | DH114: 0 | DI114: 0 | DJ114: 0 | DK114: 0 | DL114: 0
B115: Other | C115: M_PAPER.E_OTHER | D115: PJ | E115: 0 | F115: 0 | G115: 0 | H115: 0 | I115: 0 | J115: 0 | K115: 0 | L115: 0 | M115: 0 | N115: 0 | O115: 0 | P115: 0 | Q115: 0 | R115: 0 | S115: 0 | T115: 0 | U115: 0 | V115: 0 | W115: 0 | X115: 0 | Y115: 0 | Z115: 0 | AA115: 0 | AB115: 0 | AC115: 0 | AD115: 0 | AE115: 0 | AF115: 0 | AG115: 0 | AH115: 0 | AI115: 0 | CG115: Other | CH115: M_PAPER.E_OTHER | CI115: PJ | CJ115: 0 | CK115: 0 | CL115: 0 | CM115: 0 | CN115: 0 | CO115: 0 | CP115: 0 | CQ115: 0 | CR115: 0 | CS115: 0 | CT115: 0 | CU115: 0 | CV115: 0 | CW115: 0 | CX115: 0 | CY115: 0 | CZ115: 0 | DA115: 0 | DB115: 0 | DC115: 0 | DD115: 0 | DE115: 0 | DF115: 0 | DG115: 0 | DH115: 0 | DI115: 0 | DJ115: 0 | DK115: 0 | DL115: 0
A116: FALSE | B116: Total Energy Use | C116: M_PAPER.E_FINAL | D116: PJ | E116: =SUM(E109:E115) -> 0 | F116: =SUM(F109:F115) -> 0 | G116: 0 | H116: 0 | I116: 0 | J116: 0 | K116: 0 | L116: 0 | M116: 0 | N116: 0 | O116: 0 | P116: 0 | Q116: 0 | R116: 0 | S116: 0 | T116: 0 | U116: 0 | V116: 0 | W116: 0 | X116: 0 | Y116: 0 | Z116: 0 | AA116: 0 | AB116: 0 | AC116: 0 | AD116: 0 | AE116: 0 | AF116: 0 | AG116: 0 | AH116: =SUM(AH109:AH115) -> 0 | AI116: 0 | CF116: FALSE | CG116: Total Energy Use | CH116: M_PAPER.E_FINAL | CI116: PJ | CJ116: 0 | CK116: 0 | CL116: 0 | CM116: 0 | CN116: 0 | CO116: 0 | CP116: 0 | CQ116: 0 | CR116: 0 | CS116: 0 | CT116: 0 | CU116: 0 | CV116: 0 | CW116: 0 | CX116: 0 | CY116: 0 | CZ116: 0 | DA116: 0 | DB116: 0 | DC116: 0 | DD116: 0 | DE116: 0 | DF116: 0 | DG116: 0 | DH116: 0 | DI116: 0 | DJ116: 0 | DK116: 0 | DL116: 0
B117: Energy intensity | D117: GJ/t | E117: =IF(E116*COMMODITIES!E13<>0,E116/COMMODITIES!E13,NA()) ->  | F117: =IF(F116*COMMODITIES!F13<>0,F116/COMMODITIES!F13,NA()) ->  | G117: =IF(G116*COMMODITIES!G13<>0,G116/COMMODITIES!G13,NA()) ->  | H117: =IF(H116*COMMODITIES!H13<>0,H116/COMMODITIES!H13,NA()) ->  | I117: =IF(I116*COMMODITIES!I13<>0,I116/COMMODITIES!I13,NA()) ->  | J117: =IF(J116*COMMODITIES!J13<>0,J116/COMMODITIES!J13,NA()) ->  | K117: =IF(K116*COMMODITIES!K13<>0,K116/COMMODITIES!K13,NA()) ->  | L117: =IF(L116*COMMODITIES!L13<>0,L116/COMMODITIES!L13,NA()) ->  | M117: =IF(M116*COMMODITIES!M13<>0,M116/COMMODITIES!M13,NA()) ->  | N117: =IF(N116*COMMODITIES!N13<>0,N116/COMMODITIES!N13,NA()) ->  | O117: =IF(O116*COMMODITIES!O13<>0,O116/COMMODITIES!O13,NA()) ->  | P117: =IF(P116*COMMODITIES!P13<>0,P116/COMMODITIES!P13,NA()) ->  | Q117: =IF(Q116*COMMODITIES!Q13<>0,Q116/COMMODITIES!Q13,NA()) ->  | R117: =IF(R116*COMMODITIES!R13<>0,R116/COMMODITIES!R13,NA()) ->  | S117: =IF(S116*COMMODITIES!S13<>0,S116/COMMODITIES!S13,NA()) ->  | T117: =IF(T116*COMMODITIES!T13<>0,T116/COMMODITIES!T13,NA()) ->  | U117: =IF(U116*COMMODITIES!U13<>0,U116/COMMODITIES!U13,NA()) ->  | V117: =IF(V116*COMMODITIES!V13<>0,V116/COMMODITIES!V13,NA()) ->  | W117: =IF(W116*COMMODITIES!W13<>0,W116/COMMODITIES!W13,NA()) ->  | X117: =IF(X116*COMMODITIES!X13<>0,X116/COMMODITIES!X13,NA()) ->  | Y117: =IF(Y116*COMMODITIES!Y13<>0,Y116/COMMODITIES!Y13,NA()) ->  | Z117: =IF(Z116*COMMODITIES!Z13<>0,Z116/COMMODITIES!Z13,NA()) ->  | AA117: =IF(AA116*COMMODITIES!AA13<>0,AA116/COMMODITIES!AA13,NA()) ->  | AB117: =IF(AB116*COMMODITIES!AB13<>0,AB116/COMMODITIES!AB13,NA()) ->  | AC117: =IF(AC116*COMMODITIES!AC13<>0,AC116/COMMODITIES!AC13,NA()) ->  | AD117: =IF(AD116*COMMODITIES!AD13<>0,AD116/COMMODITIES!AD13,NA()) ->  | AE117: =IF(AE116*COMMODITIES!AE13<>0,AE116/COMMODITIES!AE13,NA()) ->  | AF117: =IF(AF116*COMMODITIES!AF13<>0,AF116/COMMODITIES!AF13,NA()) ->  | AG117: =IF(AG116*COMMODITIES!AG13<>0,AG116/COMMODITIES!AG13,NA()) ->  | AH117: =IF(AH116*COMMODITIES!AH13<>0,AH116/COMMODITIES!AH13,NA()) ->  | AI117: =IF(AI116*COMMODITIES!AI13<>0,AI116/COMMODITIES!AI13,NA()) ->  | CG117: Energy intensity | CI117: GJ/t
A119: 18 | B119: 18: Printing and reproduction of recorded media | CF119: 18 | CG119: 18: Printing and reproduction of recorded media
B120: Oil & Oil Products | C120: M_PRINT.E_OIL | D120: PJ | E120: 0 | F120: 0 | G120: 0 | H120: 0 | I120: 0 | J120: 0 | K120: 0 | L120: 0 | M120: 0 | N120: 0 | O120: 0 | P120: 0 | Q120: 0 | R120: 0 | S120: 0 | T120: 0 | U120: 0 | V120: 0 | W120: 0 | X120: 0 | Y120: 0 | Z120: 0 | AA120: 0 | AB120: 0 | AC120: 0 | AD120: 0 | AE120: 0 | AF120: 0 | AG120: 0 | AH120: 0 | AI120: 0 | CG120: Oil & Oil Products | CH120: M_PRINT.E_OIL | CI120: PJ | CJ120: 0 | CK120: 0 | CL120: 0 | CM120: 0 | CN120: 0 | CO120: 0 | CP120: 0 | CQ120: 0 | CR120: 0 | CS120: 0 | CT120: 0 | CU120: 0 | CV120: 0 | CW120: 0 | CX120: 0 | CY120: 0 | CZ120: 0 | DA120: 0 | DB120: 0 | DC120: 0 | DD120: 0 | DE120: 0 | DF120: 0 | DG120: 0 | DH120: 0 | DI120: 0 | DJ120: 0 | DK120: 0 | DL120: 0
B121: Natural Gas | C121: M_PRINT.E_GAS | D121: PJ | E121: 0 | F121: 0 | G121: 0 | H121: 0 | I121: 0 | J121: 0 | K121: 0 | L121: 0 | M121: 0 | N121: 0 | O121: 0 | P121: 0 | Q121: 0 | R121: 0 | S121: 0 | T121: 0 | U121: 0 | V121: 0 | W121: 0 | X121: 0 | Y121: 0 | Z121: 0 | AA121: 0 | AB121: 0 | AC121: 0 | AD121: 0 | AE121: 0 | AF121: 0 | AG121: 0 | AH121: 0 | AI121: 0 | CG121: Natural Gas | CH121: M_PRINT.E_GAS | CI121: PJ | CJ121: 0 | CK121: 0 | CL121: 0 | CM121: 0 | CN121: 0 | CO121: 0 | CP121: 0 | CQ121: 0 | CR121: 0 | CS121: 0 | CT121: 0 | CU121: 0 | CV121: 0 | CW121: 0 | CX121: 0 | CY121: 0 | CZ121: 0 | DA121: 0 | DB121: 0 | DC121: 0 | DD121: 0 | DE121: 0 | DF121: 0 | DG121: 0 | DH121: 0 | DI121: 0 | DJ121: 0 | DK121: 0 | DL121: 0
B122: Coal & Coal Products | C122: M_PRINT.E_COAL | D122: PJ | E122: 0 | F122: 0 | G122: 0 | H122: 0 | I122: 0 | J122: 0 | K122: 0 | L122: 0 | M122: 0 | N122: 0 | O122: 0 | P122: 0 | Q122: 0 | R122: 0 | S122: 0 | T122: 0 | U122: 0 | V122: 0 | W122: 0 | X122: 0 | Y122: 0 | Z122: 0 | AA122: 0 | AB122: 0 | AC122: 0 | AD122: 0 | AE122: 0 | AF122: 0 | AG122: 0 | AH122: 0 | AI122: 0 | CG122: Coal & Coal Products | CH122: M_PRINT.E_COAL | CI122: PJ | CJ122: 0 | CK122: 0 | CL122: 0 | CM122: 0 | CN122: 0 | CO122: 0 | CP122: 0 | CQ122: 0 | CR122: 0 | CS122: 0 | CT122: 0 | CU122: 0 | CV122: 0 | CW122: 0 | CX122: 0 | CY122: 0 | CZ122: 0 | DA122: 0 | DB122: 0 | DC122: 0 | DD122: 0 | DE122: 0 | DF122: 0 | DG122: 0 | DH122: 0 | DI122: 0 | DJ122: 0 | DK122: 0 | DL122: 0
B123: Biofuels & Waste | C123: M_PRINT.E_WOOD | D123: PJ | E123: 0 | F123: 0 | G123: 0 | H123: 0 | I123: 0 | J123: 0 | K123: 0 | L123: 0 | M123: 0 | N123: 0 | O123: 0 | P123: 0 | Q123: 0 | R123: 0 | S123: 0 | T123: 0 | U123: 0 | V123: 0 | W123: 0 | X123: 0 | Y123: 0 | Z123: 0 | AA123: 0 | AB123: 0 | AC123: 0 | AD123: 0 | AE123: 0 | AF123: 0 | AG123: 0 | AH123: 0 | AI123: 0 | CG123: Biofuels & Waste | CH123: M_PRINT.E_WOOD | CI123: PJ | CJ123: 0 | CK123: 0 | CL123: 0 | CM123: 0 | CN123: 0 | CO123: 0 | CP123: 0 | CQ123: 0 | CR123: 0 | CS123: 0 | CT123: 0 | CU123: 0 | CV123: 0 | CW123: 0 | CX123: 0 | CY123: 0 | CZ123: 0 | DA123: 0 | DB123: 0 | DC123: 0 | DD123: 0 | DE123: 0 | DF123: 0 | DG123: 0 | DH123: 0 | DI123: 0 | DJ123: 0 | DK123: 0 | DL123: 0
B124: Heat | C124: M_PRINT.E_DHEAT | D124: PJ | E124: 0 | F124: 0 | G124: 0 | H124: 0 | I124: 0 | J124: 0 | K124: 0 | L124: 0 | M124: 0 | N124: 0 | O124: 0 | P124: 0 | Q124: 0 | R124: 0 | S124: 0 | T124: 0 | U124: 0 | V124: 0 | W124: 0 | X124: 0 | Y124: 0 | Z124: 0 | AA124: 0 | AB124: 0 | AC124: 0 | AD124: 0 | AE124: 0 | AF124: 0 | AG124: 0 | AH124: 0 | AI124: 0 | CG124: Heat | CH124: M_PRINT.E_DHEAT | CI124: PJ | CJ124: 0 | CK124: 0 | CL124: 0 | CM124: 0 | CN124: 0 | CO124: 0 | CP124: 0 | CQ124: 0 | CR124: 0 | CS124: 0 | CT124: 0 | CU124: 0 | CV124: 0 | CW124: 0 | CX124: 0 | CY124: 0 | CZ124: 0 | DA124: 0 | DB124: 0 | DC124: 0 | DD124: 0 | DE124: 0 | DF124: 0 | DG124: 0 | DH124: 0 | DI124: 0 | DJ124: 0 | DK124: 0 | DL124: 0
B125: Electricity | C125: M_PRINT.E_ELEC | D125: PJ | E125: 0 | F125: 0 | G125: 0 | H125: 0 | I125: 0 | J125: 0 | K125: 0 | L125: 0 | M125: 0 | N125: 0 | O125: 0 | P125: 0 | Q125: 0 | R125: 0 | S125: 0 | T125: 0 | U125: 0 | V125: 0 | W125: 0 | X125: 0 | Y125: 0 | Z125: 0 | AA125: 0 | AB125: 0 | AC125: 0 | AD125: 0 | AE125: 0 | AF125: 0 | AG125: 0 | AH125: 0 | AI125: 0 | CG125: Electricity | CH125: M_PRINT.E_ELEC | CI125: PJ | CJ125: 0 | CK125: 0 | CL125: 0 | CM125: 0 | CN125: 0 | CO125: 0 | CP125: 0 | CQ125: 0 | CR125: 0 | CS125: 0 | CT125: 0 | CU125: 0 | CV125: 0 | CW125: 0 | CX125: 0 | CY125: 0 | CZ125: 0 | DA125: 0 | DB125: 0 | DC125: 0 | DD125: 0 | DE125: 0 | DF125: 0 | DG125: 0 | DH125: 0 | DI125: 0 | DJ125: 0 | DK125: 0 | DL125: 0
